{"text_format":"1","workbook":"xlsx","n_sheets":2,"sheets":["EVIDENCIJA","RABOTA"],"not_rendered":{"charts":0,"images":0,"macros":1,"external_links":0,"defined_names":5,"comments":0,"pivot_tables":0},"unopened":[],"bounds":{"document_bytes":16777216,"sheet_cells":100000,"rows_first":2000,"rows_last":500,"rows_between":2000,"halvings":0,"cell_chars":16384,"cell_head_chars":4096},"cells_cut":0,"cells_raw":0,"read":"whole","date_system":"1900"}

{"sheet":"EVIDENCIJA","index":0,"n_rows":505,"n_cols":32,"rows_kept":505,"cut":false,"hidden":false,"merged":[[0,0,2,7],[0,9,1,29]]}
[]
[]
[null,null,null,null,null,null,null,null,null,{"$f":"SUM(J5:J304)","v":8900},{"$f":"SUM(K5:K304)","v":0},{"$f":"SUM(L5:L304)","v":8900}]
["R.Br.","Ime i Prezime","Adresa","Telefon","Datum na prijava","Datum za realizacijaj","Den.za realiz.","Rabota","Zabele[ka","Za Pla]awe","Plateno","Ne Plateno","Data 1","Uplata 1","Data 2","Uplata 2","Data 3","Uplata 3","Data 4","Uplata 4","Data 5","Uplata 5","Data 6","Uplata 6","Kraen rok za naplata","Tek na Rabota","Prioritet","Zabele{ka od Rabota",null,null,"DATA","Rabota"]
[1,"geza","ggggggg","6666666","28.09.2012","2012-01-03",{"$f":"IF(F5-AE5>=1,F5-AE5,\"Pominat rok\")","v":"Pominat rok"},"Venecijan","iopp",8900,{"$f":"N5+P5+R5+T5+V5+X5","v":0},{"$f":"IF(J5-K5>=1,J5-K5,\"Plateno   \")","v":8900},null,null,null,null,null,null,null,null,null,null,null,null,null,null,null,null,null,null,{"$f":"TODAY()","v":"2012-09-28"},"PVC"]
[{"$f":"IF(B6=\"\",\"\",A5+1)","v":""},null,null,null,null,null,{"$f":"IF(F6-AE6>=1,F6-AE6,\"Pominat rok\")","v":"Pominat rok"},null,null,null,{"$f":"N6+P6+R6+T6+V6+X6","v":0},{"$f":"IF(J6-K6>=1,J6-K6,\"Plateno   \")","v":"Plateno   "},null,null,null,null,null,null,null,null,null,null,null,null,null,null,null,null,null,null,{"$f":"TODAY()","v":"2012-09-28"},"Venecijan"]
[{"$f":"IF(B7=\"\",\"\",A6+1)","v":""},null,null,null,null,null,"Pominat rok",null,null,null,0,"Plateno   ",null,null,null,null,null,null,null,null,null,null,null,null,null,null,null,null,null,null,"2012-09-28","Variolajt"]
["",null,null,null,null,null,"Pominat rok",null,null,null,0,"Plateno   ",null,null,null,null,null,null,null,null,null,null,null,null,null,null,null,null,null,null,"2012-09-28","Roletni"]
["",null,null,null,null,null,"Pominat rok",null,null,null,0,"Plateno   ",null,null,null,null,null,null,null,null,null,null,null,null,null,null,null,null,null,null,"2012-09-28","Komarnik"]
["",null,null,null,null,null,"Pominat rok",null,null,null,0,"Plateno   ",null,null,null,null,null,null,null,null,null,null,null,null,null,null,null,null,null,null,"2012-09-28","Alu.Ograda"]
["",null,null,null,null,null,"Pominat rok",null,null,null,0,"Plateno   ",null,null,null,null,null,null,null,null,null,null,null,null,null,null,null,null,null,null,"2012-09-28","Enterier"]
["",null,null,null,null,null,"Pominat rok",null,null,null,0,"Plateno   ",null,null,null,null,null,null,null,null,null,null,null,null,null,null,null,null,null,null,"2012-09-28","Kujna"]
["",null,null,null,null,null,"Pominat rok",null,null,null,0,"Plateno   ",null,null,null,null,null,null,null,null,null,null,null,null,null,null,null,null,null,null,"2012-09-28"]
["",null,null,null,null,null,"Pominat rok",null,null,null,0,"Plateno   ",null,null,null,null,null,null,null,null,null,null,null,null,null,null,null,null,null,null,"2012-09-28"]
["",null,null,null,null,null,"Pominat rok",null,null,null,0,"Plateno   ",null,null,null,null,null,null,null,null,null,null,null,null,null,null,null,null,null,null,"2012-09-28"]
["",null,null,null,null,null,"Pominat rok",null,null,null,0,"Plateno   ",null,null,null,null,null,null,null,null,null,null,null,null,null,null,null,null,null,null,"2012-09-28"]
["",null,null,null,null,null,"Pominat rok",null,null,null,0,"Plateno   ",null,null,null,null,null,null,null,null,null,null,null,null,null,null,null,null,null,null,"2012-09-28"]
["",null,null,null,null,null,"Pominat rok",null,null,null,0,"Plateno   ",null,null,null,null,null,null,null,null,null,null,null,null,null,null,null,null,null,null,"2012-09-28"]
["",null,null,null,null,null,"Pominat rok",null,null,null,0,"Plateno   ",null,null,null,null,null,null,null,null,null,null,null,null,null,null,null,null,null,null,"2012-09-28"]
["",null,null,null,null,null,"Pominat rok",null,null,null,0,"Plateno   ",null,null,null,null,null,null,null,null,null,null,null,null,null,null,null,null,null,null,"2012-09-28"]
["",null,null,null,null,null,"Pominat rok",null,null,null,0,"Plateno   ",null,null,null,null,null,null,null,null,null,null,null,null,null,null,null,null,null,null,"2012-09-28"]
["",null,null,null,null,null,"Pominat rok",null,null,null,0,"Plateno   ",null,null,null,null,null,null,null,null,null,null,null,null,null,null,null,null,null,null,"2012-09-28"]
["",null,null,null,null,null,"Pominat rok",null,null,null,0,"Plateno   ",null,null,null,null,null,null,null,null,null,null,null,null,null,null,null,null,null,null,"2012-09-28"]
["",null,null,null,null,null,"Pominat rok",null,null,null,0,"Plateno   ",null,null,null,null,null,null,null,null,null,null,null,null,null,null,null,null,null,null,"2012-09-28"]
["",null,null,null,null,null,"Pominat rok",null,null,null,0,"Plateno   ",null,null,null,null,null,null,null,null,null,null,null,null,null,null,null,null,null,null,"2012-09-28"]
["",null,null,null,null,null,"Pominat rok",null,null,null,0,"Plateno   ",null,null,null,null,null,null,null,null,null,null,null,null,null,null,null,null,null,null,"2012-09-28"]
["",null,null,null,null,null,"Pominat rok",null,null,null,0,"Plateno   ",null,null,null,null,null,null,null,null,null,null,null,null,null,null,null,null,null,null,"2012-09-28"]
["",null,null,null,null,null,"Pominat rok",null,null,null,0,"Plateno   ",null,null,null,null,null,null,null,null,null,null,null,null,null,null,null,null,null,null,"2012-09-28"]
["",null,null,null,null,null,"Pominat rok",null,null,null,0,"Plateno   ",null,null,null,null,null,null,null,null,null,null,null,null,null,null,null,null,null,null,"2012-09-28"]
["",null,null,null,null,null,"Pominat rok",null,null,null,0,"Plateno   ",null,null,null,null,null,null,null,null,null,null,null,null,null,null,null,null,null,null,"2012-09-28"]
["",null,null,null,null,null,"Pominat rok",null,null,null,0,"Plateno   ",null,null,null,null,null,null,null,null,null,null,null,null,null,null,null,null,null,null,"2012-09-28"]
["",null,null,null,null,null,"Pominat rok",null,null,null,0,"Plateno   ",null,null,null,null,null,null,null,null,null,null,null,null,null,null,null,null,null,null,"2012-09-28"]
["",null,null,null,null,null,"Pominat rok",null,null,null,0,"Plateno   ",null,null,null,null,null,null,null,null,null,null,null,null,null,null,null,null,null,null,"2012-09-28"]
["",null,null,null,null,null,"Pominat rok",null,null,null,0,"Plateno   ",null,null,null,null,null,null,null,null,null,null,null,null,null,null,null,null,null,null,"2012-09-28"]
["",null,null,null,null,null,"Pominat rok",null,null,null,0,"Plateno   ",null,null,null,null,null,null,null,null,null,null,null,null,null,null,null,null,null,null,"2012-09-28"]
["",null,null,null,null,null,"Pominat rok",null,null,null,0,"Plateno   ",null,null,null,null,null,null,null,null,null,null,null,null,null,null,null,null,null,null,"2012-09-28"]
["",null,null,null,null,null,"Pominat rok",null,null,null,0,"Plateno   ",null,null,null,null,null,null,null,null,null,null,null,null,null,null,null,null,null,null,"2012-09-28"]
["",null,null,null,null,null,"Pominat rok",null,null,null,0,"Plateno   ",null,null,null,null,null,null,null,null,null,null,null,null,null,null,null,null,null,null,"2012-09-28"]
["",null,null,null,null,null,"Pominat rok",null,null,null,0,"Plateno   ",null,null,null,null,null,null,null,null,null,null,null,null,null,null,null,null,null,null,"2012-09-28"]
["",null,null,null,null,null,"Pominat rok",null,null,null,0,"Plateno   ",null,null,null,null,null,null,null,null,null,null,null,null,null,null,null,null,null,null,"2012-09-28"]
["",null,null,null,null,null,"Pominat rok",null,null,null,0,"Plateno   ",null,null,null,null,null,null,null,null,null,null,null,null,null,null,null,null,null,null,"2012-09-28"]
["",null,null,null,null,null,"Pominat rok",null,null,null,0,"Plateno   ",null,null,null,null,null,null,null,null,null,null,null,null,null,null,null,null,null,null,"2012-09-28"]
["",null,null,null,null,null,"Pominat rok",null,null,null,0,"Plateno   ",null,null,null,null,null,null,null,null,null,null,null,null,null,null,null,null,null,null,"2012-09-28"]
["",null,null,null,null,null,"Pominat rok",null,null,null,0,"Plateno   ",null,null,null,null,null,null,null,null,null,null,null,null,null,null,null,null,null,null,"2012-09-28"]
["",null,null,null,null,null,"Pominat rok",null,null,null,0,"Plateno   ",null,null,null,null,null,null,null,null,null,null,null,null,null,null,null,null,null,null,"2012-09-28"]
["",null,null,null,null,null,"Pominat rok",null,null,null,0,"Plateno   ",null,null,null,null,null,null,null,null,null,null,null,null,null,null,null,null,null,null,"2012-09-28"]
["",null,null,null,null,null,"Pominat rok",null,null,null,0,"Plateno   ",null,null,null,null,null,null,null,null,null,null,null,null,null,null,null,null,null,null,"2012-09-28"]
["",null,null,null,null,null,"Pominat rok",null,null,null,0,"Plateno   ",null,null,null,null,null,null,null,null,null,null,null,null,null,null,null,null,null,null,"2012-09-28"]
["",null,null,null,null,null,"Pominat rok",null,null,null,0,"Plateno   ",null,null,null,null,null,null,null,null,null,null,null,null,null,null,null,null,null,null,"2012-09-28"]
["",null,null,null,null,null,"Pominat rok",null,null,null,0,"Plateno   ",null,null,null,null,null,null,null,null,null,null,null,null,null,null,null,null,null,null,"2012-09-28"]
["",null,null,null,null,null,"Pominat rok",null,null,null,0,"Plateno   ",null,null,null,null,null,null,null,null,null,null,null,null,null,null,null,null,null,null,"2012-09-28"]
["",null,null,null,null,null,"Pominat rok",null,null,null,0,"Plateno   ",null,null,null,null,null,null,null,null,null,null,null,null,null,null,null,null,null,null,"2012-09-28"]
["",null,null,null,null,null,"Pominat rok",null,null,null,0,"Plateno   ",null,null,null,null,null,null,null,null,null,null,null,null,null,null,null,null,null,null,"2012-09-28"]
["",null,null,null,null,null,"Pominat rok",null,null,null,0,"Plateno   ",null,null,null,null,null,null,null,null,null,null,null,null,null,null,null,null,null,null,"2012-09-28"]
["",null,null,null,null,null,"Pominat rok",null,null,null,0,"Plateno   ",null,null,null,null,null,null,null,null,null,null,null,null,null,null,null,null,null,null,"2012-09-28"]
["",null,null,null,null,null,"Pominat rok",null,null,null,0,"Plateno   ",null,null,null,null,null,null,null,null,null,null,null,null,null,null,null,null,null,null,"2012-09-28"]
["",null,null,null,null,null,"Pominat rok",null,null,null,0,"Plateno   ",null,null,null,null,null,null,null,null,null,null,null,null,null,null,null,null,null,null,"2012-09-28"]
["",null,null,null,null,null,"Pominat rok",null,null,null,0,"Plateno   ",null,null,null,null,null,null,null,null,null,null,null,null,null,null,null,null,null,null,"2012-09-28"]
["",null,null,null,null,null,"Pominat rok",null,null,null,0,"Plateno   ",null,null,null,null,null,null,null,null,null,null,null,null,null,null,null,null,null,null,"2012-09-28"]
["",null,null,null,null,null,"Pominat rok",null,null,null,0,"Plateno   ",null,null,null,null,null,null,null,null,null,null,null,null,null,null,null,null,null,null,"2012-09-28"]
["",null,null,null,null,null,"Pominat rok",null,null,null,0,"Plateno   ",null,null,null,null,null,null,null,null,null,null,null,null,null,null,null,null,null,null,"2012-09-28"]
["",null,null,null,null,null,"Pominat rok",null,null,null,0,"Plateno   ",null,null,null,null,null,null,null,null,null,null,null,null,null,null,null,null,null,null,"2012-09-28"]
["",null,null,null,null,null,"Pominat rok",null,null,null,0,"Plateno   ",null,null,null,null,null,null,null,null,null,null,null,null,null,null,null,null,null,null,"2012-09-28"]
["",null,null,null,null,null,"Pominat rok",null,null,null,0,"Plateno   ",null,null,null,null,null,null,null,null,null,null,null,null,null,null,null,null,null,null,"2012-09-28"]
["",null,null,null,null,null,"Pominat rok",null,null,null,0,"Plateno   ",null,null,null,null,null,null,null,null,null,null,null,null,null,null,null,null,null,null,"2012-09-28"]
["",null,null,null,null,null,"Pominat rok",null,null,null,0,"Plateno   ",null,null,null,null,null,null,null,null,null,null,null,null,null,null,null,null,null,null,"2012-09-28"]
["",null,null,null,null,null,"Pominat rok",null,null,null,0,"Plateno   ",null,null,null,null,null,null,null,null,null,null,null,null,null,null,null,null,null,null,"2012-09-28"]
["",null,null,null,null,null,"Pominat rok",null,null,null,0,"Plateno   ",null,null,null,null,null,null,null,null,null,null,null,null,null,null,null,null,null,null,"2012-09-28"]
["",null,null,null,null,null,"Pominat rok",null,null,null,0,"Plateno   ",null,null,null,null,null,null,null,null,null,null,null,null,null,null,null,null,null,null,"2012-09-28"]
["",null,null,null,null,null,{"$f":"IF(F70-AE70>=1,F70-AE70,\"Pominat rok\")","v":"Pominat rok"},null,null,null,{"$f":"N70+P70+R70+T70+V70+X70","v":0},{"$f":"IF(J70-K70>=1,J70-K70,\"Plateno   \")","v":"Plateno   "},null,null,null,null,null,null,null,null,null,null,null,null,null,null,null,null,null,null,{"$f":"TODAY()","v":"2012-09-28"}]
[{"$f":"IF(B71=\"\",\"\",A70+1)","v":""},null,null,null,null,null,"Pominat rok",null,null,null,0,"Plateno   ",null,null,null,null,null,null,null,null,null,null,null,null,null,null,null,null,null,null,"2012-09-28"]
["",null,null,null,null,null,"Pominat rok",null,null,null,0,"Plateno   ",null,null,null,null,null,null,null,null,null,null,null,null,null,null,null,null,null,null,"2012-09-28"]
["",null,null,null,null,null,"Pominat rok",null,null,null,0,"Plateno   ",null,null,null,null,null,null,null,null,null,null,null,null,null,null,null,null,null,null,"2012-09-28"]
["",null,null,null,null,null,"Pominat rok",null,null,null,0,"Plateno   ",null,null,null,null,null,null,null,null,null,null,null,null,null,null,null,null,null,null,"2012-09-28"]
["",null,null,null,null,null,"Pominat rok",null,null,null,0,"Plateno   ",null,null,null,null,null,null,null,null,null,null,null,null,null,null,null,null,null,null,"2012-09-28"]
["",null,null,null,null,null,"Pominat rok",null,null,null,0,"Plateno   ",null,null,null,null,null,null,null,null,null,null,null,null,null,null,null,null,null,null,"2012-09-28"]
["",null,null,null,null,null,"Pominat rok",null,null,null,0,"Plateno   ",null,null,null,null,null,null,null,null,null,null,null,null,null,null,null,null,null,null,"2012-09-28"]
["",null,null,null,null,null,"Pominat rok",null,null,null,0,"Plateno   ",null,null,null,null,null,null,null,null,null,null,null,null,null,null,null,null,null,null,"2012-09-28"]
["",null,null,null,null,null,"Pominat rok",null,null,null,0,"Plateno   ",null,null,null,null,null,null,null,null,null,null,null,null,null,null,null,null,null,null,"2012-09-28"]
["",null,null,null,null,null,"Pominat rok",null,null,null,0,"Plateno   ",null,null,null,null,null,null,null,null,null,null,null,null,null,null,null,null,null,null,"2012-09-28"]
["",null,null,null,null,null,"Pominat rok",null,null,null,0,"Plateno   ",null,null,null,null,null,null,null,null,null,null,null,null,null,null,null,null,null,null,"2012-09-28"]
["",null,null,null,null,null,"Pominat rok",null,null,null,0,"Plateno   ",null,null,null,null,null,null,null,null,null,null,null,null,null,null,null,null,null,null,"2012-09-28"]
["",null,null,null,null,null,"Pominat rok",null,null,null,0,"Plateno   ",null,null,null,null,null,null,null,null,null,null,null,null,null,null,null,null,null,null,"2012-09-28"]
["",null,null,null,null,null,"Pominat rok",null,null,null,0,"Plateno   ",null,null,null,null,null,null,null,null,null,null,null,null,null,null,null,null,null,null,"2012-09-28"]
["",null,null,null,null,null,"Pominat rok",null,null,null,0,"Plateno   ",null,null,null,null,null,null,null,null,null,null,null,null,null,null,null,null,null,null,"2012-09-28"]
["",null,null,null,null,null,"Pominat rok",null,null,null,0,"Plateno   ",null,null,null,null,null,null,null,null,null,null,null,null,null,null,null,null,null,null,"2012-09-28"]
["",null,null,null,null,null,"Pominat rok",null,null,null,0,"Plateno   ",null,null,null,null,null,null,null,null,null,null,null,null,null,null,null,null,null,null,"2012-09-28"]
["",null,null,null,null,null,"Pominat rok",null,null,null,0,"Plateno   ",null,null,null,null,null,null,null,null,null,null,null,null,null,null,null,null,null,null,"2012-09-28"]
["",null,null,null,null,null,"Pominat rok",null,null,null,0,"Plateno   ",null,null,null,null,null,null,null,null,null,null,null,null,null,null,null,null,null,null,"2012-09-28"]
["",null,null,null,null,null,"Pominat rok",null,null,null,0,"Plateno   ",null,null,null,null,null,null,null,null,null,null,null,null,null,null,null,null,null,null,"2012-09-28"]
["",null,null,null,null,null,"Pominat rok",null,null,null,0,"Plateno   ",null,null,null,null,null,null,null,null,null,null,null,null,null,null,null,null,null,null,"2012-09-28"]
["",null,null,null,null,null,"Pominat rok",null,null,null,0,"Plateno   ",null,null,null,null,null,null,null,null,null,null,null,null,null,null,null,null,null,null,"2012-09-28"]
["",null,null,null,null,null,"Pominat rok",null,null,null,0,"Plateno   ",null,null,null,null,null,null,null,null,null,null,null,null,null,null,null,null,null,null,"2012-09-28"]
["",null,null,null,null,null,"Pominat rok",null,null,null,0,"Plateno   ",null,null,null,null,null,null,null,null,null,null,null,null,null,null,null,null,null,null,"2012-09-28"]
["",null,null,null,null,null,"Pominat rok",null,null,null,0,"Plateno   ",null,null,null,null,null,null,null,null,null,null,null,null,null,null,null,null,null,null,"2012-09-28"]
["",null,null,null,null,null,"Pominat rok",null,null,null,0,"Plateno   ",null,null,null,null,null,null,null,null,null,null,null,null,null,null,null,null,null,null,"2012-09-28"]
["",null,null,null,null,null,"Pominat rok",null,null,null,0,"Plateno   ",null,null,null,null,null,null,null,null,null,null,null,null,null,null,null,null,null,null,"2012-09-28"]
["",null,null,null,null,null,"Pominat rok",null,null,null,0,"Plateno   ",null,null,null,null,null,null,null,null,null,null,null,null,null,null,null,null,null,null,"2012-09-28"]
["",null,null,null,null,null,"Pominat rok",null,null,null,0,"Plateno   ",null,null,null,null,null,null,null,null,null,null,null,null,null,null,null,null,null,null,"2012-09-28"]
["",null,null,null,null,null,"Pominat rok",null,null,null,0,"Plateno   ",null,null,null,null,null,null,null,null,null,null,null,null,null,null,null,null,null,null,"2012-09-28"]
["",null,null,null,null,null,"Pominat rok",null,null,null,0,"Plateno   ",null,null,null,null,null,null,null,null,null,null,null,null,null,null,null,null,null,null,"2012-09-28"]
["",null,null,null,null,null,"Pominat rok",null,null,null,0,"Plateno   ",null,null,null,null,null,null,null,null,null,null,null,null,null,null,null,null,null,null,"2012-09-28"]
["",null,null,null,null,null,"Pominat rok",null,null,null,0,"Plateno   ",null,null,null,null,null,null,null,null,null,null,null,null,null,null,null,null,null,null,"2012-09-28"]
["",null,null,null,null,null,"Pominat rok",null,null,null,0,"Plateno   ",null,null,null,null,null,null,null,null,null,null,null,null,null,null,null,null,null,null,"2012-09-28"]
["",null,null,null,null,null,"Pominat rok",null,null,null,0,"Plateno   ",null,null,null,null,null,null,null,null,null,null,null,null,null,null,null,null,null,null,"2012-09-28"]
["",null,null,null,null,null,"Pominat rok",null,null,null,0,"Plateno   ",null,null,null,null,null,null,null,null,null,null,null,null,null,null,null,null,null,null,"2012-09-28"]
["",null,null,null,null,null,"Pominat rok",null,null,null,0,"Plateno   ",null,null,null,null,null,null,null,null,null,null,null,null,null,null,null,null,null,null,"2012-09-28"]
["",null,null,null,null,null,"Pominat rok",null,null,null,0,"Plateno   ",null,null,null,null,null,null,null,null,null,null,null,null,null,null,null,null,null,null,"2012-09-28"]
["",null,null,null,null,null,"Pominat rok",null,null,null,0,"Plateno   ",null,null,null,null,null,null,null,null,null,null,null,null,null,null,null,null,null,null,"2012-09-28"]
["",null,null,null,null,null,"Pominat rok",null,null,null,0,"Plateno   ",null,null,null,null,null,null,null,null,null,null,null,null,null,null,null,null,null,null,"2012-09-28"]
["",null,null,null,null,null,"Pominat rok",null,null,null,0,"Plateno   ",null,null,null,null,null,null,null,null,null,null,null,null,null,null,null,null,null,null,"2012-09-28"]
["",null,null,null,null,null,"Pominat rok",null,null,null,0,"Plateno   ",null,null,null,null,null,null,null,null,null,null,null,null,null,null,null,null,null,null,"2012-09-28"]
["",null,null,null,null,null,"Pominat rok",null,null,null,0,"Plateno   ",null,null,null,null,null,null,null,null,null,null,null,null,null,null,null,null,null,null,"2012-09-28"]
["",null,null,null,null,null,"Pominat rok",null,null,null,0,"Plateno   ",null,null,null,null,null,null,null,null,null,null,null,null,null,null,null,null,null,null,"2012-09-28"]
["",null,null,null,null,null,"Pominat rok",null,null,null,0,"Plateno   ",null,null,null,null,null,null,null,null,null,null,null,null,null,null,null,null,null,null,"2012-09-28"]
["",null,null,null,null,null,"Pominat rok",null,null,null,0,"Plateno   ",null,null,null,null,null,null,null,null,null,null,null,null,null,null,null,null,null,null,"2012-09-28"]
["",null,null,null,null,null,"Pominat rok",null,null,null,0,"Plateno   ",null,null,null,null,null,null,null,null,null,null,null,null,null,null,null,null,null,null,"2012-09-28"]
["",null,null,null,null,null,"Pominat rok",null,null,null,0,"Plateno   ",null,null,null,null,null,null,null,null,null,null,null,null,null,null,null,null,null,null,"2012-09-28"]
["",null,null,null,null,null,"Pominat rok",null,null,null,0,"Plateno   ",null,null,null,null,null,null,null,null,null,null,null,null,null,null,null,null,null,null,"2012-09-28"]
["",null,null,null,null,null,"Pominat rok",null,null,null,0,"Plateno   ",null,null,null,null,null,null,null,null,null,null,null,null,null,null,null,null,null,null,"2012-09-28"]
["",null,null,null,null,null,"Pominat rok",null,null,null,0,"Plateno   ",null,null,null,null,null,null,null,null,null,null,null,null,null,null,null,null,null,null,"2012-09-28"]
["",null,null,null,null,null,"Pominat rok",null,null,null,0,"Plateno   ",null,null,null,null,null,null,null,null,null,null,null,null,null,null,null,null,null,null,"2012-09-28"]
["",null,null,null,null,null,"Pominat rok",null,null,null,0,"Plateno   ",null,null,null,null,null,null,null,null,null,null,null,null,null,null,null,null,null,null,"2012-09-28"]
["",null,null,null,null,null,"Pominat rok",null,null,null,0,"Plateno   ",null,null,null,null,null,null,null,null,null,null,null,null,null,null,null,null,null,null,"2012-09-28"]
["",null,null,null,null,null,"Pominat rok",null,null,null,0,"Plateno   ",null,null,null,null,null,null,null,null,null,null,null,null,null,null,null,null,null,null,"2012-09-28"]
["",null,null,null,null,null,"Pominat rok",null,null,null,0,"Plateno   ",null,null,null,null,null,null,null,null,null,null,null,null,null,null,null,null,null,null,"2012-09-28"]
["",null,null,null,null,null,"Pominat rok",null,null,null,0,"Plateno   ",null,null,null,null,null,null,null,null,null,null,null,null,null,null,null,null,null,null,"2012-09-28"]
["",null,null,null,null,null,"Pominat rok",null,null,null,0,"Plateno   ",null,null,null,null,null,null,null,null,null,null,null,null,null,null,null,null,null,null,"2012-09-28"]
["",null,null,null,null,null,"Pominat rok",null,null,null,0,"Plateno   ",null,null,null,null,null,null,null,null,null,null,null,null,null,null,null,null,null,null,"2012-09-28"]
["",null,null,null,null,null,"Pominat rok",null,null,null,0,"Plateno   ",null,null,null,null,null,null,null,null,null,null,null,null,null,null,null,null,null,null,"2012-09-28"]
["",null,null,null,null,null,"Pominat rok",null,null,null,0,"Plateno   ",null,null,null,null,null,null,null,null,null,null,null,null,null,null,null,null,null,null,"2012-09-28"]
["",null,null,null,null,null,"Pominat rok",null,null,null,0,"Plateno   ",null,null,null,null,null,null,null,null,null,null,null,null,null,null,null,null,null,null,"2012-09-28"]
["",null,null,null,null,null,"Pominat rok",null,null,null,0,"Plateno   ",null,null,null,null,null,null,null,null,null,null,null,null,null,null,null,null,null,null,"2012-09-28"]
["",null,null,null,null,null,{"$f":"IF(F134-AE134>=1,F134-AE134,\"Pominat rok\")","v":"Pominat rok"},null,null,null,{"$f":"N134+P134+R134+T134+V134+X134","v":0},{"$f":"IF(J134-K134>=1,J134-K134,\"Plateno   \")","v":"Plateno   "},null,null,null,null,null,null,null,null,null,null,null,null,null,null,null,null,null,null,{"$f":"TODAY()","v":"2012-09-28"}]
[{"$f":"IF(B135=\"\",\"\",A134+1)","v":""},null,null,null,null,null,"Pominat rok",null,null,null,0,"Plateno   ",null,null,null,null,null,null,null,null,null,null,null,null,null,null,null,null,null,null,"2012-09-28"]
["",null,null,null,null,null,"Pominat rok",null,null,null,0,"Plateno   ",null,null,null,null,null,null,null,null,null,null,null,null,null,null,null,null,null,null,"2012-09-28"]
["",null,null,null,null,null,"Pominat rok",null,null,null,0,"Plateno   ",null,null,null,null,null,null,null,null,null,null,null,null,null,null,null,null,null,null,"2012-09-28"]
["",null,null,null,null,null,"Pominat rok",null,null,null,0,"Plateno   ",null,null,null,null,null,null,null,null,null,null,null,null,null,null,null,null,null,null,"2012-09-28"]
["",null,null,null,null,null,"Pominat rok",null,null,null,0,"Plateno   ",null,null,null,null,null,null,null,null,null,null,null,null,null,null,null,null,null,null,"2012-09-28"]
["",null,null,null,null,null,"Pominat rok",null,null,null,0,"Plateno   ",null,null,null,null,null,null,null,null,null,null,null,null,null,null,null,null,null,null,"2012-09-28"]
["",null,null,null,null,null,"Pominat rok",null,null,null,0,"Plateno   ",null,null,null,null,null,null,null,null,null,null,null,null,null,null,null,null,null,null,"2012-09-28"]
["",null,null,null,null,null,"Pominat rok",null,null,null,0,"Plateno   ",null,null,null,null,null,null,null,null,null,null,null,null,null,null,null,null,null,null,"2012-09-28"]
["",null,null,null,null,null,"Pominat rok",null,null,null,0,"Plateno   ",null,null,null,null,null,null,null,null,null,null,null,null,null,null,null,null,null,null,"2012-09-28"]
["",null,null,null,null,null,"Pominat rok",null,null,null,0,"Plateno   ",null,null,null,null,null,null,null,null,null,null,null,null,null,null,null,null,null,null,"2012-09-28"]
["",null,null,null,null,null,"Pominat rok",null,null,null,0,"Plateno   ",null,null,null,null,null,null,null,null,null,null,null,null,null,null,null,null,null,null,"2012-09-28"]
["",null,null,null,null,null,"Pominat rok",null,null,null,0,"Plateno   ",null,null,null,null,null,null,null,null,null,null,null,null,null,null,null,null,null,null,"2012-09-28"]
["",null,null,null,null,null,"Pominat rok",null,null,null,0,"Plateno   ",null,null,null,null,null,null,null,null,null,null,null,null,null,null,null,null,null,null,"2012-09-28"]
["",null,null,null,null,null,"Pominat rok",null,null,null,0,"Plateno   ",null,null,null,null,null,null,null,null,null,null,null,null,null,null,null,null,null,null,"2012-09-28"]
["",null,null,null,null,null,"Pominat rok",null,null,null,0,"Plateno   ",null,null,null,null,null,null,null,null,null,null,null,null,null,null,null,null,null,null,"2012-09-28"]
["",null,null,null,null,null,"Pominat rok",null,null,null,0,"Plateno   ",null,null,null,null,null,null,null,null,null,null,null,null,null,null,null,null,null,null,"2012-09-28"]
["",null,null,null,null,null,"Pominat rok",null,null,null,0,"Plateno   ",null,null,null,null,null,null,null,null,null,null,null,null,null,null,null,null,null,null,"2012-09-28"]
["",null,null,null,null,null,"Pominat rok",null,null,null,0,"Plateno   ",null,null,null,null,null,null,null,null,null,null,null,null,null,null,null,null,null,null,"2012-09-28"]
["",null,null,null,null,null,"Pominat rok",null,null,null,0,"Plateno   ",null,null,null,null,null,null,null,null,null,null,null,null,null,null,null,null,null,null,"2012-09-28"]
["",null,null,null,null,null,"Pominat rok",null,null,null,0,"Plateno   ",null,null,null,null,null,null,null,null,null,null,null,null,null,null,null,null,null,null,"2012-09-28"]
["",null,null,null,null,null,"Pominat rok",null,null,null,0,"Plateno   ",null,null,null,null,null,null,null,null,null,null,null,null,null,null,null,null,null,null,"2012-09-28"]
["",null,null,null,null,null,"Pominat rok",null,null,null,0,"Plateno   ",null,null,null,null,null,null,null,null,null,null,null,null,null,null,null,null,null,null,"2012-09-28"]
["",null,null,null,null,null,"Pominat rok",null,null,null,0,"Plateno   ",null,null,null,null,null,null,null,null,null,null,null,null,null,null,null,null,null,null,"2012-09-28"]
["",null,null,null,null,null,"Pominat rok",null,null,null,0,"Plateno   ",null,null,null,null,null,null,null,null,null,null,null,null,null,null,null,null,null,null,"2012-09-28"]
["",null,null,null,null,null,"Pominat rok",null,null,null,0,"Plateno   ",null,null,null,null,null,null,null,null,null,null,null,null,null,null,null,null,null,null,"2012-09-28"]
["",null,null,null,null,null,"Pominat rok",null,null,null,0,"Plateno   ",null,null,null,null,null,null,null,null,null,null,null,null,null,null,null,null,null,null,"2012-09-28"]
["",null,null,null,null,null,"Pominat rok",null,null,null,0,"Plateno   ",null,null,null,null,null,null,null,null,null,null,null,null,null,null,null,null,null,null,"2012-09-28"]
["",null,null,null,null,null,"Pominat rok",null,null,null,0,"Plateno   ",null,null,null,null,null,null,null,null,null,null,null,null,null,null,null,null,null,null,"2012-09-28"]
["",null,null,null,null,null,"Pominat rok",null,null,null,0,"Plateno   ",null,null,null,null,null,null,null,null,null,null,null,null,null,null,null,null,null,null,"2012-09-28"]
["",null,null,null,null,null,"Pominat rok",null,null,null,0,"Plateno   ",null,null,null,null,null,null,null,null,null,null,null,null,null,null,null,null,null,null,"2012-09-28"]
["",null,null,null,null,null,"Pominat rok",null,null,null,0,"Plateno   ",null,null,null,null,null,null,null,null,null,null,null,null,null,null,null,null,null,null,"2012-09-28"]
["",null,null,null,null,null,"Pominat rok",null,null,null,0,"Plateno   ",null,null,null,null,null,null,null,null,null,null,null,null,null,null,null,null,null,null,"2012-09-28"]
["",null,null,null,null,null,"Pominat rok",null,null,null,0,"Plateno   ",null,null,null,null,null,null,null,null,null,null,null,null,null,null,null,null,null,null,"2012-09-28"]
["",null,null,null,null,null,"Pominat rok",null,null,null,0,"Plateno   ",null,null,null,null,null,null,null,null,null,null,null,null,null,null,null,null,null,null,"2012-09-28"]
["",null,null,null,null,null,"Pominat rok",null,null,null,0,"Plateno   ",null,null,null,null,null,null,null,null,null,null,null,null,null,null,null,null,null,null,"2012-09-28"]
["",null,null,null,null,null,"Pominat rok",null,null,null,0,"Plateno   ",null,null,null,null,null,null,null,null,null,null,null,null,null,null,null,null,null,null,"2012-09-28"]
["",null,null,null,null,null,"Pominat rok",null,null,null,0,"Plateno   ",null,null,null,null,null,null,null,null,null,null,null,null,null,null,null,null,null,null,"2012-09-28"]
["",null,null,null,null,null,"Pominat rok",null,null,null,0,"Plateno   ",null,null,null,null,null,null,null,null,null,null,null,null,null,null,null,null,null,null,"2012-09-28"]
["",null,null,null,null,null,"Pominat rok",null,null,null,0,"Plateno   ",null,null,null,null,null,null,null,null,null,null,null,null,null,null,null,null,null,null,"2012-09-28"]
["",null,null,null,null,null,"Pominat rok",null,null,null,0,"Plateno   ",null,null,null,null,null,null,null,null,null,null,null,null,null,null,null,null,null,null,"2012-09-28"]
["",null,null,null,null,null,"Pominat rok",null,null,null,0,"Plateno   ",null,null,null,null,null,null,null,null,null,null,null,null,null,null,null,null,null,null,"2012-09-28"]
["",null,null,null,null,null,"Pominat rok",null,null,null,0,"Plateno   ",null,null,null,null,null,null,null,null,null,null,null,null,null,null,null,null,null,null,"2012-09-28"]
["",null,null,null,null,null,"Pominat rok",null,null,null,0,"Plateno   ",null,null,null,null,null,null,null,null,null,null,null,null,null,null,null,null,null,null,"2012-09-28"]
["",null,null,null,null,null,"Pominat rok",null,null,null,0,"Plateno   ",null,null,null,null,null,null,null,null,null,null,null,null,null,null,null,null,null,null,"2012-09-28"]
["",null,null,null,null,null,"Pominat rok",null,null,null,0,"Plateno   ",null,null,null,null,null,null,null,null,null,null,null,null,null,null,null,null,null,null,"2012-09-28"]
["",null,null,null,null,null,"Pominat rok",null,null,null,0,"Plateno   ",null,null,null,null,null,null,null,null,null,null,null,null,null,null,null,null,null,null,"2012-09-28"]
["",null,null,null,null,null,"Pominat rok",null,null,null,0,"Plateno   ",null,null,null,null,null,null,null,null,null,null,null,null,null,null,null,null,null,null,"2012-09-28"]
["",null,null,null,null,null,"Pominat rok",null,null,null,0,"Plateno   ",null,null,null,null,null,null,null,null,null,null,null,null,null,null,null,null,null,null,"2012-09-28"]
["",null,null,null,null,null,"Pominat rok",null,null,null,0,"Plateno   ",null,null,null,null,null,null,null,null,null,null,null,null,null,null,null,null,null,null,"2012-09-28"]
["",null,null,null,null,null,"Pominat rok",null,null,null,0,"Plateno   ",null,null,null,null,null,null,null,null,null,null,null,null,null,null,null,null,null,null,"2012-09-28"]
["",null,null,null,null,null,"Pominat rok",null,null,null,0,"Plateno   ",null,null,null,null,null,null,null,null,null,null,null,null,null,null,null,null,null,null,"2012-09-28"]
["",null,null,null,null,null,"Pominat rok",null,null,null,0,"Plateno   ",null,null,null,null,null,null,null,null,null,null,null,null,null,null,null,null,null,null,"2012-09-28"]
["",null,null,null,null,null,"Pominat rok",null,null,null,0,"Plateno   ",null,null,null,null,null,null,null,null,null,null,null,null,null,null,null,null,null,null,"2012-09-28"]
["",null,null,null,null,null,"Pominat rok",null,null,null,0,"Plateno   ",null,null,null,null,null,null,null,null,null,null,null,null,null,null,null,null,null,null,"2012-09-28"]
["",null,null,null,null,null,"Pominat rok",null,null,null,0,"Plateno   ",null,null,null,null,null,null,null,null,null,null,null,null,null,null,null,null,null,null,"2012-09-28"]
["",null,null,null,null,null,"Pominat rok",null,null,null,0,"Plateno   ",null,null,null,null,null,null,null,null,null,null,null,null,null,null,null,null,null,null,"2012-09-28"]
["",null,null,null,null,null,"Pominat rok",null,null,null,0,"Plateno   ",null,null,null,null,null,null,null,null,null,null,null,null,null,null,null,null,null,null,"2012-09-28"]
["",null,null,null,null,null,"Pominat rok",null,null,null,0,"Plateno   ",null,null,null,null,null,null,null,null,null,null,null,null,null,null,null,null,null,null,"2012-09-28"]
["",null,null,null,null,null,"Pominat rok",null,null,null,0,"Plateno   ",null,null,null,null,null,null,null,null,null,null,null,null,null,null,null,null,null,null,"2012-09-28"]
["",null,null,null,null,null,"Pominat rok",null,null,null,0,"Plateno   ",null,null,null,null,null,null,null,null,null,null,null,null,null,null,null,null,null,null,"2012-09-28"]
["",null,null,null,null,null,"Pominat rok",null,null,null,0,"Plateno   ",null,null,null,null,null,null,null,null,null,null,null,null,null,null,null,null,null,null,"2012-09-28"]
["",null,null,null,null,null,"Pominat rok",null,null,null,0,"Plateno   ",null,null,null,null,null,null,null,null,null,null,null,null,null,null,null,null,null,null,"2012-09-28"]
["",null,null,null,null,null,"Pominat rok",null,null,null,0,"Plateno   ",null,null,null,null,null,null,null,null,null,null,null,null,null,null,null,null,null,null,"2012-09-28"]
["",null,null,null,null,null,{"$f":"IF(F198-AE198>=1,F198-AE198,\"Pominat rok\")","v":"Pominat rok"},null,null,null,{"$f":"N198+P198+R198+T198+V198+X198","v":0},{"$f":"IF(J198-K198>=1,J198-K198,\"Plateno   \")","v":"Plateno   "},null,null,null,null,null,null,null,null,null,null,null,null,null,null,null,null,null,null,{"$f":"TODAY()","v":"2012-09-28"}]
[{"$f":"IF(B199=\"\",\"\",A198+1)","v":""},null,null,null,null,null,"Pominat rok",null,null,null,0,"Plateno   ",null,null,null,null,null,null,null,null,null,null,null,null,null,null,null,null,null,null,"2012-09-28"]
["",null,null,null,null,null,"Pominat rok",null,null,null,0,"Plateno   ",null,null,null,null,null,null,null,null,null,null,null,null,null,null,null,null,null,null,"2012-09-28"]
["",null,null,null,null,null,"Pominat rok",null,null,null,0,"Plateno   ",null,null,null,null,null,null,null,null,null,null,null,null,null,null,null,null,null,null,"2012-09-28"]
["",null,null,null,null,null,"Pominat rok",null,null,null,0,"Plateno   ",null,null,null,null,null,null,null,null,null,null,null,null,null,null,null,null,null,null,"2012-09-28"]
["",null,null,null,null,null,"Pominat rok",null,null,null,0,"Plateno   ",null,null,null,null,null,null,null,null,null,null,null,null,null,null,null,null,null,null,"2012-09-28"]
["",null,null,null,null,null,"Pominat rok",null,null,null,0,"Plateno   ",null,null,null,null,null,null,null,null,null,null,null,null,null,null,null,null,null,null,"2012-09-28"]
["",null,null,null,null,null,"Pominat rok",null,null,null,0,"Plateno   ",null,null,null,null,null,null,null,null,null,null,null,null,null,null,null,null,null,null,"2012-09-28"]
["",null,null,null,null,null,"Pominat rok",null,null,null,0,"Plateno   ",null,null,null,null,null,null,null,null,null,null,null,null,null,null,null,null,null,null,"2012-09-28"]
["",null,null,null,null,null,"Pominat rok",null,null,null,0,"Plateno   ",null,null,null,null,null,null,null,null,null,null,null,null,null,null,null,null,null,null,"2012-09-28"]
["",null,null,null,null,null,"Pominat rok",null,null,null,0,"Plateno   ",null,null,null,null,null,null,null,null,null,null,null,null,null,null,null,null,null,null,"2012-09-28"]
["",null,null,null,null,null,"Pominat rok",null,null,null,0,"Plateno   ",null,null,null,null,null,null,null,null,null,null,null,null,null,null,null,null,null,null,"2012-09-28"]
["",null,null,null,null,null,"Pominat rok",null,null,null,0,"Plateno   ",null,null,null,null,null,null,null,null,null,null,null,null,null,null,null,null,null,null,"2012-09-28"]
["",null,null,null,null,null,"Pominat rok",null,null,null,0,"Plateno   ",null,null,null,null,null,null,null,null,null,null,null,null,null,null,null,null,null,null,"2012-09-28"]
["",null,null,null,null,null,"Pominat rok",null,null,null,0,"Plateno   ",null,null,null,null,null,null,null,null,null,null,null,null,null,null,null,null,null,null,"2012-09-28"]
["",null,null,null,null,null,"Pominat rok",null,null,null,0,"Plateno   ",null,null,null,null,null,null,null,null,null,null,null,null,null,null,null,null,null,null,"2012-09-28"]
["",null,null,null,null,null,"Pominat rok",null,null,null,0,"Plateno   ",null,null,null,null,null,null,null,null,null,null,null,null,null,null,null,null,null,null,"2012-09-28"]
["",null,null,null,null,null,"Pominat rok",null,null,null,0,"Plateno   ",null,null,null,null,null,null,null,null,null,null,null,null,null,null,null,null,null,null,"2012-09-28"]
["",null,null,null,null,null,"Pominat rok",null,null,null,0,"Plateno   ",null,null,null,null,null,null,null,null,null,null,null,null,null,null,null,null,null,null,"2012-09-28"]
["",null,null,null,null,null,"Pominat rok",null,null,null,0,"Plateno   ",null,null,null,null,null,null,null,null,null,null,null,null,null,null,null,null,null,null,"2012-09-28"]
["",null,null,null,null,null,"Pominat rok",null,null,null,0,"Plateno   ",null,null,null,null,null,null,null,null,null,null,null,null,null,null,null,null,null,null,"2012-09-28"]
["",null,null,null,null,null,"Pominat rok",null,null,null,0,"Plateno   ",null,null,null,null,null,null,null,null,null,null,null,null,null,null,null,null,null,null,"2012-09-28"]
["",null,null,null,null,null,"Pominat rok",null,null,null,0,"Plateno   ",null,null,null,null,null,null,null,null,null,null,null,null,null,null,null,null,null,null,"2012-09-28"]
["",null,null,null,null,null,"Pominat rok",null,null,null,0,"Plateno   ",null,null,null,null,null,null,null,null,null,null,null,null,null,null,null,null,null,null,"2012-09-28"]
["",null,null,null,null,null,"Pominat rok",null,null,null,0,"Plateno   ",null,null,null,null,null,null,null,null,null,null,null,null,null,null,null,null,null,null,"2012-09-28"]
["",null,null,null,null,null,"Pominat rok",null,null,null,0,"Plateno   ",null,null,null,null,null,null,null,null,null,null,null,null,null,null,null,null,null,null,"2012-09-28"]
["",null,null,null,null,null,"Pominat rok",null,null,null,0,"Plateno   ",null,null,null,null,null,null,null,null,null,null,null,null,null,null,null,null,null,null,"2012-09-28"]
["",null,null,null,null,null,"Pominat rok",null,null,null,0,"Plateno   ",null,null,null,null,null,null,null,null,null,null,null,null,null,null,null,null,null,null,"2012-09-28"]
["",null,null,null,null,null,"Pominat rok",null,null,null,0,"Plateno   ",null,null,null,null,null,null,null,null,null,null,null,null,null,null,null,null,null,null,"2012-09-28"]
["",null,null,null,null,null,"Pominat rok",null,null,null,0,"Plateno   ",null,null,null,null,null,null,null,null,null,null,null,null,null,null,null,null,null,null,"2012-09-28"]
["",null,null,null,null,null,"Pominat rok",null,null,null,0,"Plateno   ",null,null,null,null,null,null,null,null,null,null,null,null,null,null,null,null,null,null,"2012-09-28"]
["",null,null,null,null,null,"Pominat rok",null,null,null,0,"Plateno   ",null,null,null,null,null,null,null,null,null,null,null,null,null,null,null,null,null,null,"2012-09-28"]
["",null,null,null,null,null,"Pominat rok",null,null,null,0,"Plateno   ",null,null,null,null,null,null,null,null,null,null,null,null,null,null,null,null,null,null,"2012-09-28"]
["",null,null,null,null,null,"Pominat rok",null,null,null,0,"Plateno   ",null,null,null,null,null,null,null,null,null,null,null,null,null,null,null,null,null,null,"2012-09-28"]
["",null,null,null,null,null,"Pominat rok",null,null,null,0,"Plateno   ",null,null,null,null,null,null,null,null,null,null,null,null,null,null,null,null,null,null,"2012-09-28"]
["",null,null,null,null,null,"Pominat rok",null,null,null,0,"Plateno   ",null,null,null,null,null,null,null,null,null,null,null,null,null,null,null,null,null,null,"2012-09-28"]
["",null,null,null,null,null,"Pominat rok",null,null,null,0,"Plateno   ",null,null,null,null,null,null,null,null,null,null,null,null,null,null,null,null,null,null,"2012-09-28"]
["",null,null,null,null,null,"Pominat rok",null,null,null,0,"Plateno   ",null,null,null,null,null,null,null,null,null,null,null,null,null,null,null,null,null,null,"2012-09-28"]
["",null,null,null,null,null,"Pominat rok",null,null,null,0,"Plateno   ",null,null,null,null,null,null,null,null,null,null,null,null,null,null,null,null,null,null,"2012-09-28"]
["",null,null,null,null,null,"Pominat rok",null,null,null,0,"Plateno   ",null,null,null,null,null,null,null,null,null,null,null,null,null,null,null,null,null,null,"2012-09-28"]
["",null,null,null,null,null,"Pominat rok",null,null,null,0,"Plateno   ",null,null,null,null,null,null,null,null,null,null,null,null,null,null,null,null,null,null,"2012-09-28"]
["",null,null,null,null,null,"Pominat rok",null,null,null,0,"Plateno   ",null,null,null,null,null,null,null,null,null,null,null,null,null,null,null,null,null,null,"2012-09-28"]
["",null,null,null,null,null,"Pominat rok",null,null,null,0,"Plateno   ",null,null,null,null,null,null,null,null,null,null,null,null,null,null,null,null,null,null,"2012-09-28"]
["",null,null,null,null,null,"Pominat rok",null,null,null,0,"Plateno   ",null,null,null,null,null,null,null,null,null,null,null,null,null,null,null,null,null,null,"2012-09-28"]
["",null,null,null,null,null,"Pominat rok",null,null,null,0,"Plateno   ",null,null,null,null,null,null,null,null,null,null,null,null,null,null,null,null,null,null,"2012-09-28"]
["",null,null,null,null,null,"Pominat rok",null,null,null,0,"Plateno   ",null,null,null,null,null,null,null,null,null,null,null,null,null,null,null,null,null,null,"2012-09-28"]
["",null,null,null,null,null,"Pominat rok",null,null,null,0,"Plateno   ",null,null,null,null,null,null,null,null,null,null,null,null,null,null,null,null,null,null,"2012-09-28"]
["",null,null,null,null,null,"Pominat rok",null,null,null,0,"Plateno   ",null,null,null,null,null,null,null,null,null,null,null,null,null,null,null,null,null,null,"2012-09-28"]
["",null,null,null,null,null,"Pominat rok",null,null,null,0,"Plateno   ",null,null,null,null,null,null,null,null,null,null,null,null,null,null,null,null,null,null,"2012-09-28"]
["",null,null,null,null,null,"Pominat rok",null,null,null,0,"Plateno   ",null,null,null,null,null,null,null,null,null,null,null,null,null,null,null,null,null,null,"2012-09-28"]
["",null,null,null,null,null,"Pominat rok",null,null,null,0,"Plateno   ",null,null,null,null,null,null,null,null,null,null,null,null,null,null,null,null,null,null,"2012-09-28"]
["",null,null,null,null,null,"Pominat rok",null,null,null,0,"Plateno   ",null,null,null,null,null,null,null,null,null,null,null,null,null,null,null,null,null,null,"2012-09-28"]
["",null,null,null,null,null,"Pominat rok",null,null,null,0,"Plateno   ",null,null,null,null,null,null,null,null,null,null,null,null,null,null,null,null,null,null,"2012-09-28"]
["",null,null,null,null,null,"Pominat rok",null,null,null,0,"Plateno   ",null,null,null,null,null,null,null,null,null,null,null,null,null,null,null,null,null,null,"2012-09-28"]
["",null,null,null,null,null,"Pominat rok",null,null,null,0,"Plateno   ",null,null,null,null,null,null,null,null,null,null,null,null,null,null,null,null,null,null,"2012-09-28"]
["",null,null,null,null,null,"Pominat rok",null,null,null,0,"Plateno   ",null,null,null,null,null,null,null,null,null,null,null,null,null,null,null,null,null,null,"2012-09-28"]
["",null,null,null,null,null,"Pominat rok",null,null,null,0,"Plateno   ",null,null,null,null,null,null,null,null,null,null,null,null,null,null,null,null,null,null,"2012-09-28"]
["",null,null,null,null,null,"Pominat rok",null,null,null,0,"Plateno   ",null,null,null,null,null,null,null,null,null,null,null,null,null,null,null,null,null,null,"2012-09-28"]
["",null,null,null,null,null,"Pominat rok",null,null,null,0,"Plateno   ",null,null,null,null,null,null,null,null,null,null,null,null,null,null,null,null,null,null,"2012-09-28"]
["",null,null,null,null,null,"Pominat rok",null,null,null,0,"Plateno   ",null,null,null,null,null,null,null,null,null,null,null,null,null,null,null,null,null,null,"2012-09-28"]
["",null,null,null,null,null,"Pominat rok",null,null,null,0,"Plateno   ",null,null,null,null,null,null,null,null,null,null,null,null,null,null,null,null,null,null,"2012-09-28"]
["",null,null,null,null,null,"Pominat rok",null,null,null,0,"Plateno   ",null,null,null,null,null,null,null,null,null,null,null,null,null,null,null,null,null,null,"2012-09-28"]
["",null,null,null,null,null,"Pominat rok",null,null,null,0,"Plateno   ",null,null,null,null,null,null,null,null,null,null,null,null,null,null,null,null,null,null,"2012-09-28"]
["",null,null,null,null,null,"Pominat rok",null,null,null,0,"Plateno   ",null,null,null,null,null,null,null,null,null,null,null,null,null,null,null,null,null,null,"2012-09-28"]
["",null,null,null,null,null,{"$f":"IF(F262-AE262>=1,F262-AE262,\"Pominat rok\")","v":"Pominat rok"},null,null,null,{"$f":"N262+P262+R262+T262+V262+X262","v":0},{"$f":"IF(J262-K262>=1,J262-K262,\"Plateno   \")","v":"Plateno   "},null,null,null,null,null,null,null,null,null,null,null,null,null,null,null,null,null,null,{"$f":"TODAY()","v":"2012-09-28"}]
[{"$f":"IF(B263=\"\",\"\",A262+1)","v":""},null,null,null,null,null,"Pominat rok",null,null,null,0,"Plateno   ",null,null,null,null,null,null,null,null,null,null,null,null,null,null,null,null,null,null,"2012-09-28"]
["",null,null,null,null,null,"Pominat rok",null,null,null,0,"Plateno   ",null,null,null,null,null,null,null,null,null,null,null,null,null,null,null,null,null,null,"2012-09-28"]
["",null,null,null,null,null,"Pominat rok",null,null,null,0,"Plateno   ",null,null,null,null,null,null,null,null,null,null,null,null,null,null,null,null,null,null,"2012-09-28"]
["",null,null,null,null,null,"Pominat rok",null,null,null,0,"Plateno   ",null,null,null,null,null,null,null,null,null,null,null,null,null,null,null,null,null,null,"2012-09-28"]
["",null,null,null,null,null,"Pominat rok",null,null,null,0,"Plateno   ",null,null,null,null,null,null,null,null,null,null,null,null,null,null,null,null,null,null,"2012-09-28"]
["",null,null,null,null,null,"Pominat rok",null,null,null,0,"Plateno   ",null,null,null,null,null,null,null,null,null,null,null,null,null,null,null,null,null,null,"2012-09-28"]
["",null,null,null,null,null,"Pominat rok",null,null,null,0,"Plateno   ",null,null,null,null,null,null,null,null,null,null,null,null,null,null,null,null,null,null,"2012-09-28"]
["",null,null,null,null,null,"Pominat rok",null,null,null,0,"Plateno   ",null,null,null,null,null,null,null,null,null,null,null,null,null,null,null,null,null,null,"2012-09-28"]
["",null,null,null,null,null,"Pominat rok",null,null,null,0,"Plateno   ",null,null,null,null,null,null,null,null,null,null,null,null,null,null,null,null,null,null,"2012-09-28"]
["",null,null,null,null,null,"Pominat rok",null,null,null,0,"Plateno   ",null,null,null,null,null,null,null,null,null,null,null,null,null,null,null,null,null,null,"2012-09-28"]
["",null,null,null,null,null,"Pominat rok",null,null,null,0,"Plateno   ",null,null,null,null,null,null,null,null,null,null,null,null,null,null,null,null,null,null,"2012-09-28"]
["",null,null,null,null,null,"Pominat rok",null,null,null,0,"Plateno   ",null,null,null,null,null,null,null,null,null,null,null,null,null,null,null,null,null,null,"2012-09-28"]
["",null,null,null,null,null,"Pominat rok",null,null,null,0,"Plateno   ",null,null,null,null,null,null,null,null,null,null,null,null,null,null,null,null,null,null,"2012-09-28"]
["",null,null,null,null,null,"Pominat rok",null,null,null,0,"Plateno   ",null,null,null,null,null,null,null,null,null,null,null,null,null,null,null,null,null,null,"2012-09-28"]
["",null,null,null,null,null,"Pominat rok",null,null,null,0,"Plateno   ",null,null,null,null,null,null,null,null,null,null,null,null,null,null,null,null,null,null,"2012-09-28"]
["",null,null,null,null,null,"Pominat rok",null,null,null,0,"Plateno   ",null,null,null,null,null,null,null,null,null,null,null,null,null,null,null,null,null,null,"2012-09-28"]
["",null,null,null,null,null,"Pominat rok",null,null,null,0,"Plateno   ",null,null,null,null,null,null,null,null,null,null,null,null,null,null,null,null,null,null,"2012-09-28"]
["",null,null,null,null,null,"Pominat rok",null,null,null,0,"Plateno   ",null,null,null,null,null,null,null,null,null,null,null,null,null,null,null,null,null,null,"2012-09-28"]
["",null,null,null,null,null,"Pominat rok",null,null,null,0,"Plateno   ",null,null,null,null,null,null,null,null,null,null,null,null,null,null,null,null,null,null,"2012-09-28"]
["",null,null,null,null,null,"Pominat rok",null,null,null,0,"Plateno   ",null,null,null,null,null,null,null,null,null,null,null,null,null,null,null,null,null,null,"2012-09-28"]
["",null,null,null,null,null,"Pominat rok",null,null,null,0,"Plateno   ",null,null,null,null,null,null,null,null,null,null,null,null,null,null,null,null,null,null,"2012-09-28"]
["",null,null,null,null,null,"Pominat rok",null,null,null,0,"Plateno   ",null,null,null,null,null,null,null,null,null,null,null,null,null,null,null,null,null,null,"2012-09-28"]
["",null,null,null,null,null,"Pominat rok",null,null,null,0,"Plateno   ",null,null,null,null,null,null,null,null,null,null,null,null,null,null,null,null,null,null,"2012-09-28"]
["",null,null,null,null,null,"Pominat rok",null,null,null,0,"Plateno   ",null,null,null,null,null,null,null,null,null,null,null,null,null,null,null,null,null,null,"2012-09-28"]
["",null,null,null,null,null,"Pominat rok",null,null,null,0,"Plateno   ",null,null,null,null,null,null,null,null,null,null,null,null,null,null,null,null,null,null,"2012-09-28"]
["",null,null,null,null,null,"Pominat rok",null,null,null,0,"Plateno   ",null,null,null,null,null,null,null,null,null,null,null,null,null,null,null,null,null,null,"2012-09-28"]
["",null,null,null,null,null,"Pominat rok",null,null,null,0,"Plateno   ",null,null,null,null,null,null,null,null,null,null,null,null,null,null,null,null,null,null,"2012-09-28"]
["",null,null,null,null,null,"Pominat rok",null,null,null,0,"Plateno   ",null,null,null,null,null,null,null,null,null,null,null,null,null,null,null,null,null,null,"2012-09-28"]
["",null,null,null,null,null,"Pominat rok",null,null,null,0,"Plateno   ",null,null,null,null,null,null,null,null,null,null,null,null,null,null,null,null,null,null,"2012-09-28"]
["",null,null,null,null,null,"Pominat rok",null,null,null,0,"Plateno   ",null,null,null,null,null,null,null,null,null,null,null,null,null,null,null,null,null,null,"2012-09-28"]
["",null,null,null,null,null,"Pominat rok",null,null,null,0,"Plateno   ",null,null,null,null,null,null,null,null,null,null,null,null,null,null,null,null,null,null,"2012-09-28"]
["",null,null,null,null,null,"Pominat rok",null,null,null,0,"Plateno   ",null,null,null,null,null,null,null,null,null,null,null,null,null,null,null,null,null,null,"2012-09-28"]
["",null,null,null,null,null,"Pominat rok",null,null,null,0,"Plateno   ",null,null,null,null,null,null,null,null,null,null,null,null,null,null,null,null,null,null,"2012-09-28"]
["",null,null,null,null,null,"Pominat rok",null,null,null,0,"Plateno   ",null,null,null,null,null,null,null,null,null,null,null,null,null,null,null,null,null,null,"2012-09-28"]
["",null,null,null,null,null,"Pominat rok",null,null,null,0,"Plateno   ",null,null,null,null,null,null,null,null,null,null,null,null,null,null,null,null,null,null,"2012-09-28"]
["",null,null,null,null,null,"Pominat rok",null,null,null,0,"Plateno   ",null,null,null,null,null,null,null,null,null,null,null,null,null,null,null,null,null,null,"2012-09-28"]
["",null,null,null,null,null,"Pominat rok",null,null,null,0,"Plateno   ",null,null,null,null,null,null,null,null,null,null,null,null,null,null,null,null,null,null,"2012-09-28"]
["",null,null,null,null,null,"Pominat rok",null,null,null,0,"Plateno   ",null,null,null,null,null,null,null,null,null,null,null,null,null,null,null,null,null,null,"2012-09-28"]
["",null,null,null,null,null,"Pominat rok",null,null,null,0,"Plateno   ",null,null,null,null,null,null,null,null,null,null,null,null,null,null,null,null,null,null,"2012-09-28"]
["",null,null,null,null,null,"Pominat rok",null,null,null,0,"Plateno   ",null,null,null,null,null,null,null,null,null,null,null,null,null,null,null,null,null,null,"2012-09-28"]
["",null,null,null,null,null,"Pominat rok",null,null,null,0,"Plateno   ",null,null,null,null,null,null,null,null,null,null,null,null,null,null,null,null,null,null,"2012-09-28"]
["",null,null,null,null,null,"Pominat rok",null,null,null,0,"Plateno   ",null,null,null,null,null,null,null,null,null,null,null,null,null,null,null,null,null,null,"2012-09-28"]
["",null,null,null,null,null,"Pominat rok",null,null,null,0,"Plateno   ",null,null,null,null,null,null,null,null,null,null,null,null,null,null,null,null,null,null,"2012-09-28"]
["",null,null,null,null,null,"Pominat rok",null,null,null,0,"Plateno   ",null,null,null,null,null,null,null,null,null,null,null,null,null,null,null,null,null,null,"2012-09-28"]
["",null,null,null,null,null,"Pominat rok",null,null,null,0,"Plateno   ",null,null,null,null,null,null,null,null,null,null,null,null,null,null,null,null,null,null,"2012-09-28"]
["",null,null,null,null,null,"Pominat rok",null,null,null,0,"Plateno   ",null,null,null,null,null,null,null,null,null,null,null,null,null,null,null,null,null,null,"2012-09-28"]
["",null,null,null,null,null,"Pominat rok",null,null,null,0,"Plateno   ",null,null,null,null,null,null,null,null,null,null,null,null,null,null,null,null,null,null,"2012-09-28"]
["",null,null,null,null,null,"Pominat rok",null,null,null,0,"Plateno   ",null,null,null,null,null,null,null,null,null,null,null,null,null,null,null,null,null,null,"2012-09-28"]
["",null,null,null,null,null,"Pominat rok",null,null,null,0,"Plateno   ",null,null,null,null,null,null,null,null,null,null,null,null,null,null,null,null,null,null,"2012-09-28"]
["",null,null,null,null,null,"Pominat rok",null,null,null,0,"Plateno   ",null,null,null,null,null,null,null,null,null,null,null,null,null,null,null,null,null,null,"2012-09-28"]
["",null,null,null,null,null,"Pominat rok",null,null,null,0,"Plateno   ",null,null,null,null,null,null,null,null,null,null,null,null,null,null,null,null,null,null,"2012-09-28"]
["",null,null,null,null,null,"Pominat rok",null,null,null,0,"Plateno   ",null,null,null,null,null,null,null,null,null,null,null,null,null,null,null,null,null,null,"2012-09-28"]
["",null,null,null,null,null,"Pominat rok",null,null,null,0,"Plateno   ",null,null,null,null,null,null,null,null,null,null,null,null,null,null,null,null,null,null,"2012-09-28"]
["",null,null,null,null,null,"Pominat rok",null,null,null,0,"Plateno   ",null,null,null,null,null,null,null,null,null,null,null,null,null,null,null,null,null,null,"2012-09-28"]
["",null,null,null,null,null,"Pominat rok",null,null,null,0,"Plateno   ",null,null,null,null,null,null,null,null,null,null,null,null,null,null,null,null,null,null,"2012-09-28"]
["",null,null,null,null,null,"Pominat rok",null,null,null,0,"Plateno   ",null,null,null,null,null,null,null,null,null,null,null,null,null,null,null,null,null,null,"2012-09-28"]
["",null,null,null,null,null,"Pominat rok",null,null,null,0,"Plateno   ",null,null,null,null,null,null,null,null,null,null,null,null,null,null,null,null,null,null,"2012-09-28"]
["",null,null,null,null,null,"Pominat rok",null,null,null,0,"Plateno   ",null,null,null,null,null,null,null,null,null,null,null,null,null,null,null,null,null,null,"2012-09-28"]
["",null,null,null,null,null,"Pominat rok",null,null,null,0,"Plateno   ",null,null,null,null,null,null,null,null,null,null,null,null,null,null,null,null,null,null,"2012-09-28"]
["",null,null,null,null,null,"Pominat rok",null,null,null,0,"Plateno   ",null,null,null,null,null,null,null,null,null,null,null,null,null,null,null,null,null,null,"2012-09-28"]
["",null,null,null,null,null,"Pominat rok",null,null,null,0,"Plateno   ",null,null,null,null,null,null,null,null,null,null,null,null,null,null,null,null,null,null,"2012-09-28"]
["",null,null,null,null,null,"Pominat rok",null,null,null,0,"Plateno   ",null,null,null,null,null,null,null,null,null,null,null,null,null,null,null,null,null,null,"2012-09-28"]
["",null,null,null,null,null,"Pominat rok",null,null,null,0,"Plateno   ",null,null,null,null,null,null,null,null,null,null,null,null,null,null,null,null,null,null,"2012-09-28"]
["",null,null,null,null,null,{"$f":"IF(F326-AE326>=1,F326-AE326,\"Pominat rok\")","v":"Pominat rok"},null,null,null,{"$f":"N326+P326+R326+T326+V326+X326","v":0},{"$f":"IF(J326-K326>=1,J326-K326,\"Plateno   \")","v":"Plateno   "},null,null,null,null,null,null,null,null,null,null,null,null,null,null,null,null,null,null,{"$f":"TODAY()","v":"2012-09-28"}]
[{"$f":"IF(B327=\"\",\"\",A326+1)","v":""},null,null,null,null,null,"Pominat rok",null,null,null,0,"Plateno   ",null,null,null,null,null,null,null,null,null,null,null,null,null,null,null,null,null,null,"2012-09-28"]
["",null,null,null,null,null,"Pominat rok",null,null,null,0,"Plateno   ",null,null,null,null,null,null,null,null,null,null,null,null,null,null,null,null,null,null,"2012-09-28"]
["",null,null,null,null,null,"Pominat rok",null,null,null,0,"Plateno   ",null,null,null,null,null,null,null,null,null,null,null,null,null,null,null,null,null,null,"2012-09-28"]
["",null,null,null,null,null,"Pominat rok",null,null,null,0,"Plateno   ",null,null,null,null,null,null,null,null,null,null,null,null,null,null,null,null,null,null,"2012-09-28"]
["",null,null,null,null,null,"Pominat rok",null,null,null,0,"Plateno   ",null,null,null,null,null,null,null,null,null,null,null,null,null,null,null,null,null,null,"2012-09-28"]
["",null,null,null,null,null,"Pominat rok",null,null,null,0,"Plateno   ",null,null,null,null,null,null,null,null,null,null,null,null,null,null,null,null,null,null,"2012-09-28"]
["",null,null,null,null,null,"Pominat rok",null,null,null,0,"Plateno   ",null,null,null,null,null,null,null,null,null,null,null,null,null,null,null,null,null,null,"2012-09-28"]
["",null,null,null,null,null,"Pominat rok",null,null,null,0,"Plateno   ",null,null,null,null,null,null,null,null,null,null,null,null,null,null,null,null,null,null,"2012-09-28"]
["",null,null,null,null,null,"Pominat rok",null,null,null,0,"Plateno   ",null,null,null,null,null,null,null,null,null,null,null,null,null,null,null,null,null,null,"2012-09-28"]
["",null,null,null,null,null,"Pominat rok",null,null,null,0,"Plateno   ",null,null,null,null,null,null,null,null,null,null,null,null,null,null,null,null,null,null,"2012-09-28"]
["",null,null,null,null,null,"Pominat rok",null,null,null,0,"Plateno   ",null,null,null,null,null,null,null,null,null,null,null,null,null,null,null,null,null,null,"2012-09-28"]
["",null,null,null,null,null,"Pominat rok",null,null,null,0,"Plateno   ",null,null,null,null,null,null,null,null,null,null,null,null,null,null,null,null,null,null,"2012-09-28"]
["",null,null,null,null,null,"Pominat rok",null,null,null,0,"Plateno   ",null,null,null,null,null,null,null,null,null,null,null,null,null,null,null,null,null,null,"2012-09-28"]
["",null,null,null,null,null,"Pominat rok",null,null,null,0,"Plateno   ",null,null,null,null,null,null,null,null,null,null,null,null,null,null,null,null,null,null,"2012-09-28"]
["",null,null,null,null,null,"Pominat rok",null,null,null,0,"Plateno   ",null,null,null,null,null,null,null,null,null,null,null,null,null,null,null,null,null,null,"2012-09-28"]
["",null,null,null,null,null,"Pominat rok",null,null,null,0,"Plateno   ",null,null,null,null,null,null,null,null,null,null,null,null,null,null,null,null,null,null,"2012-09-28"]
["",null,null,null,null,null,"Pominat rok",null,null,null,0,"Plateno   ",null,null,null,null,null,null,null,null,null,null,null,null,null,null,null,null,null,null,"2012-09-28"]
["",null,null,null,null,null,"Pominat rok",null,null,null,0,"Plateno   ",null,null,null,null,null,null,null,null,null,null,null,null,null,null,null,null,null,null,"2012-09-28"]
["",null,null,null,null,null,"Pominat rok",null,null,null,0,"Plateno   ",null,null,null,null,null,null,null,null,null,null,null,null,null,null,null,null,null,null,"2012-09-28"]
["",null,null,null,null,null,"Pominat rok",null,null,null,0,"Plateno   ",null,null,null,null,null,null,null,null,null,null,null,null,null,null,null,null,null,null,"2012-09-28"]
["",null,null,null,null,null,"Pominat rok",null,null,null,0,"Plateno   ",null,null,null,null,null,null,null,null,null,null,null,null,null,null,null,null,null,null,"2012-09-28"]
["",null,null,null,null,null,"Pominat rok",null,null,null,0,"Plateno   ",null,null,null,null,null,null,null,null,null,null,null,null,null,null,null,null,null,null,"2012-09-28"]
["",null,null,null,null,null,"Pominat rok",null,null,null,0,"Plateno   ",null,null,null,null,null,null,null,null,null,null,null,null,null,null,null,null,null,null,"2012-09-28"]
["",null,null,null,null,null,"Pominat rok",null,null,null,0,"Plateno   ",null,null,null,null,null,null,null,null,null,null,null,null,null,null,null,null,null,null,"2012-09-28"]
["",null,null,null,null,null,"Pominat rok",null,null,null,0,"Plateno   ",null,null,null,null,null,null,null,null,null,null,null,null,null,null,null,null,null,null,"2012-09-28"]
["",null,null,null,null,null,"Pominat rok",null,null,null,0,"Plateno   ",null,null,null,null,null,null,null,null,null,null,null,null,null,null,null,null,null,null,"2012-09-28"]
["",null,null,null,null,null,"Pominat rok",null,null,null,0,"Plateno   ",null,null,null,null,null,null,null,null,null,null,null,null,null,null,null,null,null,null,"2012-09-28"]
["",null,null,null,null,null,"Pominat rok",null,null,null,0,"Plateno   ",null,null,null,null,null,null,null,null,null,null,null,null,null,null,null,null,null,null,"2012-09-28"]
["",null,null,null,null,null,"Pominat rok",null,null,null,0,"Plateno   ",null,null,null,null,null,null,null,null,null,null,null,null,null,null,null,null,null,null,"2012-09-28"]
["",null,null,null,null,null,"Pominat rok",null,null,null,0,"Plateno   ",null,null,null,null,null,null,null,null,null,null,null,null,null,null,null,null,null,null,"2012-09-28"]
["",null,null,null,null,null,"Pominat rok",null,null,null,0,"Plateno   ",null,null,null,null,null,null,null,null,null,null,null,null,null,null,null,null,null,null,"2012-09-28"]
["",null,null,null,null,null,"Pominat rok",null,null,null,0,"Plateno   ",null,null,null,null,null,null,null,null,null,null,null,null,null,null,null,null,null,null,"2012-09-28"]
["",null,null,null,null,null,"Pominat rok",null,null,null,0,"Plateno   ",null,null,null,null,null,null,null,null,null,null,null,null,null,null,null,null,null,null,"2012-09-28"]
["",null,null,null,null,null,"Pominat rok",null,null,null,0,"Plateno   ",null,null,null,null,null,null,null,null,null,null,null,null,null,null,null,null,null,null,"2012-09-28"]
["",null,null,null,null,null,"Pominat rok",null,null,null,0,"Plateno   ",null,null,null,null,null,null,null,null,null,null,null,null,null,null,null,null,null,null,"2012-09-28"]
["",null,null,null,null,null,"Pominat rok",null,null,null,0,"Plateno   ",null,null,null,null,null,null,null,null,null,null,null,null,null,null,null,null,null,null,"2012-09-28"]
["",null,null,null,null,null,"Pominat rok",null,null,null,0,"Plateno   ",null,null,null,null,null,null,null,null,null,null,null,null,null,null,null,null,null,null,"2012-09-28"]
["",null,null,null,null,null,"Pominat rok",null,null,null,0,"Plateno   ",null,null,null,null,null,null,null,null,null,null,null,null,null,null,null,null,null,null,"2012-09-28"]
["",null,null,null,null,null,"Pominat rok",null,null,null,0,"Plateno   ",null,null,null,null,null,null,null,null,null,null,null,null,null,null,null,null,null,null,"2012-09-28"]
["",null,null,null,null,null,"Pominat rok",null,null,null,0,"Plateno   ",null,null,null,null,null,null,null,null,null,null,null,null,null,null,null,null,null,null,"2012-09-28"]
["",null,null,null,null,null,"Pominat rok",null,null,null,0,"Plateno   ",null,null,null,null,null,null,null,null,null,null,null,null,null,null,null,null,null,null,"2012-09-28"]
["",null,null,null,null,null,"Pominat rok",null,null,null,0,"Plateno   ",null,null,null,null,null,null,null,null,null,null,null,null,null,null,null,null,null,null,"2012-09-28"]
["",null,null,null,null,null,"Pominat rok",null,null,null,0,"Plateno   ",null,null,null,null,null,null,null,null,null,null,null,null,null,null,null,null,null,null,"2012-09-28"]
["",null,null,null,null,null,"Pominat rok",null,null,null,0,"Plateno   ",null,null,null,null,null,null,null,null,null,null,null,null,null,null,null,null,null,null,"2012-09-28"]
["",null,null,null,null,null,"Pominat rok",null,null,null,0,"Plateno   ",null,null,null,null,null,null,null,null,null,null,null,null,null,null,null,null,null,null,"2012-09-28"]
["",null,null,null,null,null,"Pominat rok",null,null,null,0,"Plateno   ",null,null,null,null,null,null,null,null,null,null,null,null,null,null,null,null,null,null,"2012-09-28"]
["",null,null,null,null,null,"Pominat rok",null,null,null,0,"Plateno   ",null,null,null,null,null,null,null,null,null,null,null,null,null,null,null,null,null,null,"2012-09-28"]
["",null,null,null,null,null,"Pominat rok",null,null,null,0,"Plateno   ",null,null,null,null,null,null,null,null,null,null,null,null,null,null,null,null,null,null,"2012-09-28"]
["",null,null,null,null,null,"Pominat rok",null,null,null,0,"Plateno   ",null,null,null,null,null,null,null,null,null,null,null,null,null,null,null,null,null,null,"2012-09-28"]
["",null,null,null,null,null,"Pominat rok",null,null,null,0,"Plateno   ",null,null,null,null,null,null,null,null,null,null,null,null,null,null,null,null,null,null,"2012-09-28"]
["",null,null,null,null,null,"Pominat rok",null,null,null,0,"Plateno   ",null,null,null,null,null,null,null,null,null,null,null,null,null,null,null,null,null,null,"2012-09-28"]
["",null,null,null,null,null,"Pominat rok",null,null,null,0,"Plateno   ",null,null,null,null,null,null,null,null,null,null,null,null,null,null,null,null,null,null,"2012-09-28"]
["",null,null,null,null,null,"Pominat rok",null,null,null,0,"Plateno   ",null,null,null,null,null,null,null,null,null,null,null,null,null,null,null,null,null,null,"2012-09-28"]
["",null,null,null,null,null,"Pominat rok",null,null,null,0,"Plateno   ",null,null,null,null,null,null,null,null,null,null,null,null,null,null,null,null,null,null,"2012-09-28"]
["",null,null,null,null,null,"Pominat rok",null,null,null,0,"Plateno   ",null,null,null,null,null,null,null,null,null,null,null,null,null,null,null,null,null,null,"2012-09-28"]
["",null,null,null,null,null,"Pominat rok",null,null,null,0,"Plateno   ",null,null,null,null,null,null,null,null,null,null,null,null,null,null,null,null,null,null,"2012-09-28"]
["",null,null,null,null,null,"Pominat rok",null,null,null,0,"Plateno   ",null,null,null,null,null,null,null,null,null,null,null,null,null,null,null,null,null,null,"2012-09-28"]
["",null,null,null,null,null,"Pominat rok",null,null,null,0,"Plateno   ",null,null,null,null,null,null,null,null,null,null,null,null,null,null,null,null,null,null,"2012-09-28"]
["",null,null,null,null,null,"Pominat rok",null,null,null,0,"Plateno   ",null,null,null,null,null,null,null,null,null,null,null,null,null,null,null,null,null,null,"2012-09-28"]
["",null,null,null,null,null,"Pominat rok",null,null,null,0,"Plateno   ",null,null,null,null,null,null,null,null,null,null,null,null,null,null,null,null,null,null,"2012-09-28"]
["",null,null,null,null,null,"Pominat rok",null,null,null,0,"Plateno   ",null,null,null,null,null,null,null,null,null,null,null,null,null,null,null,null,null,null,"2012-09-28"]
["",null,null,null,null,null,"Pominat rok",null,null,null,0,"Plateno   ",null,null,null,null,null,null,null,null,null,null,null,null,null,null,null,null,null,null,"2012-09-28"]
["",null,null,null,null,null,"Pominat rok",null,null,null,0,"Plateno   ",null,null,null,null,null,null,null,null,null,null,null,null,null,null,null,null,null,null,"2012-09-28"]
["",null,null,null,null,null,{"$f":"IF(F390-AE390>=1,F390-AE390,\"Pominat rok\")","v":"Pominat rok"},null,null,null,{"$f":"N390+P390+R390+T390+V390+X390","v":0},{"$f":"IF(J390-K390>=1,J390-K390,\"Plateno   \")","v":"Plateno   "},null,null,null,null,null,null,null,null,null,null,null,null,null,null,null,null,null,null,{"$f":"TODAY()","v":"2012-09-28"}]
[{"$f":"IF(B391=\"\",\"\",A390+1)","v":""},null,null,null,null,null,"Pominat rok",null,null,null,0,"Plateno   ",null,null,null,null,null,null,null,null,null,null,null,null,null,null,null,null,null,null,"2012-09-28"]
["",null,null,null,null,null,"Pominat rok",null,null,null,0,"Plateno   ",null,null,null,null,null,null,null,null,null,null,null,null,null,null,null,null,null,null,"2012-09-28"]
["",null,null,null,null,null,"Pominat rok",null,null,null,0,"Plateno   ",null,null,null,null,null,null,null,null,null,null,null,null,null,null,null,null,null,null,"2012-09-28"]
["",null,null,null,null,null,"Pominat rok",null,null,null,0,"Plateno   ",null,null,null,null,null,null,null,null,null,null,null,null,null,null,null,null,null,null,"2012-09-28"]
["",null,null,null,null,null,"Pominat rok",null,null,null,0,"Plateno   ",null,null,null,null,null,null,null,null,null,null,null,null,null,null,null,null,null,null,"2012-09-28"]
["",null,null,null,null,null,"Pominat rok",null,null,null,0,"Plateno   ",null,null,null,null,null,null,null,null,null,null,null,null,null,null,null,null,null,null,"2012-09-28"]
["",null,null,null,null,null,"Pominat rok",null,null,null,0,"Plateno   ",null,null,null,null,null,null,null,null,null,null,null,null,null,null,null,null,null,null,"2012-09-28"]
["",null,null,null,null,null,"Pominat rok",null,null,null,0,"Plateno   ",null,null,null,null,null,null,null,null,null,null,null,null,null,null,null,null,null,null,"2012-09-28"]
["",null,null,null,null,null,"Pominat rok",null,null,null,0,"Plateno   ",null,null,null,null,null,null,null,null,null,null,null,null,null,null,null,null,null,null,"2012-09-28"]
["",null,null,null,null,null,"Pominat rok",null,null,null,0,"Plateno   ",null,null,null,null,null,null,null,null,null,null,null,null,null,null,null,null,null,null,"2012-09-28"]
["",null,null,null,null,null,"Pominat rok",null,null,null,0,"Plateno   ",null,null,null,null,null,null,null,null,null,null,null,null,null,null,null,null,null,null,"2012-09-28"]
["",null,null,null,null,null,"Pominat rok",null,null,null,0,"Plateno   ",null,null,null,null,null,null,null,null,null,null,null,null,null,null,null,null,null,null,"2012-09-28"]
["",null,null,null,null,null,"Pominat rok",null,null,null,0,"Plateno   ",null,null,null,null,null,null,null,null,null,null,null,null,null,null,null,null,null,null,"2012-09-28"]
["",null,null,null,null,null,"Pominat rok",null,null,null,0,"Plateno   ",null,null,null,null,null,null,null,null,null,null,null,null,null,null,null,null,null,null,"2012-09-28"]
["",null,null,null,null,null,"Pominat rok",null,null,null,0,"Plateno   ",null,null,null,null,null,null,null,null,null,null,null,null,null,null,null,null,null,null,"2012-09-28"]
["",null,null,null,null,null,"Pominat rok",null,null,null,0,"Plateno   ",null,null,null,null,null,null,null,null,null,null,null,null,null,null,null,null,null,null,"2012-09-28"]
["",null,null,null,null,null,"Pominat rok",null,null,null,0,"Plateno   ",null,null,null,null,null,null,null,null,null,null,null,null,null,null,null,null,null,null,"2012-09-28"]
["",null,null,null,null,null,"Pominat rok",null,null,null,0,"Plateno   ",null,null,null,null,null,null,null,null,null,null,null,null,null,null,null,null,null,null,"2012-09-28"]
["",null,null,null,null,null,"Pominat rok",null,null,null,0,"Plateno   ",null,null,null,null,null,null,null,null,null,null,null,null,null,null,null,null,null,null,"2012-09-28"]
["",null,null,null,null,null,"Pominat rok",null,null,null,0,"Plateno   ",null,null,null,null,null,null,null,null,null,null,null,null,null,null,null,null,null,null,"2012-09-28"]
["",null,null,null,null,null,"Pominat rok",null,null,null,0,"Plateno   ",null,null,null,null,null,null,null,null,null,null,null,null,null,null,null,null,null,null,"2012-09-28"]
["",null,null,null,null,null,"Pominat rok",null,null,null,0,"Plateno   ",null,null,null,null,null,null,null,null,null,null,null,null,null,null,null,null,null,null,"2012-09-28"]
["",null,null,null,null,null,"Pominat rok",null,null,null,0,"Plateno   ",null,null,null,null,null,null,null,null,null,null,null,null,null,null,null,null,null,null,"2012-09-28"]
["",null,null,null,null,null,"Pominat rok",null,null,null,0,"Plateno   ",null,null,null,null,null,null,null,null,null,null,null,null,null,null,null,null,null,null,"2012-09-28"]
["",null,null,null,null,null,"Pominat rok",null,null,null,0,"Plateno   ",null,null,null,null,null,null,null,null,null,null,null,null,null,null,null,null,null,null,"2012-09-28"]
["",null,null,null,null,null,"Pominat rok",null,null,null,0,"Plateno   ",null,null,null,null,null,null,null,null,null,null,null,null,null,null,null,null,null,null,"2012-09-28"]
["",null,null,null,null,null,"Pominat rok",null,null,null,0,"Plateno   ",null,null,null,null,null,null,null,null,null,null,null,null,null,null,null,null,null,null,"2012-09-28"]
["",null,null,null,null,null,"Pominat rok",null,null,null,0,"Plateno   ",null,null,null,null,null,null,null,null,null,null,null,null,null,null,null,null,null,null,"2012-09-28"]
["",null,null,null,null,null,"Pominat rok",null,null,null,0,"Plateno   ",null,null,null,null,null,null,null,null,null,null,null,null,null,null,null,null,null,null,"2012-09-28"]
["",null,null,null,null,null,"Pominat rok",null,null,null,0,"Plateno   ",null,null,null,null,null,null,null,null,null,null,null,null,null,null,null,null,null,null,"2012-09-28"]
["",null,null,null,null,null,"Pominat rok",null,null,null,0,"Plateno   ",null,null,null,null,null,null,null,null,null,null,null,null,null,null,null,null,null,null,"2012-09-28"]
["",null,null,null,null,null,"Pominat rok",null,null,null,0,"Plateno   ",null,null,null,null,null,null,null,null,null,null,null,null,null,null,null,null,null,null,"2012-09-28"]
["",null,null,null,null,null,"Pominat rok",null,null,null,0,"Plateno   ",null,null,null,null,null,null,null,null,null,null,null,null,null,null,null,null,null,null,"2012-09-28"]
["",null,null,null,null,null,"Pominat rok",null,null,null,0,"Plateno   ",null,null,null,null,null,null,null,null,null,null,null,null,null,null,null,null,null,null,"2012-09-28"]
["",null,null,null,null,null,"Pominat rok",null,null,null,0,"Plateno   ",null,null,null,null,null,null,null,null,null,null,null,null,null,null,null,null,null,null,"2012-09-28"]
["",null,null,null,null,null,"Pominat rok",null,null,null,0,"Plateno   ",null,null,null,null,null,null,null,null,null,null,null,null,null,null,null,null,null,null,"2012-09-28"]
["",null,null,null,null,null,"Pominat rok",null,null,null,0,"Plateno   ",null,null,null,null,null,null,null,null,null,null,null,null,null,null,null,null,null,null,"2012-09-28"]
["",null,null,null,null,null,"Pominat rok",null,null,null,0,"Plateno   ",null,null,null,null,null,null,null,null,null,null,null,null,null,null,null,null,null,null,"2012-09-28"]
["",null,null,null,null,null,"Pominat rok",null,null,null,0,"Plateno   ",null,null,null,null,null,null,null,null,null,null,null,null,null,null,null,null,null,null,"2012-09-28"]
["",null,null,null,null,null,"Pominat rok",null,null,null,0,"Plateno   ",null,null,null,null,null,null,null,null,null,null,null,null,null,null,null,null,null,null,"2012-09-28"]
["",null,null,null,null,null,"Pominat rok",null,null,null,0,"Plateno   ",null,null,null,null,null,null,null,null,null,null,null,null,null,null,null,null,null,null,"2012-09-28"]
["",null,null,null,null,null,"Pominat rok",null,null,null,0,"Plateno   ",null,null,null,null,null,null,null,null,null,null,null,null,null,null,null,null,null,null,"2012-09-28"]
["",null,null,null,null,null,"Pominat rok",null,null,null,0,"Plateno   ",null,null,null,null,null,null,null,null,null,null,null,null,null,null,null,null,null,null,"2012-09-28"]
["",null,null,null,null,null,"Pominat rok",null,null,null,0,"Plateno   ",null,null,null,null,null,null,null,null,null,null,null,null,null,null,null,null,null,null,"2012-09-28"]
["",null,null,null,null,null,"Pominat rok",null,null,null,0,"Plateno   ",null,null,null,null,null,null,null,null,null,null,null,null,null,null,null,null,null,null,"2012-09-28"]
["",null,null,null,null,null,"Pominat rok",null,null,null,0,"Plateno   ",null,null,null,null,null,null,null,null,null,null,null,null,null,null,null,null,null,null,"2012-09-28"]
["",null,null,null,null,null,"Pominat rok",null,null,null,0,"Plateno   ",null,null,null,null,null,null,null,null,null,null,null,null,null,null,null,null,null,null,"2012-09-28"]
["",null,null,null,null,null,"Pominat rok",null,null,null,0,"Plateno   ",null,null,null,null,null,null,null,null,null,null,null,null,null,null,null,null,null,null,"2012-09-28"]
["",null,null,null,null,null,"Pominat rok",null,null,null,0,"Plateno   ",null,null,null,null,null,null,null,null,null,null,null,null,null,null,null,null,null,null,"2012-09-28"]
["",null,null,null,null,null,"Pominat rok",null,null,null,0,"Plateno   ",null,null,null,null,null,null,null,null,null,null,null,null,null,null,null,null,null,null,"2012-09-28"]
["",null,null,null,null,null,"Pominat rok",null,null,null,0,"Plateno   ",null,null,null,null,null,null,null,null,null,null,null,null,null,null,null,null,null,null,"2012-09-28"]
["",null,null,null,null,null,"Pominat rok",null,null,null,0,"Plateno   ",null,null,null,null,null,null,null,null,null,null,null,null,null,null,null,null,null,null,"2012-09-28"]
["",null,null,null,null,null,"Pominat rok",null,null,null,0,"Plateno   ",null,null,null,null,null,null,null,null,null,null,null,null,null,null,null,null,null,null,"2012-09-28"]
["",null,null,null,null,null,"Pominat rok",null,null,null,0,"Plateno   ",null,null,null,null,null,null,null,null,null,null,null,null,null,null,null,null,null,null,"2012-09-28"]
["",null,null,null,null,null,"Pominat rok",null,null,null,0,"Plateno   ",null,null,null,null,null,null,null,null,null,null,null,null,null,null,null,null,null,null,"2012-09-28"]
["",null,null,null,null,null,"Pominat rok",null,null,null,0,"Plateno   ",null,null,null,null,null,null,null,null,null,null,null,null,null,null,null,null,null,null,"2012-09-28"]
["",null,null,null,null,null,"Pominat rok",null,null,null,0,"Plateno   ",null,null,null,null,null,null,null,null,null,null,null,null,null,null,null,null,null,null,"2012-09-28"]
["",null,null,null,null,null,"Pominat rok",null,null,null,0,"Plateno   ",null,null,null,null,null,null,null,null,null,null,null,null,null,null,null,null,null,null,"2012-09-28"]
["",null,null,null,null,null,"Pominat rok",null,null,null,0,"Plateno   ",null,null,null,null,null,null,null,null,null,null,null,null,null,null,null,null,null,null,"2012-09-28"]
["",null,null,null,null,null,"Pominat rok",null,null,null,0,"Plateno   ",null,null,null,null,null,null,null,null,null,null,null,null,null,null,null,null,null,null,"2012-09-28"]
["",null,null,null,null,null,"Pominat rok",null,null,null,0,"Plateno   ",null,null,null,null,null,null,null,null,null,null,null,null,null,null,null,null,null,null,"2012-09-28"]
["",null,null,null,null,null,"Pominat rok",null,null,null,0,"Plateno   ",null,null,null,null,null,null,null,null,null,null,null,null,null,null,null,null,null,null,"2012-09-28"]
["",null,null,null,null,null,"Pominat rok",null,null,null,0,"Plateno   ",null,null,null,null,null,null,null,null,null,null,null,null,null,null,null,null,null,null,"2012-09-28"]
["",null,null,null,null,null,{"$f":"IF(F454-AE454>=1,F454-AE454,\"Pominat rok\")","v":"Pominat rok"},null,null,null,{"$f":"N454+P454+R454+T454+V454+X454","v":0},{"$f":"IF(J454-K454>=1,J454-K454,\"Plateno   \")","v":"Plateno   "},null,null,null,null,null,null,null,null,null,null,null,null,null,null,null,null,null,null,{"$f":"TODAY()","v":"2012-09-28"}]
[{"$f":"IF(B455=\"\",\"\",A454+1)","v":""},null,null,null,null,null,"Pominat rok",null,null,null,0,"Plateno   ",null,null,null,null,null,null,null,null,null,null,null,null,null,null,null,null,null,null,"2012-09-28"]
["",null,null,null,null,null,"Pominat rok",null,null,null,0,"Plateno   ",null,null,null,null,null,null,null,null,null,null,null,null,null,null,null,null,null,null,"2012-09-28"]
["",null,null,null,null,null,"Pominat rok",null,null,null,0,"Plateno   ",null,null,null,null,null,null,null,null,null,null,null,null,null,null,null,null,null,null,"2012-09-28"]
["",null,null,null,null,null,"Pominat rok",null,null,null,0,"Plateno   ",null,null,null,null,null,null,null,null,null,null,null,null,null,null,null,null,null,null,"2012-09-28"]
["",null,null,null,null,null,"Pominat rok",null,null,null,0,"Plateno   ",null,null,null,null,null,null,null,null,null,null,null,null,null,null,null,null,null,null,"2012-09-28"]
["",null,null,null,null,null,"Pominat rok",null,null,null,0,"Plateno   ",null,null,null,null,null,null,null,null,null,null,null,null,null,null,null,null,null,null,"2012-09-28"]
["",null,null,null,null,null,"Pominat rok",null,null,null,0,"Plateno   ",null,null,null,null,null,null,null,null,null,null,null,null,null,null,null,null,null,null,"2012-09-28"]
["",null,null,null,null,null,"Pominat rok",null,null,null,0,"Plateno   ",null,null,null,null,null,null,null,null,null,null,null,null,null,null,null,null,null,null,"2012-09-28"]
["",null,null,null,null,null,"Pominat rok",null,null,null,0,"Plateno   ",null,null,null,null,null,null,null,null,null,null,null,null,null,null,null,null,null,null,"2012-09-28"]
["",null,null,null,null,null,"Pominat rok",null,null,null,0,"Plateno   ",null,null,null,null,null,null,null,null,null,null,null,null,null,null,null,null,null,null,"2012-09-28"]
["",null,null,null,null,null,"Pominat rok",null,null,null,0,"Plateno   ",null,null,null,null,null,null,null,null,null,null,null,null,null,null,null,null,null,null,"2012-09-28"]
["",null,null,null,null,null,"Pominat rok",null,null,null,0,"Plateno   ",null,null,null,null,null,null,null,null,null,null,null,null,null,null,null,null,null,null,"2012-09-28"]
["",null,null,null,null,null,"Pominat rok",null,null,null,0,"Plateno   ",null,null,null,null,null,null,null,null,null,null,null,null,null,null,null,null,null,null,"2012-09-28"]
["",null,null,null,null,null,"Pominat rok",null,null,null,0,"Plateno   ",null,null,null,null,null,null,null,null,null,null,null,null,null,null,null,null,null,null,"2012-09-28"]
["",null,null,null,null,null,"Pominat rok",null,null,null,0,"Plateno   ",null,null,null,null,null,null,null,null,null,null,null,null,null,null,null,null,null,null,"2012-09-28"]
["",null,null,null,null,null,"Pominat rok",null,null,null,0,"Plateno   ",null,null,null,null,null,null,null,null,null,null,null,null,null,null,null,null,null,null,"2012-09-28"]
["",null,null,null,null,null,"Pominat rok",null,null,null,0,"Plateno   ",null,null,null,null,null,null,null,null,null,null,null,null,null,null,null,null,null,null,"2012-09-28"]
["",null,null,null,null,null,"Pominat rok",null,null,null,0,"Plateno   ",null,null,null,null,null,null,null,null,null,null,null,null,null,null,null,null,null,null,"2012-09-28"]
["",null,null,null,null,null,"Pominat rok",null,null,null,0,"Plateno   ",null,null,null,null,null,null,null,null,null,null,null,null,null,null,null,null,null,null,"2012-09-28"]
["",null,null,null,null,null,"Pominat rok",null,null,null,0,"Plateno   ",null,null,null,null,null,null,null,null,null,null,null,null,null,null,null,null,null,null,"2012-09-28"]
["",null,null,null,null,null,"Pominat rok",null,null,null,0,"Plateno   ",null,null,null,null,null,null,null,null,null,null,null,null,null,null,null,null,null,null,"2012-09-28"]
["",null,null,null,null,null,"Pominat rok",null,null,null,0,"Plateno   ",null,null,null,null,null,null,null,null,null,null,null,null,null,null,null,null,null,null,"2012-09-28"]
["",null,null,null,null,null,"Pominat rok",null,null,null,0,"Plateno   ",null,null,null,null,null,null,null,null,null,null,null,null,null,null,null,null,null,null,"2012-09-28"]
["",null,null,null,null,null,"Pominat rok",null,null,null,0,"Plateno   ",null,null,null,null,null,null,null,null,null,null,null,null,null,null,null,null,null,null,"2012-09-28"]
["",null,null,null,null,null,"Pominat rok",null,null,null,0,"Plateno   ",null,null,null,null,null,null,null,null,null,null,null,null,null,null,null,null,null,null,"2012-09-28"]
["",null,null,null,null,null,"Pominat rok",null,null,null,0,"Plateno   ",null,null,null,null,null,null,null,null,null,null,null,null,null,null,null,null,null,null,"2012-09-28"]
["",null,null,null,null,null,"Pominat rok",null,null,null,0,"Plateno   ",null,null,null,null,null,null,null,null,null,null,null,null,null,null,null,null,null,null,"2012-09-28"]
["",null,null,null,null,null,"Pominat rok",null,null,null,0,"Plateno   ",null,null,null,null,null,null,null,null,null,null,null,null,null,null,null,null,null,null,"2012-09-28"]
["",null,null,null,null,null,"Pominat rok",null,null,null,0,"Plateno   ",null,null,null,null,null,null,null,null,null,null,null,null,null,null,null,null,null,null,"2012-09-28"]
["",null,null,null,null,null,"Pominat rok",null,null,null,0,"Plateno   ",null,null,null,null,null,null,null,null,null,null,null,null,null,null,null,null,null,null,"2012-09-28"]
["",null,null,null,null,null,"Pominat rok",null,null,null,0,"Plateno   ",null,null,null,null,null,null,null,null,null,null,null,null,null,null,null,null,null,null,"2012-09-28"]
["",null,null,null,null,null,"Pominat rok",null,null,null,0,"Plateno   ",null,null,null,null,null,null,null,null,null,null,null,null,null,null,null,null,null,null,"2012-09-28"]
["",null,null,null,null,null,"Pominat rok",null,null,null,0,"Plateno   ",null,null,null,null,null,null,null,null,null,null,null,null,null,null,null,null,null,null,"2012-09-28"]
["",null,null,null,null,null,"Pominat rok",null,null,null,0,"Plateno   ",null,null,null,null,null,null,null,null,null,null,null,null,null,null,null,null,null,null,"2012-09-28"]
["",null,null,null,null,null,"Pominat rok",null,null,null,0,"Plateno   ",null,null,null,null,null,null,null,null,null,null,null,null,null,null,null,null,null,null,"2012-09-28"]
["",null,null,null,null,null,"Pominat rok",null,null,null,0,"Plateno   ",null,null,null,null,null,null,null,null,null,null,null,null,null,null,null,null,null,null,"2012-09-28"]
["",null,null,null,null,null,"Pominat rok",null,null,null,0,"Plateno   ",null,null,null,null,null,null,null,null,null,null,null,null,null,null,null,null,null,null,"2012-09-28"]
["",null,null,null,null,null,"Pominat rok",null,null,null,0,"Plateno   ",null,null,null,null,null,null,null,null,null,null,null,null,null,null,null,null,null,null,"2012-09-28"]
["",null,null,null,null,null,"Pominat rok",null,null,null,0,"Plateno   ",null,null,null,null,null,null,null,null,null,null,null,null,null,null,null,null,null,null,"2012-09-28"]
["",null,null,null,null,null,"Pominat rok",null,null,null,0,"Plateno   ",null,null,null,null,null,null,null,null,null,null,null,null,null,null,null,null,null,null,"2012-09-28"]
["",null,null,null,null,null,"Pominat rok",null,null,null,0,"Plateno   ",null,null,null,null,null,null,null,null,null,null,null,null,null,null,null,null,null,null,"2012-09-28"]
["",null,null,null,null,null,"Pominat rok",null,null,null,0,"Plateno   ",null,null,null,null,null,null,null,null,null,null,null,null,null,null,null,null,null,null,"2012-09-28"]
["",null,null,null,null,null,"Pominat rok",null,null,null,0,"Plateno   ",null,null,null,null,null,null,null,null,null,null,null,null,null,null,null,null,null,null,"2012-09-28"]
["",null,null,null,null,null,"Pominat rok",null,null,null,0,"Plateno   ",null,null,null,null,null,null,null,null,null,null,null,null,null,null,null,null,null,null,"2012-09-28"]
["",null,null,null,null,null,"Pominat rok",null,null,null,0,"Plateno   ",null,null,null,null,null,null,null,null,null,null,null,null,null,null,null,null,null,null,"2012-09-28"]
["",null,null,null,null,null,"Pominat rok",null,null,null,0,"Plateno   ",null,null,null,null,null,null,null,null,null,null,null,null,null,null,null,null,null,null,"2012-09-28"]
["",null,null,null,null,null,"Pominat rok",null,null,null,0,"Plateno   ",null,null,null,null,null,null,null,null,null,null,null,null,null,null,null,null,null,null,"2012-09-28"]
["",null,null,null,null,null,"Pominat rok",null,null,null,0,"Plateno   ",null,null,null,null,null,null,null,null,null,null,null,null,null,null,null,null,null,null,"2012-09-28"]
["",null,null,null,null,null,"Pominat rok",null,null,null,0,"Plateno   ",null,null,null,null,null,null,null,null,null,null,null,null,null,null,null,null,null,null,"2012-09-28"]
["",null,null,null,null,null,"Pominat rok",null,null,null,0,"Plateno   ",null,null,null,null,null,null,null,null,null,null,null,null,null,null,null,null,null,null,"2012-09-28"]
[null,null,null,null,null,null,null,null,null,"ovde 301-500","ovde 300-500"]

{"sheet":"RABOTA","index":1,"n_rows":504,"n_cols":16,"rows_kept":504,"cut":false,"hidden":false,"merged":[]}
[]
[]
[]
["RB","Ime i Prezime","Adresa","Rabota","Datum na prijava","Datum za realizacija","Denovi za Realizacija","Tek na Rabota","Prioritet","Zabeleska od Evidencija","Zabeleska od rabota",null,null,null,"Tek na Rabota","Prioritet"]
[{"$f":"EVIDENCIJA!A5","v":1},{"$f":"EVIDENCIJA!B5","v":"geza"},{"$f":"EVIDENCIJA!C5","v":"ggggggg"},{"$f":"EVIDENCIJA!H5","v":"Venecijan"},{"$f":"EVIDENCIJA!E5","v":"28.09.2012"},{"$f":"EVIDENCIJA!F5","v":"2012-01-03"},{"$f":"EVIDENCIJA!G5","v":"Pominat rok"},{"$f":"EVIDENCIJA!Z5","v":0},{"$f":"EVIDENCIJA!AA5","v":0},{"$f":"EVIDENCIJA!I5","v":"iopp"},{"$f":"EVIDENCIJA!AB5","v":0},null,null,null,"Vo Priprema","Nizok"]
[{"$f":"EVIDENCIJA!A6","v":""},{"$f":"EVIDENCIJA!B6","v":0},{"$f":"EVIDENCIJA!C6","v":0},{"$f":"EVIDENCIJA!H6","v":0},{"$f":"EVIDENCIJA!E6","v":"00:00:00"},{"$f":"EVIDENCIJA!F6","v":"00:00:00"},{"$f":"EVIDENCIJA!G6","v":"Pominat rok"},{"$f":"EVIDENCIJA!Z6","v":0},{"$f":"EVIDENCIJA!AA6","v":0},{"$f":"EVIDENCIJA!I6","v":0},{"$f":"EVIDENCIJA!AB6","v":0},null,null,null,"Vo Izrabotka","Normalen"]
[{"$f":"EVIDENCIJA!A7","v":""},{"$f":"EVIDENCIJA!B7","v":0},{"$f":"EVIDENCIJA!C7","v":0},{"$f":"EVIDENCIJA!H7","v":0},{"$f":"EVIDENCIJA!E7","v":"00:00:00"},{"$f":"EVIDENCIJA!F7","v":"00:00:00"},{"$f":"EVIDENCIJA!G7","v":"Pominat rok"},{"$f":"EVIDENCIJA!Z7","v":0},{"$f":"EVIDENCIJA!AA7","v":0},{"$f":"EVIDENCIJA!I7","v":0},{"$f":"EVIDENCIJA!AB7","v":0},null,null,null,"Nedovr{eno","Visok"]
[{"$f":"EVIDENCIJA!A8","v":""},{"$f":"EVIDENCIJA!B8","v":0},{"$f":"EVIDENCIJA!C8","v":0},{"$f":"EVIDENCIJA!H8","v":0},{"$f":"EVIDENCIJA!E8","v":"00:00:00"},{"$f":"EVIDENCIJA!F8","v":"00:00:00"},{"$f":"EVIDENCIJA!G8","v":"Pominat rok"},{"$f":"EVIDENCIJA!Z8","v":0},{"$f":"EVIDENCIJA!AA8","v":0},{"$f":"EVIDENCIJA!I8","v":0},{"$f":"EVIDENCIJA!AB8","v":0},null,null,null,"Zavr{eno"]
[{"$f":"EVIDENCIJA!A9","v":""},{"$f":"EVIDENCIJA!B9","v":0},{"$f":"EVIDENCIJA!C9","v":0},{"$f":"EVIDENCIJA!H9","v":0},{"$f":"EVIDENCIJA!E9","v":"00:00:00"},{"$f":"EVIDENCIJA!F9","v":"00:00:00"},{"$f":"EVIDENCIJA!G9","v":"Pominat rok"},{"$f":"EVIDENCIJA!Z9","v":0},{"$f":"EVIDENCIJA!AA9","v":0},{"$f":"EVIDENCIJA!I9","v":0},{"$f":"EVIDENCIJA!AB9","v":0}]
[{"$f":"EVIDENCIJA!A10","v":""},{"$f":"EVIDENCIJA!B10","v":0},{"$f":"EVIDENCIJA!C10","v":0},{"$f":"EVIDENCIJA!H10","v":0},{"$f":"EVIDENCIJA!E10","v":"00:00:00"},{"$f":"EVIDENCIJA!F10","v":"00:00:00"},{"$f":"EVIDENCIJA!G10","v":"Pominat rok"},{"$f":"EVIDENCIJA!Z10","v":0},{"$f":"EVIDENCIJA!AA10","v":0},{"$f":"EVIDENCIJA!I10","v":0},{"$f":"EVIDENCIJA!AB10","v":0}]
[{"$f":"EVIDENCIJA!A11","v":""},{"$f":"EVIDENCIJA!B11","v":0},{"$f":"EVIDENCIJA!C11","v":0},{"$f":"EVIDENCIJA!H11","v":0},{"$f":"EVIDENCIJA!E11","v":"00:00:00"},{"$f":"EVIDENCIJA!F11","v":"00:00:00"},{"$f":"EVIDENCIJA!G11","v":"Pominat rok"},{"$f":"EVIDENCIJA!Z11","v":0},{"$f":"EVIDENCIJA!AA11","v":0},{"$f":"EVIDENCIJA!I11","v":0},{"$f":"EVIDENCIJA!AB11","v":0}]
[{"$f":"EVIDENCIJA!A12","v":""},{"$f":"EVIDENCIJA!B12","v":0},{"$f":"EVIDENCIJA!C12","v":0},{"$f":"EVIDENCIJA!H12","v":0},{"$f":"EVIDENCIJA!E12","v":"00:00:00"},{"$f":"EVIDENCIJA!F12","v":"00:00:00"},{"$f":"EVIDENCIJA!G12","v":"Pominat rok"},{"$f":"EVIDENCIJA!Z12","v":0},{"$f":"EVIDENCIJA!AA12","v":0},{"$f":"EVIDENCIJA!I12","v":0},{"$f":"EVIDENCIJA!AB12","v":0}]
[{"$f":"EVIDENCIJA!A13","v":""},{"$f":"EVIDENCIJA!B13","v":0},{"$f":"EVIDENCIJA!C13","v":0},{"$f":"EVIDENCIJA!H13","v":0},{"$f":"EVIDENCIJA!E13","v":"00:00:00"},{"$f":"EVIDENCIJA!F13","v":"00:00:00"},{"$f":"EVIDENCIJA!G13","v":"Pominat rok"},{"$f":"EVIDENCIJA!Z13","v":0},{"$f":"EVIDENCIJA!AA13","v":0},{"$f":"EVIDENCIJA!I13","v":0},{"$f":"EVIDENCIJA!AB13","v":0}]
[{"$f":"EVIDENCIJA!A14","v":""},{"$f":"EVIDENCIJA!B14","v":0},{"$f":"EVIDENCIJA!C14","v":0},{"$f":"EVIDENCIJA!H14","v":0},{"$f":"EVIDENCIJA!E14","v":"00:00:00"},{"$f":"EVIDENCIJA!F14","v":"00:00:00"},{"$f":"EVIDENCIJA!G14","v":"Pominat rok"},{"$f":"EVIDENCIJA!Z14","v":0},{"$f":"EVIDENCIJA!AA14","v":0},{"$f":"EVIDENCIJA!I14","v":0},{"$f":"EVIDENCIJA!AB14","v":0}]
[{"$f":"EVIDENCIJA!A15","v":""},{"$f":"EVIDENCIJA!B15","v":0},{"$f":"EVIDENCIJA!C15","v":0},{"$f":"EVIDENCIJA!H15","v":0},{"$f":"EVIDENCIJA!E15","v":"00:00:00"},{"$f":"EVIDENCIJA!F15","v":"00:00:00"},{"$f":"EVIDENCIJA!G15","v":"Pominat rok"},{"$f":"EVIDENCIJA!Z15","v":0},{"$f":"EVIDENCIJA!AA15","v":0},{"$f":"EVIDENCIJA!I15","v":0},{"$f":"EVIDENCIJA!AB15","v":0}]
[{"$f":"EVIDENCIJA!A16","v":""},{"$f":"EVIDENCIJA!B16","v":0},{"$f":"EVIDENCIJA!C16","v":0},{"$f":"EVIDENCIJA!H16","v":0},{"$f":"EVIDENCIJA!E16","v":"00:00:00"},{"$f":"EVIDENCIJA!F16","v":"00:00:00"},{"$f":"EVIDENCIJA!G16","v":"Pominat rok"},{"$f":"EVIDENCIJA!Z16","v":0},{"$f":"EVIDENCIJA!AA16","v":0},{"$f":"EVIDENCIJA!I16","v":0},{"$f":"EVIDENCIJA!AB16","v":0}]
[{"$f":"EVIDENCIJA!A17","v":""},{"$f":"EVIDENCIJA!B17","v":0},{"$f":"EVIDENCIJA!C17","v":0},{"$f":"EVIDENCIJA!H17","v":0},{"$f":"EVIDENCIJA!E17","v":"00:00:00"},{"$f":"EVIDENCIJA!F17","v":"00:00:00"},{"$f":"EVIDENCIJA!G17","v":"Pominat rok"},{"$f":"EVIDENCIJA!Z17","v":0},{"$f":"EVIDENCIJA!AA17","v":0},{"$f":"EVIDENCIJA!I17","v":0},{"$f":"EVIDENCIJA!AB17","v":0}]
[{"$f":"EVIDENCIJA!A18","v":""},{"$f":"EVIDENCIJA!B18","v":0},{"$f":"EVIDENCIJA!C18","v":0},{"$f":"EVIDENCIJA!H18","v":0},{"$f":"EVIDENCIJA!E18","v":"00:00:00"},{"$f":"EVIDENCIJA!F18","v":"00:00:00"},{"$f":"EVIDENCIJA!G18","v":"Pominat rok"},{"$f":"EVIDENCIJA!Z18","v":0},{"$f":"EVIDENCIJA!AA18","v":0},{"$f":"EVIDENCIJA!I18","v":0},{"$f":"EVIDENCIJA!AB18","v":0}]
[{"$f":"EVIDENCIJA!A19","v":""},{"$f":"EVIDENCIJA!B19","v":0},{"$f":"EVIDENCIJA!C19","v":0},{"$f":"EVIDENCIJA!H19","v":0},{"$f":"EVIDENCIJA!E19","v":"00:00:00"},{"$f":"EVIDENCIJA!F19","v":"00:00:00"},{"$f":"EVIDENCIJA!G19","v":"Pominat rok"},{"$f":"EVIDENCIJA!Z19","v":0},{"$f":"EVIDENCIJA!AA19","v":0},{"$f":"EVIDENCIJA!I19","v":0},{"$f":"EVIDENCIJA!AB19","v":0}]
[{"$f":"EVIDENCIJA!A20","v":""},{"$f":"EVIDENCIJA!B20","v":0},{"$f":"EVIDENCIJA!C20","v":0},{"$f":"EVIDENCIJA!H20","v":0},{"$f":"EVIDENCIJA!E20","v":"00:00:00"},{"$f":"EVIDENCIJA!F20","v":"00:00:00"},{"$f":"EVIDENCIJA!G20","v":"Pominat rok"},{"$f":"EVIDENCIJA!Z20","v":0},{"$f":"EVIDENCIJA!AA20","v":0},{"$f":"EVIDENCIJA!I20","v":0},{"$f":"EVIDENCIJA!AB20","v":0}]
[{"$f":"EVIDENCIJA!A21","v":""},{"$f":"EVIDENCIJA!B21","v":0},{"$f":"EVIDENCIJA!C21","v":0},{"$f":"EVIDENCIJA!H21","v":0},{"$f":"EVIDENCIJA!E21","v":"00:00:00"},{"$f":"EVIDENCIJA!F21","v":"00:00:00"},{"$f":"EVIDENCIJA!G21","v":"Pominat rok"},{"$f":"EVIDENCIJA!Z21","v":0},{"$f":"EVIDENCIJA!AA21","v":0},{"$f":"EVIDENCIJA!I21","v":0},{"$f":"EVIDENCIJA!AB21","v":0}]
[{"$f":"EVIDENCIJA!A22","v":""},{"$f":"EVIDENCIJA!B22","v":0},{"$f":"EVIDENCIJA!C22","v":0},{"$f":"EVIDENCIJA!H22","v":0},{"$f":"EVIDENCIJA!E22","v":"00:00:00"},{"$f":"EVIDENCIJA!F22","v":"00:00:00"},{"$f":"EVIDENCIJA!G22","v":"Pominat rok"},{"$f":"EVIDENCIJA!Z22","v":0},{"$f":"EVIDENCIJA!AA22","v":0},{"$f":"EVIDENCIJA!I22","v":0},{"$f":"EVIDENCIJA!AB22","v":0}]
[{"$f":"EVIDENCIJA!A23","v":""},{"$f":"EVIDENCIJA!B23","v":0},{"$f":"EVIDENCIJA!C23","v":0},{"$f":"EVIDENCIJA!H23","v":0},{"$f":"EVIDENCIJA!E23","v":"00:00:00"},{"$f":"EVIDENCIJA!F23","v":"00:00:00"},{"$f":"EVIDENCIJA!G23","v":"Pominat rok"},{"$f":"EVIDENCIJA!Z23","v":0},{"$f":"EVIDENCIJA!AA23","v":0},{"$f":"EVIDENCIJA!I23","v":0},{"$f":"EVIDENCIJA!AB23","v":0}]
[{"$f":"EVIDENCIJA!A24","v":""},{"$f":"EVIDENCIJA!B24","v":0},{"$f":"EVIDENCIJA!C24","v":0},{"$f":"EVIDENCIJA!H24","v":0},{"$f":"EVIDENCIJA!E24","v":"00:00:00"},{"$f":"EVIDENCIJA!F24","v":"00:00:00"},{"$f":"EVIDENCIJA!G24","v":"Pominat rok"},{"$f":"EVIDENCIJA!Z24","v":0},{"$f":"EVIDENCIJA!AA24","v":0},{"$f":"EVIDENCIJA!I24","v":0},{"$f":"EVIDENCIJA!AB24","v":0}]
[{"$f":"EVIDENCIJA!A25","v":""},{"$f":"EVIDENCIJA!B25","v":0},{"$f":"EVIDENCIJA!C25","v":0},{"$f":"EVIDENCIJA!H25","v":0},{"$f":"EVIDENCIJA!E25","v":"00:00:00"},{"$f":"EVIDENCIJA!F25","v":"00:00:00"},{"$f":"EVIDENCIJA!G25","v":"Pominat rok"},{"$f":"EVIDENCIJA!Z25","v":0},{"$f":"EVIDENCIJA!AA25","v":0},{"$f":"EVIDENCIJA!I25","v":0},{"$f":"EVIDENCIJA!AB25","v":0}]
[{"$f":"EVIDENCIJA!A26","v":""},{"$f":"EVIDENCIJA!B26","v":0},{"$f":"EVIDENCIJA!C26","v":0},{"$f":"EVIDENCIJA!H26","v":0},{"$f":"EVIDENCIJA!E26","v":"00:00:00"},{"$f":"EVIDENCIJA!F26","v":"00:00:00"},{"$f":"EVIDENCIJA!G26","v":"Pominat rok"},{"$f":"EVIDENCIJA!Z26","v":0},{"$f":"EVIDENCIJA!AA26","v":0},{"$f":"EVIDENCIJA!I26","v":0},{"$f":"EVIDENCIJA!AB26","v":0}]
[{"$f":"EVIDENCIJA!A27","v":""},{"$f":"EVIDENCIJA!B27","v":0},{"$f":"EVIDENCIJA!C27","v":0},{"$f":"EVIDENCIJA!H27","v":0},{"$f":"EVIDENCIJA!E27","v":"00:00:00"},{"$f":"EVIDENCIJA!F27","v":"00:00:00"},{"$f":"EVIDENCIJA!G27","v":"Pominat rok"},{"$f":"EVIDENCIJA!Z27","v":0},{"$f":"EVIDENCIJA!AA27","v":0},{"$f":"EVIDENCIJA!I27","v":0},{"$f":"EVIDENCIJA!AB27","v":0}]
[{"$f":"EVIDENCIJA!A28","v":""},{"$f":"EVIDENCIJA!B28","v":0},{"$f":"EVIDENCIJA!C28","v":0},{"$f":"EVIDENCIJA!H28","v":0},{"$f":"EVIDENCIJA!E28","v":"00:00:00"},{"$f":"EVIDENCIJA!F28","v":"00:00:00"},{"$f":"EVIDENCIJA!G28","v":"Pominat rok"},{"$f":"EVIDENCIJA!Z28","v":0},{"$f":"EVIDENCIJA!AA28","v":0},{"$f":"EVIDENCIJA!I28","v":0},{"$f":"EVIDENCIJA!AB28","v":0}]
[{"$f":"EVIDENCIJA!A29","v":""},{"$f":"EVIDENCIJA!B29","v":0},{"$f":"EVIDENCIJA!C29","v":0},{"$f":"EVIDENCIJA!H29","v":0},{"$f":"EVIDENCIJA!E29","v":"00:00:00"},{"$f":"EVIDENCIJA!F29","v":"00:00:00"},{"$f":"EVIDENCIJA!G29","v":"Pominat rok"},{"$f":"EVIDENCIJA!Z29","v":0},{"$f":"EVIDENCIJA!AA29","v":0},{"$f":"EVIDENCIJA!I29","v":0},{"$f":"EVIDENCIJA!AB29","v":0}]
[{"$f":"EVIDENCIJA!A30","v":""},{"$f":"EVIDENCIJA!B30","v":0},{"$f":"EVIDENCIJA!C30","v":0},{"$f":"EVIDENCIJA!H30","v":0},{"$f":"EVIDENCIJA!E30","v":"00:00:00"},{"$f":"EVIDENCIJA!F30","v":"00:00:00"},{"$f":"EVIDENCIJA!G30","v":"Pominat rok"},{"$f":"EVIDENCIJA!Z30","v":0},{"$f":"EVIDENCIJA!AA30","v":0},{"$f":"EVIDENCIJA!I30","v":0},{"$f":"EVIDENCIJA!AB30","v":0}]
[{"$f":"EVIDENCIJA!A31","v":""},{"$f":"EVIDENCIJA!B31","v":0},{"$f":"EVIDENCIJA!C31","v":0},{"$f":"EVIDENCIJA!H31","v":0},{"$f":"EVIDENCIJA!E31","v":"00:00:00"},{"$f":"EVIDENCIJA!F31","v":"00:00:00"},{"$f":"EVIDENCIJA!G31","v":"Pominat rok"},{"$f":"EVIDENCIJA!Z31","v":0},{"$f":"EVIDENCIJA!AA31","v":0},{"$f":"EVIDENCIJA!I31","v":0},{"$f":"EVIDENCIJA!AB31","v":0}]
[{"$f":"EVIDENCIJA!A32","v":""},{"$f":"EVIDENCIJA!B32","v":0},{"$f":"EVIDENCIJA!C32","v":0},{"$f":"EVIDENCIJA!H32","v":0},{"$f":"EVIDENCIJA!E32","v":"00:00:00"},{"$f":"EVIDENCIJA!F32","v":"00:00:00"},{"$f":"EVIDENCIJA!G32","v":"Pominat rok"},{"$f":"EVIDENCIJA!Z32","v":0},{"$f":"EVIDENCIJA!AA32","v":0},{"$f":"EVIDENCIJA!I32","v":0},{"$f":"EVIDENCIJA!AB32","v":0}]
[{"$f":"EVIDENCIJA!A33","v":""},{"$f":"EVIDENCIJA!B33","v":0},{"$f":"EVIDENCIJA!C33","v":0},{"$f":"EVIDENCIJA!H33","v":0},{"$f":"EVIDENCIJA!E33","v":"00:00:00"},{"$f":"EVIDENCIJA!F33","v":"00:00:00"},{"$f":"EVIDENCIJA!G33","v":"Pominat rok"},{"$f":"EVIDENCIJA!Z33","v":0},{"$f":"EVIDENCIJA!AA33","v":0},{"$f":"EVIDENCIJA!I33","v":0},{"$f":"EVIDENCIJA!AB33","v":0}]
[{"$f":"EVIDENCIJA!A34","v":""},{"$f":"EVIDENCIJA!B34","v":0},{"$f":"EVIDENCIJA!C34","v":0},{"$f":"EVIDENCIJA!H34","v":0},{"$f":"EVIDENCIJA!E34","v":"00:00:00"},{"$f":"EVIDENCIJA!F34","v":"00:00:00"},{"$f":"EVIDENCIJA!G34","v":"Pominat rok"},{"$f":"EVIDENCIJA!Z34","v":0},{"$f":"EVIDENCIJA!AA34","v":0},{"$f":"EVIDENCIJA!I34","v":0},{"$f":"EVIDENCIJA!AB34","v":0}]
[{"$f":"EVIDENCIJA!A35","v":""},{"$f":"EVIDENCIJA!B35","v":0},{"$f":"EVIDENCIJA!C35","v":0},{"$f":"EVIDENCIJA!H35","v":0},{"$f":"EVIDENCIJA!E35","v":"00:00:00"},{"$f":"EVIDENCIJA!F35","v":"00:00:00"},{"$f":"EVIDENCIJA!G35","v":"Pominat rok"},{"$f":"EVIDENCIJA!Z35","v":0},{"$f":"EVIDENCIJA!AA35","v":0},{"$f":"EVIDENCIJA!I35","v":0},{"$f":"EVIDENCIJA!AB35","v":0}]
[{"$f":"EVIDENCIJA!A36","v":""},{"$f":"EVIDENCIJA!B36","v":0},{"$f":"EVIDENCIJA!C36","v":0},{"$f":"EVIDENCIJA!H36","v":0},{"$f":"EVIDENCIJA!E36","v":"00:00:00"},{"$f":"EVIDENCIJA!F36","v":"00:00:00"},{"$f":"EVIDENCIJA!G36","v":"Pominat rok"},{"$f":"EVIDENCIJA!Z36","v":0},{"$f":"EVIDENCIJA!AA36","v":0},{"$f":"EVIDENCIJA!I36","v":0},{"$f":"EVIDENCIJA!AB36","v":0}]
[{"$f":"EVIDENCIJA!A37","v":""},{"$f":"EVIDENCIJA!B37","v":0},{"$f":"EVIDENCIJA!C37","v":0},{"$f":"EVIDENCIJA!H37","v":0},{"$f":"EVIDENCIJA!E37","v":"00:00:00"},{"$f":"EVIDENCIJA!F37","v":"00:00:00"},{"$f":"EVIDENCIJA!G37","v":"Pominat rok"},{"$f":"EVIDENCIJA!Z37","v":0},{"$f":"EVIDENCIJA!AA37","v":0},{"$f":"EVIDENCIJA!I37","v":0},{"$f":"EVIDENCIJA!AB37","v":0}]
[{"$f":"EVIDENCIJA!A38","v":""},{"$f":"EVIDENCIJA!B38","v":0},{"$f":"EVIDENCIJA!C38","v":0},{"$f":"EVIDENCIJA!H38","v":0},{"$f":"EVIDENCIJA!E38","v":"00:00:00"},{"$f":"EVIDENCIJA!F38","v":"00:00:00"},{"$f":"EVIDENCIJA!G38","v":"Pominat rok"},{"$f":"EVIDENCIJA!Z38","v":0},{"$f":"EVIDENCIJA!AA38","v":0},{"$f":"EVIDENCIJA!I38","v":0},{"$f":"EVIDENCIJA!AB38","v":0}]
[{"$f":"EVIDENCIJA!A39","v":""},{"$f":"EVIDENCIJA!B39","v":0},{"$f":"EVIDENCIJA!C39","v":0},{"$f":"EVIDENCIJA!H39","v":0},{"$f":"EVIDENCIJA!E39","v":"00:00:00"},{"$f":"EVIDENCIJA!F39","v":"00:00:00"},{"$f":"EVIDENCIJA!G39","v":"Pominat rok"},{"$f":"EVIDENCIJA!Z39","v":0},{"$f":"EVIDENCIJA!AA39","v":0},{"$f":"EVIDENCIJA!I39","v":0},{"$f":"EVIDENCIJA!AB39","v":0}]
[{"$f":"EVIDENCIJA!A40","v":""},{"$f":"EVIDENCIJA!B40","v":0},{"$f":"EVIDENCIJA!C40","v":0},{"$f":"EVIDENCIJA!H40","v":0},{"$f":"EVIDENCIJA!E40","v":"00:00:00"},{"$f":"EVIDENCIJA!F40","v":"00:00:00"},{"$f":"EVIDENCIJA!G40","v":"Pominat rok"},{"$f":"EVIDENCIJA!Z40","v":0},{"$f":"EVIDENCIJA!AA40","v":0},{"$f":"EVIDENCIJA!I40","v":0},{"$f":"EVIDENCIJA!AB40","v":0}]
[{"$f":"EVIDENCIJA!A41","v":""},{"$f":"EVIDENCIJA!B41","v":0},{"$f":"EVIDENCIJA!C41","v":0},{"$f":"EVIDENCIJA!H41","v":0},{"$f":"EVIDENCIJA!E41","v":"00:00:00"},{"$f":"EVIDENCIJA!F41","v":"00:00:00"},{"$f":"EVIDENCIJA!G41","v":"Pominat rok"},{"$f":"EVIDENCIJA!Z41","v":0},{"$f":"EVIDENCIJA!AA41","v":0},{"$f":"EVIDENCIJA!I41","v":0},{"$f":"EVIDENCIJA!AB41","v":0}]
[{"$f":"EVIDENCIJA!A42","v":""},{"$f":"EVIDENCIJA!B42","v":0},{"$f":"EVIDENCIJA!C42","v":0},{"$f":"EVIDENCIJA!H42","v":0},{"$f":"EVIDENCIJA!E42","v":"00:00:00"},{"$f":"EVIDENCIJA!F42","v":"00:00:00"},{"$f":"EVIDENCIJA!G42","v":"Pominat rok"},{"$f":"EVIDENCIJA!Z42","v":0},{"$f":"EVIDENCIJA!AA42","v":0},{"$f":"EVIDENCIJA!I42","v":0},{"$f":"EVIDENCIJA!AB42","v":0}]
[{"$f":"EVIDENCIJA!A43","v":""},{"$f":"EVIDENCIJA!B43","v":0},{"$f":"EVIDENCIJA!C43","v":0},{"$f":"EVIDENCIJA!H43","v":0},{"$f":"EVIDENCIJA!E43","v":"00:00:00"},{"$f":"EVIDENCIJA!F43","v":"00:00:00"},{"$f":"EVIDENCIJA!G43","v":"Pominat rok"},{"$f":"EVIDENCIJA!Z43","v":0},{"$f":"EVIDENCIJA!AA43","v":0},{"$f":"EVIDENCIJA!I43","v":0},{"$f":"EVIDENCIJA!AB43","v":0}]
[{"$f":"EVIDENCIJA!A44","v":""},{"$f":"EVIDENCIJA!B44","v":0},{"$f":"EVIDENCIJA!C44","v":0},{"$f":"EVIDENCIJA!H44","v":0},{"$f":"EVIDENCIJA!E44","v":"00:00:00"},{"$f":"EVIDENCIJA!F44","v":"00:00:00"},{"$f":"EVIDENCIJA!G44","v":"Pominat rok"},{"$f":"EVIDENCIJA!Z44","v":0},{"$f":"EVIDENCIJA!AA44","v":0},{"$f":"EVIDENCIJA!I44","v":0},{"$f":"EVIDENCIJA!AB44","v":0}]
[{"$f":"EVIDENCIJA!A45","v":""},{"$f":"EVIDENCIJA!B45","v":0},{"$f":"EVIDENCIJA!C45","v":0},{"$f":"EVIDENCIJA!H45","v":0},{"$f":"EVIDENCIJA!E45","v":"00:00:00"},{"$f":"EVIDENCIJA!F45","v":"00:00:00"},{"$f":"EVIDENCIJA!G45","v":"Pominat rok"},{"$f":"EVIDENCIJA!Z45","v":0},{"$f":"EVIDENCIJA!AA45","v":0},{"$f":"EVIDENCIJA!I45","v":0},{"$f":"EVIDENCIJA!AB45","v":0}]
[{"$f":"EVIDENCIJA!A46","v":""},{"$f":"EVIDENCIJA!B46","v":0},{"$f":"EVIDENCIJA!C46","v":0},{"$f":"EVIDENCIJA!H46","v":0},{"$f":"EVIDENCIJA!E46","v":"00:00:00"},{"$f":"EVIDENCIJA!F46","v":"00:00:00"},{"$f":"EVIDENCIJA!G46","v":"Pominat rok"},{"$f":"EVIDENCIJA!Z46","v":0},{"$f":"EVIDENCIJA!AA46","v":0},{"$f":"EVIDENCIJA!I46","v":0},{"$f":"EVIDENCIJA!AB46","v":0}]
[{"$f":"EVIDENCIJA!A47","v":""},{"$f":"EVIDENCIJA!B47","v":0},{"$f":"EVIDENCIJA!C47","v":0},{"$f":"EVIDENCIJA!H47","v":0},{"$f":"EVIDENCIJA!E47","v":"00:00:00"},{"$f":"EVIDENCIJA!F47","v":"00:00:00"},{"$f":"EVIDENCIJA!G47","v":"Pominat rok"},{"$f":"EVIDENCIJA!Z47","v":0},{"$f":"EVIDENCIJA!AA47","v":0},{"$f":"EVIDENCIJA!I47","v":0},{"$f":"EVIDENCIJA!AB47","v":0}]
[{"$f":"EVIDENCIJA!A48","v":""},{"$f":"EVIDENCIJA!B48","v":0},{"$f":"EVIDENCIJA!C48","v":0},{"$f":"EVIDENCIJA!H48","v":0},{"$f":"EVIDENCIJA!E48","v":"00:00:00"},{"$f":"EVIDENCIJA!F48","v":"00:00:00"},{"$f":"EVIDENCIJA!G48","v":"Pominat rok"},{"$f":"EVIDENCIJA!Z48","v":0},{"$f":"EVIDENCIJA!AA48","v":0},{"$f":"EVIDENCIJA!I48","v":0},{"$f":"EVIDENCIJA!AB48","v":0}]
[{"$f":"EVIDENCIJA!A49","v":""},{"$f":"EVIDENCIJA!B49","v":0},{"$f":"EVIDENCIJA!C49","v":0},{"$f":"EVIDENCIJA!H49","v":0},{"$f":"EVIDENCIJA!E49","v":"00:00:00"},{"$f":"EVIDENCIJA!F49","v":"00:00:00"},{"$f":"EVIDENCIJA!G49","v":"Pominat rok"},{"$f":"EVIDENCIJA!Z49","v":0},{"$f":"EVIDENCIJA!AA49","v":0},{"$f":"EVIDENCIJA!I49","v":0},{"$f":"EVIDENCIJA!AB49","v":0}]
[{"$f":"EVIDENCIJA!A50","v":""},{"$f":"EVIDENCIJA!B50","v":0},{"$f":"EVIDENCIJA!C50","v":0},{"$f":"EVIDENCIJA!H50","v":0},{"$f":"EVIDENCIJA!E50","v":"00:00:00"},{"$f":"EVIDENCIJA!F50","v":"00:00:00"},{"$f":"EVIDENCIJA!G50","v":"Pominat rok"},{"$f":"EVIDENCIJA!Z50","v":0},{"$f":"EVIDENCIJA!AA50","v":0},{"$f":"EVIDENCIJA!I50","v":0},{"$f":"EVIDENCIJA!AB50","v":0}]
[{"$f":"EVIDENCIJA!A51","v":""},{"$f":"EVIDENCIJA!B51","v":0},{"$f":"EVIDENCIJA!C51","v":0},{"$f":"EVIDENCIJA!H51","v":0},{"$f":"EVIDENCIJA!E51","v":"00:00:00"},{"$f":"EVIDENCIJA!F51","v":"00:00:00"},{"$f":"EVIDENCIJA!G51","v":"Pominat rok"},{"$f":"EVIDENCIJA!Z51","v":0},{"$f":"EVIDENCIJA!AA51","v":0},{"$f":"EVIDENCIJA!I51","v":0},{"$f":"EVIDENCIJA!AB51","v":0}]
[{"$f":"EVIDENCIJA!A52","v":""},{"$f":"EVIDENCIJA!B52","v":0},{"$f":"EVIDENCIJA!C52","v":0},{"$f":"EVIDENCIJA!H52","v":0},{"$f":"EVIDENCIJA!E52","v":"00:00:00"},{"$f":"EVIDENCIJA!F52","v":"00:00:00"},{"$f":"EVIDENCIJA!G52","v":"Pominat rok"},{"$f":"EVIDENCIJA!Z52","v":0},{"$f":"EVIDENCIJA!AA52","v":0},{"$f":"EVIDENCIJA!I52","v":0},{"$f":"EVIDENCIJA!AB52","v":0}]
[{"$f":"EVIDENCIJA!A53","v":""},{"$f":"EVIDENCIJA!B53","v":0},{"$f":"EVIDENCIJA!C53","v":0},{"$f":"EVIDENCIJA!H53","v":0},{"$f":"EVIDENCIJA!E53","v":"00:00:00"},{"$f":"EVIDENCIJA!F53","v":"00:00:00"},{"$f":"EVIDENCIJA!G53","v":"Pominat rok"},{"$f":"EVIDENCIJA!Z53","v":0},{"$f":"EVIDENCIJA!AA53","v":0},{"$f":"EVIDENCIJA!I53","v":0},{"$f":"EVIDENCIJA!AB53","v":0}]
[{"$f":"EVIDENCIJA!A54","v":""},{"$f":"EVIDENCIJA!B54","v":0},{"$f":"EVIDENCIJA!C54","v":0},{"$f":"EVIDENCIJA!H54","v":0},{"$f":"EVIDENCIJA!E54","v":"00:00:00"},{"$f":"EVIDENCIJA!F54","v":"00:00:00"},{"$f":"EVIDENCIJA!G54","v":"Pominat rok"},{"$f":"EVIDENCIJA!Z54","v":0},{"$f":"EVIDENCIJA!AA54","v":0},{"$f":"EVIDENCIJA!I54","v":0},{"$f":"EVIDENCIJA!AB54","v":0}]
[{"$f":"EVIDENCIJA!A55","v":""},{"$f":"EVIDENCIJA!B55","v":0},{"$f":"EVIDENCIJA!C55","v":0},{"$f":"EVIDENCIJA!H55","v":0},{"$f":"EVIDENCIJA!E55","v":"00:00:00"},{"$f":"EVIDENCIJA!F55","v":"00:00:00"},{"$f":"EVIDENCIJA!G55","v":"Pominat rok"},{"$f":"EVIDENCIJA!Z55","v":0},{"$f":"EVIDENCIJA!AA55","v":0},{"$f":"EVIDENCIJA!I55","v":0},{"$f":"EVIDENCIJA!AB55","v":0}]
[{"$f":"EVIDENCIJA!A56","v":""},{"$f":"EVIDENCIJA!B56","v":0},{"$f":"EVIDENCIJA!C56","v":0},{"$f":"EVIDENCIJA!H56","v":0},{"$f":"EVIDENCIJA!E56","v":"00:00:00"},{"$f":"EVIDENCIJA!F56","v":"00:00:00"},{"$f":"EVIDENCIJA!G56","v":"Pominat rok"},{"$f":"EVIDENCIJA!Z56","v":0},{"$f":"EVIDENCIJA!AA56","v":0},{"$f":"EVIDENCIJA!I56","v":0},{"$f":"EVIDENCIJA!AB56","v":0}]
[{"$f":"EVIDENCIJA!A57","v":""},{"$f":"EVIDENCIJA!B57","v":0},{"$f":"EVIDENCIJA!C57","v":0},{"$f":"EVIDENCIJA!H57","v":0},{"$f":"EVIDENCIJA!E57","v":"00:00:00"},{"$f":"EVIDENCIJA!F57","v":"00:00:00"},{"$f":"EVIDENCIJA!G57","v":"Pominat rok"},{"$f":"EVIDENCIJA!Z57","v":0},{"$f":"EVIDENCIJA!AA57","v":0},{"$f":"EVIDENCIJA!I57","v":0},{"$f":"EVIDENCIJA!AB57","v":0}]
[{"$f":"EVIDENCIJA!A58","v":""},{"$f":"EVIDENCIJA!B58","v":0},{"$f":"EVIDENCIJA!C58","v":0},{"$f":"EVIDENCIJA!H58","v":0},{"$f":"EVIDENCIJA!E58","v":"00:00:00"},{"$f":"EVIDENCIJA!F58","v":"00:00:00"},{"$f":"EVIDENCIJA!G58","v":"Pominat rok"},{"$f":"EVIDENCIJA!Z58","v":0},{"$f":"EVIDENCIJA!AA58","v":0},{"$f":"EVIDENCIJA!I58","v":0},{"$f":"EVIDENCIJA!AB58","v":0}]
[{"$f":"EVIDENCIJA!A59","v":""},{"$f":"EVIDENCIJA!B59","v":0},{"$f":"EVIDENCIJA!C59","v":0},{"$f":"EVIDENCIJA!H59","v":0},{"$f":"EVIDENCIJA!E59","v":"00:00:00"},{"$f":"EVIDENCIJA!F59","v":"00:00:00"},{"$f":"EVIDENCIJA!G59","v":"Pominat rok"},{"$f":"EVIDENCIJA!Z59","v":0},{"$f":"EVIDENCIJA!AA59","v":0},{"$f":"EVIDENCIJA!I59","v":0},{"$f":"EVIDENCIJA!AB59","v":0}]
[{"$f":"EVIDENCIJA!A60","v":""},{"$f":"EVIDENCIJA!B60","v":0},{"$f":"EVIDENCIJA!C60","v":0},{"$f":"EVIDENCIJA!H60","v":0},{"$f":"EVIDENCIJA!E60","v":"00:00:00"},{"$f":"EVIDENCIJA!F60","v":"00:00:00"},{"$f":"EVIDENCIJA!G60","v":"Pominat rok"},{"$f":"EVIDENCIJA!Z60","v":0},{"$f":"EVIDENCIJA!AA60","v":0},{"$f":"EVIDENCIJA!I60","v":0},{"$f":"EVIDENCIJA!AB60","v":0}]
[{"$f":"EVIDENCIJA!A61","v":""},{"$f":"EVIDENCIJA!B61","v":0},{"$f":"EVIDENCIJA!C61","v":0},{"$f":"EVIDENCIJA!H61","v":0},{"$f":"EVIDENCIJA!E61","v":"00:00:00"},{"$f":"EVIDENCIJA!F61","v":"00:00:00"},{"$f":"EVIDENCIJA!G61","v":"Pominat rok"},{"$f":"EVIDENCIJA!Z61","v":0},{"$f":"EVIDENCIJA!AA61","v":0},{"$f":"EVIDENCIJA!I61","v":0},{"$f":"EVIDENCIJA!AB61","v":0}]
[{"$f":"EVIDENCIJA!A62","v":""},{"$f":"EVIDENCIJA!B62","v":0},{"$f":"EVIDENCIJA!C62","v":0},{"$f":"EVIDENCIJA!H62","v":0},{"$f":"EVIDENCIJA!E62","v":"00:00:00"},{"$f":"EVIDENCIJA!F62","v":"00:00:00"},{"$f":"EVIDENCIJA!G62","v":"Pominat rok"},{"$f":"EVIDENCIJA!Z62","v":0},{"$f":"EVIDENCIJA!AA62","v":0},{"$f":"EVIDENCIJA!I62","v":0},{"$f":"EVIDENCIJA!AB62","v":0}]
[{"$f":"EVIDENCIJA!A63","v":""},{"$f":"EVIDENCIJA!B63","v":0},{"$f":"EVIDENCIJA!C63","v":0},{"$f":"EVIDENCIJA!H63","v":0},{"$f":"EVIDENCIJA!E63","v":"00:00:00"},{"$f":"EVIDENCIJA!F63","v":"00:00:00"},{"$f":"EVIDENCIJA!G63","v":"Pominat rok"},{"$f":"EVIDENCIJA!Z63","v":0},{"$f":"EVIDENCIJA!AA63","v":0},{"$f":"EVIDENCIJA!I63","v":0},{"$f":"EVIDENCIJA!AB63","v":0}]
[{"$f":"EVIDENCIJA!A64","v":""},{"$f":"EVIDENCIJA!B64","v":0},{"$f":"EVIDENCIJA!C64","v":0},{"$f":"EVIDENCIJA!H64","v":0},{"$f":"EVIDENCIJA!E64","v":"00:00:00"},{"$f":"EVIDENCIJA!F64","v":"00:00:00"},{"$f":"EVIDENCIJA!G64","v":"Pominat rok"},{"$f":"EVIDENCIJA!Z64","v":0},{"$f":"EVIDENCIJA!AA64","v":0},{"$f":"EVIDENCIJA!I64","v":0},{"$f":"EVIDENCIJA!AB64","v":0}]
[{"$f":"EVIDENCIJA!A65","v":""},{"$f":"EVIDENCIJA!B65","v":0},{"$f":"EVIDENCIJA!C65","v":0},{"$f":"EVIDENCIJA!H65","v":0},{"$f":"EVIDENCIJA!E65","v":"00:00:00"},{"$f":"EVIDENCIJA!F65","v":"00:00:00"},{"$f":"EVIDENCIJA!G65","v":"Pominat rok"},{"$f":"EVIDENCIJA!Z65","v":0},{"$f":"EVIDENCIJA!AA65","v":0},{"$f":"EVIDENCIJA!I65","v":0},{"$f":"EVIDENCIJA!AB65","v":0}]
[{"$f":"EVIDENCIJA!A66","v":""},{"$f":"EVIDENCIJA!B66","v":0},{"$f":"EVIDENCIJA!C66","v":0},{"$f":"EVIDENCIJA!H66","v":0},{"$f":"EVIDENCIJA!E66","v":"00:00:00"},{"$f":"EVIDENCIJA!F66","v":"00:00:00"},{"$f":"EVIDENCIJA!G66","v":"Pominat rok"},{"$f":"EVIDENCIJA!Z66","v":0},{"$f":"EVIDENCIJA!AA66","v":0},{"$f":"EVIDENCIJA!I66","v":0},{"$f":"EVIDENCIJA!AB66","v":0}]
[{"$f":"EVIDENCIJA!A67","v":""},{"$f":"EVIDENCIJA!B67","v":0},{"$f":"EVIDENCIJA!C67","v":0},{"$f":"EVIDENCIJA!H67","v":0},{"$f":"EVIDENCIJA!E67","v":"00:00:00"},{"$f":"EVIDENCIJA!F67","v":"00:00:00"},{"$f":"EVIDENCIJA!G67","v":"Pominat rok"},{"$f":"EVIDENCIJA!Z67","v":0},{"$f":"EVIDENCIJA!AA67","v":0},{"$f":"EVIDENCIJA!I67","v":0},{"$f":"EVIDENCIJA!AB67","v":0}]
[{"$f":"EVIDENCIJA!A68","v":""},{"$f":"EVIDENCIJA!B68","v":0},{"$f":"EVIDENCIJA!C68","v":0},{"$f":"EVIDENCIJA!H68","v":0},{"$f":"EVIDENCIJA!E68","v":"00:00:00"},{"$f":"EVIDENCIJA!F68","v":"00:00:00"},{"$f":"EVIDENCIJA!G68","v":"Pominat rok"},{"$f":"EVIDENCIJA!Z68","v":0},{"$f":"EVIDENCIJA!AA68","v":0},{"$f":"EVIDENCIJA!I68","v":0},{"$f":"EVIDENCIJA!AB68","v":0}]
[{"$f":"EVIDENCIJA!A69","v":""},{"$f":"EVIDENCIJA!B69","v":0},{"$f":"EVIDENCIJA!C69","v":0},{"$f":"EVIDENCIJA!H69","v":0},{"$f":"EVIDENCIJA!E69","v":"00:00:00"},{"$f":"EVIDENCIJA!F69","v":"00:00:00"},{"$f":"EVIDENCIJA!G69","v":"Pominat rok"},{"$f":"EVIDENCIJA!Z69","v":0},{"$f":"EVIDENCIJA!AA69","v":0},{"$f":"EVIDENCIJA!I69","v":0},{"$f":"EVIDENCIJA!AB69","v":0}]
[{"$f":"EVIDENCIJA!A70","v":""},{"$f":"EVIDENCIJA!B70","v":0},{"$f":"EVIDENCIJA!C70","v":0},{"$f":"EVIDENCIJA!H70","v":0},{"$f":"EVIDENCIJA!E70","v":"00:00:00"},{"$f":"EVIDENCIJA!F70","v":"00:00:00"},{"$f":"EVIDENCIJA!G70","v":"Pominat rok"},{"$f":"EVIDENCIJA!Z70","v":0},{"$f":"EVIDENCIJA!AA70","v":0},{"$f":"EVIDENCIJA!I70","v":0},{"$f":"EVIDENCIJA!AB70","v":0}]
[{"$f":"EVIDENCIJA!A71","v":""},{"$f":"EVIDENCIJA!B71","v":0},{"$f":"EVIDENCIJA!C71","v":0},{"$f":"EVIDENCIJA!H71","v":0},{"$f":"EVIDENCIJA!E71","v":"00:00:00"},{"$f":"EVIDENCIJA!F71","v":"00:00:00"},{"$f":"EVIDENCIJA!G71","v":"Pominat rok"},{"$f":"EVIDENCIJA!Z71","v":0},{"$f":"EVIDENCIJA!AA71","v":0},{"$f":"EVIDENCIJA!I71","v":0},{"$f":"EVIDENCIJA!AB71","v":0}]
[{"$f":"EVIDENCIJA!A72","v":""},{"$f":"EVIDENCIJA!B72","v":0},{"$f":"EVIDENCIJA!C72","v":0},{"$f":"EVIDENCIJA!H72","v":0},{"$f":"EVIDENCIJA!E72","v":"00:00:00"},{"$f":"EVIDENCIJA!F72","v":"00:00:00"},{"$f":"EVIDENCIJA!G72","v":"Pominat rok"},{"$f":"EVIDENCIJA!Z72","v":0},{"$f":"EVIDENCIJA!AA72","v":0},{"$f":"EVIDENCIJA!I72","v":0},{"$f":"EVIDENCIJA!AB72","v":0}]
[{"$f":"EVIDENCIJA!A73","v":""},{"$f":"EVIDENCIJA!B73","v":0},{"$f":"EVIDENCIJA!C73","v":0},{"$f":"EVIDENCIJA!H73","v":0},{"$f":"EVIDENCIJA!E73","v":"00:00:00"},{"$f":"EVIDENCIJA!F73","v":"00:00:00"},{"$f":"EVIDENCIJA!G73","v":"Pominat rok"},{"$f":"EVIDENCIJA!Z73","v":0},{"$f":"EVIDENCIJA!AA73","v":0},{"$f":"EVIDENCIJA!I73","v":0},{"$f":"EVIDENCIJA!AB73","v":0}]
[{"$f":"EVIDENCIJA!A74","v":""},{"$f":"EVIDENCIJA!B74","v":0},{"$f":"EVIDENCIJA!C74","v":0},{"$f":"EVIDENCIJA!H74","v":0},{"$f":"EVIDENCIJA!E74","v":"00:00:00"},{"$f":"EVIDENCIJA!F74","v":"00:00:00"},{"$f":"EVIDENCIJA!G74","v":"Pominat rok"},{"$f":"EVIDENCIJA!Z74","v":0},{"$f":"EVIDENCIJA!AA74","v":0},{"$f":"EVIDENCIJA!I74","v":0},{"$f":"EVIDENCIJA!AB74","v":0}]
[{"$f":"EVIDENCIJA!A75","v":""},{"$f":"EVIDENCIJA!B75","v":0},{"$f":"EVIDENCIJA!C75","v":0},{"$f":"EVIDENCIJA!H75","v":0},{"$f":"EVIDENCIJA!E75","v":"00:00:00"},{"$f":"EVIDENCIJA!F75","v":"00:00:00"},{"$f":"EVIDENCIJA!G75","v":"Pominat rok"},{"$f":"EVIDENCIJA!Z75","v":0},{"$f":"EVIDENCIJA!AA75","v":0},{"$f":"EVIDENCIJA!I75","v":0},{"$f":"EVIDENCIJA!AB75","v":0}]
[{"$f":"EVIDENCIJA!A76","v":""},{"$f":"EVIDENCIJA!B76","v":0},{"$f":"EVIDENCIJA!C76","v":0},{"$f":"EVIDENCIJA!H76","v":0},{"$f":"EVIDENCIJA!E76","v":"00:00:00"},{"$f":"EVIDENCIJA!F76","v":"00:00:00"},{"$f":"EVIDENCIJA!G76","v":"Pominat rok"},{"$f":"EVIDENCIJA!Z76","v":0},{"$f":"EVIDENCIJA!AA76","v":0},{"$f":"EVIDENCIJA!I76","v":0},{"$f":"EVIDENCIJA!AB76","v":0}]
[{"$f":"EVIDENCIJA!A77","v":""},{"$f":"EVIDENCIJA!B77","v":0},{"$f":"EVIDENCIJA!C77","v":0},{"$f":"EVIDENCIJA!H77","v":0},{"$f":"EVIDENCIJA!E77","v":"00:00:00"},{"$f":"EVIDENCIJA!F77","v":"00:00:00"},{"$f":"EVIDENCIJA!G77","v":"Pominat rok"},{"$f":"EVIDENCIJA!Z77","v":0},{"$f":"EVIDENCIJA!AA77","v":0},{"$f":"EVIDENCIJA!I77","v":0},{"$f":"EVIDENCIJA!AB77","v":0}]
[{"$f":"EVIDENCIJA!A78","v":""},{"$f":"EVIDENCIJA!B78","v":0},{"$f":"EVIDENCIJA!C78","v":0},{"$f":"EVIDENCIJA!H78","v":0},{"$f":"EVIDENCIJA!E78","v":"00:00:00"},{"$f":"EVIDENCIJA!F78","v":"00:00:00"},{"$f":"EVIDENCIJA!G78","v":"Pominat rok"},{"$f":"EVIDENCIJA!Z78","v":0},{"$f":"EVIDENCIJA!AA78","v":0},{"$f":"EVIDENCIJA!I78","v":0},{"$f":"EVIDENCIJA!AB78","v":0}]
[{"$f":"EVIDENCIJA!A79","v":""},{"$f":"EVIDENCIJA!B79","v":0},{"$f":"EVIDENCIJA!C79","v":0},{"$f":"EVIDENCIJA!H79","v":0},{"$f":"EVIDENCIJA!E79","v":"00:00:00"},{"$f":"EVIDENCIJA!F79","v":"00:00:00"},{"$f":"EVIDENCIJA!G79","v":"Pominat rok"},{"$f":"EVIDENCIJA!Z79","v":0},{"$f":"EVIDENCIJA!AA79","v":0},{"$f":"EVIDENCIJA!I79","v":0},{"$f":"EVIDENCIJA!AB79","v":0}]
[{"$f":"EVIDENCIJA!A80","v":""},{"$f":"EVIDENCIJA!B80","v":0},{"$f":"EVIDENCIJA!C80","v":0},{"$f":"EVIDENCIJA!H80","v":0},{"$f":"EVIDENCIJA!E80","v":"00:00:00"},{"$f":"EVIDENCIJA!F80","v":"00:00:00"},{"$f":"EVIDENCIJA!G80","v":"Pominat rok"},{"$f":"EVIDENCIJA!Z80","v":0},{"$f":"EVIDENCIJA!AA80","v":0},{"$f":"EVIDENCIJA!I80","v":0},{"$f":"EVIDENCIJA!AB80","v":0}]
[{"$f":"EVIDENCIJA!A81","v":""},{"$f":"EVIDENCIJA!B81","v":0},{"$f":"EVIDENCIJA!C81","v":0},{"$f":"EVIDENCIJA!H81","v":0},{"$f":"EVIDENCIJA!E81","v":"00:00:00"},{"$f":"EVIDENCIJA!F81","v":"00:00:00"},{"$f":"EVIDENCIJA!G81","v":"Pominat rok"},{"$f":"EVIDENCIJA!Z81","v":0},{"$f":"EVIDENCIJA!AA81","v":0},{"$f":"EVIDENCIJA!I81","v":0},{"$f":"EVIDENCIJA!AB81","v":0}]
[{"$f":"EVIDENCIJA!A82","v":""},{"$f":"EVIDENCIJA!B82","v":0},{"$f":"EVIDENCIJA!C82","v":0},{"$f":"EVIDENCIJA!H82","v":0},{"$f":"EVIDENCIJA!E82","v":"00:00:00"},{"$f":"EVIDENCIJA!F82","v":"00:00:00"},{"$f":"EVIDENCIJA!G82","v":"Pominat rok"},{"$f":"EVIDENCIJA!Z82","v":0},{"$f":"EVIDENCIJA!AA82","v":0},{"$f":"EVIDENCIJA!I82","v":0},{"$f":"EVIDENCIJA!AB82","v":0}]
[{"$f":"EVIDENCIJA!A83","v":""},{"$f":"EVIDENCIJA!B83","v":0},{"$f":"EVIDENCIJA!C83","v":0},{"$f":"EVIDENCIJA!H83","v":0},{"$f":"EVIDENCIJA!E83","v":"00:00:00"},{"$f":"EVIDENCIJA!F83","v":"00:00:00"},{"$f":"EVIDENCIJA!G83","v":"Pominat rok"},{"$f":"EVIDENCIJA!Z83","v":0},{"$f":"EVIDENCIJA!AA83","v":0},{"$f":"EVIDENCIJA!I83","v":0},{"$f":"EVIDENCIJA!AB83","v":0}]
[{"$f":"EVIDENCIJA!A84","v":""},{"$f":"EVIDENCIJA!B84","v":0},{"$f":"EVIDENCIJA!C84","v":0},{"$f":"EVIDENCIJA!H84","v":0},{"$f":"EVIDENCIJA!E84","v":"00:00:00"},{"$f":"EVIDENCIJA!F84","v":"00:00:00"},{"$f":"EVIDENCIJA!G84","v":"Pominat rok"},{"$f":"EVIDENCIJA!Z84","v":0},{"$f":"EVIDENCIJA!AA84","v":0},{"$f":"EVIDENCIJA!I84","v":0},{"$f":"EVIDENCIJA!AB84","v":0}]
[{"$f":"EVIDENCIJA!A85","v":""},{"$f":"EVIDENCIJA!B85","v":0},{"$f":"EVIDENCIJA!C85","v":0},{"$f":"EVIDENCIJA!H85","v":0},{"$f":"EVIDENCIJA!E85","v":"00:00:00"},{"$f":"EVIDENCIJA!F85","v":"00:00:00"},{"$f":"EVIDENCIJA!G85","v":"Pominat rok"},{"$f":"EVIDENCIJA!Z85","v":0},{"$f":"EVIDENCIJA!AA85","v":0},{"$f":"EVIDENCIJA!I85","v":0},{"$f":"EVIDENCIJA!AB85","v":0}]
[{"$f":"EVIDENCIJA!A86","v":""},{"$f":"EVIDENCIJA!B86","v":0},{"$f":"EVIDENCIJA!C86","v":0},{"$f":"EVIDENCIJA!H86","v":0},{"$f":"EVIDENCIJA!E86","v":"00:00:00"},{"$f":"EVIDENCIJA!F86","v":"00:00:00"},{"$f":"EVIDENCIJA!G86","v":"Pominat rok"},{"$f":"EVIDENCIJA!Z86","v":0},{"$f":"EVIDENCIJA!AA86","v":0},{"$f":"EVIDENCIJA!I86","v":0},{"$f":"EVIDENCIJA!AB86","v":0}]
[{"$f":"EVIDENCIJA!A87","v":""},{"$f":"EVIDENCIJA!B87","v":0},{"$f":"EVIDENCIJA!C87","v":0},{"$f":"EVIDENCIJA!H87","v":0},{"$f":"EVIDENCIJA!E87","v":"00:00:00"},{"$f":"EVIDENCIJA!F87","v":"00:00:00"},{"$f":"EVIDENCIJA!G87","v":"Pominat rok"},{"$f":"EVIDENCIJA!Z87","v":0},{"$f":"EVIDENCIJA!AA87","v":0},{"$f":"EVIDENCIJA!I87","v":0},{"$f":"EVIDENCIJA!AB87","v":0}]
[{"$f":"EVIDENCIJA!A88","v":""},{"$f":"EVIDENCIJA!B88","v":0},{"$f":"EVIDENCIJA!C88","v":0},{"$f":"EVIDENCIJA!H88","v":0},{"$f":"EVIDENCIJA!E88","v":"00:00:00"},{"$f":"EVIDENCIJA!F88","v":"00:00:00"},{"$f":"EVIDENCIJA!G88","v":"Pominat rok"},{"$f":"EVIDENCIJA!Z88","v":0},{"$f":"EVIDENCIJA!AA88","v":0},{"$f":"EVIDENCIJA!I88","v":0},{"$f":"EVIDENCIJA!AB88","v":0}]
[{"$f":"EVIDENCIJA!A89","v":""},{"$f":"EVIDENCIJA!B89","v":0},{"$f":"EVIDENCIJA!C89","v":0},{"$f":"EVIDENCIJA!H89","v":0},{"$f":"EVIDENCIJA!E89","v":"00:00:00"},{"$f":"EVIDENCIJA!F89","v":"00:00:00"},{"$f":"EVIDENCIJA!G89","v":"Pominat rok"},{"$f":"EVIDENCIJA!Z89","v":0},{"$f":"EVIDENCIJA!AA89","v":0},{"$f":"EVIDENCIJA!I89","v":0},{"$f":"EVIDENCIJA!AB89","v":0}]
[{"$f":"EVIDENCIJA!A90","v":""},{"$f":"EVIDENCIJA!B90","v":0},{"$f":"EVIDENCIJA!C90","v":0},{"$f":"EVIDENCIJA!H90","v":0},{"$f":"EVIDENCIJA!E90","v":"00:00:00"},{"$f":"EVIDENCIJA!F90","v":"00:00:00"},{"$f":"EVIDENCIJA!G90","v":"Pominat rok"},{"$f":"EVIDENCIJA!Z90","v":0},{"$f":"EVIDENCIJA!AA90","v":0},{"$f":"EVIDENCIJA!I90","v":0},{"$f":"EVIDENCIJA!AB90","v":0}]
[{"$f":"EVIDENCIJA!A91","v":""},{"$f":"EVIDENCIJA!B91","v":0},{"$f":"EVIDENCIJA!C91","v":0},{"$f":"EVIDENCIJA!H91","v":0},{"$f":"EVIDENCIJA!E91","v":"00:00:00"},{"$f":"EVIDENCIJA!F91","v":"00:00:00"},{"$f":"EVIDENCIJA!G91","v":"Pominat rok"},{"$f":"EVIDENCIJA!Z91","v":0},{"$f":"EVIDENCIJA!AA91","v":0},{"$f":"EVIDENCIJA!I91","v":0},{"$f":"EVIDENCIJA!AB91","v":0}]
[{"$f":"EVIDENCIJA!A92","v":""},{"$f":"EVIDENCIJA!B92","v":0},{"$f":"EVIDENCIJA!C92","v":0},{"$f":"EVIDENCIJA!H92","v":0},{"$f":"EVIDENCIJA!E92","v":"00:00:00"},{"$f":"EVIDENCIJA!F92","v":"00:00:00"},{"$f":"EVIDENCIJA!G92","v":"Pominat rok"},{"$f":"EVIDENCIJA!Z92","v":0},{"$f":"EVIDENCIJA!AA92","v":0},{"$f":"EVIDENCIJA!I92","v":0},{"$f":"EVIDENCIJA!AB92","v":0}]
[{"$f":"EVIDENCIJA!A93","v":""},{"$f":"EVIDENCIJA!B93","v":0},{"$f":"EVIDENCIJA!C93","v":0},{"$f":"EVIDENCIJA!H93","v":0},{"$f":"EVIDENCIJA!E93","v":"00:00:00"},{"$f":"EVIDENCIJA!F93","v":"00:00:00"},{"$f":"EVIDENCIJA!G93","v":"Pominat rok"},{"$f":"EVIDENCIJA!Z93","v":0},{"$f":"EVIDENCIJA!AA93","v":0},{"$f":"EVIDENCIJA!I93","v":0},{"$f":"EVIDENCIJA!AB93","v":0}]
[{"$f":"EVIDENCIJA!A94","v":""},{"$f":"EVIDENCIJA!B94","v":0},{"$f":"EVIDENCIJA!C94","v":0},{"$f":"EVIDENCIJA!H94","v":0},{"$f":"EVIDENCIJA!E94","v":"00:00:00"},{"$f":"EVIDENCIJA!F94","v":"00:00:00"},{"$f":"EVIDENCIJA!G94","v":"Pominat rok"},{"$f":"EVIDENCIJA!Z94","v":0},{"$f":"EVIDENCIJA!AA94","v":0},{"$f":"EVIDENCIJA!I94","v":0},{"$f":"EVIDENCIJA!AB94","v":0}]
[{"$f":"EVIDENCIJA!A95","v":""},{"$f":"EVIDENCIJA!B95","v":0},{"$f":"EVIDENCIJA!C95","v":0},{"$f":"EVIDENCIJA!H95","v":0},{"$f":"EVIDENCIJA!E95","v":"00:00:00"},{"$f":"EVIDENCIJA!F95","v":"00:00:00"},{"$f":"EVIDENCIJA!G95","v":"Pominat rok"},{"$f":"EVIDENCIJA!Z95","v":0},{"$f":"EVIDENCIJA!AA95","v":0},{"$f":"EVIDENCIJA!I95","v":0},{"$f":"EVIDENCIJA!AB95","v":0}]
[{"$f":"EVIDENCIJA!A96","v":""},{"$f":"EVIDENCIJA!B96","v":0},{"$f":"EVIDENCIJA!C96","v":0},{"$f":"EVIDENCIJA!H96","v":0},{"$f":"EVIDENCIJA!E96","v":"00:00:00"},{"$f":"EVIDENCIJA!F96","v":"00:00:00"},{"$f":"EVIDENCIJA!G96","v":"Pominat rok"},{"$f":"EVIDENCIJA!Z96","v":0},{"$f":"EVIDENCIJA!AA96","v":0},{"$f":"EVIDENCIJA!I96","v":0},{"$f":"EVIDENCIJA!AB96","v":0}]
[{"$f":"EVIDENCIJA!A97","v":""},{"$f":"EVIDENCIJA!B97","v":0},{"$f":"EVIDENCIJA!C97","v":0},{"$f":"EVIDENCIJA!H97","v":0},{"$f":"EVIDENCIJA!E97","v":"00:00:00"},{"$f":"EVIDENCIJA!F97","v":"00:00:00"},{"$f":"EVIDENCIJA!G97","v":"Pominat rok"},{"$f":"EVIDENCIJA!Z97","v":0},{"$f":"EVIDENCIJA!AA97","v":0},{"$f":"EVIDENCIJA!I97","v":0},{"$f":"EVIDENCIJA!AB97","v":0}]
[{"$f":"EVIDENCIJA!A98","v":""},{"$f":"EVIDENCIJA!B98","v":0},{"$f":"EVIDENCIJA!C98","v":0},{"$f":"EVIDENCIJA!H98","v":0},{"$f":"EVIDENCIJA!E98","v":"00:00:00"},{"$f":"EVIDENCIJA!F98","v":"00:00:00"},{"$f":"EVIDENCIJA!G98","v":"Pominat rok"},{"$f":"EVIDENCIJA!Z98","v":0},{"$f":"EVIDENCIJA!AA98","v":0},{"$f":"EVIDENCIJA!I98","v":0},{"$f":"EVIDENCIJA!AB98","v":0}]
[{"$f":"EVIDENCIJA!A99","v":""},{"$f":"EVIDENCIJA!B99","v":0},{"$f":"EVIDENCIJA!C99","v":0},{"$f":"EVIDENCIJA!H99","v":0},{"$f":"EVIDENCIJA!E99","v":"00:00:00"},{"$f":"EVIDENCIJA!F99","v":"00:00:00"},{"$f":"EVIDENCIJA!G99","v":"Pominat rok"},{"$f":"EVIDENCIJA!Z99","v":0},{"$f":"EVIDENCIJA!AA99","v":0},{"$f":"EVIDENCIJA!I99","v":0},{"$f":"EVIDENCIJA!AB99","v":0}]
[{"$f":"EVIDENCIJA!A100","v":""},{"$f":"EVIDENCIJA!B100","v":0},{"$f":"EVIDENCIJA!C100","v":0},{"$f":"EVIDENCIJA!H100","v":0},{"$f":"EVIDENCIJA!E100","v":"00:00:00"},{"$f":"EVIDENCIJA!F100","v":"00:00:00"},{"$f":"EVIDENCIJA!G100","v":"Pominat rok"},{"$f":"EVIDENCIJA!Z100","v":0},{"$f":"EVIDENCIJA!AA100","v":0},{"$f":"EVIDENCIJA!I100","v":0},{"$f":"EVIDENCIJA!AB100","v":0}]
[{"$f":"EVIDENCIJA!A101","v":""},{"$f":"EVIDENCIJA!B101","v":0},{"$f":"EVIDENCIJA!C101","v":0},{"$f":"EVIDENCIJA!H101","v":0},{"$f":"EVIDENCIJA!E101","v":"00:00:00"},{"$f":"EVIDENCIJA!F101","v":"00:00:00"},{"$f":"EVIDENCIJA!G101","v":"Pominat rok"},{"$f":"EVIDENCIJA!Z101","v":0},{"$f":"EVIDENCIJA!AA101","v":0},{"$f":"EVIDENCIJA!I101","v":0},{"$f":"EVIDENCIJA!AB101","v":0}]
[{"$f":"EVIDENCIJA!A102","v":""},{"$f":"EVIDENCIJA!B102","v":0},{"$f":"EVIDENCIJA!C102","v":0},{"$f":"EVIDENCIJA!H102","v":0},{"$f":"EVIDENCIJA!E102","v":"00:00:00"},{"$f":"EVIDENCIJA!F102","v":"00:00:00"},{"$f":"EVIDENCIJA!G102","v":"Pominat rok"},{"$f":"EVIDENCIJA!Z102","v":0},{"$f":"EVIDENCIJA!AA102","v":0},{"$f":"EVIDENCIJA!I102","v":0},{"$f":"EVIDENCIJA!AB102","v":0}]
[{"$f":"EVIDENCIJA!A103","v":""},{"$f":"EVIDENCIJA!B103","v":0},{"$f":"EVIDENCIJA!C103","v":0},{"$f":"EVIDENCIJA!H103","v":0},{"$f":"EVIDENCIJA!E103","v":"00:00:00"},{"$f":"EVIDENCIJA!F103","v":"00:00:00"},{"$f":"EVIDENCIJA!G103","v":"Pominat rok"},{"$f":"EVIDENCIJA!Z103","v":0},{"$f":"EVIDENCIJA!AA103","v":0},{"$f":"EVIDENCIJA!I103","v":0},{"$f":"EVIDENCIJA!AB103","v":0}]
[{"$f":"EVIDENCIJA!A104","v":""},{"$f":"EVIDENCIJA!B104","v":0},{"$f":"EVIDENCIJA!C104","v":0},{"$f":"EVIDENCIJA!H104","v":0},{"$f":"EVIDENCIJA!E104","v":"00:00:00"},{"$f":"EVIDENCIJA!F104","v":"00:00:00"},{"$f":"EVIDENCIJA!G104","v":"Pominat rok"},{"$f":"EVIDENCIJA!Z104","v":0},{"$f":"EVIDENCIJA!AA104","v":0},{"$f":"EVIDENCIJA!I104","v":0},{"$f":"EVIDENCIJA!AB104","v":0}]
[{"$f":"EVIDENCIJA!A105","v":""},{"$f":"EVIDENCIJA!B105","v":0},{"$f":"EVIDENCIJA!C105","v":0},{"$f":"EVIDENCIJA!H105","v":0},{"$f":"EVIDENCIJA!E105","v":"00:00:00"},{"$f":"EVIDENCIJA!F105","v":"00:00:00"},{"$f":"EVIDENCIJA!G105","v":"Pominat rok"},{"$f":"EVIDENCIJA!Z105","v":0},{"$f":"EVIDENCIJA!AA105","v":0},{"$f":"EVIDENCIJA!I105","v":0},{"$f":"EVIDENCIJA!AB105","v":0}]
[{"$f":"EVIDENCIJA!A106","v":""},{"$f":"EVIDENCIJA!B106","v":0},{"$f":"EVIDENCIJA!C106","v":0},{"$f":"EVIDENCIJA!H106","v":0},{"$f":"EVIDENCIJA!E106","v":"00:00:00"},{"$f":"EVIDENCIJA!F106","v":"00:00:00"},{"$f":"EVIDENCIJA!G106","v":"Pominat rok"},{"$f":"EVIDENCIJA!Z106","v":0},{"$f":"EVIDENCIJA!AA106","v":0},{"$f":"EVIDENCIJA!I106","v":0},{"$f":"EVIDENCIJA!AB106","v":0}]
[{"$f":"EVIDENCIJA!A107","v":""},{"$f":"EVIDENCIJA!B107","v":0},{"$f":"EVIDENCIJA!C107","v":0},{"$f":"EVIDENCIJA!H107","v":0},{"$f":"EVIDENCIJA!E107","v":"00:00:00"},{"$f":"EVIDENCIJA!F107","v":"00:00:00"},{"$f":"EVIDENCIJA!G107","v":"Pominat rok"},{"$f":"EVIDENCIJA!Z107","v":0},{"$f":"EVIDENCIJA!AA107","v":0},{"$f":"EVIDENCIJA!I107","v":0},{"$f":"EVIDENCIJA!AB107","v":0}]
[{"$f":"EVIDENCIJA!A108","v":""},{"$f":"EVIDENCIJA!B108","v":0},{"$f":"EVIDENCIJA!C108","v":0},{"$f":"EVIDENCIJA!H108","v":0},{"$f":"EVIDENCIJA!E108","v":"00:00:00"},{"$f":"EVIDENCIJA!F108","v":"00:00:00"},{"$f":"EVIDENCIJA!G108","v":"Pominat rok"},{"$f":"EVIDENCIJA!Z108","v":0},{"$f":"EVIDENCIJA!AA108","v":0},{"$f":"EVIDENCIJA!I108","v":0},{"$f":"EVIDENCIJA!AB108","v":0}]
[{"$f":"EVIDENCIJA!A109","v":""},{"$f":"EVIDENCIJA!B109","v":0},{"$f":"EVIDENCIJA!C109","v":0},{"$f":"EVIDENCIJA!H109","v":0},{"$f":"EVIDENCIJA!E109","v":"00:00:00"},{"$f":"EVIDENCIJA!F109","v":"00:00:00"},{"$f":"EVIDENCIJA!G109","v":"Pominat rok"},{"$f":"EVIDENCIJA!Z109","v":0},{"$f":"EVIDENCIJA!AA109","v":0},{"$f":"EVIDENCIJA!I109","v":0},{"$f":"EVIDENCIJA!AB109","v":0}]
[{"$f":"EVIDENCIJA!A110","v":""},{"$f":"EVIDENCIJA!B110","v":0},{"$f":"EVIDENCIJA!C110","v":0},{"$f":"EVIDENCIJA!H110","v":0},{"$f":"EVIDENCIJA!E110","v":"00:00:00"},{"$f":"EVIDENCIJA!F110","v":"00:00:00"},{"$f":"EVIDENCIJA!G110","v":"Pominat rok"},{"$f":"EVIDENCIJA!Z110","v":0},{"$f":"EVIDENCIJA!AA110","v":0},{"$f":"EVIDENCIJA!I110","v":0},{"$f":"EVIDENCIJA!AB110","v":0}]
[{"$f":"EVIDENCIJA!A111","v":""},{"$f":"EVIDENCIJA!B111","v":0},{"$f":"EVIDENCIJA!C111","v":0},{"$f":"EVIDENCIJA!H111","v":0},{"$f":"EVIDENCIJA!E111","v":"00:00:00"},{"$f":"EVIDENCIJA!F111","v":"00:00:00"},{"$f":"EVIDENCIJA!G111","v":"Pominat rok"},{"$f":"EVIDENCIJA!Z111","v":0},{"$f":"EVIDENCIJA!AA111","v":0},{"$f":"EVIDENCIJA!I111","v":0},{"$f":"EVIDENCIJA!AB111","v":0}]
[{"$f":"EVIDENCIJA!A112","v":""},{"$f":"EVIDENCIJA!B112","v":0},{"$f":"EVIDENCIJA!C112","v":0},{"$f":"EVIDENCIJA!H112","v":0},{"$f":"EVIDENCIJA!E112","v":"00:00:00"},{"$f":"EVIDENCIJA!F112","v":"00:00:00"},{"$f":"EVIDENCIJA!G112","v":"Pominat rok"},{"$f":"EVIDENCIJA!Z112","v":0},{"$f":"EVIDENCIJA!AA112","v":0},{"$f":"EVIDENCIJA!I112","v":0},{"$f":"EVIDENCIJA!AB112","v":0}]
[{"$f":"EVIDENCIJA!A113","v":""},{"$f":"EVIDENCIJA!B113","v":0},{"$f":"EVIDENCIJA!C113","v":0},{"$f":"EVIDENCIJA!H113","v":0},{"$f":"EVIDENCIJA!E113","v":"00:00:00"},{"$f":"EVIDENCIJA!F113","v":"00:00:00"},{"$f":"EVIDENCIJA!G113","v":"Pominat rok"},{"$f":"EVIDENCIJA!Z113","v":0},{"$f":"EVIDENCIJA!AA113","v":0},{"$f":"EVIDENCIJA!I113","v":0},{"$f":"EVIDENCIJA!AB113","v":0}]
[{"$f":"EVIDENCIJA!A114","v":""},{"$f":"EVIDENCIJA!B114","v":0},{"$f":"EVIDENCIJA!C114","v":0},{"$f":"EVIDENCIJA!H114","v":0},{"$f":"EVIDENCIJA!E114","v":"00:00:00"},{"$f":"EVIDENCIJA!F114","v":"00:00:00"},{"$f":"EVIDENCIJA!G114","v":"Pominat rok"},{"$f":"EVIDENCIJA!Z114","v":0},{"$f":"EVIDENCIJA!AA114","v":0},{"$f":"EVIDENCIJA!I114","v":0},{"$f":"EVIDENCIJA!AB114","v":0}]
[{"$f":"EVIDENCIJA!A115","v":""},{"$f":"EVIDENCIJA!B115","v":0},{"$f":"EVIDENCIJA!C115","v":0},{"$f":"EVIDENCIJA!H115","v":0},{"$f":"EVIDENCIJA!E115","v":"00:00:00"},{"$f":"EVIDENCIJA!F115","v":"00:00:00"},{"$f":"EVIDENCIJA!G115","v":"Pominat rok"},{"$f":"EVIDENCIJA!Z115","v":0},{"$f":"EVIDENCIJA!AA115","v":0},{"$f":"EVIDENCIJA!I115","v":0},{"$f":"EVIDENCIJA!AB115","v":0}]
[{"$f":"EVIDENCIJA!A116","v":""},{"$f":"EVIDENCIJA!B116","v":0},{"$f":"EVIDENCIJA!C116","v":0},{"$f":"EVIDENCIJA!H116","v":0},{"$f":"EVIDENCIJA!E116","v":"00:00:00"},{"$f":"EVIDENCIJA!F116","v":"00:00:00"},{"$f":"EVIDENCIJA!G116","v":"Pominat rok"},{"$f":"EVIDENCIJA!Z116","v":0},{"$f":"EVIDENCIJA!AA116","v":0},{"$f":"EVIDENCIJA!I116","v":0},{"$f":"EVIDENCIJA!AB116","v":0}]
[{"$f":"EVIDENCIJA!A117","v":""},{"$f":"EVIDENCIJA!B117","v":0},{"$f":"EVIDENCIJA!C117","v":0},{"$f":"EVIDENCIJA!H117","v":0},{"$f":"EVIDENCIJA!E117","v":"00:00:00"},{"$f":"EVIDENCIJA!F117","v":"00:00:00"},{"$f":"EVIDENCIJA!G117","v":"Pominat rok"},{"$f":"EVIDENCIJA!Z117","v":0},{"$f":"EVIDENCIJA!AA117","v":0},{"$f":"EVIDENCIJA!I117","v":0},{"$f":"EVIDENCIJA!AB117","v":0}]
[{"$f":"EVIDENCIJA!A118","v":""},{"$f":"EVIDENCIJA!B118","v":0},{"$f":"EVIDENCIJA!C118","v":0},{"$f":"EVIDENCIJA!H118","v":0},{"$f":"EVIDENCIJA!E118","v":"00:00:00"},{"$f":"EVIDENCIJA!F118","v":"00:00:00"},{"$f":"EVIDENCIJA!G118","v":"Pominat rok"},{"$f":"EVIDENCIJA!Z118","v":0},{"$f":"EVIDENCIJA!AA118","v":0},{"$f":"EVIDENCIJA!I118","v":0},{"$f":"EVIDENCIJA!AB118","v":0}]
[{"$f":"EVIDENCIJA!A119","v":""},{"$f":"EVIDENCIJA!B119","v":0},{"$f":"EVIDENCIJA!C119","v":0},{"$f":"EVIDENCIJA!H119","v":0},{"$f":"EVIDENCIJA!E119","v":"00:00:00"},{"$f":"EVIDENCIJA!F119","v":"00:00:00"},{"$f":"EVIDENCIJA!G119","v":"Pominat rok"},{"$f":"EVIDENCIJA!Z119","v":0},{"$f":"EVIDENCIJA!AA119","v":0},{"$f":"EVIDENCIJA!I119","v":0},{"$f":"EVIDENCIJA!AB119","v":0}]
[{"$f":"EVIDENCIJA!A120","v":""},{"$f":"EVIDENCIJA!B120","v":0},{"$f":"EVIDENCIJA!C120","v":0},{"$f":"EVIDENCIJA!H120","v":0},{"$f":"EVIDENCIJA!E120","v":"00:00:00"},{"$f":"EVIDENCIJA!F120","v":"00:00:00"},{"$f":"EVIDENCIJA!G120","v":"Pominat rok"},{"$f":"EVIDENCIJA!Z120","v":0},{"$f":"EVIDENCIJA!AA120","v":0},{"$f":"EVIDENCIJA!I120","v":0},{"$f":"EVIDENCIJA!AB120","v":0}]
[{"$f":"EVIDENCIJA!A121","v":""},{"$f":"EVIDENCIJA!B121","v":0},{"$f":"EVIDENCIJA!C121","v":0},{"$f":"EVIDENCIJA!H121","v":0},{"$f":"EVIDENCIJA!E121","v":"00:00:00"},{"$f":"EVIDENCIJA!F121","v":"00:00:00"},{"$f":"EVIDENCIJA!G121","v":"Pominat rok"},{"$f":"EVIDENCIJA!Z121","v":0},{"$f":"EVIDENCIJA!AA121","v":0},{"$f":"EVIDENCIJA!I121","v":0},{"$f":"EVIDENCIJA!AB121","v":0}]
[{"$f":"EVIDENCIJA!A122","v":""},{"$f":"EVIDENCIJA!B122","v":0},{"$f":"EVIDENCIJA!C122","v":0},{"$f":"EVIDENCIJA!H122","v":0},{"$f":"EVIDENCIJA!E122","v":"00:00:00"},{"$f":"EVIDENCIJA!F122","v":"00:00:00"},{"$f":"EVIDENCIJA!G122","v":"Pominat rok"},{"$f":"EVIDENCIJA!Z122","v":0},{"$f":"EVIDENCIJA!AA122","v":0},{"$f":"EVIDENCIJA!I122","v":0},{"$f":"EVIDENCIJA!AB122","v":0}]
[{"$f":"EVIDENCIJA!A123","v":""},{"$f":"EVIDENCIJA!B123","v":0},{"$f":"EVIDENCIJA!C123","v":0},{"$f":"EVIDENCIJA!H123","v":0},{"$f":"EVIDENCIJA!E123","v":"00:00:00"},{"$f":"EVIDENCIJA!F123","v":"00:00:00"},{"$f":"EVIDENCIJA!G123","v":"Pominat rok"},{"$f":"EVIDENCIJA!Z123","v":0},{"$f":"EVIDENCIJA!AA123","v":0},{"$f":"EVIDENCIJA!I123","v":0},{"$f":"EVIDENCIJA!AB123","v":0}]
[{"$f":"EVIDENCIJA!A124","v":""},{"$f":"EVIDENCIJA!B124","v":0},{"$f":"EVIDENCIJA!C124","v":0},{"$f":"EVIDENCIJA!H124","v":0},{"$f":"EVIDENCIJA!E124","v":"00:00:00"},{"$f":"EVIDENCIJA!F124","v":"00:00:00"},{"$f":"EVIDENCIJA!G124","v":"Pominat rok"},{"$f":"EVIDENCIJA!Z124","v":0},{"$f":"EVIDENCIJA!AA124","v":0},{"$f":"EVIDENCIJA!I124","v":0},{"$f":"EVIDENCIJA!AB124","v":0}]
[{"$f":"EVIDENCIJA!A125","v":""},{"$f":"EVIDENCIJA!B125","v":0},{"$f":"EVIDENCIJA!C125","v":0},{"$f":"EVIDENCIJA!H125","v":0},{"$f":"EVIDENCIJA!E125","v":"00:00:00"},{"$f":"EVIDENCIJA!F125","v":"00:00:00"},{"$f":"EVIDENCIJA!G125","v":"Pominat rok"},{"$f":"EVIDENCIJA!Z125","v":0},{"$f":"EVIDENCIJA!AA125","v":0},{"$f":"EVIDENCIJA!I125","v":0},{"$f":"EVIDENCIJA!AB125","v":0}]
[{"$f":"EVIDENCIJA!A126","v":""},{"$f":"EVIDENCIJA!B126","v":0},{"$f":"EVIDENCIJA!C126","v":0},{"$f":"EVIDENCIJA!H126","v":0},{"$f":"EVIDENCIJA!E126","v":"00:00:00"},{"$f":"EVIDENCIJA!F126","v":"00:00:00"},{"$f":"EVIDENCIJA!G126","v":"Pominat rok"},{"$f":"EVIDENCIJA!Z126","v":0},{"$f":"EVIDENCIJA!AA126","v":0},{"$f":"EVIDENCIJA!I126","v":0},{"$f":"EVIDENCIJA!AB126","v":0}]
[{"$f":"EVIDENCIJA!A127","v":""},{"$f":"EVIDENCIJA!B127","v":0},{"$f":"EVIDENCIJA!C127","v":0},{"$f":"EVIDENCIJA!H127","v":0},{"$f":"EVIDENCIJA!E127","v":"00:00:00"},{"$f":"EVIDENCIJA!F127","v":"00:00:00"},{"$f":"EVIDENCIJA!G127","v":"Pominat rok"},{"$f":"EVIDENCIJA!Z127","v":0},{"$f":"EVIDENCIJA!AA127","v":0},{"$f":"EVIDENCIJA!I127","v":0},{"$f":"EVIDENCIJA!AB127","v":0}]
[{"$f":"EVIDENCIJA!A128","v":""},{"$f":"EVIDENCIJA!B128","v":0},{"$f":"EVIDENCIJA!C128","v":0},{"$f":"EVIDENCIJA!H128","v":0},{"$f":"EVIDENCIJA!E128","v":"00:00:00"},{"$f":"EVIDENCIJA!F128","v":"00:00:00"},{"$f":"EVIDENCIJA!G128","v":"Pominat rok"},{"$f":"EVIDENCIJA!Z128","v":0},{"$f":"EVIDENCIJA!AA128","v":0},{"$f":"EVIDENCIJA!I128","v":0},{"$f":"EVIDENCIJA!AB128","v":0}]
[{"$f":"EVIDENCIJA!A129","v":""},{"$f":"EVIDENCIJA!B129","v":0},{"$f":"EVIDENCIJA!C129","v":0},{"$f":"EVIDENCIJA!H129","v":0},{"$f":"EVIDENCIJA!E129","v":"00:00:00"},{"$f":"EVIDENCIJA!F129","v":"00:00:00"},{"$f":"EVIDENCIJA!G129","v":"Pominat rok"},{"$f":"EVIDENCIJA!Z129","v":0},{"$f":"EVIDENCIJA!AA129","v":0},{"$f":"EVIDENCIJA!I129","v":0},{"$f":"EVIDENCIJA!AB129","v":0}]
[{"$f":"EVIDENCIJA!A130","v":""},{"$f":"EVIDENCIJA!B130","v":0},{"$f":"EVIDENCIJA!C130","v":0},{"$f":"EVIDENCIJA!H130","v":0},{"$f":"EVIDENCIJA!E130","v":"00:00:00"},{"$f":"EVIDENCIJA!F130","v":"00:00:00"},{"$f":"EVIDENCIJA!G130","v":"Pominat rok"},{"$f":"EVIDENCIJA!Z130","v":0},{"$f":"EVIDENCIJA!AA130","v":0},{"$f":"EVIDENCIJA!I130","v":0},{"$f":"EVIDENCIJA!AB130","v":0}]
[{"$f":"EVIDENCIJA!A131","v":""},{"$f":"EVIDENCIJA!B131","v":0},{"$f":"EVIDENCIJA!C131","v":0},{"$f":"EVIDENCIJA!H131","v":0},{"$f":"EVIDENCIJA!E131","v":"00:00:00"},{"$f":"EVIDENCIJA!F131","v":"00:00:00"},{"$f":"EVIDENCIJA!G131","v":"Pominat rok"},{"$f":"EVIDENCIJA!Z131","v":0},{"$f":"EVIDENCIJA!AA131","v":0},{"$f":"EVIDENCIJA!I131","v":0},{"$f":"EVIDENCIJA!AB131","v":0}]
[{"$f":"EVIDENCIJA!A132","v":""},{"$f":"EVIDENCIJA!B132","v":0},{"$f":"EVIDENCIJA!C132","v":0},{"$f":"EVIDENCIJA!H132","v":0},{"$f":"EVIDENCIJA!E132","v":"00:00:00"},{"$f":"EVIDENCIJA!F132","v":"00:00:00"},{"$f":"EVIDENCIJA!G132","v":"Pominat rok"},{"$f":"EVIDENCIJA!Z132","v":0},{"$f":"EVIDENCIJA!AA132","v":0},{"$f":"EVIDENCIJA!I132","v":0},{"$f":"EVIDENCIJA!AB132","v":0}]
[{"$f":"EVIDENCIJA!A133","v":""},{"$f":"EVIDENCIJA!B133","v":0},{"$f":"EVIDENCIJA!C133","v":0},{"$f":"EVIDENCIJA!H133","v":0},{"$f":"EVIDENCIJA!E133","v":"00:00:00"},{"$f":"EVIDENCIJA!F133","v":"00:00:00"},{"$f":"EVIDENCIJA!G133","v":"Pominat rok"},{"$f":"EVIDENCIJA!Z133","v":0},{"$f":"EVIDENCIJA!AA133","v":0},{"$f":"EVIDENCIJA!I133","v":0},{"$f":"EVIDENCIJA!AB133","v":0}]
[{"$f":"EVIDENCIJA!A134","v":""},{"$f":"EVIDENCIJA!B134","v":0},{"$f":"EVIDENCIJA!C134","v":0},{"$f":"EVIDENCIJA!H134","v":0},{"$f":"EVIDENCIJA!E134","v":"00:00:00"},{"$f":"EVIDENCIJA!F134","v":"00:00:00"},{"$f":"EVIDENCIJA!G134","v":"Pominat rok"},{"$f":"EVIDENCIJA!Z134","v":0},{"$f":"EVIDENCIJA!AA134","v":0},{"$f":"EVIDENCIJA!I134","v":0},{"$f":"EVIDENCIJA!AB134","v":0}]
[{"$f":"EVIDENCIJA!A135","v":""},{"$f":"EVIDENCIJA!B135","v":0},{"$f":"EVIDENCIJA!C135","v":0},{"$f":"EVIDENCIJA!H135","v":0},{"$f":"EVIDENCIJA!E135","v":"00:00:00"},{"$f":"EVIDENCIJA!F135","v":"00:00:00"},{"$f":"EVIDENCIJA!G135","v":"Pominat rok"},{"$f":"EVIDENCIJA!Z135","v":0},{"$f":"EVIDENCIJA!AA135","v":0},{"$f":"EVIDENCIJA!I135","v":0},{"$f":"EVIDENCIJA!AB135","v":0}]
[{"$f":"EVIDENCIJA!A136","v":""},{"$f":"EVIDENCIJA!B136","v":0},{"$f":"EVIDENCIJA!C136","v":0},{"$f":"EVIDENCIJA!H136","v":0},{"$f":"EVIDENCIJA!E136","v":"00:00:00"},{"$f":"EVIDENCIJA!F136","v":"00:00:00"},{"$f":"EVIDENCIJA!G136","v":"Pominat rok"},{"$f":"EVIDENCIJA!Z136","v":0},{"$f":"EVIDENCIJA!AA136","v":0},{"$f":"EVIDENCIJA!I136","v":0},{"$f":"EVIDENCIJA!AB136","v":0}]
[{"$f":"EVIDENCIJA!A137","v":""},{"$f":"EVIDENCIJA!B137","v":0},{"$f":"EVIDENCIJA!C137","v":0},{"$f":"EVIDENCIJA!H137","v":0},{"$f":"EVIDENCIJA!E137","v":"00:00:00"},{"$f":"EVIDENCIJA!F137","v":"00:00:00"},{"$f":"EVIDENCIJA!G137","v":"Pominat rok"},{"$f":"EVIDENCIJA!Z137","v":0},{"$f":"EVIDENCIJA!AA137","v":0},{"$f":"EVIDENCIJA!I137","v":0},{"$f":"EVIDENCIJA!AB137","v":0}]
[{"$f":"EVIDENCIJA!A138","v":""},{"$f":"EVIDENCIJA!B138","v":0},{"$f":"EVIDENCIJA!C138","v":0},{"$f":"EVIDENCIJA!H138","v":0},{"$f":"EVIDENCIJA!E138","v":"00:00:00"},{"$f":"EVIDENCIJA!F138","v":"00:00:00"},{"$f":"EVIDENCIJA!G138","v":"Pominat rok"},{"$f":"EVIDENCIJA!Z138","v":0},{"$f":"EVIDENCIJA!AA138","v":0},{"$f":"EVIDENCIJA!I138","v":0},{"$f":"EVIDENCIJA!AB138","v":0}]
[{"$f":"EVIDENCIJA!A139","v":""},{"$f":"EVIDENCIJA!B139","v":0},{"$f":"EVIDENCIJA!C139","v":0},{"$f":"EVIDENCIJA!H139","v":0},{"$f":"EVIDENCIJA!E139","v":"00:00:00"},{"$f":"EVIDENCIJA!F139","v":"00:00:00"},{"$f":"EVIDENCIJA!G139","v":"Pominat rok"},{"$f":"EVIDENCIJA!Z139","v":0},{"$f":"EVIDENCIJA!AA139","v":0},{"$f":"EVIDENCIJA!I139","v":0},{"$f":"EVIDENCIJA!AB139","v":0}]
[{"$f":"EVIDENCIJA!A140","v":""},{"$f":"EVIDENCIJA!B140","v":0},{"$f":"EVIDENCIJA!C140","v":0},{"$f":"EVIDENCIJA!H140","v":0},{"$f":"EVIDENCIJA!E140","v":"00:00:00"},{"$f":"EVIDENCIJA!F140","v":"00:00:00"},{"$f":"EVIDENCIJA!G140","v":"Pominat rok"},{"$f":"EVIDENCIJA!Z140","v":0},{"$f":"EVIDENCIJA!AA140","v":0},{"$f":"EVIDENCIJA!I140","v":0},{"$f":"EVIDENCIJA!AB140","v":0}]
[{"$f":"EVIDENCIJA!A141","v":""},{"$f":"EVIDENCIJA!B141","v":0},{"$f":"EVIDENCIJA!C141","v":0},{"$f":"EVIDENCIJA!H141","v":0},{"$f":"EVIDENCIJA!E141","v":"00:00:00"},{"$f":"EVIDENCIJA!F141","v":"00:00:00"},{"$f":"EVIDENCIJA!G141","v":"Pominat rok"},{"$f":"EVIDENCIJA!Z141","v":0},{"$f":"EVIDENCIJA!AA141","v":0},{"$f":"EVIDENCIJA!I141","v":0},{"$f":"EVIDENCIJA!AB141","v":0}]
[{"$f":"EVIDENCIJA!A142","v":""},{"$f":"EVIDENCIJA!B142","v":0},{"$f":"EVIDENCIJA!C142","v":0},{"$f":"EVIDENCIJA!H142","v":0},{"$f":"EVIDENCIJA!E142","v":"00:00:00"},{"$f":"EVIDENCIJA!F142","v":"00:00:00"},{"$f":"EVIDENCIJA!G142","v":"Pominat rok"},{"$f":"EVIDENCIJA!Z142","v":0},{"$f":"EVIDENCIJA!AA142","v":0},{"$f":"EVIDENCIJA!I142","v":0},{"$f":"EVIDENCIJA!AB142","v":0}]
[{"$f":"EVIDENCIJA!A143","v":""},{"$f":"EVIDENCIJA!B143","v":0},{"$f":"EVIDENCIJA!C143","v":0},{"$f":"EVIDENCIJA!H143","v":0},{"$f":"EVIDENCIJA!E143","v":"00:00:00"},{"$f":"EVIDENCIJA!F143","v":"00:00:00"},{"$f":"EVIDENCIJA!G143","v":"Pominat rok"},{"$f":"EVIDENCIJA!Z143","v":0},{"$f":"EVIDENCIJA!AA143","v":0},{"$f":"EVIDENCIJA!I143","v":0},{"$f":"EVIDENCIJA!AB143","v":0}]
[{"$f":"EVIDENCIJA!A144","v":""},{"$f":"EVIDENCIJA!B144","v":0},{"$f":"EVIDENCIJA!C144","v":0},{"$f":"EVIDENCIJA!H144","v":0},{"$f":"EVIDENCIJA!E144","v":"00:00:00"},{"$f":"EVIDENCIJA!F144","v":"00:00:00"},{"$f":"EVIDENCIJA!G144","v":"Pominat rok"},{"$f":"EVIDENCIJA!Z144","v":0},{"$f":"EVIDENCIJA!AA144","v":0},{"$f":"EVIDENCIJA!I144","v":0},{"$f":"EVIDENCIJA!AB144","v":0}]
[{"$f":"EVIDENCIJA!A145","v":""},{"$f":"EVIDENCIJA!B145","v":0},{"$f":"EVIDENCIJA!C145","v":0},{"$f":"EVIDENCIJA!H145","v":0},{"$f":"EVIDENCIJA!E145","v":"00:00:00"},{"$f":"EVIDENCIJA!F145","v":"00:00:00"},{"$f":"EVIDENCIJA!G145","v":"Pominat rok"},{"$f":"EVIDENCIJA!Z145","v":0},{"$f":"EVIDENCIJA!AA145","v":0},{"$f":"EVIDENCIJA!I145","v":0},{"$f":"EVIDENCIJA!AB145","v":0}]
[{"$f":"EVIDENCIJA!A146","v":""},{"$f":"EVIDENCIJA!B146","v":0},{"$f":"EVIDENCIJA!C146","v":0},{"$f":"EVIDENCIJA!H146","v":0},{"$f":"EVIDENCIJA!E146","v":"00:00:00"},{"$f":"EVIDENCIJA!F146","v":"00:00:00"},{"$f":"EVIDENCIJA!G146","v":"Pominat rok"},{"$f":"EVIDENCIJA!Z146","v":0},{"$f":"EVIDENCIJA!AA146","v":0},{"$f":"EVIDENCIJA!I146","v":0},{"$f":"EVIDENCIJA!AB146","v":0}]
[{"$f":"EVIDENCIJA!A147","v":""},{"$f":"EVIDENCIJA!B147","v":0},{"$f":"EVIDENCIJA!C147","v":0},{"$f":"EVIDENCIJA!H147","v":0},{"$f":"EVIDENCIJA!E147","v":"00:00:00"},{"$f":"EVIDENCIJA!F147","v":"00:00:00"},{"$f":"EVIDENCIJA!G147","v":"Pominat rok"},{"$f":"EVIDENCIJA!Z147","v":0},{"$f":"EVIDENCIJA!AA147","v":0},{"$f":"EVIDENCIJA!I147","v":0},{"$f":"EVIDENCIJA!AB147","v":0}]
[{"$f":"EVIDENCIJA!A148","v":""},{"$f":"EVIDENCIJA!B148","v":0},{"$f":"EVIDENCIJA!C148","v":0},{"$f":"EVIDENCIJA!H148","v":0},{"$f":"EVIDENCIJA!E148","v":"00:00:00"},{"$f":"EVIDENCIJA!F148","v":"00:00:00"},{"$f":"EVIDENCIJA!G148","v":"Pominat rok"},{"$f":"EVIDENCIJA!Z148","v":0},{"$f":"EVIDENCIJA!AA148","v":0},{"$f":"EVIDENCIJA!I148","v":0},{"$f":"EVIDENCIJA!AB148","v":0}]
[{"$f":"EVIDENCIJA!A149","v":""},{"$f":"EVIDENCIJA!B149","v":0},{"$f":"EVIDENCIJA!C149","v":0},{"$f":"EVIDENCIJA!H149","v":0},{"$f":"EVIDENCIJA!E149","v":"00:00:00"},{"$f":"EVIDENCIJA!F149","v":"00:00:00"},{"$f":"EVIDENCIJA!G149","v":"Pominat rok"},{"$f":"EVIDENCIJA!Z149","v":0},{"$f":"EVIDENCIJA!AA149","v":0},{"$f":"EVIDENCIJA!I149","v":0},{"$f":"EVIDENCIJA!AB149","v":0}]
[{"$f":"EVIDENCIJA!A150","v":""},{"$f":"EVIDENCIJA!B150","v":0},{"$f":"EVIDENCIJA!C150","v":0},{"$f":"EVIDENCIJA!H150","v":0},{"$f":"EVIDENCIJA!E150","v":"00:00:00"},{"$f":"EVIDENCIJA!F150","v":"00:00:00"},{"$f":"EVIDENCIJA!G150","v":"Pominat rok"},{"$f":"EVIDENCIJA!Z150","v":0},{"$f":"EVIDENCIJA!AA150","v":0},{"$f":"EVIDENCIJA!I150","v":0},{"$f":"EVIDENCIJA!AB150","v":0}]
[{"$f":"EVIDENCIJA!A151","v":""},{"$f":"EVIDENCIJA!B151","v":0},{"$f":"EVIDENCIJA!C151","v":0},{"$f":"EVIDENCIJA!H151","v":0},{"$f":"EVIDENCIJA!E151","v":"00:00:00"},{"$f":"EVIDENCIJA!F151","v":"00:00:00"},{"$f":"EVIDENCIJA!G151","v":"Pominat rok"},{"$f":"EVIDENCIJA!Z151","v":0},{"$f":"EVIDENCIJA!AA151","v":0},{"$f":"EVIDENCIJA!I151","v":0},{"$f":"EVIDENCIJA!AB151","v":0}]
[{"$f":"EVIDENCIJA!A152","v":""},{"$f":"EVIDENCIJA!B152","v":0},{"$f":"EVIDENCIJA!C152","v":0},{"$f":"EVIDENCIJA!H152","v":0},{"$f":"EVIDENCIJA!E152","v":"00:00:00"},{"$f":"EVIDENCIJA!F152","v":"00:00:00"},{"$f":"EVIDENCIJA!G152","v":"Pominat rok"},{"$f":"EVIDENCIJA!Z152","v":0},{"$f":"EVIDENCIJA!AA152","v":0},{"$f":"EVIDENCIJA!I152","v":0},{"$f":"EVIDENCIJA!AB152","v":0}]
[{"$f":"EVIDENCIJA!A153","v":""},{"$f":"EVIDENCIJA!B153","v":0},{"$f":"EVIDENCIJA!C153","v":0},{"$f":"EVIDENCIJA!H153","v":0},{"$f":"EVIDENCIJA!E153","v":"00:00:00"},{"$f":"EVIDENCIJA!F153","v":"00:00:00"},{"$f":"EVIDENCIJA!G153","v":"Pominat rok"},{"$f":"EVIDENCIJA!Z153","v":0},{"$f":"EVIDENCIJA!AA153","v":0},{"$f":"EVIDENCIJA!I153","v":0},{"$f":"EVIDENCIJA!AB153","v":0}]
[{"$f":"EVIDENCIJA!A154","v":""},{"$f":"EVIDENCIJA!B154","v":0},{"$f":"EVIDENCIJA!C154","v":0},{"$f":"EVIDENCIJA!H154","v":0},{"$f":"EVIDENCIJA!E154","v":"00:00:00"},{"$f":"EVIDENCIJA!F154","v":"00:00:00"},{"$f":"EVIDENCIJA!G154","v":"Pominat rok"},{"$f":"EVIDENCIJA!Z154","v":0},{"$f":"EVIDENCIJA!AA154","v":0},{"$f":"EVIDENCIJA!I154","v":0},{"$f":"EVIDENCIJA!AB154","v":0}]
[{"$f":"EVIDENCIJA!A155","v":""},{"$f":"EVIDENCIJA!B155","v":0},{"$f":"EVIDENCIJA!C155","v":0},{"$f":"EVIDENCIJA!H155","v":0},{"$f":"EVIDENCIJA!E155","v":"00:00:00"},{"$f":"EVIDENCIJA!F155","v":"00:00:00"},{"$f":"EVIDENCIJA!G155","v":"Pominat rok"},{"$f":"EVIDENCIJA!Z155","v":0},{"$f":"EVIDENCIJA!AA155","v":0},{"$f":"EVIDENCIJA!I155","v":0},{"$f":"EVIDENCIJA!AB155","v":0}]
[{"$f":"EVIDENCIJA!A156","v":""},{"$f":"EVIDENCIJA!B156","v":0},{"$f":"EVIDENCIJA!C156","v":0},{"$f":"EVIDENCIJA!H156","v":0},{"$f":"EVIDENCIJA!E156","v":"00:00:00"},{"$f":"EVIDENCIJA!F156","v":"00:00:00"},{"$f":"EVIDENCIJA!G156","v":"Pominat rok"},{"$f":"EVIDENCIJA!Z156","v":0},{"$f":"EVIDENCIJA!AA156","v":0},{"$f":"EVIDENCIJA!I156","v":0},{"$f":"EVIDENCIJA!AB156","v":0}]
[{"$f":"EVIDENCIJA!A157","v":""},{"$f":"EVIDENCIJA!B157","v":0},{"$f":"EVIDENCIJA!C157","v":0},{"$f":"EVIDENCIJA!H157","v":0},{"$f":"EVIDENCIJA!E157","v":"00:00:00"},{"$f":"EVIDENCIJA!F157","v":"00:00:00"},{"$f":"EVIDENCIJA!G157","v":"Pominat rok"},{"$f":"EVIDENCIJA!Z157","v":0},{"$f":"EVIDENCIJA!AA157","v":0},{"$f":"EVIDENCIJA!I157","v":0},{"$f":"EVIDENCIJA!AB157","v":0}]
[{"$f":"EVIDENCIJA!A158","v":""},{"$f":"EVIDENCIJA!B158","v":0},{"$f":"EVIDENCIJA!C158","v":0},{"$f":"EVIDENCIJA!H158","v":0},{"$f":"EVIDENCIJA!E158","v":"00:00:00"},{"$f":"EVIDENCIJA!F158","v":"00:00:00"},{"$f":"EVIDENCIJA!G158","v":"Pominat rok"},{"$f":"EVIDENCIJA!Z158","v":0},{"$f":"EVIDENCIJA!AA158","v":0},{"$f":"EVIDENCIJA!I158","v":0},{"$f":"EVIDENCIJA!AB158","v":0}]
[{"$f":"EVIDENCIJA!A159","v":""},{"$f":"EVIDENCIJA!B159","v":0},{"$f":"EVIDENCIJA!C159","v":0},{"$f":"EVIDENCIJA!H159","v":0},{"$f":"EVIDENCIJA!E159","v":"00:00:00"},{"$f":"EVIDENCIJA!F159","v":"00:00:00"},{"$f":"EVIDENCIJA!G159","v":"Pominat rok"},{"$f":"EVIDENCIJA!Z159","v":0},{"$f":"EVIDENCIJA!AA159","v":0},{"$f":"EVIDENCIJA!I159","v":0},{"$f":"EVIDENCIJA!AB159","v":0}]
[{"$f":"EVIDENCIJA!A160","v":""},{"$f":"EVIDENCIJA!B160","v":0},{"$f":"EVIDENCIJA!C160","v":0},{"$f":"EVIDENCIJA!H160","v":0},{"$f":"EVIDENCIJA!E160","v":"00:00:00"},{"$f":"EVIDENCIJA!F160","v":"00:00:00"},{"$f":"EVIDENCIJA!G160","v":"Pominat rok"},{"$f":"EVIDENCIJA!Z160","v":0},{"$f":"EVIDENCIJA!AA160","v":0},{"$f":"EVIDENCIJA!I160","v":0},{"$f":"EVIDENCIJA!AB160","v":0}]
[{"$f":"EVIDENCIJA!A161","v":""},{"$f":"EVIDENCIJA!B161","v":0},{"$f":"EVIDENCIJA!C161","v":0},{"$f":"EVIDENCIJA!H161","v":0},{"$f":"EVIDENCIJA!E161","v":"00:00:00"},{"$f":"EVIDENCIJA!F161","v":"00:00:00"},{"$f":"EVIDENCIJA!G161","v":"Pominat rok"},{"$f":"EVIDENCIJA!Z161","v":0},{"$f":"EVIDENCIJA!AA161","v":0},{"$f":"EVIDENCIJA!I161","v":0},{"$f":"EVIDENCIJA!AB161","v":0}]
[{"$f":"EVIDENCIJA!A162","v":""},{"$f":"EVIDENCIJA!B162","v":0},{"$f":"EVIDENCIJA!C162","v":0},{"$f":"EVIDENCIJA!H162","v":0},{"$f":"EVIDENCIJA!E162","v":"00:00:00"},{"$f":"EVIDENCIJA!F162","v":"00:00:00"},{"$f":"EVIDENCIJA!G162","v":"Pominat rok"},{"$f":"EVIDENCIJA!Z162","v":0},{"$f":"EVIDENCIJA!AA162","v":0},{"$f":"EVIDENCIJA!I162","v":0},{"$f":"EVIDENCIJA!AB162","v":0}]
[{"$f":"EVIDENCIJA!A163","v":""},{"$f":"EVIDENCIJA!B163","v":0},{"$f":"EVIDENCIJA!C163","v":0},{"$f":"EVIDENCIJA!H163","v":0},{"$f":"EVIDENCIJA!E163","v":"00:00:00"},{"$f":"EVIDENCIJA!F163","v":"00:00:00"},{"$f":"EVIDENCIJA!G163","v":"Pominat rok"},{"$f":"EVIDENCIJA!Z163","v":0},{"$f":"EVIDENCIJA!AA163","v":0},{"$f":"EVIDENCIJA!I163","v":0},{"$f":"EVIDENCIJA!AB163","v":0}]
[{"$f":"EVIDENCIJA!A164","v":""},{"$f":"EVIDENCIJA!B164","v":0},{"$f":"EVIDENCIJA!C164","v":0},{"$f":"EVIDENCIJA!H164","v":0},{"$f":"EVIDENCIJA!E164","v":"00:00:00"},{"$f":"EVIDENCIJA!F164","v":"00:00:00"},{"$f":"EVIDENCIJA!G164","v":"Pominat rok"},{"$f":"EVIDENCIJA!Z164","v":0},{"$f":"EVIDENCIJA!AA164","v":0},{"$f":"EVIDENCIJA!I164","v":0},{"$f":"EVIDENCIJA!AB164","v":0}]
[{"$f":"EVIDENCIJA!A165","v":""},{"$f":"EVIDENCIJA!B165","v":0},{"$f":"EVIDENCIJA!C165","v":0},{"$f":"EVIDENCIJA!H165","v":0},{"$f":"EVIDENCIJA!E165","v":"00:00:00"},{"$f":"EVIDENCIJA!F165","v":"00:00:00"},{"$f":"EVIDENCIJA!G165","v":"Pominat rok"},{"$f":"EVIDENCIJA!Z165","v":0},{"$f":"EVIDENCIJA!AA165","v":0},{"$f":"EVIDENCIJA!I165","v":0},{"$f":"EVIDENCIJA!AB165","v":0}]
[{"$f":"EVIDENCIJA!A166","v":""},{"$f":"EVIDENCIJA!B166","v":0},{"$f":"EVIDENCIJA!C166","v":0},{"$f":"EVIDENCIJA!H166","v":0},{"$f":"EVIDENCIJA!E166","v":"00:00:00"},{"$f":"EVIDENCIJA!F166","v":"00:00:00"},{"$f":"EVIDENCIJA!G166","v":"Pominat rok"},{"$f":"EVIDENCIJA!Z166","v":0},{"$f":"EVIDENCIJA!AA166","v":0},{"$f":"EVIDENCIJA!I166","v":0},{"$f":"EVIDENCIJA!AB166","v":0}]
[{"$f":"EVIDENCIJA!A167","v":""},{"$f":"EVIDENCIJA!B167","v":0},{"$f":"EVIDENCIJA!C167","v":0},{"$f":"EVIDENCIJA!H167","v":0},{"$f":"EVIDENCIJA!E167","v":"00:00:00"},{"$f":"EVIDENCIJA!F167","v":"00:00:00"},{"$f":"EVIDENCIJA!G167","v":"Pominat rok"},{"$f":"EVIDENCIJA!Z167","v":0},{"$f":"EVIDENCIJA!AA167","v":0},{"$f":"EVIDENCIJA!I167","v":0},{"$f":"EVIDENCIJA!AB167","v":0}]
[{"$f":"EVIDENCIJA!A168","v":""},{"$f":"EVIDENCIJA!B168","v":0},{"$f":"EVIDENCIJA!C168","v":0},{"$f":"EVIDENCIJA!H168","v":0},{"$f":"EVIDENCIJA!E168","v":"00:00:00"},{"$f":"EVIDENCIJA!F168","v":"00:00:00"},{"$f":"EVIDENCIJA!G168","v":"Pominat rok"},{"$f":"EVIDENCIJA!Z168","v":0},{"$f":"EVIDENCIJA!AA168","v":0},{"$f":"EVIDENCIJA!I168","v":0},{"$f":"EVIDENCIJA!AB168","v":0}]
[{"$f":"EVIDENCIJA!A169","v":""},{"$f":"EVIDENCIJA!B169","v":0},{"$f":"EVIDENCIJA!C169","v":0},{"$f":"EVIDENCIJA!H169","v":0},{"$f":"EVIDENCIJA!E169","v":"00:00:00"},{"$f":"EVIDENCIJA!F169","v":"00:00:00"},{"$f":"EVIDENCIJA!G169","v":"Pominat rok"},{"$f":"EVIDENCIJA!Z169","v":0},{"$f":"EVIDENCIJA!AA169","v":0},{"$f":"EVIDENCIJA!I169","v":0},{"$f":"EVIDENCIJA!AB169","v":0}]
[{"$f":"EVIDENCIJA!A170","v":""},{"$f":"EVIDENCIJA!B170","v":0},{"$f":"EVIDENCIJA!C170","v":0},{"$f":"EVIDENCIJA!H170","v":0},{"$f":"EVIDENCIJA!E170","v":"00:00:00"},{"$f":"EVIDENCIJA!F170","v":"00:00:00"},{"$f":"EVIDENCIJA!G170","v":"Pominat rok"},{"$f":"EVIDENCIJA!Z170","v":0},{"$f":"EVIDENCIJA!AA170","v":0},{"$f":"EVIDENCIJA!I170","v":0},{"$f":"EVIDENCIJA!AB170","v":0}]
[{"$f":"EVIDENCIJA!A171","v":""},{"$f":"EVIDENCIJA!B171","v":0},{"$f":"EVIDENCIJA!C171","v":0},{"$f":"EVIDENCIJA!H171","v":0},{"$f":"EVIDENCIJA!E171","v":"00:00:00"},{"$f":"EVIDENCIJA!F171","v":"00:00:00"},{"$f":"EVIDENCIJA!G171","v":"Pominat rok"},{"$f":"EVIDENCIJA!Z171","v":0},{"$f":"EVIDENCIJA!AA171","v":0},{"$f":"EVIDENCIJA!I171","v":0},{"$f":"EVIDENCIJA!AB171","v":0}]
[{"$f":"EVIDENCIJA!A172","v":""},{"$f":"EVIDENCIJA!B172","v":0},{"$f":"EVIDENCIJA!C172","v":0},{"$f":"EVIDENCIJA!H172","v":0},{"$f":"EVIDENCIJA!E172","v":"00:00:00"},{"$f":"EVIDENCIJA!F172","v":"00:00:00"},{"$f":"EVIDENCIJA!G172","v":"Pominat rok"},{"$f":"EVIDENCIJA!Z172","v":0},{"$f":"EVIDENCIJA!AA172","v":0},{"$f":"EVIDENCIJA!I172","v":0},{"$f":"EVIDENCIJA!AB172","v":0}]
[{"$f":"EVIDENCIJA!A173","v":""},{"$f":"EVIDENCIJA!B173","v":0},{"$f":"EVIDENCIJA!C173","v":0},{"$f":"EVIDENCIJA!H173","v":0},{"$f":"EVIDENCIJA!E173","v":"00:00:00"},{"$f":"EVIDENCIJA!F173","v":"00:00:00"},{"$f":"EVIDENCIJA!G173","v":"Pominat rok"},{"$f":"EVIDENCIJA!Z173","v":0},{"$f":"EVIDENCIJA!AA173","v":0},{"$f":"EVIDENCIJA!I173","v":0},{"$f":"EVIDENCIJA!AB173","v":0}]
[{"$f":"EVIDENCIJA!A174","v":""},{"$f":"EVIDENCIJA!B174","v":0},{"$f":"EVIDENCIJA!C174","v":0},{"$f":"EVIDENCIJA!H174","v":0},{"$f":"EVIDENCIJA!E174","v":"00:00:00"},{"$f":"EVIDENCIJA!F174","v":"00:00:00"},{"$f":"EVIDENCIJA!G174","v":"Pominat rok"},{"$f":"EVIDENCIJA!Z174","v":0},{"$f":"EVIDENCIJA!AA174","v":0},{"$f":"EVIDENCIJA!I174","v":0},{"$f":"EVIDENCIJA!AB174","v":0}]
[{"$f":"EVIDENCIJA!A175","v":""},{"$f":"EVIDENCIJA!B175","v":0},{"$f":"EVIDENCIJA!C175","v":0},{"$f":"EVIDENCIJA!H175","v":0},{"$f":"EVIDENCIJA!E175","v":"00:00:00"},{"$f":"EVIDENCIJA!F175","v":"00:00:00"},{"$f":"EVIDENCIJA!G175","v":"Pominat rok"},{"$f":"EVIDENCIJA!Z175","v":0},{"$f":"EVIDENCIJA!AA175","v":0},{"$f":"EVIDENCIJA!I175","v":0},{"$f":"EVIDENCIJA!AB175","v":0}]
[{"$f":"EVIDENCIJA!A176","v":""},{"$f":"EVIDENCIJA!B176","v":0},{"$f":"EVIDENCIJA!C176","v":0},{"$f":"EVIDENCIJA!H176","v":0},{"$f":"EVIDENCIJA!E176","v":"00:00:00"},{"$f":"EVIDENCIJA!F176","v":"00:00:00"},{"$f":"EVIDENCIJA!G176","v":"Pominat rok"},{"$f":"EVIDENCIJA!Z176","v":0},{"$f":"EVIDENCIJA!AA176","v":0},{"$f":"EVIDENCIJA!I176","v":0},{"$f":"EVIDENCIJA!AB176","v":0}]
[{"$f":"EVIDENCIJA!A177","v":""},{"$f":"EVIDENCIJA!B177","v":0},{"$f":"EVIDENCIJA!C177","v":0},{"$f":"EVIDENCIJA!H177","v":0},{"$f":"EVIDENCIJA!E177","v":"00:00:00"},{"$f":"EVIDENCIJA!F177","v":"00:00:00"},{"$f":"EVIDENCIJA!G177","v":"Pominat rok"},{"$f":"EVIDENCIJA!Z177","v":0},{"$f":"EVIDENCIJA!AA177","v":0},{"$f":"EVIDENCIJA!I177","v":0},{"$f":"EVIDENCIJA!AB177","v":0}]
[{"$f":"EVIDENCIJA!A178","v":""},{"$f":"EVIDENCIJA!B178","v":0},{"$f":"EVIDENCIJA!C178","v":0},{"$f":"EVIDENCIJA!H178","v":0},{"$f":"EVIDENCIJA!E178","v":"00:00:00"},{"$f":"EVIDENCIJA!F178","v":"00:00:00"},{"$f":"EVIDENCIJA!G178","v":"Pominat rok"},{"$f":"EVIDENCIJA!Z178","v":0},{"$f":"EVIDENCIJA!AA178","v":0},{"$f":"EVIDENCIJA!I178","v":0},{"$f":"EVIDENCIJA!AB178","v":0}]
[{"$f":"EVIDENCIJA!A179","v":""},{"$f":"EVIDENCIJA!B179","v":0},{"$f":"EVIDENCIJA!C179","v":0},{"$f":"EVIDENCIJA!H179","v":0},{"$f":"EVIDENCIJA!E179","v":"00:00:00"},{"$f":"EVIDENCIJA!F179","v":"00:00:00"},{"$f":"EVIDENCIJA!G179","v":"Pominat rok"},{"$f":"EVIDENCIJA!Z179","v":0},{"$f":"EVIDENCIJA!AA179","v":0},{"$f":"EVIDENCIJA!I179","v":0},{"$f":"EVIDENCIJA!AB179","v":0}]
[{"$f":"EVIDENCIJA!A180","v":""},{"$f":"EVIDENCIJA!B180","v":0},{"$f":"EVIDENCIJA!C180","v":0},{"$f":"EVIDENCIJA!H180","v":0},{"$f":"EVIDENCIJA!E180","v":"00:00:00"},{"$f":"EVIDENCIJA!F180","v":"00:00:00"},{"$f":"EVIDENCIJA!G180","v":"Pominat rok"},{"$f":"EVIDENCIJA!Z180","v":0},{"$f":"EVIDENCIJA!AA180","v":0},{"$f":"EVIDENCIJA!I180","v":0},{"$f":"EVIDENCIJA!AB180","v":0}]
[{"$f":"EVIDENCIJA!A181","v":""},{"$f":"EVIDENCIJA!B181","v":0},{"$f":"EVIDENCIJA!C181","v":0},{"$f":"EVIDENCIJA!H181","v":0},{"$f":"EVIDENCIJA!E181","v":"00:00:00"},{"$f":"EVIDENCIJA!F181","v":"00:00:00"},{"$f":"EVIDENCIJA!G181","v":"Pominat rok"},{"$f":"EVIDENCIJA!Z181","v":0},{"$f":"EVIDENCIJA!AA181","v":0},{"$f":"EVIDENCIJA!I181","v":0},{"$f":"EVIDENCIJA!AB181","v":0}]
[{"$f":"EVIDENCIJA!A182","v":""},{"$f":"EVIDENCIJA!B182","v":0},{"$f":"EVIDENCIJA!C182","v":0},{"$f":"EVIDENCIJA!H182","v":0},{"$f":"EVIDENCIJA!E182","v":"00:00:00"},{"$f":"EVIDENCIJA!F182","v":"00:00:00"},{"$f":"EVIDENCIJA!G182","v":"Pominat rok"},{"$f":"EVIDENCIJA!Z182","v":0},{"$f":"EVIDENCIJA!AA182","v":0},{"$f":"EVIDENCIJA!I182","v":0},{"$f":"EVIDENCIJA!AB182","v":0}]
[{"$f":"EVIDENCIJA!A183","v":""},{"$f":"EVIDENCIJA!B183","v":0},{"$f":"EVIDENCIJA!C183","v":0},{"$f":"EVIDENCIJA!H183","v":0},{"$f":"EVIDENCIJA!E183","v":"00:00:00"},{"$f":"EVIDENCIJA!F183","v":"00:00:00"},{"$f":"EVIDENCIJA!G183","v":"Pominat rok"},{"$f":"EVIDENCIJA!Z183","v":0},{"$f":"EVIDENCIJA!AA183","v":0},{"$f":"EVIDENCIJA!I183","v":0},{"$f":"EVIDENCIJA!AB183","v":0}]
[{"$f":"EVIDENCIJA!A184","v":""},{"$f":"EVIDENCIJA!B184","v":0},{"$f":"EVIDENCIJA!C184","v":0},{"$f":"EVIDENCIJA!H184","v":0},{"$f":"EVIDENCIJA!E184","v":"00:00:00"},{"$f":"EVIDENCIJA!F184","v":"00:00:00"},{"$f":"EVIDENCIJA!G184","v":"Pominat rok"},{"$f":"EVIDENCIJA!Z184","v":0},{"$f":"EVIDENCIJA!AA184","v":0},{"$f":"EVIDENCIJA!I184","v":0},{"$f":"EVIDENCIJA!AB184","v":0}]
[{"$f":"EVIDENCIJA!A185","v":""},{"$f":"EVIDENCIJA!B185","v":0},{"$f":"EVIDENCIJA!C185","v":0},{"$f":"EVIDENCIJA!H185","v":0},{"$f":"EVIDENCIJA!E185","v":"00:00:00"},{"$f":"EVIDENCIJA!F185","v":"00:00:00"},{"$f":"EVIDENCIJA!G185","v":"Pominat rok"},{"$f":"EVIDENCIJA!Z185","v":0},{"$f":"EVIDENCIJA!AA185","v":0},{"$f":"EVIDENCIJA!I185","v":0},{"$f":"EVIDENCIJA!AB185","v":0}]
[{"$f":"EVIDENCIJA!A186","v":""},{"$f":"EVIDENCIJA!B186","v":0},{"$f":"EVIDENCIJA!C186","v":0},{"$f":"EVIDENCIJA!H186","v":0},{"$f":"EVIDENCIJA!E186","v":"00:00:00"},{"$f":"EVIDENCIJA!F186","v":"00:00:00"},{"$f":"EVIDENCIJA!G186","v":"Pominat rok"},{"$f":"EVIDENCIJA!Z186","v":0},{"$f":"EVIDENCIJA!AA186","v":0},{"$f":"EVIDENCIJA!I186","v":0},{"$f":"EVIDENCIJA!AB186","v":0}]
[{"$f":"EVIDENCIJA!A187","v":""},{"$f":"EVIDENCIJA!B187","v":0},{"$f":"EVIDENCIJA!C187","v":0},{"$f":"EVIDENCIJA!H187","v":0},{"$f":"EVIDENCIJA!E187","v":"00:00:00"},{"$f":"EVIDENCIJA!F187","v":"00:00:00"},{"$f":"EVIDENCIJA!G187","v":"Pominat rok"},{"$f":"EVIDENCIJA!Z187","v":0},{"$f":"EVIDENCIJA!AA187","v":0},{"$f":"EVIDENCIJA!I187","v":0},{"$f":"EVIDENCIJA!AB187","v":0}]
[{"$f":"EVIDENCIJA!A188","v":""},{"$f":"EVIDENCIJA!B188","v":0},{"$f":"EVIDENCIJA!C188","v":0},{"$f":"EVIDENCIJA!H188","v":0},{"$f":"EVIDENCIJA!E188","v":"00:00:00"},{"$f":"EVIDENCIJA!F188","v":"00:00:00"},{"$f":"EVIDENCIJA!G188","v":"Pominat rok"},{"$f":"EVIDENCIJA!Z188","v":0},{"$f":"EVIDENCIJA!AA188","v":0},{"$f":"EVIDENCIJA!I188","v":0},{"$f":"EVIDENCIJA!AB188","v":0}]
[{"$f":"EVIDENCIJA!A189","v":""},{"$f":"EVIDENCIJA!B189","v":0},{"$f":"EVIDENCIJA!C189","v":0},{"$f":"EVIDENCIJA!H189","v":0},{"$f":"EVIDENCIJA!E189","v":"00:00:00"},{"$f":"EVIDENCIJA!F189","v":"00:00:00"},{"$f":"EVIDENCIJA!G189","v":"Pominat rok"},{"$f":"EVIDENCIJA!Z189","v":0},{"$f":"EVIDENCIJA!AA189","v":0},{"$f":"EVIDENCIJA!I189","v":0},{"$f":"EVIDENCIJA!AB189","v":0}]
[{"$f":"EVIDENCIJA!A190","v":""},{"$f":"EVIDENCIJA!B190","v":0},{"$f":"EVIDENCIJA!C190","v":0},{"$f":"EVIDENCIJA!H190","v":0},{"$f":"EVIDENCIJA!E190","v":"00:00:00"},{"$f":"EVIDENCIJA!F190","v":"00:00:00"},{"$f":"EVIDENCIJA!G190","v":"Pominat rok"},{"$f":"EVIDENCIJA!Z190","v":0},{"$f":"EVIDENCIJA!AA190","v":0},{"$f":"EVIDENCIJA!I190","v":0},{"$f":"EVIDENCIJA!AB190","v":0}]
[{"$f":"EVIDENCIJA!A191","v":""},{"$f":"EVIDENCIJA!B191","v":0},{"$f":"EVIDENCIJA!C191","v":0},{"$f":"EVIDENCIJA!H191","v":0},{"$f":"EVIDENCIJA!E191","v":"00:00:00"},{"$f":"EVIDENCIJA!F191","v":"00:00:00"},{"$f":"EVIDENCIJA!G191","v":"Pominat rok"},{"$f":"EVIDENCIJA!Z191","v":0},{"$f":"EVIDENCIJA!AA191","v":0},{"$f":"EVIDENCIJA!I191","v":0},{"$f":"EVIDENCIJA!AB191","v":0}]
[{"$f":"EVIDENCIJA!A192","v":""},{"$f":"EVIDENCIJA!B192","v":0},{"$f":"EVIDENCIJA!C192","v":0},{"$f":"EVIDENCIJA!H192","v":0},{"$f":"EVIDENCIJA!E192","v":"00:00:00"},{"$f":"EVIDENCIJA!F192","v":"00:00:00"},{"$f":"EVIDENCIJA!G192","v":"Pominat rok"},{"$f":"EVIDENCIJA!Z192","v":0},{"$f":"EVIDENCIJA!AA192","v":0},{"$f":"EVIDENCIJA!I192","v":0},{"$f":"EVIDENCIJA!AB192","v":0}]
[{"$f":"EVIDENCIJA!A193","v":""},{"$f":"EVIDENCIJA!B193","v":0},{"$f":"EVIDENCIJA!C193","v":0},{"$f":"EVIDENCIJA!H193","v":0},{"$f":"EVIDENCIJA!E193","v":"00:00:00"},{"$f":"EVIDENCIJA!F193","v":"00:00:00"},{"$f":"EVIDENCIJA!G193","v":"Pominat rok"},{"$f":"EVIDENCIJA!Z193","v":0},{"$f":"EVIDENCIJA!AA193","v":0},{"$f":"EVIDENCIJA!I193","v":0},{"$f":"EVIDENCIJA!AB193","v":0}]
[{"$f":"EVIDENCIJA!A194","v":""},{"$f":"EVIDENCIJA!B194","v":0},{"$f":"EVIDENCIJA!C194","v":0},{"$f":"EVIDENCIJA!H194","v":0},{"$f":"EVIDENCIJA!E194","v":"00:00:00"},{"$f":"EVIDENCIJA!F194","v":"00:00:00"},{"$f":"EVIDENCIJA!G194","v":"Pominat rok"},{"$f":"EVIDENCIJA!Z194","v":0},{"$f":"EVIDENCIJA!AA194","v":0},{"$f":"EVIDENCIJA!I194","v":0},{"$f":"EVIDENCIJA!AB194","v":0}]
[{"$f":"EVIDENCIJA!A195","v":""},{"$f":"EVIDENCIJA!B195","v":0},{"$f":"EVIDENCIJA!C195","v":0},{"$f":"EVIDENCIJA!H195","v":0},{"$f":"EVIDENCIJA!E195","v":"00:00:00"},{"$f":"EVIDENCIJA!F195","v":"00:00:00"},{"$f":"EVIDENCIJA!G195","v":"Pominat rok"},{"$f":"EVIDENCIJA!Z195","v":0},{"$f":"EVIDENCIJA!AA195","v":0},{"$f":"EVIDENCIJA!I195","v":0},{"$f":"EVIDENCIJA!AB195","v":0}]
[{"$f":"EVIDENCIJA!A196","v":""},{"$f":"EVIDENCIJA!B196","v":0},{"$f":"EVIDENCIJA!C196","v":0},{"$f":"EVIDENCIJA!H196","v":0},{"$f":"EVIDENCIJA!E196","v":"00:00:00"},{"$f":"EVIDENCIJA!F196","v":"00:00:00"},{"$f":"EVIDENCIJA!G196","v":"Pominat rok"},{"$f":"EVIDENCIJA!Z196","v":0},{"$f":"EVIDENCIJA!AA196","v":0},{"$f":"EVIDENCIJA!I196","v":0},{"$f":"EVIDENCIJA!AB196","v":0}]
[{"$f":"EVIDENCIJA!A197","v":""},{"$f":"EVIDENCIJA!B197","v":0},{"$f":"EVIDENCIJA!C197","v":0},{"$f":"EVIDENCIJA!H197","v":0},{"$f":"EVIDENCIJA!E197","v":"00:00:00"},{"$f":"EVIDENCIJA!F197","v":"00:00:00"},{"$f":"EVIDENCIJA!G197","v":"Pominat rok"},{"$f":"EVIDENCIJA!Z197","v":0},{"$f":"EVIDENCIJA!AA197","v":0},{"$f":"EVIDENCIJA!I197","v":0},{"$f":"EVIDENCIJA!AB197","v":0}]
[{"$f":"EVIDENCIJA!A198","v":""},{"$f":"EVIDENCIJA!B198","v":0},{"$f":"EVIDENCIJA!C198","v":0},{"$f":"EVIDENCIJA!H198","v":0},{"$f":"EVIDENCIJA!E198","v":"00:00:00"},{"$f":"EVIDENCIJA!F198","v":"00:00:00"},{"$f":"EVIDENCIJA!G198","v":"Pominat rok"},{"$f":"EVIDENCIJA!Z198","v":0},{"$f":"EVIDENCIJA!AA198","v":0},{"$f":"EVIDENCIJA!I198","v":0},{"$f":"EVIDENCIJA!AB198","v":0}]
[{"$f":"EVIDENCIJA!A199","v":""},{"$f":"EVIDENCIJA!B199","v":0},{"$f":"EVIDENCIJA!C199","v":0},{"$f":"EVIDENCIJA!H199","v":0},{"$f":"EVIDENCIJA!E199","v":"00:00:00"},{"$f":"EVIDENCIJA!F199","v":"00:00:00"},{"$f":"EVIDENCIJA!G199","v":"Pominat rok"},{"$f":"EVIDENCIJA!Z199","v":0},{"$f":"EVIDENCIJA!AA199","v":0},{"$f":"EVIDENCIJA!I199","v":0},{"$f":"EVIDENCIJA!AB199","v":0}]
[{"$f":"EVIDENCIJA!A200","v":""},{"$f":"EVIDENCIJA!B200","v":0},{"$f":"EVIDENCIJA!C200","v":0},{"$f":"EVIDENCIJA!H200","v":0},{"$f":"EVIDENCIJA!E200","v":"00:00:00"},{"$f":"EVIDENCIJA!F200","v":"00:00:00"},{"$f":"EVIDENCIJA!G200","v":"Pominat rok"},{"$f":"EVIDENCIJA!Z200","v":0},{"$f":"EVIDENCIJA!AA200","v":0},{"$f":"EVIDENCIJA!I200","v":0},{"$f":"EVIDENCIJA!AB200","v":0}]
[{"$f":"EVIDENCIJA!A201","v":""},{"$f":"EVIDENCIJA!B201","v":0},{"$f":"EVIDENCIJA!C201","v":0},{"$f":"EVIDENCIJA!H201","v":0},{"$f":"EVIDENCIJA!E201","v":"00:00:00"},{"$f":"EVIDENCIJA!F201","v":"00:00:00"},{"$f":"EVIDENCIJA!G201","v":"Pominat rok"},{"$f":"EVIDENCIJA!Z201","v":0},{"$f":"EVIDENCIJA!AA201","v":0},{"$f":"EVIDENCIJA!I201","v":0},{"$f":"EVIDENCIJA!AB201","v":0}]
[{"$f":"EVIDENCIJA!A202","v":""},{"$f":"EVIDENCIJA!B202","v":0},{"$f":"EVIDENCIJA!C202","v":0},{"$f":"EVIDENCIJA!H202","v":0},{"$f":"EVIDENCIJA!E202","v":"00:00:00"},{"$f":"EVIDENCIJA!F202","v":"00:00:00"},{"$f":"EVIDENCIJA!G202","v":"Pominat rok"},{"$f":"EVIDENCIJA!Z202","v":0},{"$f":"EVIDENCIJA!AA202","v":0},{"$f":"EVIDENCIJA!I202","v":0},{"$f":"EVIDENCIJA!AB202","v":0}]
[{"$f":"EVIDENCIJA!A203","v":""},{"$f":"EVIDENCIJA!B203","v":0},{"$f":"EVIDENCIJA!C203","v":0},{"$f":"EVIDENCIJA!H203","v":0},{"$f":"EVIDENCIJA!E203","v":"00:00:00"},{"$f":"EVIDENCIJA!F203","v":"00:00:00"},{"$f":"EVIDENCIJA!G203","v":"Pominat rok"},{"$f":"EVIDENCIJA!Z203","v":0},{"$f":"EVIDENCIJA!AA203","v":0},{"$f":"EVIDENCIJA!I203","v":0},{"$f":"EVIDENCIJA!AB203","v":0}]
[{"$f":"EVIDENCIJA!A204","v":""},{"$f":"EVIDENCIJA!B204","v":0},{"$f":"EVIDENCIJA!C204","v":0},{"$f":"EVIDENCIJA!H204","v":0},{"$f":"EVIDENCIJA!E204","v":"00:00:00"},{"$f":"EVIDENCIJA!F204","v":"00:00:00"},{"$f":"EVIDENCIJA!G204","v":"Pominat rok"},{"$f":"EVIDENCIJA!Z204","v":0},{"$f":"EVIDENCIJA!AA204","v":0},{"$f":"EVIDENCIJA!I204","v":0},{"$f":"EVIDENCIJA!AB204","v":0}]
[{"$f":"EVIDENCIJA!A205","v":""},{"$f":"EVIDENCIJA!B205","v":0},{"$f":"EVIDENCIJA!C205","v":0},{"$f":"EVIDENCIJA!H205","v":0},{"$f":"EVIDENCIJA!E205","v":"00:00:00"},{"$f":"EVIDENCIJA!F205","v":"00:00:00"},{"$f":"EVIDENCIJA!G205","v":"Pominat rok"},{"$f":"EVIDENCIJA!Z205","v":0},{"$f":"EVIDENCIJA!AA205","v":0},{"$f":"EVIDENCIJA!I205","v":0},{"$f":"EVIDENCIJA!AB205","v":0}]
[{"$f":"EVIDENCIJA!A206","v":""},{"$f":"EVIDENCIJA!B206","v":0},{"$f":"EVIDENCIJA!C206","v":0},{"$f":"EVIDENCIJA!H206","v":0},{"$f":"EVIDENCIJA!E206","v":"00:00:00"},{"$f":"EVIDENCIJA!F206","v":"00:00:00"},{"$f":"EVIDENCIJA!G206","v":"Pominat rok"},{"$f":"EVIDENCIJA!Z206","v":0},{"$f":"EVIDENCIJA!AA206","v":0},{"$f":"EVIDENCIJA!I206","v":0},{"$f":"EVIDENCIJA!AB206","v":0}]
[{"$f":"EVIDENCIJA!A207","v":""},{"$f":"EVIDENCIJA!B207","v":0},{"$f":"EVIDENCIJA!C207","v":0},{"$f":"EVIDENCIJA!H207","v":0},{"$f":"EVIDENCIJA!E207","v":"00:00:00"},{"$f":"EVIDENCIJA!F207","v":"00:00:00"},{"$f":"EVIDENCIJA!G207","v":"Pominat rok"},{"$f":"EVIDENCIJA!Z207","v":0},{"$f":"EVIDENCIJA!AA207","v":0},{"$f":"EVIDENCIJA!I207","v":0},{"$f":"EVIDENCIJA!AB207","v":0}]
[{"$f":"EVIDENCIJA!A208","v":""},{"$f":"EVIDENCIJA!B208","v":0},{"$f":"EVIDENCIJA!C208","v":0},{"$f":"EVIDENCIJA!H208","v":0},{"$f":"EVIDENCIJA!E208","v":"00:00:00"},{"$f":"EVIDENCIJA!F208","v":"00:00:00"},{"$f":"EVIDENCIJA!G208","v":"Pominat rok"},{"$f":"EVIDENCIJA!Z208","v":0},{"$f":"EVIDENCIJA!AA208","v":0},{"$f":"EVIDENCIJA!I208","v":0},{"$f":"EVIDENCIJA!AB208","v":0}]
[{"$f":"EVIDENCIJA!A209","v":""},{"$f":"EVIDENCIJA!B209","v":0},{"$f":"EVIDENCIJA!C209","v":0},{"$f":"EVIDENCIJA!H209","v":0},{"$f":"EVIDENCIJA!E209","v":"00:00:00"},{"$f":"EVIDENCIJA!F209","v":"00:00:00"},{"$f":"EVIDENCIJA!G209","v":"Pominat rok"},{"$f":"EVIDENCIJA!Z209","v":0},{"$f":"EVIDENCIJA!AA209","v":0},{"$f":"EVIDENCIJA!I209","v":0},{"$f":"EVIDENCIJA!AB209","v":0}]
[{"$f":"EVIDENCIJA!A210","v":""},{"$f":"EVIDENCIJA!B210","v":0},{"$f":"EVIDENCIJA!C210","v":0},{"$f":"EVIDENCIJA!H210","v":0},{"$f":"EVIDENCIJA!E210","v":"00:00:00"},{"$f":"EVIDENCIJA!F210","v":"00:00:00"},{"$f":"EVIDENCIJA!G210","v":"Pominat rok"},{"$f":"EVIDENCIJA!Z210","v":0},{"$f":"EVIDENCIJA!AA210","v":0},{"$f":"EVIDENCIJA!I210","v":0},{"$f":"EVIDENCIJA!AB210","v":0}]
[{"$f":"EVIDENCIJA!A211","v":""},{"$f":"EVIDENCIJA!B211","v":0},{"$f":"EVIDENCIJA!C211","v":0},{"$f":"EVIDENCIJA!H211","v":0},{"$f":"EVIDENCIJA!E211","v":"00:00:00"},{"$f":"EVIDENCIJA!F211","v":"00:00:00"},{"$f":"EVIDENCIJA!G211","v":"Pominat rok"},{"$f":"EVIDENCIJA!Z211","v":0},{"$f":"EVIDENCIJA!AA211","v":0},{"$f":"EVIDENCIJA!I211","v":0},{"$f":"EVIDENCIJA!AB211","v":0}]
[{"$f":"EVIDENCIJA!A212","v":""},{"$f":"EVIDENCIJA!B212","v":0},{"$f":"EVIDENCIJA!C212","v":0},{"$f":"EVIDENCIJA!H212","v":0},{"$f":"EVIDENCIJA!E212","v":"00:00:00"},{"$f":"EVIDENCIJA!F212","v":"00:00:00"},{"$f":"EVIDENCIJA!G212","v":"Pominat rok"},{"$f":"EVIDENCIJA!Z212","v":0},{"$f":"EVIDENCIJA!AA212","v":0},{"$f":"EVIDENCIJA!I212","v":0},{"$f":"EVIDENCIJA!AB212","v":0}]
[{"$f":"EVIDENCIJA!A213","v":""},{"$f":"EVIDENCIJA!B213","v":0},{"$f":"EVIDENCIJA!C213","v":0},{"$f":"EVIDENCIJA!H213","v":0},{"$f":"EVIDENCIJA!E213","v":"00:00:00"},{"$f":"EVIDENCIJA!F213","v":"00:00:00"},{"$f":"EVIDENCIJA!G213","v":"Pominat rok"},{"$f":"EVIDENCIJA!Z213","v":0},{"$f":"EVIDENCIJA!AA213","v":0},{"$f":"EVIDENCIJA!I213","v":0},{"$f":"EVIDENCIJA!AB213","v":0}]
[{"$f":"EVIDENCIJA!A214","v":""},{"$f":"EVIDENCIJA!B214","v":0},{"$f":"EVIDENCIJA!C214","v":0},{"$f":"EVIDENCIJA!H214","v":0},{"$f":"EVIDENCIJA!E214","v":"00:00:00"},{"$f":"EVIDENCIJA!F214","v":"00:00:00"},{"$f":"EVIDENCIJA!G214","v":"Pominat rok"},{"$f":"EVIDENCIJA!Z214","v":0},{"$f":"EVIDENCIJA!AA214","v":0},{"$f":"EVIDENCIJA!I214","v":0},{"$f":"EVIDENCIJA!AB214","v":0}]
[{"$f":"EVIDENCIJA!A215","v":""},{"$f":"EVIDENCIJA!B215","v":0},{"$f":"EVIDENCIJA!C215","v":0},{"$f":"EVIDENCIJA!H215","v":0},{"$f":"EVIDENCIJA!E215","v":"00:00:00"},{"$f":"EVIDENCIJA!F215","v":"00:00:00"},{"$f":"EVIDENCIJA!G215","v":"Pominat rok"},{"$f":"EVIDENCIJA!Z215","v":0},{"$f":"EVIDENCIJA!AA215","v":0},{"$f":"EVIDENCIJA!I215","v":0},{"$f":"EVIDENCIJA!AB215","v":0}]
[{"$f":"EVIDENCIJA!A216","v":""},{"$f":"EVIDENCIJA!B216","v":0},{"$f":"EVIDENCIJA!C216","v":0},{"$f":"EVIDENCIJA!H216","v":0},{"$f":"EVIDENCIJA!E216","v":"00:00:00"},{"$f":"EVIDENCIJA!F216","v":"00:00:00"},{"$f":"EVIDENCIJA!G216","v":"Pominat rok"},{"$f":"EVIDENCIJA!Z216","v":0},{"$f":"EVIDENCIJA!AA216","v":0},{"$f":"EVIDENCIJA!I216","v":0},{"$f":"EVIDENCIJA!AB216","v":0}]
[{"$f":"EVIDENCIJA!A217","v":""},{"$f":"EVIDENCIJA!B217","v":0},{"$f":"EVIDENCIJA!C217","v":0},{"$f":"EVIDENCIJA!H217","v":0},{"$f":"EVIDENCIJA!E217","v":"00:00:00"},{"$f":"EVIDENCIJA!F217","v":"00:00:00"},{"$f":"EVIDENCIJA!G217","v":"Pominat rok"},{"$f":"EVIDENCIJA!Z217","v":0},{"$f":"EVIDENCIJA!AA217","v":0},{"$f":"EVIDENCIJA!I217","v":0},{"$f":"EVIDENCIJA!AB217","v":0}]
[{"$f":"EVIDENCIJA!A218","v":""},{"$f":"EVIDENCIJA!B218","v":0},{"$f":"EVIDENCIJA!C218","v":0},{"$f":"EVIDENCIJA!H218","v":0},{"$f":"EVIDENCIJA!E218","v":"00:00:00"},{"$f":"EVIDENCIJA!F218","v":"00:00:00"},{"$f":"EVIDENCIJA!G218","v":"Pominat rok"},{"$f":"EVIDENCIJA!Z218","v":0},{"$f":"EVIDENCIJA!AA218","v":0},{"$f":"EVIDENCIJA!I218","v":0},{"$f":"EVIDENCIJA!AB218","v":0}]
[{"$f":"EVIDENCIJA!A219","v":""},{"$f":"EVIDENCIJA!B219","v":0},{"$f":"EVIDENCIJA!C219","v":0},{"$f":"EVIDENCIJA!H219","v":0},{"$f":"EVIDENCIJA!E219","v":"00:00:00"},{"$f":"EVIDENCIJA!F219","v":"00:00:00"},{"$f":"EVIDENCIJA!G219","v":"Pominat rok"},{"$f":"EVIDENCIJA!Z219","v":0},{"$f":"EVIDENCIJA!AA219","v":0},{"$f":"EVIDENCIJA!I219","v":0},{"$f":"EVIDENCIJA!AB219","v":0}]
[{"$f":"EVIDENCIJA!A220","v":""},{"$f":"EVIDENCIJA!B220","v":0},{"$f":"EVIDENCIJA!C220","v":0},{"$f":"EVIDENCIJA!H220","v":0},{"$f":"EVIDENCIJA!E220","v":"00:00:00"},{"$f":"EVIDENCIJA!F220","v":"00:00:00"},{"$f":"EVIDENCIJA!G220","v":"Pominat rok"},{"$f":"EVIDENCIJA!Z220","v":0},{"$f":"EVIDENCIJA!AA220","v":0},{"$f":"EVIDENCIJA!I220","v":0},{"$f":"EVIDENCIJA!AB220","v":0}]
[{"$f":"EVIDENCIJA!A221","v":""},{"$f":"EVIDENCIJA!B221","v":0},{"$f":"EVIDENCIJA!C221","v":0},{"$f":"EVIDENCIJA!H221","v":0},{"$f":"EVIDENCIJA!E221","v":"00:00:00"},{"$f":"EVIDENCIJA!F221","v":"00:00:00"},{"$f":"EVIDENCIJA!G221","v":"Pominat rok"},{"$f":"EVIDENCIJA!Z221","v":0},{"$f":"EVIDENCIJA!AA221","v":0},{"$f":"EVIDENCIJA!I221","v":0},{"$f":"EVIDENCIJA!AB221","v":0}]
[{"$f":"EVIDENCIJA!A222","v":""},{"$f":"EVIDENCIJA!B222","v":0},{"$f":"EVIDENCIJA!C222","v":0},{"$f":"EVIDENCIJA!H222","v":0},{"$f":"EVIDENCIJA!E222","v":"00:00:00"},{"$f":"EVIDENCIJA!F222","v":"00:00:00"},{"$f":"EVIDENCIJA!G222","v":"Pominat rok"},{"$f":"EVIDENCIJA!Z222","v":0},{"$f":"EVIDENCIJA!AA222","v":0},{"$f":"EVIDENCIJA!I222","v":0},{"$f":"EVIDENCIJA!AB222","v":0}]
[{"$f":"EVIDENCIJA!A223","v":""},{"$f":"EVIDENCIJA!B223","v":0},{"$f":"EVIDENCIJA!C223","v":0},{"$f":"EVIDENCIJA!H223","v":0},{"$f":"EVIDENCIJA!E223","v":"00:00:00"},{"$f":"EVIDENCIJA!F223","v":"00:00:00"},{"$f":"EVIDENCIJA!G223","v":"Pominat rok"},{"$f":"EVIDENCIJA!Z223","v":0},{"$f":"EVIDENCIJA!AA223","v":0},{"$f":"EVIDENCIJA!I223","v":0},{"$f":"EVIDENCIJA!AB223","v":0}]
[{"$f":"EVIDENCIJA!A224","v":""},{"$f":"EVIDENCIJA!B224","v":0},{"$f":"EVIDENCIJA!C224","v":0},{"$f":"EVIDENCIJA!H224","v":0},{"$f":"EVIDENCIJA!E224","v":"00:00:00"},{"$f":"EVIDENCIJA!F224","v":"00:00:00"},{"$f":"EVIDENCIJA!G224","v":"Pominat rok"},{"$f":"EVIDENCIJA!Z224","v":0},{"$f":"EVIDENCIJA!AA224","v":0},{"$f":"EVIDENCIJA!I224","v":0},{"$f":"EVIDENCIJA!AB224","v":0}]
[{"$f":"EVIDENCIJA!A225","v":""},{"$f":"EVIDENCIJA!B225","v":0},{"$f":"EVIDENCIJA!C225","v":0},{"$f":"EVIDENCIJA!H225","v":0},{"$f":"EVIDENCIJA!E225","v":"00:00:00"},{"$f":"EVIDENCIJA!F225","v":"00:00:00"},{"$f":"EVIDENCIJA!G225","v":"Pominat rok"},{"$f":"EVIDENCIJA!Z225","v":0},{"$f":"EVIDENCIJA!AA225","v":0},{"$f":"EVIDENCIJA!I225","v":0},{"$f":"EVIDENCIJA!AB225","v":0}]
[{"$f":"EVIDENCIJA!A226","v":""},{"$f":"EVIDENCIJA!B226","v":0},{"$f":"EVIDENCIJA!C226","v":0},{"$f":"EVIDENCIJA!H226","v":0},{"$f":"EVIDENCIJA!E226","v":"00:00:00"},{"$f":"EVIDENCIJA!F226","v":"00:00:00"},{"$f":"EVIDENCIJA!G226","v":"Pominat rok"},{"$f":"EVIDENCIJA!Z226","v":0},{"$f":"EVIDENCIJA!AA226","v":0},{"$f":"EVIDENCIJA!I226","v":0},{"$f":"EVIDENCIJA!AB226","v":0}]
[{"$f":"EVIDENCIJA!A227","v":""},{"$f":"EVIDENCIJA!B227","v":0},{"$f":"EVIDENCIJA!C227","v":0},{"$f":"EVIDENCIJA!H227","v":0},{"$f":"EVIDENCIJA!E227","v":"00:00:00"},{"$f":"EVIDENCIJA!F227","v":"00:00:00"},{"$f":"EVIDENCIJA!G227","v":"Pominat rok"},{"$f":"EVIDENCIJA!Z227","v":0},{"$f":"EVIDENCIJA!AA227","v":0},{"$f":"EVIDENCIJA!I227","v":0},{"$f":"EVIDENCIJA!AB227","v":0}]
[{"$f":"EVIDENCIJA!A228","v":""},{"$f":"EVIDENCIJA!B228","v":0},{"$f":"EVIDENCIJA!C228","v":0},{"$f":"EVIDENCIJA!H228","v":0},{"$f":"EVIDENCIJA!E228","v":"00:00:00"},{"$f":"EVIDENCIJA!F228","v":"00:00:00"},{"$f":"EVIDENCIJA!G228","v":"Pominat rok"},{"$f":"EVIDENCIJA!Z228","v":0},{"$f":"EVIDENCIJA!AA228","v":0},{"$f":"EVIDENCIJA!I228","v":0},{"$f":"EVIDENCIJA!AB228","v":0}]
[{"$f":"EVIDENCIJA!A229","v":""},{"$f":"EVIDENCIJA!B229","v":0},{"$f":"EVIDENCIJA!C229","v":0},{"$f":"EVIDENCIJA!H229","v":0},{"$f":"EVIDENCIJA!E229","v":"00:00:00"},{"$f":"EVIDENCIJA!F229","v":"00:00:00"},{"$f":"EVIDENCIJA!G229","v":"Pominat rok"},{"$f":"EVIDENCIJA!Z229","v":0},{"$f":"EVIDENCIJA!AA229","v":0},{"$f":"EVIDENCIJA!I229","v":0},{"$f":"EVIDENCIJA!AB229","v":0}]
[{"$f":"EVIDENCIJA!A230","v":""},{"$f":"EVIDENCIJA!B230","v":0},{"$f":"EVIDENCIJA!C230","v":0},{"$f":"EVIDENCIJA!H230","v":0},{"$f":"EVIDENCIJA!E230","v":"00:00:00"},{"$f":"EVIDENCIJA!F230","v":"00:00:00"},{"$f":"EVIDENCIJA!G230","v":"Pominat rok"},{"$f":"EVIDENCIJA!Z230","v":0},{"$f":"EVIDENCIJA!AA230","v":0},{"$f":"EVIDENCIJA!I230","v":0},{"$f":"EVIDENCIJA!AB230","v":0}]
[{"$f":"EVIDENCIJA!A231","v":""},{"$f":"EVIDENCIJA!B231","v":0},{"$f":"EVIDENCIJA!C231","v":0},{"$f":"EVIDENCIJA!H231","v":0},{"$f":"EVIDENCIJA!E231","v":"00:00:00"},{"$f":"EVIDENCIJA!F231","v":"00:00:00"},{"$f":"EVIDENCIJA!G231","v":"Pominat rok"},{"$f":"EVIDENCIJA!Z231","v":0},{"$f":"EVIDENCIJA!AA231","v":0},{"$f":"EVIDENCIJA!I231","v":0},{"$f":"EVIDENCIJA!AB231","v":0}]
[{"$f":"EVIDENCIJA!A232","v":""},{"$f":"EVIDENCIJA!B232","v":0},{"$f":"EVIDENCIJA!C232","v":0},{"$f":"EVIDENCIJA!H232","v":0},{"$f":"EVIDENCIJA!E232","v":"00:00:00"},{"$f":"EVIDENCIJA!F232","v":"00:00:00"},{"$f":"EVIDENCIJA!G232","v":"Pominat rok"},{"$f":"EVIDENCIJA!Z232","v":0},{"$f":"EVIDENCIJA!AA232","v":0},{"$f":"EVIDENCIJA!I232","v":0},{"$f":"EVIDENCIJA!AB232","v":0}]
[{"$f":"EVIDENCIJA!A233","v":""},{"$f":"EVIDENCIJA!B233","v":0},{"$f":"EVIDENCIJA!C233","v":0},{"$f":"EVIDENCIJA!H233","v":0},{"$f":"EVIDENCIJA!E233","v":"00:00:00"},{"$f":"EVIDENCIJA!F233","v":"00:00:00"},{"$f":"EVIDENCIJA!G233","v":"Pominat rok"},{"$f":"EVIDENCIJA!Z233","v":0},{"$f":"EVIDENCIJA!AA233","v":0},{"$f":"EVIDENCIJA!I233","v":0},{"$f":"EVIDENCIJA!AB233","v":0}]
[{"$f":"EVIDENCIJA!A234","v":""},{"$f":"EVIDENCIJA!B234","v":0},{"$f":"EVIDENCIJA!C234","v":0},{"$f":"EVIDENCIJA!H234","v":0},{"$f":"EVIDENCIJA!E234","v":"00:00:00"},{"$f":"EVIDENCIJA!F234","v":"00:00:00"},{"$f":"EVIDENCIJA!G234","v":"Pominat rok"},{"$f":"EVIDENCIJA!Z234","v":0},{"$f":"EVIDENCIJA!AA234","v":0},{"$f":"EVIDENCIJA!I234","v":0},{"$f":"EVIDENCIJA!AB234","v":0}]
[{"$f":"EVIDENCIJA!A235","v":""},{"$f":"EVIDENCIJA!B235","v":0},{"$f":"EVIDENCIJA!C235","v":0},{"$f":"EVIDENCIJA!H235","v":0},{"$f":"EVIDENCIJA!E235","v":"00:00:00"},{"$f":"EVIDENCIJA!F235","v":"00:00:00"},{"$f":"EVIDENCIJA!G235","v":"Pominat rok"},{"$f":"EVIDENCIJA!Z235","v":0},{"$f":"EVIDENCIJA!AA235","v":0},{"$f":"EVIDENCIJA!I235","v":0},{"$f":"EVIDENCIJA!AB235","v":0}]
[{"$f":"EVIDENCIJA!A236","v":""},{"$f":"EVIDENCIJA!B236","v":0},{"$f":"EVIDENCIJA!C236","v":0},{"$f":"EVIDENCIJA!H236","v":0},{"$f":"EVIDENCIJA!E236","v":"00:00:00"},{"$f":"EVIDENCIJA!F236","v":"00:00:00"},{"$f":"EVIDENCIJA!G236","v":"Pominat rok"},{"$f":"EVIDENCIJA!Z236","v":0},{"$f":"EVIDENCIJA!AA236","v":0},{"$f":"EVIDENCIJA!I236","v":0},{"$f":"EVIDENCIJA!AB236","v":0}]
[{"$f":"EVIDENCIJA!A237","v":""},{"$f":"EVIDENCIJA!B237","v":0},{"$f":"EVIDENCIJA!C237","v":0},{"$f":"EVIDENCIJA!H237","v":0},{"$f":"EVIDENCIJA!E237","v":"00:00:00"},{"$f":"EVIDENCIJA!F237","v":"00:00:00"},{"$f":"EVIDENCIJA!G237","v":"Pominat rok"},{"$f":"EVIDENCIJA!Z237","v":0},{"$f":"EVIDENCIJA!AA237","v":0},{"$f":"EVIDENCIJA!I237","v":0},{"$f":"EVIDENCIJA!AB237","v":0}]
[{"$f":"EVIDENCIJA!A238","v":""},{"$f":"EVIDENCIJA!B238","v":0},{"$f":"EVIDENCIJA!C238","v":0},{"$f":"EVIDENCIJA!H238","v":0},{"$f":"EVIDENCIJA!E238","v":"00:00:00"},{"$f":"EVIDENCIJA!F238","v":"00:00:00"},{"$f":"EVIDENCIJA!G238","v":"Pominat rok"},{"$f":"EVIDENCIJA!Z238","v":0},{"$f":"EVIDENCIJA!AA238","v":0},{"$f":"EVIDENCIJA!I238","v":0},{"$f":"EVIDENCIJA!AB238","v":0}]
[{"$f":"EVIDENCIJA!A239","v":""},{"$f":"EVIDENCIJA!B239","v":0},{"$f":"EVIDENCIJA!C239","v":0},{"$f":"EVIDENCIJA!H239","v":0},{"$f":"EVIDENCIJA!E239","v":"00:00:00"},{"$f":"EVIDENCIJA!F239","v":"00:00:00"},{"$f":"EVIDENCIJA!G239","v":"Pominat rok"},{"$f":"EVIDENCIJA!Z239","v":0},{"$f":"EVIDENCIJA!AA239","v":0},{"$f":"EVIDENCIJA!I239","v":0},{"$f":"EVIDENCIJA!AB239","v":0}]
[{"$f":"EVIDENCIJA!A240","v":""},{"$f":"EVIDENCIJA!B240","v":0},{"$f":"EVIDENCIJA!C240","v":0},{"$f":"EVIDENCIJA!H240","v":0},{"$f":"EVIDENCIJA!E240","v":"00:00:00"},{"$f":"EVIDENCIJA!F240","v":"00:00:00"},{"$f":"EVIDENCIJA!G240","v":"Pominat rok"},{"$f":"EVIDENCIJA!Z240","v":0},{"$f":"EVIDENCIJA!AA240","v":0},{"$f":"EVIDENCIJA!I240","v":0},{"$f":"EVIDENCIJA!AB240","v":0}]
[{"$f":"EVIDENCIJA!A241","v":""},{"$f":"EVIDENCIJA!B241","v":0},{"$f":"EVIDENCIJA!C241","v":0},{"$f":"EVIDENCIJA!H241","v":0},{"$f":"EVIDENCIJA!E241","v":"00:00:00"},{"$f":"EVIDENCIJA!F241","v":"00:00:00"},{"$f":"EVIDENCIJA!G241","v":"Pominat rok"},{"$f":"EVIDENCIJA!Z241","v":0},{"$f":"EVIDENCIJA!AA241","v":0},{"$f":"EVIDENCIJA!I241","v":0},{"$f":"EVIDENCIJA!AB241","v":0}]
[{"$f":"EVIDENCIJA!A242","v":""},{"$f":"EVIDENCIJA!B242","v":0},{"$f":"EVIDENCIJA!C242","v":0},{"$f":"EVIDENCIJA!H242","v":0},{"$f":"EVIDENCIJA!E242","v":"00:00:00"},{"$f":"EVIDENCIJA!F242","v":"00:00:00"},{"$f":"EVIDENCIJA!G242","v":"Pominat rok"},{"$f":"EVIDENCIJA!Z242","v":0},{"$f":"EVIDENCIJA!AA242","v":0},{"$f":"EVIDENCIJA!I242","v":0},{"$f":"EVIDENCIJA!AB242","v":0}]
[{"$f":"EVIDENCIJA!A243","v":""},{"$f":"EVIDENCIJA!B243","v":0},{"$f":"EVIDENCIJA!C243","v":0},{"$f":"EVIDENCIJA!H243","v":0},{"$f":"EVIDENCIJA!E243","v":"00:00:00"},{"$f":"EVIDENCIJA!F243","v":"00:00:00"},{"$f":"EVIDENCIJA!G243","v":"Pominat rok"},{"$f":"EVIDENCIJA!Z243","v":0},{"$f":"EVIDENCIJA!AA243","v":0},{"$f":"EVIDENCIJA!I243","v":0},{"$f":"EVIDENCIJA!AB243","v":0}]
[{"$f":"EVIDENCIJA!A244","v":""},{"$f":"EVIDENCIJA!B244","v":0},{"$f":"EVIDENCIJA!C244","v":0},{"$f":"EVIDENCIJA!H244","v":0},{"$f":"EVIDENCIJA!E244","v":"00:00:00"},{"$f":"EVIDENCIJA!F244","v":"00:00:00"},{"$f":"EVIDENCIJA!G244","v":"Pominat rok"},{"$f":"EVIDENCIJA!Z244","v":0},{"$f":"EVIDENCIJA!AA244","v":0},{"$f":"EVIDENCIJA!I244","v":0},{"$f":"EVIDENCIJA!AB244","v":0}]
[{"$f":"EVIDENCIJA!A245","v":""},{"$f":"EVIDENCIJA!B245","v":0},{"$f":"EVIDENCIJA!C245","v":0},{"$f":"EVIDENCIJA!H245","v":0},{"$f":"EVIDENCIJA!E245","v":"00:00:00"},{"$f":"EVIDENCIJA!F245","v":"00:00:00"},{"$f":"EVIDENCIJA!G245","v":"Pominat rok"},{"$f":"EVIDENCIJA!Z245","v":0},{"$f":"EVIDENCIJA!AA245","v":0},{"$f":"EVIDENCIJA!I245","v":0},{"$f":"EVIDENCIJA!AB245","v":0}]
[{"$f":"EVIDENCIJA!A246","v":""},{"$f":"EVIDENCIJA!B246","v":0},{"$f":"EVIDENCIJA!C246","v":0},{"$f":"EVIDENCIJA!H246","v":0},{"$f":"EVIDENCIJA!E246","v":"00:00:00"},{"$f":"EVIDENCIJA!F246","v":"00:00:00"},{"$f":"EVIDENCIJA!G246","v":"Pominat rok"},{"$f":"EVIDENCIJA!Z246","v":0},{"$f":"EVIDENCIJA!AA246","v":0},{"$f":"EVIDENCIJA!I246","v":0},{"$f":"EVIDENCIJA!AB246","v":0}]
[{"$f":"EVIDENCIJA!A247","v":""},{"$f":"EVIDENCIJA!B247","v":0},{"$f":"EVIDENCIJA!C247","v":0},{"$f":"EVIDENCIJA!H247","v":0},{"$f":"EVIDENCIJA!E247","v":"00:00:00"},{"$f":"EVIDENCIJA!F247","v":"00:00:00"},{"$f":"EVIDENCIJA!G247","v":"Pominat rok"},{"$f":"EVIDENCIJA!Z247","v":0},{"$f":"EVIDENCIJA!AA247","v":0},{"$f":"EVIDENCIJA!I247","v":0},{"$f":"EVIDENCIJA!AB247","v":0}]
[{"$f":"EVIDENCIJA!A248","v":""},{"$f":"EVIDENCIJA!B248","v":0},{"$f":"EVIDENCIJA!C248","v":0},{"$f":"EVIDENCIJA!H248","v":0},{"$f":"EVIDENCIJA!E248","v":"00:00:00"},{"$f":"EVIDENCIJA!F248","v":"00:00:00"},{"$f":"EVIDENCIJA!G248","v":"Pominat rok"},{"$f":"EVIDENCIJA!Z248","v":0},{"$f":"EVIDENCIJA!AA248","v":0},{"$f":"EVIDENCIJA!I248","v":0},{"$f":"EVIDENCIJA!AB248","v":0}]
[{"$f":"EVIDENCIJA!A249","v":""},{"$f":"EVIDENCIJA!B249","v":0},{"$f":"EVIDENCIJA!C249","v":0},{"$f":"EVIDENCIJA!H249","v":0},{"$f":"EVIDENCIJA!E249","v":"00:00:00"},{"$f":"EVIDENCIJA!F249","v":"00:00:00"},{"$f":"EVIDENCIJA!G249","v":"Pominat rok"},{"$f":"EVIDENCIJA!Z249","v":0},{"$f":"EVIDENCIJA!AA249","v":0},{"$f":"EVIDENCIJA!I249","v":0},{"$f":"EVIDENCIJA!AB249","v":0}]
[{"$f":"EVIDENCIJA!A250","v":""},{"$f":"EVIDENCIJA!B250","v":0},{"$f":"EVIDENCIJA!C250","v":0},{"$f":"EVIDENCIJA!H250","v":0},{"$f":"EVIDENCIJA!E250","v":"00:00:00"},{"$f":"EVIDENCIJA!F250","v":"00:00:00"},{"$f":"EVIDENCIJA!G250","v":"Pominat rok"},{"$f":"EVIDENCIJA!Z250","v":0},{"$f":"EVIDENCIJA!AA250","v":0},{"$f":"EVIDENCIJA!I250","v":0},{"$f":"EVIDENCIJA!AB250","v":0}]
[{"$f":"EVIDENCIJA!A251","v":""},{"$f":"EVIDENCIJA!B251","v":0},{"$f":"EVIDENCIJA!C251","v":0},{"$f":"EVIDENCIJA!H251","v":0},{"$f":"EVIDENCIJA!E251","v":"00:00:00"},{"$f":"EVIDENCIJA!F251","v":"00:00:00"},{"$f":"EVIDENCIJA!G251","v":"Pominat rok"},{"$f":"EVIDENCIJA!Z251","v":0},{"$f":"EVIDENCIJA!AA251","v":0},{"$f":"EVIDENCIJA!I251","v":0},{"$f":"EVIDENCIJA!AB251","v":0}]
[{"$f":"EVIDENCIJA!A252","v":""},{"$f":"EVIDENCIJA!B252","v":0},{"$f":"EVIDENCIJA!C252","v":0},{"$f":"EVIDENCIJA!H252","v":0},{"$f":"EVIDENCIJA!E252","v":"00:00:00"},{"$f":"EVIDENCIJA!F252","v":"00:00:00"},{"$f":"EVIDENCIJA!G252","v":"Pominat rok"},{"$f":"EVIDENCIJA!Z252","v":0},{"$f":"EVIDENCIJA!AA252","v":0},{"$f":"EVIDENCIJA!I252","v":0},{"$f":"EVIDENCIJA!AB252","v":0}]
[{"$f":"EVIDENCIJA!A253","v":""},{"$f":"EVIDENCIJA!B253","v":0},{"$f":"EVIDENCIJA!C253","v":0},{"$f":"EVIDENCIJA!H253","v":0},{"$f":"EVIDENCIJA!E253","v":"00:00:00"},{"$f":"EVIDENCIJA!F253","v":"00:00:00"},{"$f":"EVIDENCIJA!G253","v":"Pominat rok"},{"$f":"EVIDENCIJA!Z253","v":0},{"$f":"EVIDENCIJA!AA253","v":0},{"$f":"EVIDENCIJA!I253","v":0},{"$f":"EVIDENCIJA!AB253","v":0}]
[{"$f":"EVIDENCIJA!A254","v":""},{"$f":"EVIDENCIJA!B254","v":0},{"$f":"EVIDENCIJA!C254","v":0},{"$f":"EVIDENCIJA!H254","v":0},{"$f":"EVIDENCIJA!E254","v":"00:00:00"},{"$f":"EVIDENCIJA!F254","v":"00:00:00"},{"$f":"EVIDENCIJA!G254","v":"Pominat rok"},{"$f":"EVIDENCIJA!Z254","v":0},{"$f":"EVIDENCIJA!AA254","v":0},{"$f":"EVIDENCIJA!I254","v":0},{"$f":"EVIDENCIJA!AB254","v":0}]
[{"$f":"EVIDENCIJA!A255","v":""},{"$f":"EVIDENCIJA!B255","v":0},{"$f":"EVIDENCIJA!C255","v":0},{"$f":"EVIDENCIJA!H255","v":0},{"$f":"EVIDENCIJA!E255","v":"00:00:00"},{"$f":"EVIDENCIJA!F255","v":"00:00:00"},{"$f":"EVIDENCIJA!G255","v":"Pominat rok"},{"$f":"EVIDENCIJA!Z255","v":0},{"$f":"EVIDENCIJA!AA255","v":0},{"$f":"EVIDENCIJA!I255","v":0},{"$f":"EVIDENCIJA!AB255","v":0}]
[{"$f":"EVIDENCIJA!A256","v":""},{"$f":"EVIDENCIJA!B256","v":0},{"$f":"EVIDENCIJA!C256","v":0},{"$f":"EVIDENCIJA!H256","v":0},{"$f":"EVIDENCIJA!E256","v":"00:00:00"},{"$f":"EVIDENCIJA!F256","v":"00:00:00"},{"$f":"EVIDENCIJA!G256","v":"Pominat rok"},{"$f":"EVIDENCIJA!Z256","v":0},{"$f":"EVIDENCIJA!AA256","v":0},{"$f":"EVIDENCIJA!I256","v":0},{"$f":"EVIDENCIJA!AB256","v":0}]
[{"$f":"EVIDENCIJA!A257","v":""},{"$f":"EVIDENCIJA!B257","v":0},{"$f":"EVIDENCIJA!C257","v":0},{"$f":"EVIDENCIJA!H257","v":0},{"$f":"EVIDENCIJA!E257","v":"00:00:00"},{"$f":"EVIDENCIJA!F257","v":"00:00:00"},{"$f":"EVIDENCIJA!G257","v":"Pominat rok"},{"$f":"EVIDENCIJA!Z257","v":0},{"$f":"EVIDENCIJA!AA257","v":0},{"$f":"EVIDENCIJA!I257","v":0},{"$f":"EVIDENCIJA!AB257","v":0}]
[{"$f":"EVIDENCIJA!A258","v":""},{"$f":"EVIDENCIJA!B258","v":0},{"$f":"EVIDENCIJA!C258","v":0},{"$f":"EVIDENCIJA!H258","v":0},{"$f":"EVIDENCIJA!E258","v":"00:00:00"},{"$f":"EVIDENCIJA!F258","v":"00:00:00"},{"$f":"EVIDENCIJA!G258","v":"Pominat rok"},{"$f":"EVIDENCIJA!Z258","v":0},{"$f":"EVIDENCIJA!AA258","v":0},{"$f":"EVIDENCIJA!I258","v":0},{"$f":"EVIDENCIJA!AB258","v":0}]
[{"$f":"EVIDENCIJA!A259","v":""},{"$f":"EVIDENCIJA!B259","v":0},{"$f":"EVIDENCIJA!C259","v":0},{"$f":"EVIDENCIJA!H259","v":0},{"$f":"EVIDENCIJA!E259","v":"00:00:00"},{"$f":"EVIDENCIJA!F259","v":"00:00:00"},{"$f":"EVIDENCIJA!G259","v":"Pominat rok"},{"$f":"EVIDENCIJA!Z259","v":0},{"$f":"EVIDENCIJA!AA259","v":0},{"$f":"EVIDENCIJA!I259","v":0},{"$f":"EVIDENCIJA!AB259","v":0}]
[{"$f":"EVIDENCIJA!A260","v":""},{"$f":"EVIDENCIJA!B260","v":0},{"$f":"EVIDENCIJA!C260","v":0},{"$f":"EVIDENCIJA!H260","v":0},{"$f":"EVIDENCIJA!E260","v":"00:00:00"},{"$f":"EVIDENCIJA!F260","v":"00:00:00"},{"$f":"EVIDENCIJA!G260","v":"Pominat rok"},{"$f":"EVIDENCIJA!Z260","v":0},{"$f":"EVIDENCIJA!AA260","v":0},{"$f":"EVIDENCIJA!I260","v":0},{"$f":"EVIDENCIJA!AB260","v":0}]
[{"$f":"EVIDENCIJA!A261","v":""},{"$f":"EVIDENCIJA!B261","v":0},{"$f":"EVIDENCIJA!C261","v":0},{"$f":"EVIDENCIJA!H261","v":0},{"$f":"EVIDENCIJA!E261","v":"00:00:00"},{"$f":"EVIDENCIJA!F261","v":"00:00:00"},{"$f":"EVIDENCIJA!G261","v":"Pominat rok"},{"$f":"EVIDENCIJA!Z261","v":0},{"$f":"EVIDENCIJA!AA261","v":0},{"$f":"EVIDENCIJA!I261","v":0},{"$f":"EVIDENCIJA!AB261","v":0}]
[{"$f":"EVIDENCIJA!A262","v":""},{"$f":"EVIDENCIJA!B262","v":0},{"$f":"EVIDENCIJA!C262","v":0},{"$f":"EVIDENCIJA!H262","v":0},{"$f":"EVIDENCIJA!E262","v":"00:00:00"},{"$f":"EVIDENCIJA!F262","v":"00:00:00"},{"$f":"EVIDENCIJA!G262","v":"Pominat rok"},{"$f":"EVIDENCIJA!Z262","v":0},{"$f":"EVIDENCIJA!AA262","v":0},{"$f":"EVIDENCIJA!I262","v":0},{"$f":"EVIDENCIJA!AB262","v":0}]
[{"$f":"EVIDENCIJA!A263","v":""},{"$f":"EVIDENCIJA!B263","v":0},{"$f":"EVIDENCIJA!C263","v":0},{"$f":"EVIDENCIJA!H263","v":0},{"$f":"EVIDENCIJA!E263","v":"00:00:00"},{"$f":"EVIDENCIJA!F263","v":"00:00:00"},{"$f":"EVIDENCIJA!G263","v":"Pominat rok"},{"$f":"EVIDENCIJA!Z263","v":0},{"$f":"EVIDENCIJA!AA263","v":0},{"$f":"EVIDENCIJA!I263","v":0},{"$f":"EVIDENCIJA!AB263","v":0}]
[{"$f":"EVIDENCIJA!A264","v":""},{"$f":"EVIDENCIJA!B264","v":0},{"$f":"EVIDENCIJA!C264","v":0},{"$f":"EVIDENCIJA!H264","v":0},{"$f":"EVIDENCIJA!E264","v":"00:00:00"},{"$f":"EVIDENCIJA!F264","v":"00:00:00"},{"$f":"EVIDENCIJA!G264","v":"Pominat rok"},{"$f":"EVIDENCIJA!Z264","v":0},{"$f":"EVIDENCIJA!AA264","v":0},{"$f":"EVIDENCIJA!I264","v":0},{"$f":"EVIDENCIJA!AB264","v":0}]
[{"$f":"EVIDENCIJA!A265","v":""},{"$f":"EVIDENCIJA!B265","v":0},{"$f":"EVIDENCIJA!C265","v":0},{"$f":"EVIDENCIJA!H265","v":0},{"$f":"EVIDENCIJA!E265","v":"00:00:00"},{"$f":"EVIDENCIJA!F265","v":"00:00:00"},{"$f":"EVIDENCIJA!G265","v":"Pominat rok"},{"$f":"EVIDENCIJA!Z265","v":0},{"$f":"EVIDENCIJA!AA265","v":0},{"$f":"EVIDENCIJA!I265","v":0},{"$f":"EVIDENCIJA!AB265","v":0}]
[{"$f":"EVIDENCIJA!A266","v":""},{"$f":"EVIDENCIJA!B266","v":0},{"$f":"EVIDENCIJA!C266","v":0},{"$f":"EVIDENCIJA!H266","v":0},{"$f":"EVIDENCIJA!E266","v":"00:00:00"},{"$f":"EVIDENCIJA!F266","v":"00:00:00"},{"$f":"EVIDENCIJA!G266","v":"Pominat rok"},{"$f":"EVIDENCIJA!Z266","v":0},{"$f":"EVIDENCIJA!AA266","v":0},{"$f":"EVIDENCIJA!I266","v":0},{"$f":"EVIDENCIJA!AB266","v":0}]
[{"$f":"EVIDENCIJA!A267","v":""},{"$f":"EVIDENCIJA!B267","v":0},{"$f":"EVIDENCIJA!C267","v":0},{"$f":"EVIDENCIJA!H267","v":0},{"$f":"EVIDENCIJA!E267","v":"00:00:00"},{"$f":"EVIDENCIJA!F267","v":"00:00:00"},{"$f":"EVIDENCIJA!G267","v":"Pominat rok"},{"$f":"EVIDENCIJA!Z267","v":0},{"$f":"EVIDENCIJA!AA267","v":0},{"$f":"EVIDENCIJA!I267","v":0},{"$f":"EVIDENCIJA!AB267","v":0}]
[{"$f":"EVIDENCIJA!A268","v":""},{"$f":"EVIDENCIJA!B268","v":0},{"$f":"EVIDENCIJA!C268","v":0},{"$f":"EVIDENCIJA!H268","v":0},{"$f":"EVIDENCIJA!E268","v":"00:00:00"},{"$f":"EVIDENCIJA!F268","v":"00:00:00"},{"$f":"EVIDENCIJA!G268","v":"Pominat rok"},{"$f":"EVIDENCIJA!Z268","v":0},{"$f":"EVIDENCIJA!AA268","v":0},{"$f":"EVIDENCIJA!I268","v":0},{"$f":"EVIDENCIJA!AB268","v":0}]
[{"$f":"EVIDENCIJA!A269","v":""},{"$f":"EVIDENCIJA!B269","v":0},{"$f":"EVIDENCIJA!C269","v":0},{"$f":"EVIDENCIJA!H269","v":0},{"$f":"EVIDENCIJA!E269","v":"00:00:00"},{"$f":"EVIDENCIJA!F269","v":"00:00:00"},{"$f":"EVIDENCIJA!G269","v":"Pominat rok"},{"$f":"EVIDENCIJA!Z269","v":0},{"$f":"EVIDENCIJA!AA269","v":0},{"$f":"EVIDENCIJA!I269","v":0},{"$f":"EVIDENCIJA!AB269","v":0}]
[{"$f":"EVIDENCIJA!A270","v":""},{"$f":"EVIDENCIJA!B270","v":0},{"$f":"EVIDENCIJA!C270","v":0},{"$f":"EVIDENCIJA!H270","v":0},{"$f":"EVIDENCIJA!E270","v":"00:00:00"},{"$f":"EVIDENCIJA!F270","v":"00:00:00"},{"$f":"EVIDENCIJA!G270","v":"Pominat rok"},{"$f":"EVIDENCIJA!Z270","v":0},{"$f":"EVIDENCIJA!AA270","v":0},{"$f":"EVIDENCIJA!I270","v":0},{"$f":"EVIDENCIJA!AB270","v":0}]
[{"$f":"EVIDENCIJA!A271","v":""},{"$f":"EVIDENCIJA!B271","v":0},{"$f":"EVIDENCIJA!C271","v":0},{"$f":"EVIDENCIJA!H271","v":0},{"$f":"EVIDENCIJA!E271","v":"00:00:00"},{"$f":"EVIDENCIJA!F271","v":"00:00:00"},{"$f":"EVIDENCIJA!G271","v":"Pominat rok"},{"$f":"EVIDENCIJA!Z271","v":0},{"$f":"EVIDENCIJA!AA271","v":0},{"$f":"EVIDENCIJA!I271","v":0},{"$f":"EVIDENCIJA!AB271","v":0}]
[{"$f":"EVIDENCIJA!A272","v":""},{"$f":"EVIDENCIJA!B272","v":0},{"$f":"EVIDENCIJA!C272","v":0},{"$f":"EVIDENCIJA!H272","v":0},{"$f":"EVIDENCIJA!E272","v":"00:00:00"},{"$f":"EVIDENCIJA!F272","v":"00:00:00"},{"$f":"EVIDENCIJA!G272","v":"Pominat rok"},{"$f":"EVIDENCIJA!Z272","v":0},{"$f":"EVIDENCIJA!AA272","v":0},{"$f":"EVIDENCIJA!I272","v":0},{"$f":"EVIDENCIJA!AB272","v":0}]
[{"$f":"EVIDENCIJA!A273","v":""},{"$f":"EVIDENCIJA!B273","v":0},{"$f":"EVIDENCIJA!C273","v":0},{"$f":"EVIDENCIJA!H273","v":0},{"$f":"EVIDENCIJA!E273","v":"00:00:00"},{"$f":"EVIDENCIJA!F273","v":"00:00:00"},{"$f":"EVIDENCIJA!G273","v":"Pominat rok"},{"$f":"EVIDENCIJA!Z273","v":0},{"$f":"EVIDENCIJA!AA273","v":0},{"$f":"EVIDENCIJA!I273","v":0},{"$f":"EVIDENCIJA!AB273","v":0}]
[{"$f":"EVIDENCIJA!A274","v":""},{"$f":"EVIDENCIJA!B274","v":0},{"$f":"EVIDENCIJA!C274","v":0},{"$f":"EVIDENCIJA!H274","v":0},{"$f":"EVIDENCIJA!E274","v":"00:00:00"},{"$f":"EVIDENCIJA!F274","v":"00:00:00"},{"$f":"EVIDENCIJA!G274","v":"Pominat rok"},{"$f":"EVIDENCIJA!Z274","v":0},{"$f":"EVIDENCIJA!AA274","v":0},{"$f":"EVIDENCIJA!I274","v":0},{"$f":"EVIDENCIJA!AB274","v":0}]
[{"$f":"EVIDENCIJA!A275","v":""},{"$f":"EVIDENCIJA!B275","v":0},{"$f":"EVIDENCIJA!C275","v":0},{"$f":"EVIDENCIJA!H275","v":0},{"$f":"EVIDENCIJA!E275","v":"00:00:00"},{"$f":"EVIDENCIJA!F275","v":"00:00:00"},{"$f":"EVIDENCIJA!G275","v":"Pominat rok"},{"$f":"EVIDENCIJA!Z275","v":0},{"$f":"EVIDENCIJA!AA275","v":0},{"$f":"EVIDENCIJA!I275","v":0},{"$f":"EVIDENCIJA!AB275","v":0}]
[{"$f":"EVIDENCIJA!A276","v":""},{"$f":"EVIDENCIJA!B276","v":0},{"$f":"EVIDENCIJA!C276","v":0},{"$f":"EVIDENCIJA!H276","v":0},{"$f":"EVIDENCIJA!E276","v":"00:00:00"},{"$f":"EVIDENCIJA!F276","v":"00:00:00"},{"$f":"EVIDENCIJA!G276","v":"Pominat rok"},{"$f":"EVIDENCIJA!Z276","v":0},{"$f":"EVIDENCIJA!AA276","v":0},{"$f":"EVIDENCIJA!I276","v":0},{"$f":"EVIDENCIJA!AB276","v":0}]
[{"$f":"EVIDENCIJA!A277","v":""},{"$f":"EVIDENCIJA!B277","v":0},{"$f":"EVIDENCIJA!C277","v":0},{"$f":"EVIDENCIJA!H277","v":0},{"$f":"EVIDENCIJA!E277","v":"00:00:00"},{"$f":"EVIDENCIJA!F277","v":"00:00:00"},{"$f":"EVIDENCIJA!G277","v":"Pominat rok"},{"$f":"EVIDENCIJA!Z277","v":0},{"$f":"EVIDENCIJA!AA277","v":0},{"$f":"EVIDENCIJA!I277","v":0},{"$f":"EVIDENCIJA!AB277","v":0}]
[{"$f":"EVIDENCIJA!A278","v":""},{"$f":"EVIDENCIJA!B278","v":0},{"$f":"EVIDENCIJA!C278","v":0},{"$f":"EVIDENCIJA!H278","v":0},{"$f":"EVIDENCIJA!E278","v":"00:00:00"},{"$f":"EVIDENCIJA!F278","v":"00:00:00"},{"$f":"EVIDENCIJA!G278","v":"Pominat rok"},{"$f":"EVIDENCIJA!Z278","v":0},{"$f":"EVIDENCIJA!AA278","v":0},{"$f":"EVIDENCIJA!I278","v":0},{"$f":"EVIDENCIJA!AB278","v":0}]
[{"$f":"EVIDENCIJA!A279","v":""},{"$f":"EVIDENCIJA!B279","v":0},{"$f":"EVIDENCIJA!C279","v":0},{"$f":"EVIDENCIJA!H279","v":0},{"$f":"EVIDENCIJA!E279","v":"00:00:00"},{"$f":"EVIDENCIJA!F279","v":"00:00:00"},{"$f":"EVIDENCIJA!G279","v":"Pominat rok"},{"$f":"EVIDENCIJA!Z279","v":0},{"$f":"EVIDENCIJA!AA279","v":0},{"$f":"EVIDENCIJA!I279","v":0},{"$f":"EVIDENCIJA!AB279","v":0}]
[{"$f":"EVIDENCIJA!A280","v":""},{"$f":"EVIDENCIJA!B280","v":0},{"$f":"EVIDENCIJA!C280","v":0},{"$f":"EVIDENCIJA!H280","v":0},{"$f":"EVIDENCIJA!E280","v":"00:00:00"},{"$f":"EVIDENCIJA!F280","v":"00:00:00"},{"$f":"EVIDENCIJA!G280","v":"Pominat rok"},{"$f":"EVIDENCIJA!Z280","v":0},{"$f":"EVIDENCIJA!AA280","v":0},{"$f":"EVIDENCIJA!I280","v":0},{"$f":"EVIDENCIJA!AB280","v":0}]
[{"$f":"EVIDENCIJA!A281","v":""},{"$f":"EVIDENCIJA!B281","v":0},{"$f":"EVIDENCIJA!C281","v":0},{"$f":"EVIDENCIJA!H281","v":0},{"$f":"EVIDENCIJA!E281","v":"00:00:00"},{"$f":"EVIDENCIJA!F281","v":"00:00:00"},{"$f":"EVIDENCIJA!G281","v":"Pominat rok"},{"$f":"EVIDENCIJA!Z281","v":0},{"$f":"EVIDENCIJA!AA281","v":0},{"$f":"EVIDENCIJA!I281","v":0},{"$f":"EVIDENCIJA!AB281","v":0}]
[{"$f":"EVIDENCIJA!A282","v":""},{"$f":"EVIDENCIJA!B282","v":0},{"$f":"EVIDENCIJA!C282","v":0},{"$f":"EVIDENCIJA!H282","v":0},{"$f":"EVIDENCIJA!E282","v":"00:00:00"},{"$f":"EVIDENCIJA!F282","v":"00:00:00"},{"$f":"EVIDENCIJA!G282","v":"Pominat rok"},{"$f":"EVIDENCIJA!Z282","v":0},{"$f":"EVIDENCIJA!AA282","v":0},{"$f":"EVIDENCIJA!I282","v":0},{"$f":"EVIDENCIJA!AB282","v":0}]
[{"$f":"EVIDENCIJA!A283","v":""},{"$f":"EVIDENCIJA!B283","v":0},{"$f":"EVIDENCIJA!C283","v":0},{"$f":"EVIDENCIJA!H283","v":0},{"$f":"EVIDENCIJA!E283","v":"00:00:00"},{"$f":"EVIDENCIJA!F283","v":"00:00:00"},{"$f":"EVIDENCIJA!G283","v":"Pominat rok"},{"$f":"EVIDENCIJA!Z283","v":0},{"$f":"EVIDENCIJA!AA283","v":0},{"$f":"EVIDENCIJA!I283","v":0},{"$f":"EVIDENCIJA!AB283","v":0}]
[{"$f":"EVIDENCIJA!A284","v":""},{"$f":"EVIDENCIJA!B284","v":0},{"$f":"EVIDENCIJA!C284","v":0},{"$f":"EVIDENCIJA!H284","v":0},{"$f":"EVIDENCIJA!E284","v":"00:00:00"},{"$f":"EVIDENCIJA!F284","v":"00:00:00"},{"$f":"EVIDENCIJA!G284","v":"Pominat rok"},{"$f":"EVIDENCIJA!Z284","v":0},{"$f":"EVIDENCIJA!AA284","v":0},{"$f":"EVIDENCIJA!I284","v":0},{"$f":"EVIDENCIJA!AB284","v":0}]
[{"$f":"EVIDENCIJA!A285","v":""},{"$f":"EVIDENCIJA!B285","v":0},{"$f":"EVIDENCIJA!C285","v":0},{"$f":"EVIDENCIJA!H285","v":0},{"$f":"EVIDENCIJA!E285","v":"00:00:00"},{"$f":"EVIDENCIJA!F285","v":"00:00:00"},{"$f":"EVIDENCIJA!G285","v":"Pominat rok"},{"$f":"EVIDENCIJA!Z285","v":0},{"$f":"EVIDENCIJA!AA285","v":0},{"$f":"EVIDENCIJA!I285","v":0},{"$f":"EVIDENCIJA!AB285","v":0}]
[{"$f":"EVIDENCIJA!A286","v":""},{"$f":"EVIDENCIJA!B286","v":0},{"$f":"EVIDENCIJA!C286","v":0},{"$f":"EVIDENCIJA!H286","v":0},{"$f":"EVIDENCIJA!E286","v":"00:00:00"},{"$f":"EVIDENCIJA!F286","v":"00:00:00"},{"$f":"EVIDENCIJA!G286","v":"Pominat rok"},{"$f":"EVIDENCIJA!Z286","v":0},{"$f":"EVIDENCIJA!AA286","v":0},{"$f":"EVIDENCIJA!I286","v":0},{"$f":"EVIDENCIJA!AB286","v":0}]
[{"$f":"EVIDENCIJA!A287","v":""},{"$f":"EVIDENCIJA!B287","v":0},{"$f":"EVIDENCIJA!C287","v":0},{"$f":"EVIDENCIJA!H287","v":0},{"$f":"EVIDENCIJA!E287","v":"00:00:00"},{"$f":"EVIDENCIJA!F287","v":"00:00:00"},{"$f":"EVIDENCIJA!G287","v":"Pominat rok"},{"$f":"EVIDENCIJA!Z287","v":0},{"$f":"EVIDENCIJA!AA287","v":0},{"$f":"EVIDENCIJA!I287","v":0},{"$f":"EVIDENCIJA!AB287","v":0}]
[{"$f":"EVIDENCIJA!A288","v":""},{"$f":"EVIDENCIJA!B288","v":0},{"$f":"EVIDENCIJA!C288","v":0},{"$f":"EVIDENCIJA!H288","v":0},{"$f":"EVIDENCIJA!E288","v":"00:00:00"},{"$f":"EVIDENCIJA!F288","v":"00:00:00"},{"$f":"EVIDENCIJA!G288","v":"Pominat rok"},{"$f":"EVIDENCIJA!Z288","v":0},{"$f":"EVIDENCIJA!AA288","v":0},{"$f":"EVIDENCIJA!I288","v":0},{"$f":"EVIDENCIJA!AB288","v":0}]
[{"$f":"EVIDENCIJA!A289","v":""},{"$f":"EVIDENCIJA!B289","v":0},{"$f":"EVIDENCIJA!C289","v":0},{"$f":"EVIDENCIJA!H289","v":0},{"$f":"EVIDENCIJA!E289","v":"00:00:00"},{"$f":"EVIDENCIJA!F289","v":"00:00:00"},{"$f":"EVIDENCIJA!G289","v":"Pominat rok"},{"$f":"EVIDENCIJA!Z289","v":0},{"$f":"EVIDENCIJA!AA289","v":0},{"$f":"EVIDENCIJA!I289","v":0},{"$f":"EVIDENCIJA!AB289","v":0}]
[{"$f":"EVIDENCIJA!A290","v":""},{"$f":"EVIDENCIJA!B290","v":0},{"$f":"EVIDENCIJA!C290","v":0},{"$f":"EVIDENCIJA!H290","v":0},{"$f":"EVIDENCIJA!E290","v":"00:00:00"},{"$f":"EVIDENCIJA!F290","v":"00:00:00"},{"$f":"EVIDENCIJA!G290","v":"Pominat rok"},{"$f":"EVIDENCIJA!Z290","v":0},{"$f":"EVIDENCIJA!AA290","v":0},{"$f":"EVIDENCIJA!I290","v":0},{"$f":"EVIDENCIJA!AB290","v":0}]
[{"$f":"EVIDENCIJA!A291","v":""},{"$f":"EVIDENCIJA!B291","v":0},{"$f":"EVIDENCIJA!C291","v":0},{"$f":"EVIDENCIJA!H291","v":0},{"$f":"EVIDENCIJA!E291","v":"00:00:00"},{"$f":"EVIDENCIJA!F291","v":"00:00:00"},{"$f":"EVIDENCIJA!G291","v":"Pominat rok"},{"$f":"EVIDENCIJA!Z291","v":0},{"$f":"EVIDENCIJA!AA291","v":0},{"$f":"EVIDENCIJA!I291","v":0},{"$f":"EVIDENCIJA!AB291","v":0}]
[{"$f":"EVIDENCIJA!A292","v":""},{"$f":"EVIDENCIJA!B292","v":0},{"$f":"EVIDENCIJA!C292","v":0},{"$f":"EVIDENCIJA!H292","v":0},{"$f":"EVIDENCIJA!E292","v":"00:00:00"},{"$f":"EVIDENCIJA!F292","v":"00:00:00"},{"$f":"EVIDENCIJA!G292","v":"Pominat rok"},{"$f":"EVIDENCIJA!Z292","v":0},{"$f":"EVIDENCIJA!AA292","v":0},{"$f":"EVIDENCIJA!I292","v":0},{"$f":"EVIDENCIJA!AB292","v":0}]
[{"$f":"EVIDENCIJA!A293","v":""},{"$f":"EVIDENCIJA!B293","v":0},{"$f":"EVIDENCIJA!C293","v":0},{"$f":"EVIDENCIJA!H293","v":0},{"$f":"EVIDENCIJA!E293","v":"00:00:00"},{"$f":"EVIDENCIJA!F293","v":"00:00:00"},{"$f":"EVIDENCIJA!G293","v":"Pominat rok"},{"$f":"EVIDENCIJA!Z293","v":0},{"$f":"EVIDENCIJA!AA293","v":0},{"$f":"EVIDENCIJA!I293","v":0},{"$f":"EVIDENCIJA!AB293","v":0}]
[{"$f":"EVIDENCIJA!A294","v":""},{"$f":"EVIDENCIJA!B294","v":0},{"$f":"EVIDENCIJA!C294","v":0},{"$f":"EVIDENCIJA!H294","v":0},{"$f":"EVIDENCIJA!E294","v":"00:00:00"},{"$f":"EVIDENCIJA!F294","v":"00:00:00"},{"$f":"EVIDENCIJA!G294","v":"Pominat rok"},{"$f":"EVIDENCIJA!Z294","v":0},{"$f":"EVIDENCIJA!AA294","v":0},{"$f":"EVIDENCIJA!I294","v":0},{"$f":"EVIDENCIJA!AB294","v":0}]
[{"$f":"EVIDENCIJA!A295","v":""},{"$f":"EVIDENCIJA!B295","v":0},{"$f":"EVIDENCIJA!C295","v":0},{"$f":"EVIDENCIJA!H295","v":0},{"$f":"EVIDENCIJA!E295","v":"00:00:00"},{"$f":"EVIDENCIJA!F295","v":"00:00:00"},{"$f":"EVIDENCIJA!G295","v":"Pominat rok"},{"$f":"EVIDENCIJA!Z295","v":0},{"$f":"EVIDENCIJA!AA295","v":0},{"$f":"EVIDENCIJA!I295","v":0},{"$f":"EVIDENCIJA!AB295","v":0}]
[{"$f":"EVIDENCIJA!A296","v":""},{"$f":"EVIDENCIJA!B296","v":0},{"$f":"EVIDENCIJA!C296","v":0},{"$f":"EVIDENCIJA!H296","v":0},{"$f":"EVIDENCIJA!E296","v":"00:00:00"},{"$f":"EVIDENCIJA!F296","v":"00:00:00"},{"$f":"EVIDENCIJA!G296","v":"Pominat rok"},{"$f":"EVIDENCIJA!Z296","v":0},{"$f":"EVIDENCIJA!AA296","v":0},{"$f":"EVIDENCIJA!I296","v":0},{"$f":"EVIDENCIJA!AB296","v":0}]
[{"$f":"EVIDENCIJA!A297","v":""},{"$f":"EVIDENCIJA!B297","v":0},{"$f":"EVIDENCIJA!C297","v":0},{"$f":"EVIDENCIJA!H297","v":0},{"$f":"EVIDENCIJA!E297","v":"00:00:00"},{"$f":"EVIDENCIJA!F297","v":"00:00:00"},{"$f":"EVIDENCIJA!G297","v":"Pominat rok"},{"$f":"EVIDENCIJA!Z297","v":0},{"$f":"EVIDENCIJA!AA297","v":0},{"$f":"EVIDENCIJA!I297","v":0},{"$f":"EVIDENCIJA!AB297","v":0}]
[{"$f":"EVIDENCIJA!A298","v":""},{"$f":"EVIDENCIJA!B298","v":0},{"$f":"EVIDENCIJA!C298","v":0},{"$f":"EVIDENCIJA!H298","v":0},{"$f":"EVIDENCIJA!E298","v":"00:00:00"},{"$f":"EVIDENCIJA!F298","v":"00:00:00"},{"$f":"EVIDENCIJA!G298","v":"Pominat rok"},{"$f":"EVIDENCIJA!Z298","v":0},{"$f":"EVIDENCIJA!AA298","v":0},{"$f":"EVIDENCIJA!I298","v":0},{"$f":"EVIDENCIJA!AB298","v":0}]
[{"$f":"EVIDENCIJA!A299","v":""},{"$f":"EVIDENCIJA!B299","v":0},{"$f":"EVIDENCIJA!C299","v":0},{"$f":"EVIDENCIJA!H299","v":0},{"$f":"EVIDENCIJA!E299","v":"00:00:00"},{"$f":"EVIDENCIJA!F299","v":"00:00:00"},{"$f":"EVIDENCIJA!G299","v":"Pominat rok"},{"$f":"EVIDENCIJA!Z299","v":0},{"$f":"EVIDENCIJA!AA299","v":0},{"$f":"EVIDENCIJA!I299","v":0},{"$f":"EVIDENCIJA!AB299","v":0}]
[{"$f":"EVIDENCIJA!A300","v":""},{"$f":"EVIDENCIJA!B300","v":0},{"$f":"EVIDENCIJA!C300","v":0},{"$f":"EVIDENCIJA!H300","v":0},{"$f":"EVIDENCIJA!E300","v":"00:00:00"},{"$f":"EVIDENCIJA!F300","v":"00:00:00"},{"$f":"EVIDENCIJA!G300","v":"Pominat rok"},{"$f":"EVIDENCIJA!Z300","v":0},{"$f":"EVIDENCIJA!AA300","v":0},{"$f":"EVIDENCIJA!I300","v":0},{"$f":"EVIDENCIJA!AB300","v":0}]
[{"$f":"EVIDENCIJA!A301","v":""},{"$f":"EVIDENCIJA!B301","v":0},{"$f":"EVIDENCIJA!C301","v":0},{"$f":"EVIDENCIJA!H301","v":0},{"$f":"EVIDENCIJA!E301","v":"00:00:00"},{"$f":"EVIDENCIJA!F301","v":"00:00:00"},{"$f":"EVIDENCIJA!G301","v":"Pominat rok"},{"$f":"EVIDENCIJA!Z301","v":0},{"$f":"EVIDENCIJA!AA301","v":0},{"$f":"EVIDENCIJA!I301","v":0},{"$f":"EVIDENCIJA!AB301","v":0}]
[{"$f":"EVIDENCIJA!A302","v":""},{"$f":"EVIDENCIJA!B302","v":0},{"$f":"EVIDENCIJA!C302","v":0},{"$f":"EVIDENCIJA!H302","v":0},{"$f":"EVIDENCIJA!E302","v":"00:00:00"},{"$f":"EVIDENCIJA!F302","v":"00:00:00"},{"$f":"EVIDENCIJA!G302","v":"Pominat rok"},{"$f":"EVIDENCIJA!Z302","v":0},{"$f":"EVIDENCIJA!AA302","v":0},{"$f":"EVIDENCIJA!I302","v":0},{"$f":"EVIDENCIJA!AB302","v":0}]
[{"$f":"EVIDENCIJA!A303","v":""},{"$f":"EVIDENCIJA!B303","v":0},{"$f":"EVIDENCIJA!C303","v":0},{"$f":"EVIDENCIJA!H303","v":0},{"$f":"EVIDENCIJA!E303","v":"00:00:00"},{"$f":"EVIDENCIJA!F303","v":"00:00:00"},{"$f":"EVIDENCIJA!G303","v":"Pominat rok"},{"$f":"EVIDENCIJA!Z303","v":0},{"$f":"EVIDENCIJA!AA303","v":0},{"$f":"EVIDENCIJA!I303","v":0},{"$f":"EVIDENCIJA!AB303","v":0}]
[{"$f":"EVIDENCIJA!A304","v":""},{"$f":"EVIDENCIJA!B304","v":0},{"$f":"EVIDENCIJA!C304","v":0},{"$f":"EVIDENCIJA!H304","v":0},{"$f":"EVIDENCIJA!E304","v":"00:00:00"},{"$f":"EVIDENCIJA!F304","v":"00:00:00"},{"$f":"EVIDENCIJA!G304","v":"Pominat rok"},{"$f":"EVIDENCIJA!Z304","v":0},{"$f":"EVIDENCIJA!AA304","v":0},{"$f":"EVIDENCIJA!I304","v":0},{"$f":"EVIDENCIJA!AB304","v":0}]
[{"$f":"EVIDENCIJA!A305","v":""},{"$f":"EVIDENCIJA!B305","v":0},{"$f":"EVIDENCIJA!C305","v":0},{"$f":"EVIDENCIJA!H305","v":0},{"$f":"EVIDENCIJA!E305","v":"00:00:00"},{"$f":"EVIDENCIJA!F305","v":"00:00:00"},{"$f":"EVIDENCIJA!G305","v":"Pominat rok"},{"$f":"EVIDENCIJA!Z305","v":0},{"$f":"EVIDENCIJA!AA305","v":0},{"$f":"EVIDENCIJA!I305","v":0},{"$f":"EVIDENCIJA!AB305","v":0}]
[{"$f":"EVIDENCIJA!A306","v":""},{"$f":"EVIDENCIJA!B306","v":0},{"$f":"EVIDENCIJA!C306","v":0},{"$f":"EVIDENCIJA!H306","v":0},{"$f":"EVIDENCIJA!E306","v":"00:00:00"},{"$f":"EVIDENCIJA!F306","v":"00:00:00"},{"$f":"EVIDENCIJA!G306","v":"Pominat rok"},{"$f":"EVIDENCIJA!Z306","v":0},{"$f":"EVIDENCIJA!AA306","v":0},{"$f":"EVIDENCIJA!I306","v":0},{"$f":"EVIDENCIJA!AB306","v":0}]
[{"$f":"EVIDENCIJA!A307","v":""},{"$f":"EVIDENCIJA!B307","v":0},{"$f":"EVIDENCIJA!C307","v":0},{"$f":"EVIDENCIJA!H307","v":0},{"$f":"EVIDENCIJA!E307","v":"00:00:00"},{"$f":"EVIDENCIJA!F307","v":"00:00:00"},{"$f":"EVIDENCIJA!G307","v":"Pominat rok"},{"$f":"EVIDENCIJA!Z307","v":0},{"$f":"EVIDENCIJA!AA307","v":0},{"$f":"EVIDENCIJA!I307","v":0},{"$f":"EVIDENCIJA!AB307","v":0}]
[{"$f":"EVIDENCIJA!A308","v":""},{"$f":"EVIDENCIJA!B308","v":0},{"$f":"EVIDENCIJA!C308","v":0},{"$f":"EVIDENCIJA!H308","v":0},{"$f":"EVIDENCIJA!E308","v":"00:00:00"},{"$f":"EVIDENCIJA!F308","v":"00:00:00"},{"$f":"EVIDENCIJA!G308","v":"Pominat rok"},{"$f":"EVIDENCIJA!Z308","v":0},{"$f":"EVIDENCIJA!AA308","v":0},{"$f":"EVIDENCIJA!I308","v":0},{"$f":"EVIDENCIJA!AB308","v":0}]
[{"$f":"EVIDENCIJA!A309","v":""},{"$f":"EVIDENCIJA!B309","v":0},{"$f":"EVIDENCIJA!C309","v":0},{"$f":"EVIDENCIJA!H309","v":0},{"$f":"EVIDENCIJA!E309","v":"00:00:00"},{"$f":"EVIDENCIJA!F309","v":"00:00:00"},{"$f":"EVIDENCIJA!G309","v":"Pominat rok"},{"$f":"EVIDENCIJA!Z309","v":0},{"$f":"EVIDENCIJA!AA309","v":0},{"$f":"EVIDENCIJA!I309","v":0},{"$f":"EVIDENCIJA!AB309","v":0}]
[{"$f":"EVIDENCIJA!A310","v":""},{"$f":"EVIDENCIJA!B310","v":0},{"$f":"EVIDENCIJA!C310","v":0},{"$f":"EVIDENCIJA!H310","v":0},{"$f":"EVIDENCIJA!E310","v":"00:00:00"},{"$f":"EVIDENCIJA!F310","v":"00:00:00"},{"$f":"EVIDENCIJA!G310","v":"Pominat rok"},{"$f":"EVIDENCIJA!Z310","v":0},{"$f":"EVIDENCIJA!AA310","v":0},{"$f":"EVIDENCIJA!I310","v":0},{"$f":"EVIDENCIJA!AB310","v":0}]
[{"$f":"EVIDENCIJA!A311","v":""},{"$f":"EVIDENCIJA!B311","v":0},{"$f":"EVIDENCIJA!C311","v":0},{"$f":"EVIDENCIJA!H311","v":0},{"$f":"EVIDENCIJA!E311","v":"00:00:00"},{"$f":"EVIDENCIJA!F311","v":"00:00:00"},{"$f":"EVIDENCIJA!G311","v":"Pominat rok"},{"$f":"EVIDENCIJA!Z311","v":0},{"$f":"EVIDENCIJA!AA311","v":0},{"$f":"EVIDENCIJA!I311","v":0},{"$f":"EVIDENCIJA!AB311","v":0}]
[{"$f":"EVIDENCIJA!A312","v":""},{"$f":"EVIDENCIJA!B312","v":0},{"$f":"EVIDENCIJA!C312","v":0},{"$f":"EVIDENCIJA!H312","v":0},{"$f":"EVIDENCIJA!E312","v":"00:00:00"},{"$f":"EVIDENCIJA!F312","v":"00:00:00"},{"$f":"EVIDENCIJA!G312","v":"Pominat rok"},{"$f":"EVIDENCIJA!Z312","v":0},{"$f":"EVIDENCIJA!AA312","v":0},{"$f":"EVIDENCIJA!I312","v":0},{"$f":"EVIDENCIJA!AB312","v":0}]
[{"$f":"EVIDENCIJA!A313","v":""},{"$f":"EVIDENCIJA!B313","v":0},{"$f":"EVIDENCIJA!C313","v":0},{"$f":"EVIDENCIJA!H313","v":0},{"$f":"EVIDENCIJA!E313","v":"00:00:00"},{"$f":"EVIDENCIJA!F313","v":"00:00:00"},{"$f":"EVIDENCIJA!G313","v":"Pominat rok"},{"$f":"EVIDENCIJA!Z313","v":0},{"$f":"EVIDENCIJA!AA313","v":0},{"$f":"EVIDENCIJA!I313","v":0},{"$f":"EVIDENCIJA!AB313","v":0}]
[{"$f":"EVIDENCIJA!A314","v":""},{"$f":"EVIDENCIJA!B314","v":0},{"$f":"EVIDENCIJA!C314","v":0},{"$f":"EVIDENCIJA!H314","v":0},{"$f":"EVIDENCIJA!E314","v":"00:00:00"},{"$f":"EVIDENCIJA!F314","v":"00:00:00"},{"$f":"EVIDENCIJA!G314","v":"Pominat rok"},{"$f":"EVIDENCIJA!Z314","v":0},{"$f":"EVIDENCIJA!AA314","v":0},{"$f":"EVIDENCIJA!I314","v":0},{"$f":"EVIDENCIJA!AB314","v":0}]
[{"$f":"EVIDENCIJA!A315","v":""},{"$f":"EVIDENCIJA!B315","v":0},{"$f":"EVIDENCIJA!C315","v":0},{"$f":"EVIDENCIJA!H315","v":0},{"$f":"EVIDENCIJA!E315","v":"00:00:00"},{"$f":"EVIDENCIJA!F315","v":"00:00:00"},{"$f":"EVIDENCIJA!G315","v":"Pominat rok"},{"$f":"EVIDENCIJA!Z315","v":0},{"$f":"EVIDENCIJA!AA315","v":0},{"$f":"EVIDENCIJA!I315","v":0},{"$f":"EVIDENCIJA!AB315","v":0}]
[{"$f":"EVIDENCIJA!A316","v":""},{"$f":"EVIDENCIJA!B316","v":0},{"$f":"EVIDENCIJA!C316","v":0},{"$f":"EVIDENCIJA!H316","v":0},{"$f":"EVIDENCIJA!E316","v":"00:00:00"},{"$f":"EVIDENCIJA!F316","v":"00:00:00"},{"$f":"EVIDENCIJA!G316","v":"Pominat rok"},{"$f":"EVIDENCIJA!Z316","v":0},{"$f":"EVIDENCIJA!AA316","v":0},{"$f":"EVIDENCIJA!I316","v":0},{"$f":"EVIDENCIJA!AB316","v":0}]
[{"$f":"EVIDENCIJA!A317","v":""},{"$f":"EVIDENCIJA!B317","v":0},{"$f":"EVIDENCIJA!C317","v":0},{"$f":"EVIDENCIJA!H317","v":0},{"$f":"EVIDENCIJA!E317","v":"00:00:00"},{"$f":"EVIDENCIJA!F317","v":"00:00:00"},{"$f":"EVIDENCIJA!G317","v":"Pominat rok"},{"$f":"EVIDENCIJA!Z317","v":0},{"$f":"EVIDENCIJA!AA317","v":0},{"$f":"EVIDENCIJA!I317","v":0},{"$f":"EVIDENCIJA!AB317","v":0}]
[{"$f":"EVIDENCIJA!A318","v":""},{"$f":"EVIDENCIJA!B318","v":0},{"$f":"EVIDENCIJA!C318","v":0},{"$f":"EVIDENCIJA!H318","v":0},{"$f":"EVIDENCIJA!E318","v":"00:00:00"},{"$f":"EVIDENCIJA!F318","v":"00:00:00"},{"$f":"EVIDENCIJA!G318","v":"Pominat rok"},{"$f":"EVIDENCIJA!Z318","v":0},{"$f":"EVIDENCIJA!AA318","v":0},{"$f":"EVIDENCIJA!I318","v":0},{"$f":"EVIDENCIJA!AB318","v":0}]
[{"$f":"EVIDENCIJA!A319","v":""},{"$f":"EVIDENCIJA!B319","v":0},{"$f":"EVIDENCIJA!C319","v":0},{"$f":"EVIDENCIJA!H319","v":0},{"$f":"EVIDENCIJA!E319","v":"00:00:00"},{"$f":"EVIDENCIJA!F319","v":"00:00:00"},{"$f":"EVIDENCIJA!G319","v":"Pominat rok"},{"$f":"EVIDENCIJA!Z319","v":0},{"$f":"EVIDENCIJA!AA319","v":0},{"$f":"EVIDENCIJA!I319","v":0},{"$f":"EVIDENCIJA!AB319","v":0}]
[{"$f":"EVIDENCIJA!A320","v":""},{"$f":"EVIDENCIJA!B320","v":0},{"$f":"EVIDENCIJA!C320","v":0},{"$f":"EVIDENCIJA!H320","v":0},{"$f":"EVIDENCIJA!E320","v":"00:00:00"},{"$f":"EVIDENCIJA!F320","v":"00:00:00"},{"$f":"EVIDENCIJA!G320","v":"Pominat rok"},{"$f":"EVIDENCIJA!Z320","v":0},{"$f":"EVIDENCIJA!AA320","v":0},{"$f":"EVIDENCIJA!I320","v":0},{"$f":"EVIDENCIJA!AB320","v":0}]
[{"$f":"EVIDENCIJA!A321","v":""},{"$f":"EVIDENCIJA!B321","v":0},{"$f":"EVIDENCIJA!C321","v":0},{"$f":"EVIDENCIJA!H321","v":0},{"$f":"EVIDENCIJA!E321","v":"00:00:00"},{"$f":"EVIDENCIJA!F321","v":"00:00:00"},{"$f":"EVIDENCIJA!G321","v":"Pominat rok"},{"$f":"EVIDENCIJA!Z321","v":0},{"$f":"EVIDENCIJA!AA321","v":0},{"$f":"EVIDENCIJA!I321","v":0},{"$f":"EVIDENCIJA!AB321","v":0}]
[{"$f":"EVIDENCIJA!A322","v":""},{"$f":"EVIDENCIJA!B322","v":0},{"$f":"EVIDENCIJA!C322","v":0},{"$f":"EVIDENCIJA!H322","v":0},{"$f":"EVIDENCIJA!E322","v":"00:00:00"},{"$f":"EVIDENCIJA!F322","v":"00:00:00"},{"$f":"EVIDENCIJA!G322","v":"Pominat rok"},{"$f":"EVIDENCIJA!Z322","v":0},{"$f":"EVIDENCIJA!AA322","v":0},{"$f":"EVIDENCIJA!I322","v":0},{"$f":"EVIDENCIJA!AB322","v":0}]
[{"$f":"EVIDENCIJA!A323","v":""},{"$f":"EVIDENCIJA!B323","v":0},{"$f":"EVIDENCIJA!C323","v":0},{"$f":"EVIDENCIJA!H323","v":0},{"$f":"EVIDENCIJA!E323","v":"00:00:00"},{"$f":"EVIDENCIJA!F323","v":"00:00:00"},{"$f":"EVIDENCIJA!G323","v":"Pominat rok"},{"$f":"EVIDENCIJA!Z323","v":0},{"$f":"EVIDENCIJA!AA323","v":0},{"$f":"EVIDENCIJA!I323","v":0},{"$f":"EVIDENCIJA!AB323","v":0}]
[{"$f":"EVIDENCIJA!A324","v":""},{"$f":"EVIDENCIJA!B324","v":0},{"$f":"EVIDENCIJA!C324","v":0},{"$f":"EVIDENCIJA!H324","v":0},{"$f":"EVIDENCIJA!E324","v":"00:00:00"},{"$f":"EVIDENCIJA!F324","v":"00:00:00"},{"$f":"EVIDENCIJA!G324","v":"Pominat rok"},{"$f":"EVIDENCIJA!Z324","v":0},{"$f":"EVIDENCIJA!AA324","v":0},{"$f":"EVIDENCIJA!I324","v":0},{"$f":"EVIDENCIJA!AB324","v":0}]
[{"$f":"EVIDENCIJA!A325","v":""},{"$f":"EVIDENCIJA!B325","v":0},{"$f":"EVIDENCIJA!C325","v":0},{"$f":"EVIDENCIJA!H325","v":0},{"$f":"EVIDENCIJA!E325","v":"00:00:00"},{"$f":"EVIDENCIJA!F325","v":"00:00:00"},{"$f":"EVIDENCIJA!G325","v":"Pominat rok"},{"$f":"EVIDENCIJA!Z325","v":0},{"$f":"EVIDENCIJA!AA325","v":0},{"$f":"EVIDENCIJA!I325","v":0},{"$f":"EVIDENCIJA!AB325","v":0}]
[{"$f":"EVIDENCIJA!A326","v":""},{"$f":"EVIDENCIJA!B326","v":0},{"$f":"EVIDENCIJA!C326","v":0},{"$f":"EVIDENCIJA!H326","v":0},{"$f":"EVIDENCIJA!E326","v":"00:00:00"},{"$f":"EVIDENCIJA!F326","v":"00:00:00"},{"$f":"EVIDENCIJA!G326","v":"Pominat rok"},{"$f":"EVIDENCIJA!Z326","v":0},{"$f":"EVIDENCIJA!AA326","v":0},{"$f":"EVIDENCIJA!I326","v":0},{"$f":"EVIDENCIJA!AB326","v":0}]
[{"$f":"EVIDENCIJA!A327","v":""},{"$f":"EVIDENCIJA!B327","v":0},{"$f":"EVIDENCIJA!C327","v":0},{"$f":"EVIDENCIJA!H327","v":0},{"$f":"EVIDENCIJA!E327","v":"00:00:00"},{"$f":"EVIDENCIJA!F327","v":"00:00:00"},{"$f":"EVIDENCIJA!G327","v":"Pominat rok"},{"$f":"EVIDENCIJA!Z327","v":0},{"$f":"EVIDENCIJA!AA327","v":0},{"$f":"EVIDENCIJA!I327","v":0},{"$f":"EVIDENCIJA!AB327","v":0}]
[{"$f":"EVIDENCIJA!A328","v":""},{"$f":"EVIDENCIJA!B328","v":0},{"$f":"EVIDENCIJA!C328","v":0},{"$f":"EVIDENCIJA!H328","v":0},{"$f":"EVIDENCIJA!E328","v":"00:00:00"},{"$f":"EVIDENCIJA!F328","v":"00:00:00"},{"$f":"EVIDENCIJA!G328","v":"Pominat rok"},{"$f":"EVIDENCIJA!Z328","v":0},{"$f":"EVIDENCIJA!AA328","v":0},{"$f":"EVIDENCIJA!I328","v":0},{"$f":"EVIDENCIJA!AB328","v":0}]
[{"$f":"EVIDENCIJA!A329","v":""},{"$f":"EVIDENCIJA!B329","v":0},{"$f":"EVIDENCIJA!C329","v":0},{"$f":"EVIDENCIJA!H329","v":0},{"$f":"EVIDENCIJA!E329","v":"00:00:00"},{"$f":"EVIDENCIJA!F329","v":"00:00:00"},{"$f":"EVIDENCIJA!G329","v":"Pominat rok"},{"$f":"EVIDENCIJA!Z329","v":0},{"$f":"EVIDENCIJA!AA329","v":0},{"$f":"EVIDENCIJA!I329","v":0},{"$f":"EVIDENCIJA!AB329","v":0}]
[{"$f":"EVIDENCIJA!A330","v":""},{"$f":"EVIDENCIJA!B330","v":0},{"$f":"EVIDENCIJA!C330","v":0},{"$f":"EVIDENCIJA!H330","v":0},{"$f":"EVIDENCIJA!E330","v":"00:00:00"},{"$f":"EVIDENCIJA!F330","v":"00:00:00"},{"$f":"EVIDENCIJA!G330","v":"Pominat rok"},{"$f":"EVIDENCIJA!Z330","v":0},{"$f":"EVIDENCIJA!AA330","v":0},{"$f":"EVIDENCIJA!I330","v":0},{"$f":"EVIDENCIJA!AB330","v":0}]
[{"$f":"EVIDENCIJA!A331","v":""},{"$f":"EVIDENCIJA!B331","v":0},{"$f":"EVIDENCIJA!C331","v":0},{"$f":"EVIDENCIJA!H331","v":0},{"$f":"EVIDENCIJA!E331","v":"00:00:00"},{"$f":"EVIDENCIJA!F331","v":"00:00:00"},{"$f":"EVIDENCIJA!G331","v":"Pominat rok"},{"$f":"EVIDENCIJA!Z331","v":0},{"$f":"EVIDENCIJA!AA331","v":0},{"$f":"EVIDENCIJA!I331","v":0},{"$f":"EVIDENCIJA!AB331","v":0}]
[{"$f":"EVIDENCIJA!A332","v":""},{"$f":"EVIDENCIJA!B332","v":0},{"$f":"EVIDENCIJA!C332","v":0},{"$f":"EVIDENCIJA!H332","v":0},{"$f":"EVIDENCIJA!E332","v":"00:00:00"},{"$f":"EVIDENCIJA!F332","v":"00:00:00"},{"$f":"EVIDENCIJA!G332","v":"Pominat rok"},{"$f":"EVIDENCIJA!Z332","v":0},{"$f":"EVIDENCIJA!AA332","v":0},{"$f":"EVIDENCIJA!I332","v":0},{"$f":"EVIDENCIJA!AB332","v":0}]
[{"$f":"EVIDENCIJA!A333","v":""},{"$f":"EVIDENCIJA!B333","v":0},{"$f":"EVIDENCIJA!C333","v":0},{"$f":"EVIDENCIJA!H333","v":0},{"$f":"EVIDENCIJA!E333","v":"00:00:00"},{"$f":"EVIDENCIJA!F333","v":"00:00:00"},{"$f":"EVIDENCIJA!G333","v":"Pominat rok"},{"$f":"EVIDENCIJA!Z333","v":0},{"$f":"EVIDENCIJA!AA333","v":0},{"$f":"EVIDENCIJA!I333","v":0},{"$f":"EVIDENCIJA!AB333","v":0}]
[{"$f":"EVIDENCIJA!A334","v":""},{"$f":"EVIDENCIJA!B334","v":0},{"$f":"EVIDENCIJA!C334","v":0},{"$f":"EVIDENCIJA!H334","v":0},{"$f":"EVIDENCIJA!E334","v":"00:00:00"},{"$f":"EVIDENCIJA!F334","v":"00:00:00"},{"$f":"EVIDENCIJA!G334","v":"Pominat rok"},{"$f":"EVIDENCIJA!Z334","v":0},{"$f":"EVIDENCIJA!AA334","v":0},{"$f":"EVIDENCIJA!I334","v":0},{"$f":"EVIDENCIJA!AB334","v":0}]
[{"$f":"EVIDENCIJA!A335","v":""},{"$f":"EVIDENCIJA!B335","v":0},{"$f":"EVIDENCIJA!C335","v":0},{"$f":"EVIDENCIJA!H335","v":0},{"$f":"EVIDENCIJA!E335","v":"00:00:00"},{"$f":"EVIDENCIJA!F335","v":"00:00:00"},{"$f":"EVIDENCIJA!G335","v":"Pominat rok"},{"$f":"EVIDENCIJA!Z335","v":0},{"$f":"EVIDENCIJA!AA335","v":0},{"$f":"EVIDENCIJA!I335","v":0},{"$f":"EVIDENCIJA!AB335","v":0}]
[{"$f":"EVIDENCIJA!A336","v":""},{"$f":"EVIDENCIJA!B336","v":0},{"$f":"EVIDENCIJA!C336","v":0},{"$f":"EVIDENCIJA!H336","v":0},{"$f":"EVIDENCIJA!E336","v":"00:00:00"},{"$f":"EVIDENCIJA!F336","v":"00:00:00"},{"$f":"EVIDENCIJA!G336","v":"Pominat rok"},{"$f":"EVIDENCIJA!Z336","v":0},{"$f":"EVIDENCIJA!AA336","v":0},{"$f":"EVIDENCIJA!I336","v":0},{"$f":"EVIDENCIJA!AB336","v":0}]
[{"$f":"EVIDENCIJA!A337","v":""},{"$f":"EVIDENCIJA!B337","v":0},{"$f":"EVIDENCIJA!C337","v":0},{"$f":"EVIDENCIJA!H337","v":0},{"$f":"EVIDENCIJA!E337","v":"00:00:00"},{"$f":"EVIDENCIJA!F337","v":"00:00:00"},{"$f":"EVIDENCIJA!G337","v":"Pominat rok"},{"$f":"EVIDENCIJA!Z337","v":0},{"$f":"EVIDENCIJA!AA337","v":0},{"$f":"EVIDENCIJA!I337","v":0},{"$f":"EVIDENCIJA!AB337","v":0}]
[{"$f":"EVIDENCIJA!A338","v":""},{"$f":"EVIDENCIJA!B338","v":0},{"$f":"EVIDENCIJA!C338","v":0},{"$f":"EVIDENCIJA!H338","v":0},{"$f":"EVIDENCIJA!E338","v":"00:00:00"},{"$f":"EVIDENCIJA!F338","v":"00:00:00"},{"$f":"EVIDENCIJA!G338","v":"Pominat rok"},{"$f":"EVIDENCIJA!Z338","v":0},{"$f":"EVIDENCIJA!AA338","v":0},{"$f":"EVIDENCIJA!I338","v":0},{"$f":"EVIDENCIJA!AB338","v":0}]
[{"$f":"EVIDENCIJA!A339","v":""},{"$f":"EVIDENCIJA!B339","v":0},{"$f":"EVIDENCIJA!C339","v":0},{"$f":"EVIDENCIJA!H339","v":0},{"$f":"EVIDENCIJA!E339","v":"00:00:00"},{"$f":"EVIDENCIJA!F339","v":"00:00:00"},{"$f":"EVIDENCIJA!G339","v":"Pominat rok"},{"$f":"EVIDENCIJA!Z339","v":0},{"$f":"EVIDENCIJA!AA339","v":0},{"$f":"EVIDENCIJA!I339","v":0},{"$f":"EVIDENCIJA!AB339","v":0}]
[{"$f":"EVIDENCIJA!A340","v":""},{"$f":"EVIDENCIJA!B340","v":0},{"$f":"EVIDENCIJA!C340","v":0},{"$f":"EVIDENCIJA!H340","v":0},{"$f":"EVIDENCIJA!E340","v":"00:00:00"},{"$f":"EVIDENCIJA!F340","v":"00:00:00"},{"$f":"EVIDENCIJA!G340","v":"Pominat rok"},{"$f":"EVIDENCIJA!Z340","v":0},{"$f":"EVIDENCIJA!AA340","v":0},{"$f":"EVIDENCIJA!I340","v":0},{"$f":"EVIDENCIJA!AB340","v":0}]
[{"$f":"EVIDENCIJA!A341","v":""},{"$f":"EVIDENCIJA!B341","v":0},{"$f":"EVIDENCIJA!C341","v":0},{"$f":"EVIDENCIJA!H341","v":0},{"$f":"EVIDENCIJA!E341","v":"00:00:00"},{"$f":"EVIDENCIJA!F341","v":"00:00:00"},{"$f":"EVIDENCIJA!G341","v":"Pominat rok"},{"$f":"EVIDENCIJA!Z341","v":0},{"$f":"EVIDENCIJA!AA341","v":0},{"$f":"EVIDENCIJA!I341","v":0},{"$f":"EVIDENCIJA!AB341","v":0}]
[{"$f":"EVIDENCIJA!A342","v":""},{"$f":"EVIDENCIJA!B342","v":0},{"$f":"EVIDENCIJA!C342","v":0},{"$f":"EVIDENCIJA!H342","v":0},{"$f":"EVIDENCIJA!E342","v":"00:00:00"},{"$f":"EVIDENCIJA!F342","v":"00:00:00"},{"$f":"EVIDENCIJA!G342","v":"Pominat rok"},{"$f":"EVIDENCIJA!Z342","v":0},{"$f":"EVIDENCIJA!AA342","v":0},{"$f":"EVIDENCIJA!I342","v":0},{"$f":"EVIDENCIJA!AB342","v":0}]
[{"$f":"EVIDENCIJA!A343","v":""},{"$f":"EVIDENCIJA!B343","v":0},{"$f":"EVIDENCIJA!C343","v":0},{"$f":"EVIDENCIJA!H343","v":0},{"$f":"EVIDENCIJA!E343","v":"00:00:00"},{"$f":"EVIDENCIJA!F343","v":"00:00:00"},{"$f":"EVIDENCIJA!G343","v":"Pominat rok"},{"$f":"EVIDENCIJA!Z343","v":0},{"$f":"EVIDENCIJA!AA343","v":0},{"$f":"EVIDENCIJA!I343","v":0},{"$f":"EVIDENCIJA!AB343","v":0}]
[{"$f":"EVIDENCIJA!A344","v":""},{"$f":"EVIDENCIJA!B344","v":0},{"$f":"EVIDENCIJA!C344","v":0},{"$f":"EVIDENCIJA!H344","v":0},{"$f":"EVIDENCIJA!E344","v":"00:00:00"},{"$f":"EVIDENCIJA!F344","v":"00:00:00"},{"$f":"EVIDENCIJA!G344","v":"Pominat rok"},{"$f":"EVIDENCIJA!Z344","v":0},{"$f":"EVIDENCIJA!AA344","v":0},{"$f":"EVIDENCIJA!I344","v":0},{"$f":"EVIDENCIJA!AB344","v":0}]
[{"$f":"EVIDENCIJA!A345","v":""},{"$f":"EVIDENCIJA!B345","v":0},{"$f":"EVIDENCIJA!C345","v":0},{"$f":"EVIDENCIJA!H345","v":0},{"$f":"EVIDENCIJA!E345","v":"00:00:00"},{"$f":"EVIDENCIJA!F345","v":"00:00:00"},{"$f":"EVIDENCIJA!G345","v":"Pominat rok"},{"$f":"EVIDENCIJA!Z345","v":0},{"$f":"EVIDENCIJA!AA345","v":0},{"$f":"EVIDENCIJA!I345","v":0},{"$f":"EVIDENCIJA!AB345","v":0}]
[{"$f":"EVIDENCIJA!A346","v":""},{"$f":"EVIDENCIJA!B346","v":0},{"$f":"EVIDENCIJA!C346","v":0},{"$f":"EVIDENCIJA!H346","v":0},{"$f":"EVIDENCIJA!E346","v":"00:00:00"},{"$f":"EVIDENCIJA!F346","v":"00:00:00"},{"$f":"EVIDENCIJA!G346","v":"Pominat rok"},{"$f":"EVIDENCIJA!Z346","v":0},{"$f":"EVIDENCIJA!AA346","v":0},{"$f":"EVIDENCIJA!I346","v":0},{"$f":"EVIDENCIJA!AB346","v":0}]
[{"$f":"EVIDENCIJA!A347","v":""},{"$f":"EVIDENCIJA!B347","v":0},{"$f":"EVIDENCIJA!C347","v":0},{"$f":"EVIDENCIJA!H347","v":0},{"$f":"EVIDENCIJA!E347","v":"00:00:00"},{"$f":"EVIDENCIJA!F347","v":"00:00:00"},{"$f":"EVIDENCIJA!G347","v":"Pominat rok"},{"$f":"EVIDENCIJA!Z347","v":0},{"$f":"EVIDENCIJA!AA347","v":0},{"$f":"EVIDENCIJA!I347","v":0},{"$f":"EVIDENCIJA!AB347","v":0}]
[{"$f":"EVIDENCIJA!A348","v":""},{"$f":"EVIDENCIJA!B348","v":0},{"$f":"EVIDENCIJA!C348","v":0},{"$f":"EVIDENCIJA!H348","v":0},{"$f":"EVIDENCIJA!E348","v":"00:00:00"},{"$f":"EVIDENCIJA!F348","v":"00:00:00"},{"$f":"EVIDENCIJA!G348","v":"Pominat rok"},{"$f":"EVIDENCIJA!Z348","v":0},{"$f":"EVIDENCIJA!AA348","v":0},{"$f":"EVIDENCIJA!I348","v":0},{"$f":"EVIDENCIJA!AB348","v":0}]
[{"$f":"EVIDENCIJA!A349","v":""},{"$f":"EVIDENCIJA!B349","v":0},{"$f":"EVIDENCIJA!C349","v":0},{"$f":"EVIDENCIJA!H349","v":0},{"$f":"EVIDENCIJA!E349","v":"00:00:00"},{"$f":"EVIDENCIJA!F349","v":"00:00:00"},{"$f":"EVIDENCIJA!G349","v":"Pominat rok"},{"$f":"EVIDENCIJA!Z349","v":0},{"$f":"EVIDENCIJA!AA349","v":0},{"$f":"EVIDENCIJA!I349","v":0},{"$f":"EVIDENCIJA!AB349","v":0}]
[{"$f":"EVIDENCIJA!A350","v":""},{"$f":"EVIDENCIJA!B350","v":0},{"$f":"EVIDENCIJA!C350","v":0},{"$f":"EVIDENCIJA!H350","v":0},{"$f":"EVIDENCIJA!E350","v":"00:00:00"},{"$f":"EVIDENCIJA!F350","v":"00:00:00"},{"$f":"EVIDENCIJA!G350","v":"Pominat rok"},{"$f":"EVIDENCIJA!Z350","v":0},{"$f":"EVIDENCIJA!AA350","v":0},{"$f":"EVIDENCIJA!I350","v":0},{"$f":"EVIDENCIJA!AB350","v":0}]
[{"$f":"EVIDENCIJA!A351","v":""},{"$f":"EVIDENCIJA!B351","v":0},{"$f":"EVIDENCIJA!C351","v":0},{"$f":"EVIDENCIJA!H351","v":0},{"$f":"EVIDENCIJA!E351","v":"00:00:00"},{"$f":"EVIDENCIJA!F351","v":"00:00:00"},{"$f":"EVIDENCIJA!G351","v":"Pominat rok"},{"$f":"EVIDENCIJA!Z351","v":0},{"$f":"EVIDENCIJA!AA351","v":0},{"$f":"EVIDENCIJA!I351","v":0},{"$f":"EVIDENCIJA!AB351","v":0}]
[{"$f":"EVIDENCIJA!A352","v":""},{"$f":"EVIDENCIJA!B352","v":0},{"$f":"EVIDENCIJA!C352","v":0},{"$f":"EVIDENCIJA!H352","v":0},{"$f":"EVIDENCIJA!E352","v":"00:00:00"},{"$f":"EVIDENCIJA!F352","v":"00:00:00"},{"$f":"EVIDENCIJA!G352","v":"Pominat rok"},{"$f":"EVIDENCIJA!Z352","v":0},{"$f":"EVIDENCIJA!AA352","v":0},{"$f":"EVIDENCIJA!I352","v":0},{"$f":"EVIDENCIJA!AB352","v":0}]
[{"$f":"EVIDENCIJA!A353","v":""},{"$f":"EVIDENCIJA!B353","v":0},{"$f":"EVIDENCIJA!C353","v":0},{"$f":"EVIDENCIJA!H353","v":0},{"$f":"EVIDENCIJA!E353","v":"00:00:00"},{"$f":"EVIDENCIJA!F353","v":"00:00:00"},{"$f":"EVIDENCIJA!G353","v":"Pominat rok"},{"$f":"EVIDENCIJA!Z353","v":0},{"$f":"EVIDENCIJA!AA353","v":0},{"$f":"EVIDENCIJA!I353","v":0},{"$f":"EVIDENCIJA!AB353","v":0}]
[{"$f":"EVIDENCIJA!A354","v":""},{"$f":"EVIDENCIJA!B354","v":0},{"$f":"EVIDENCIJA!C354","v":0},{"$f":"EVIDENCIJA!H354","v":0},{"$f":"EVIDENCIJA!E354","v":"00:00:00"},{"$f":"EVIDENCIJA!F354","v":"00:00:00"},{"$f":"EVIDENCIJA!G354","v":"Pominat rok"},{"$f":"EVIDENCIJA!Z354","v":0},{"$f":"EVIDENCIJA!AA354","v":0},{"$f":"EVIDENCIJA!I354","v":0},{"$f":"EVIDENCIJA!AB354","v":0}]
[{"$f":"EVIDENCIJA!A355","v":""},{"$f":"EVIDENCIJA!B355","v":0},{"$f":"EVIDENCIJA!C355","v":0},{"$f":"EVIDENCIJA!H355","v":0},{"$f":"EVIDENCIJA!E355","v":"00:00:00"},{"$f":"EVIDENCIJA!F355","v":"00:00:00"},{"$f":"EVIDENCIJA!G355","v":"Pominat rok"},{"$f":"EVIDENCIJA!Z355","v":0},{"$f":"EVIDENCIJA!AA355","v":0},{"$f":"EVIDENCIJA!I355","v":0},{"$f":"EVIDENCIJA!AB355","v":0}]
[{"$f":"EVIDENCIJA!A356","v":""},{"$f":"EVIDENCIJA!B356","v":0},{"$f":"EVIDENCIJA!C356","v":0},{"$f":"EVIDENCIJA!H356","v":0},{"$f":"EVIDENCIJA!E356","v":"00:00:00"},{"$f":"EVIDENCIJA!F356","v":"00:00:00"},{"$f":"EVIDENCIJA!G356","v":"Pominat rok"},{"$f":"EVIDENCIJA!Z356","v":0},{"$f":"EVIDENCIJA!AA356","v":0},{"$f":"EVIDENCIJA!I356","v":0},{"$f":"EVIDENCIJA!AB356","v":0}]
[{"$f":"EVIDENCIJA!A357","v":""},{"$f":"EVIDENCIJA!B357","v":0},{"$f":"EVIDENCIJA!C357","v":0},{"$f":"EVIDENCIJA!H357","v":0},{"$f":"EVIDENCIJA!E357","v":"00:00:00"},{"$f":"EVIDENCIJA!F357","v":"00:00:00"},{"$f":"EVIDENCIJA!G357","v":"Pominat rok"},{"$f":"EVIDENCIJA!Z357","v":0},{"$f":"EVIDENCIJA!AA357","v":0},{"$f":"EVIDENCIJA!I357","v":0},{"$f":"EVIDENCIJA!AB357","v":0}]
[{"$f":"EVIDENCIJA!A358","v":""},{"$f":"EVIDENCIJA!B358","v":0},{"$f":"EVIDENCIJA!C358","v":0},{"$f":"EVIDENCIJA!H358","v":0},{"$f":"EVIDENCIJA!E358","v":"00:00:00"},{"$f":"EVIDENCIJA!F358","v":"00:00:00"},{"$f":"EVIDENCIJA!G358","v":"Pominat rok"},{"$f":"EVIDENCIJA!Z358","v":0},{"$f":"EVIDENCIJA!AA358","v":0},{"$f":"EVIDENCIJA!I358","v":0},{"$f":"EVIDENCIJA!AB358","v":0}]
[{"$f":"EVIDENCIJA!A359","v":""},{"$f":"EVIDENCIJA!B359","v":0},{"$f":"EVIDENCIJA!C359","v":0},{"$f":"EVIDENCIJA!H359","v":0},{"$f":"EVIDENCIJA!E359","v":"00:00:00"},{"$f":"EVIDENCIJA!F359","v":"00:00:00"},{"$f":"EVIDENCIJA!G359","v":"Pominat rok"},{"$f":"EVIDENCIJA!Z359","v":0},{"$f":"EVIDENCIJA!AA359","v":0},{"$f":"EVIDENCIJA!I359","v":0},{"$f":"EVIDENCIJA!AB359","v":0}]
[{"$f":"EVIDENCIJA!A360","v":""},{"$f":"EVIDENCIJA!B360","v":0},{"$f":"EVIDENCIJA!C360","v":0},{"$f":"EVIDENCIJA!H360","v":0},{"$f":"EVIDENCIJA!E360","v":"00:00:00"},{"$f":"EVIDENCIJA!F360","v":"00:00:00"},{"$f":"EVIDENCIJA!G360","v":"Pominat rok"},{"$f":"EVIDENCIJA!Z360","v":0},{"$f":"EVIDENCIJA!AA360","v":0},{"$f":"EVIDENCIJA!I360","v":0},{"$f":"EVIDENCIJA!AB360","v":0}]
[{"$f":"EVIDENCIJA!A361","v":""},{"$f":"EVIDENCIJA!B361","v":0},{"$f":"EVIDENCIJA!C361","v":0},{"$f":"EVIDENCIJA!H361","v":0},{"$f":"EVIDENCIJA!E361","v":"00:00:00"},{"$f":"EVIDENCIJA!F361","v":"00:00:00"},{"$f":"EVIDENCIJA!G361","v":"Pominat rok"},{"$f":"EVIDENCIJA!Z361","v":0},{"$f":"EVIDENCIJA!AA361","v":0},{"$f":"EVIDENCIJA!I361","v":0},{"$f":"EVIDENCIJA!AB361","v":0}]
[{"$f":"EVIDENCIJA!A362","v":""},{"$f":"EVIDENCIJA!B362","v":0},{"$f":"EVIDENCIJA!C362","v":0},{"$f":"EVIDENCIJA!H362","v":0},{"$f":"EVIDENCIJA!E362","v":"00:00:00"},{"$f":"EVIDENCIJA!F362","v":"00:00:00"},{"$f":"EVIDENCIJA!G362","v":"Pominat rok"},{"$f":"EVIDENCIJA!Z362","v":0},{"$f":"EVIDENCIJA!AA362","v":0},{"$f":"EVIDENCIJA!I362","v":0},{"$f":"EVIDENCIJA!AB362","v":0}]
[{"$f":"EVIDENCIJA!A363","v":""},{"$f":"EVIDENCIJA!B363","v":0},{"$f":"EVIDENCIJA!C363","v":0},{"$f":"EVIDENCIJA!H363","v":0},{"$f":"EVIDENCIJA!E363","v":"00:00:00"},{"$f":"EVIDENCIJA!F363","v":"00:00:00"},{"$f":"EVIDENCIJA!G363","v":"Pominat rok"},{"$f":"EVIDENCIJA!Z363","v":0},{"$f":"EVIDENCIJA!AA363","v":0},{"$f":"EVIDENCIJA!I363","v":0},{"$f":"EVIDENCIJA!AB363","v":0}]
[{"$f":"EVIDENCIJA!A364","v":""},{"$f":"EVIDENCIJA!B364","v":0},{"$f":"EVIDENCIJA!C364","v":0},{"$f":"EVIDENCIJA!H364","v":0},{"$f":"EVIDENCIJA!E364","v":"00:00:00"},{"$f":"EVIDENCIJA!F364","v":"00:00:00"},{"$f":"EVIDENCIJA!G364","v":"Pominat rok"},{"$f":"EVIDENCIJA!Z364","v":0},{"$f":"EVIDENCIJA!AA364","v":0},{"$f":"EVIDENCIJA!I364","v":0},{"$f":"EVIDENCIJA!AB364","v":0}]
[{"$f":"EVIDENCIJA!A365","v":""},{"$f":"EVIDENCIJA!B365","v":0},{"$f":"EVIDENCIJA!C365","v":0},{"$f":"EVIDENCIJA!H365","v":0},{"$f":"EVIDENCIJA!E365","v":"00:00:00"},{"$f":"EVIDENCIJA!F365","v":"00:00:00"},{"$f":"EVIDENCIJA!G365","v":"Pominat rok"},{"$f":"EVIDENCIJA!Z365","v":0},{"$f":"EVIDENCIJA!AA365","v":0},{"$f":"EVIDENCIJA!I365","v":0},{"$f":"EVIDENCIJA!AB365","v":0}]
[{"$f":"EVIDENCIJA!A366","v":""},{"$f":"EVIDENCIJA!B366","v":0},{"$f":"EVIDENCIJA!C366","v":0},{"$f":"EVIDENCIJA!H366","v":0},{"$f":"EVIDENCIJA!E366","v":"00:00:00"},{"$f":"EVIDENCIJA!F366","v":"00:00:00"},{"$f":"EVIDENCIJA!G366","v":"Pominat rok"},{"$f":"EVIDENCIJA!Z366","v":0},{"$f":"EVIDENCIJA!AA366","v":0},{"$f":"EVIDENCIJA!I366","v":0},{"$f":"EVIDENCIJA!AB366","v":0}]
[{"$f":"EVIDENCIJA!A367","v":""},{"$f":"EVIDENCIJA!B367","v":0},{"$f":"EVIDENCIJA!C367","v":0},{"$f":"EVIDENCIJA!H367","v":0},{"$f":"EVIDENCIJA!E367","v":"00:00:00"},{"$f":"EVIDENCIJA!F367","v":"00:00:00"},{"$f":"EVIDENCIJA!G367","v":"Pominat rok"},{"$f":"EVIDENCIJA!Z367","v":0},{"$f":"EVIDENCIJA!AA367","v":0},{"$f":"EVIDENCIJA!I367","v":0},{"$f":"EVIDENCIJA!AB367","v":0}]
[{"$f":"EVIDENCIJA!A368","v":""},{"$f":"EVIDENCIJA!B368","v":0},{"$f":"EVIDENCIJA!C368","v":0},{"$f":"EVIDENCIJA!H368","v":0},{"$f":"EVIDENCIJA!E368","v":"00:00:00"},{"$f":"EVIDENCIJA!F368","v":"00:00:00"},{"$f":"EVIDENCIJA!G368","v":"Pominat rok"},{"$f":"EVIDENCIJA!Z368","v":0},{"$f":"EVIDENCIJA!AA368","v":0},{"$f":"EVIDENCIJA!I368","v":0},{"$f":"EVIDENCIJA!AB368","v":0}]
[{"$f":"EVIDENCIJA!A369","v":""},{"$f":"EVIDENCIJA!B369","v":0},{"$f":"EVIDENCIJA!C369","v":0},{"$f":"EVIDENCIJA!H369","v":0},{"$f":"EVIDENCIJA!E369","v":"00:00:00"},{"$f":"EVIDENCIJA!F369","v":"00:00:00"},{"$f":"EVIDENCIJA!G369","v":"Pominat rok"},{"$f":"EVIDENCIJA!Z369","v":0},{"$f":"EVIDENCIJA!AA369","v":0},{"$f":"EVIDENCIJA!I369","v":0},{"$f":"EVIDENCIJA!AB369","v":0}]
[{"$f":"EVIDENCIJA!A370","v":""},{"$f":"EVIDENCIJA!B370","v":0},{"$f":"EVIDENCIJA!C370","v":0},{"$f":"EVIDENCIJA!H370","v":0},{"$f":"EVIDENCIJA!E370","v":"00:00:00"},{"$f":"EVIDENCIJA!F370","v":"00:00:00"},{"$f":"EVIDENCIJA!G370","v":"Pominat rok"},{"$f":"EVIDENCIJA!Z370","v":0},{"$f":"EVIDENCIJA!AA370","v":0},{"$f":"EVIDENCIJA!I370","v":0},{"$f":"EVIDENCIJA!AB370","v":0}]
[{"$f":"EVIDENCIJA!A371","v":""},{"$f":"EVIDENCIJA!B371","v":0},{"$f":"EVIDENCIJA!C371","v":0},{"$f":"EVIDENCIJA!H371","v":0},{"$f":"EVIDENCIJA!E371","v":"00:00:00"},{"$f":"EVIDENCIJA!F371","v":"00:00:00"},{"$f":"EVIDENCIJA!G371","v":"Pominat rok"},{"$f":"EVIDENCIJA!Z371","v":0},{"$f":"EVIDENCIJA!AA371","v":0},{"$f":"EVIDENCIJA!I371","v":0},{"$f":"EVIDENCIJA!AB371","v":0}]
[{"$f":"EVIDENCIJA!A372","v":""},{"$f":"EVIDENCIJA!B372","v":0},{"$f":"EVIDENCIJA!C372","v":0},{"$f":"EVIDENCIJA!H372","v":0},{"$f":"EVIDENCIJA!E372","v":"00:00:00"},{"$f":"EVIDENCIJA!F372","v":"00:00:00"},{"$f":"EVIDENCIJA!G372","v":"Pominat rok"},{"$f":"EVIDENCIJA!Z372","v":0},{"$f":"EVIDENCIJA!AA372","v":0},{"$f":"EVIDENCIJA!I372","v":0},{"$f":"EVIDENCIJA!AB372","v":0}]
[{"$f":"EVIDENCIJA!A373","v":""},{"$f":"EVIDENCIJA!B373","v":0},{"$f":"EVIDENCIJA!C373","v":0},{"$f":"EVIDENCIJA!H373","v":0},{"$f":"EVIDENCIJA!E373","v":"00:00:00"},{"$f":"EVIDENCIJA!F373","v":"00:00:00"},{"$f":"EVIDENCIJA!G373","v":"Pominat rok"},{"$f":"EVIDENCIJA!Z373","v":0},{"$f":"EVIDENCIJA!AA373","v":0},{"$f":"EVIDENCIJA!I373","v":0},{"$f":"EVIDENCIJA!AB373","v":0}]
[{"$f":"EVIDENCIJA!A374","v":""},{"$f":"EVIDENCIJA!B374","v":0},{"$f":"EVIDENCIJA!C374","v":0},{"$f":"EVIDENCIJA!H374","v":0},{"$f":"EVIDENCIJA!E374","v":"00:00:00"},{"$f":"EVIDENCIJA!F374","v":"00:00:00"},{"$f":"EVIDENCIJA!G374","v":"Pominat rok"},{"$f":"EVIDENCIJA!Z374","v":0},{"$f":"EVIDENCIJA!AA374","v":0},{"$f":"EVIDENCIJA!I374","v":0},{"$f":"EVIDENCIJA!AB374","v":0}]
[{"$f":"EVIDENCIJA!A375","v":""},{"$f":"EVIDENCIJA!B375","v":0},{"$f":"EVIDENCIJA!C375","v":0},{"$f":"EVIDENCIJA!H375","v":0},{"$f":"EVIDENCIJA!E375","v":"00:00:00"},{"$f":"EVIDENCIJA!F375","v":"00:00:00"},{"$f":"EVIDENCIJA!G375","v":"Pominat rok"},{"$f":"EVIDENCIJA!Z375","v":0},{"$f":"EVIDENCIJA!AA375","v":0},{"$f":"EVIDENCIJA!I375","v":0},{"$f":"EVIDENCIJA!AB375","v":0}]
[{"$f":"EVIDENCIJA!A376","v":""},{"$f":"EVIDENCIJA!B376","v":0},{"$f":"EVIDENCIJA!C376","v":0},{"$f":"EVIDENCIJA!H376","v":0},{"$f":"EVIDENCIJA!E376","v":"00:00:00"},{"$f":"EVIDENCIJA!F376","v":"00:00:00"},{"$f":"EVIDENCIJA!G376","v":"Pominat rok"},{"$f":"EVIDENCIJA!Z376","v":0},{"$f":"EVIDENCIJA!AA376","v":0},{"$f":"EVIDENCIJA!I376","v":0},{"$f":"EVIDENCIJA!AB376","v":0}]
[{"$f":"EVIDENCIJA!A377","v":""},{"$f":"EVIDENCIJA!B377","v":0},{"$f":"EVIDENCIJA!C377","v":0},{"$f":"EVIDENCIJA!H377","v":0},{"$f":"EVIDENCIJA!E377","v":"00:00:00"},{"$f":"EVIDENCIJA!F377","v":"00:00:00"},{"$f":"EVIDENCIJA!G377","v":"Pominat rok"},{"$f":"EVIDENCIJA!Z377","v":0},{"$f":"EVIDENCIJA!AA377","v":0},{"$f":"EVIDENCIJA!I377","v":0},{"$f":"EVIDENCIJA!AB377","v":0}]
[{"$f":"EVIDENCIJA!A378","v":""},{"$f":"EVIDENCIJA!B378","v":0},{"$f":"EVIDENCIJA!C378","v":0},{"$f":"EVIDENCIJA!H378","v":0},{"$f":"EVIDENCIJA!E378","v":"00:00:00"},{"$f":"EVIDENCIJA!F378","v":"00:00:00"},{"$f":"EVIDENCIJA!G378","v":"Pominat rok"},{"$f":"EVIDENCIJA!Z378","v":0},{"$f":"EVIDENCIJA!AA378","v":0},{"$f":"EVIDENCIJA!I378","v":0},{"$f":"EVIDENCIJA!AB378","v":0}]
[{"$f":"EVIDENCIJA!A379","v":""},{"$f":"EVIDENCIJA!B379","v":0},{"$f":"EVIDENCIJA!C379","v":0},{"$f":"EVIDENCIJA!H379","v":0},{"$f":"EVIDENCIJA!E379","v":"00:00:00"},{"$f":"EVIDENCIJA!F379","v":"00:00:00"},{"$f":"EVIDENCIJA!G379","v":"Pominat rok"},{"$f":"EVIDENCIJA!Z379","v":0},{"$f":"EVIDENCIJA!AA379","v":0},{"$f":"EVIDENCIJA!I379","v":0},{"$f":"EVIDENCIJA!AB379","v":0}]
[{"$f":"EVIDENCIJA!A380","v":""},{"$f":"EVIDENCIJA!B380","v":0},{"$f":"EVIDENCIJA!C380","v":0},{"$f":"EVIDENCIJA!H380","v":0},{"$f":"EVIDENCIJA!E380","v":"00:00:00"},{"$f":"EVIDENCIJA!F380","v":"00:00:00"},{"$f":"EVIDENCIJA!G380","v":"Pominat rok"},{"$f":"EVIDENCIJA!Z380","v":0},{"$f":"EVIDENCIJA!AA380","v":0},{"$f":"EVIDENCIJA!I380","v":0},{"$f":"EVIDENCIJA!AB380","v":0}]
[{"$f":"EVIDENCIJA!A381","v":""},{"$f":"EVIDENCIJA!B381","v":0},{"$f":"EVIDENCIJA!C381","v":0},{"$f":"EVIDENCIJA!H381","v":0},{"$f":"EVIDENCIJA!E381","v":"00:00:00"},{"$f":"EVIDENCIJA!F381","v":"00:00:00"},{"$f":"EVIDENCIJA!G381","v":"Pominat rok"},{"$f":"EVIDENCIJA!Z381","v":0},{"$f":"EVIDENCIJA!AA381","v":0},{"$f":"EVIDENCIJA!I381","v":0},{"$f":"EVIDENCIJA!AB381","v":0}]
[{"$f":"EVIDENCIJA!A382","v":""},{"$f":"EVIDENCIJA!B382","v":0},{"$f":"EVIDENCIJA!C382","v":0},{"$f":"EVIDENCIJA!H382","v":0},{"$f":"EVIDENCIJA!E382","v":"00:00:00"},{"$f":"EVIDENCIJA!F382","v":"00:00:00"},{"$f":"EVIDENCIJA!G382","v":"Pominat rok"},{"$f":"EVIDENCIJA!Z382","v":0},{"$f":"EVIDENCIJA!AA382","v":0},{"$f":"EVIDENCIJA!I382","v":0},{"$f":"EVIDENCIJA!AB382","v":0}]
[{"$f":"EVIDENCIJA!A383","v":""},{"$f":"EVIDENCIJA!B383","v":0},{"$f":"EVIDENCIJA!C383","v":0},{"$f":"EVIDENCIJA!H383","v":0},{"$f":"EVIDENCIJA!E383","v":"00:00:00"},{"$f":"EVIDENCIJA!F383","v":"00:00:00"},{"$f":"EVIDENCIJA!G383","v":"Pominat rok"},{"$f":"EVIDENCIJA!Z383","v":0},{"$f":"EVIDENCIJA!AA383","v":0},{"$f":"EVIDENCIJA!I383","v":0},{"$f":"EVIDENCIJA!AB383","v":0}]
[{"$f":"EVIDENCIJA!A384","v":""},{"$f":"EVIDENCIJA!B384","v":0},{"$f":"EVIDENCIJA!C384","v":0},{"$f":"EVIDENCIJA!H384","v":0},{"$f":"EVIDENCIJA!E384","v":"00:00:00"},{"$f":"EVIDENCIJA!F384","v":"00:00:00"},{"$f":"EVIDENCIJA!G384","v":"Pominat rok"},{"$f":"EVIDENCIJA!Z384","v":0},{"$f":"EVIDENCIJA!AA384","v":0},{"$f":"EVIDENCIJA!I384","v":0},{"$f":"EVIDENCIJA!AB384","v":0}]
[{"$f":"EVIDENCIJA!A385","v":""},{"$f":"EVIDENCIJA!B385","v":0},{"$f":"EVIDENCIJA!C385","v":0},{"$f":"EVIDENCIJA!H385","v":0},{"$f":"EVIDENCIJA!E385","v":"00:00:00"},{"$f":"EVIDENCIJA!F385","v":"00:00:00"},{"$f":"EVIDENCIJA!G385","v":"Pominat rok"},{"$f":"EVIDENCIJA!Z385","v":0},{"$f":"EVIDENCIJA!AA385","v":0},{"$f":"EVIDENCIJA!I385","v":0},{"$f":"EVIDENCIJA!AB385","v":0}]
[{"$f":"EVIDENCIJA!A386","v":""},{"$f":"EVIDENCIJA!B386","v":0},{"$f":"EVIDENCIJA!C386","v":0},{"$f":"EVIDENCIJA!H386","v":0},{"$f":"EVIDENCIJA!E386","v":"00:00:00"},{"$f":"EVIDENCIJA!F386","v":"00:00:00"},{"$f":"EVIDENCIJA!G386","v":"Pominat rok"},{"$f":"EVIDENCIJA!Z386","v":0},{"$f":"EVIDENCIJA!AA386","v":0},{"$f":"EVIDENCIJA!I386","v":0},{"$f":"EVIDENCIJA!AB386","v":0}]
[{"$f":"EVIDENCIJA!A387","v":""},{"$f":"EVIDENCIJA!B387","v":0},{"$f":"EVIDENCIJA!C387","v":0},{"$f":"EVIDENCIJA!H387","v":0},{"$f":"EVIDENCIJA!E387","v":"00:00:00"},{"$f":"EVIDENCIJA!F387","v":"00:00:00"},{"$f":"EVIDENCIJA!G387","v":"Pominat rok"},{"$f":"EVIDENCIJA!Z387","v":0},{"$f":"EVIDENCIJA!AA387","v":0},{"$f":"EVIDENCIJA!I387","v":0},{"$f":"EVIDENCIJA!AB387","v":0}]
[{"$f":"EVIDENCIJA!A388","v":""},{"$f":"EVIDENCIJA!B388","v":0},{"$f":"EVIDENCIJA!C388","v":0},{"$f":"EVIDENCIJA!H388","v":0},{"$f":"EVIDENCIJA!E388","v":"00:00:00"},{"$f":"EVIDENCIJA!F388","v":"00:00:00"},{"$f":"EVIDENCIJA!G388","v":"Pominat rok"},{"$f":"EVIDENCIJA!Z388","v":0},{"$f":"EVIDENCIJA!AA388","v":0},{"$f":"EVIDENCIJA!I388","v":0},{"$f":"EVIDENCIJA!AB388","v":0}]
[{"$f":"EVIDENCIJA!A389","v":""},{"$f":"EVIDENCIJA!B389","v":0},{"$f":"EVIDENCIJA!C389","v":0},{"$f":"EVIDENCIJA!H389","v":0},{"$f":"EVIDENCIJA!E389","v":"00:00:00"},{"$f":"EVIDENCIJA!F389","v":"00:00:00"},{"$f":"EVIDENCIJA!G389","v":"Pominat rok"},{"$f":"EVIDENCIJA!Z389","v":0},{"$f":"EVIDENCIJA!AA389","v":0},{"$f":"EVIDENCIJA!I389","v":0},{"$f":"EVIDENCIJA!AB389","v":0}]
[{"$f":"EVIDENCIJA!A390","v":""},{"$f":"EVIDENCIJA!B390","v":0},{"$f":"EVIDENCIJA!C390","v":0},{"$f":"EVIDENCIJA!H390","v":0},{"$f":"EVIDENCIJA!E390","v":"00:00:00"},{"$f":"EVIDENCIJA!F390","v":"00:00:00"},{"$f":"EVIDENCIJA!G390","v":"Pominat rok"},{"$f":"EVIDENCIJA!Z390","v":0},{"$f":"EVIDENCIJA!AA390","v":0},{"$f":"EVIDENCIJA!I390","v":0},{"$f":"EVIDENCIJA!AB390","v":0}]
[{"$f":"EVIDENCIJA!A391","v":""},{"$f":"EVIDENCIJA!B391","v":0},{"$f":"EVIDENCIJA!C391","v":0},{"$f":"EVIDENCIJA!H391","v":0},{"$f":"EVIDENCIJA!E391","v":"00:00:00"},{"$f":"EVIDENCIJA!F391","v":"00:00:00"},{"$f":"EVIDENCIJA!G391","v":"Pominat rok"},{"$f":"EVIDENCIJA!Z391","v":0},{"$f":"EVIDENCIJA!AA391","v":0},{"$f":"EVIDENCIJA!I391","v":0},{"$f":"EVIDENCIJA!AB391","v":0}]
[{"$f":"EVIDENCIJA!A392","v":""},{"$f":"EVIDENCIJA!B392","v":0},{"$f":"EVIDENCIJA!C392","v":0},{"$f":"EVIDENCIJA!H392","v":0},{"$f":"EVIDENCIJA!E392","v":"00:00:00"},{"$f":"EVIDENCIJA!F392","v":"00:00:00"},{"$f":"EVIDENCIJA!G392","v":"Pominat rok"},{"$f":"EVIDENCIJA!Z392","v":0},{"$f":"EVIDENCIJA!AA392","v":0},{"$f":"EVIDENCIJA!I392","v":0},{"$f":"EVIDENCIJA!AB392","v":0}]
[{"$f":"EVIDENCIJA!A393","v":""},{"$f":"EVIDENCIJA!B393","v":0},{"$f":"EVIDENCIJA!C393","v":0},{"$f":"EVIDENCIJA!H393","v":0},{"$f":"EVIDENCIJA!E393","v":"00:00:00"},{"$f":"EVIDENCIJA!F393","v":"00:00:00"},{"$f":"EVIDENCIJA!G393","v":"Pominat rok"},{"$f":"EVIDENCIJA!Z393","v":0},{"$f":"EVIDENCIJA!AA393","v":0},{"$f":"EVIDENCIJA!I393","v":0},{"$f":"EVIDENCIJA!AB393","v":0}]
[{"$f":"EVIDENCIJA!A394","v":""},{"$f":"EVIDENCIJA!B394","v":0},{"$f":"EVIDENCIJA!C394","v":0},{"$f":"EVIDENCIJA!H394","v":0},{"$f":"EVIDENCIJA!E394","v":"00:00:00"},{"$f":"EVIDENCIJA!F394","v":"00:00:00"},{"$f":"EVIDENCIJA!G394","v":"Pominat rok"},{"$f":"EVIDENCIJA!Z394","v":0},{"$f":"EVIDENCIJA!AA394","v":0},{"$f":"EVIDENCIJA!I394","v":0},{"$f":"EVIDENCIJA!AB394","v":0}]
[{"$f":"EVIDENCIJA!A395","v":""},{"$f":"EVIDENCIJA!B395","v":0},{"$f":"EVIDENCIJA!C395","v":0},{"$f":"EVIDENCIJA!H395","v":0},{"$f":"EVIDENCIJA!E395","v":"00:00:00"},{"$f":"EVIDENCIJA!F395","v":"00:00:00"},{"$f":"EVIDENCIJA!G395","v":"Pominat rok"},{"$f":"EVIDENCIJA!Z395","v":0},{"$f":"EVIDENCIJA!AA395","v":0},{"$f":"EVIDENCIJA!I395","v":0},{"$f":"EVIDENCIJA!AB395","v":0}]
[{"$f":"EVIDENCIJA!A396","v":""},{"$f":"EVIDENCIJA!B396","v":0},{"$f":"EVIDENCIJA!C396","v":0},{"$f":"EVIDENCIJA!H396","v":0},{"$f":"EVIDENCIJA!E396","v":"00:00:00"},{"$f":"EVIDENCIJA!F396","v":"00:00:00"},{"$f":"EVIDENCIJA!G396","v":"Pominat rok"},{"$f":"EVIDENCIJA!Z396","v":0},{"$f":"EVIDENCIJA!AA396","v":0},{"$f":"EVIDENCIJA!I396","v":0},{"$f":"EVIDENCIJA!AB396","v":0}]
[{"$f":"EVIDENCIJA!A397","v":""},{"$f":"EVIDENCIJA!B397","v":0},{"$f":"EVIDENCIJA!C397","v":0},{"$f":"EVIDENCIJA!H397","v":0},{"$f":"EVIDENCIJA!E397","v":"00:00:00"},{"$f":"EVIDENCIJA!F397","v":"00:00:00"},{"$f":"EVIDENCIJA!G397","v":"Pominat rok"},{"$f":"EVIDENCIJA!Z397","v":0},{"$f":"EVIDENCIJA!AA397","v":0},{"$f":"EVIDENCIJA!I397","v":0},{"$f":"EVIDENCIJA!AB397","v":0}]
[{"$f":"EVIDENCIJA!A398","v":""},{"$f":"EVIDENCIJA!B398","v":0},{"$f":"EVIDENCIJA!C398","v":0},{"$f":"EVIDENCIJA!H398","v":0},{"$f":"EVIDENCIJA!E398","v":"00:00:00"},{"$f":"EVIDENCIJA!F398","v":"00:00:00"},{"$f":"EVIDENCIJA!G398","v":"Pominat rok"},{"$f":"EVIDENCIJA!Z398","v":0},{"$f":"EVIDENCIJA!AA398","v":0},{"$f":"EVIDENCIJA!I398","v":0},{"$f":"EVIDENCIJA!AB398","v":0}]
[{"$f":"EVIDENCIJA!A399","v":""},{"$f":"EVIDENCIJA!B399","v":0},{"$f":"EVIDENCIJA!C399","v":0},{"$f":"EVIDENCIJA!H399","v":0},{"$f":"EVIDENCIJA!E399","v":"00:00:00"},{"$f":"EVIDENCIJA!F399","v":"00:00:00"},{"$f":"EVIDENCIJA!G399","v":"Pominat rok"},{"$f":"EVIDENCIJA!Z399","v":0},{"$f":"EVIDENCIJA!AA399","v":0},{"$f":"EVIDENCIJA!I399","v":0},{"$f":"EVIDENCIJA!AB399","v":0}]
[{"$f":"EVIDENCIJA!A400","v":""},{"$f":"EVIDENCIJA!B400","v":0},{"$f":"EVIDENCIJA!C400","v":0},{"$f":"EVIDENCIJA!H400","v":0},{"$f":"EVIDENCIJA!E400","v":"00:00:00"},{"$f":"EVIDENCIJA!F400","v":"00:00:00"},{"$f":"EVIDENCIJA!G400","v":"Pominat rok"},{"$f":"EVIDENCIJA!Z400","v":0},{"$f":"EVIDENCIJA!AA400","v":0},{"$f":"EVIDENCIJA!I400","v":0},{"$f":"EVIDENCIJA!AB400","v":0}]
[{"$f":"EVIDENCIJA!A401","v":""},{"$f":"EVIDENCIJA!B401","v":0},{"$f":"EVIDENCIJA!C401","v":0},{"$f":"EVIDENCIJA!H401","v":0},{"$f":"EVIDENCIJA!E401","v":"00:00:00"},{"$f":"EVIDENCIJA!F401","v":"00:00:00"},{"$f":"EVIDENCIJA!G401","v":"Pominat rok"},{"$f":"EVIDENCIJA!Z401","v":0},{"$f":"EVIDENCIJA!AA401","v":0},{"$f":"EVIDENCIJA!I401","v":0},{"$f":"EVIDENCIJA!AB401","v":0}]
[{"$f":"EVIDENCIJA!A402","v":""},{"$f":"EVIDENCIJA!B402","v":0},{"$f":"EVIDENCIJA!C402","v":0},{"$f":"EVIDENCIJA!H402","v":0},{"$f":"EVIDENCIJA!E402","v":"00:00:00"},{"$f":"EVIDENCIJA!F402","v":"00:00:00"},{"$f":"EVIDENCIJA!G402","v":"Pominat rok"},{"$f":"EVIDENCIJA!Z402","v":0},{"$f":"EVIDENCIJA!AA402","v":0},{"$f":"EVIDENCIJA!I402","v":0},{"$f":"EVIDENCIJA!AB402","v":0}]
[{"$f":"EVIDENCIJA!A403","v":""},{"$f":"EVIDENCIJA!B403","v":0},{"$f":"EVIDENCIJA!C403","v":0},{"$f":"EVIDENCIJA!H403","v":0},{"$f":"EVIDENCIJA!E403","v":"00:00:00"},{"$f":"EVIDENCIJA!F403","v":"00:00:00"},{"$f":"EVIDENCIJA!G403","v":"Pominat rok"},{"$f":"EVIDENCIJA!Z403","v":0},{"$f":"EVIDENCIJA!AA403","v":0},{"$f":"EVIDENCIJA!I403","v":0},{"$f":"EVIDENCIJA!AB403","v":0}]
[{"$f":"EVIDENCIJA!A404","v":""},{"$f":"EVIDENCIJA!B404","v":0},{"$f":"EVIDENCIJA!C404","v":0},{"$f":"EVIDENCIJA!H404","v":0},{"$f":"EVIDENCIJA!E404","v":"00:00:00"},{"$f":"EVIDENCIJA!F404","v":"00:00:00"},{"$f":"EVIDENCIJA!G404","v":"Pominat rok"},{"$f":"EVIDENCIJA!Z404","v":0},{"$f":"EVIDENCIJA!AA404","v":0},{"$f":"EVIDENCIJA!I404","v":0},{"$f":"EVIDENCIJA!AB404","v":0}]
[{"$f":"EVIDENCIJA!A405","v":""},{"$f":"EVIDENCIJA!B405","v":0},{"$f":"EVIDENCIJA!C405","v":0},{"$f":"EVIDENCIJA!H405","v":0},{"$f":"EVIDENCIJA!E405","v":"00:00:00"},{"$f":"EVIDENCIJA!F405","v":"00:00:00"},{"$f":"EVIDENCIJA!G405","v":"Pominat rok"},{"$f":"EVIDENCIJA!Z405","v":0},{"$f":"EVIDENCIJA!AA405","v":0},{"$f":"EVIDENCIJA!I405","v":0},{"$f":"EVIDENCIJA!AB405","v":0}]
[{"$f":"EVIDENCIJA!A406","v":""},{"$f":"EVIDENCIJA!B406","v":0},{"$f":"EVIDENCIJA!C406","v":0},{"$f":"EVIDENCIJA!H406","v":0},{"$f":"EVIDENCIJA!E406","v":"00:00:00"},{"$f":"EVIDENCIJA!F406","v":"00:00:00"},{"$f":"EVIDENCIJA!G406","v":"Pominat rok"},{"$f":"EVIDENCIJA!Z406","v":0},{"$f":"EVIDENCIJA!AA406","v":0},{"$f":"EVIDENCIJA!I406","v":0},{"$f":"EVIDENCIJA!AB406","v":0}]
[{"$f":"EVIDENCIJA!A407","v":""},{"$f":"EVIDENCIJA!B407","v":0},{"$f":"EVIDENCIJA!C407","v":0},{"$f":"EVIDENCIJA!H407","v":0},{"$f":"EVIDENCIJA!E407","v":"00:00:00"},{"$f":"EVIDENCIJA!F407","v":"00:00:00"},{"$f":"EVIDENCIJA!G407","v":"Pominat rok"},{"$f":"EVIDENCIJA!Z407","v":0},{"$f":"EVIDENCIJA!AA407","v":0},{"$f":"EVIDENCIJA!I407","v":0},{"$f":"EVIDENCIJA!AB407","v":0}]
[{"$f":"EVIDENCIJA!A408","v":""},{"$f":"EVIDENCIJA!B408","v":0},{"$f":"EVIDENCIJA!C408","v":0},{"$f":"EVIDENCIJA!H408","v":0},{"$f":"EVIDENCIJA!E408","v":"00:00:00"},{"$f":"EVIDENCIJA!F408","v":"00:00:00"},{"$f":"EVIDENCIJA!G408","v":"Pominat rok"},{"$f":"EVIDENCIJA!Z408","v":0},{"$f":"EVIDENCIJA!AA408","v":0},{"$f":"EVIDENCIJA!I408","v":0},{"$f":"EVIDENCIJA!AB408","v":0}]
[{"$f":"EVIDENCIJA!A409","v":""},{"$f":"EVIDENCIJA!B409","v":0},{"$f":"EVIDENCIJA!C409","v":0},{"$f":"EVIDENCIJA!H409","v":0},{"$f":"EVIDENCIJA!E409","v":"00:00:00"},{"$f":"EVIDENCIJA!F409","v":"00:00:00"},{"$f":"EVIDENCIJA!G409","v":"Pominat rok"},{"$f":"EVIDENCIJA!Z409","v":0},{"$f":"EVIDENCIJA!AA409","v":0},{"$f":"EVIDENCIJA!I409","v":0},{"$f":"EVIDENCIJA!AB409","v":0}]
[{"$f":"EVIDENCIJA!A410","v":""},{"$f":"EVIDENCIJA!B410","v":0},{"$f":"EVIDENCIJA!C410","v":0},{"$f":"EVIDENCIJA!H410","v":0},{"$f":"EVIDENCIJA!E410","v":"00:00:00"},{"$f":"EVIDENCIJA!F410","v":"00:00:00"},{"$f":"EVIDENCIJA!G410","v":"Pominat rok"},{"$f":"EVIDENCIJA!Z410","v":0},{"$f":"EVIDENCIJA!AA410","v":0},{"$f":"EVIDENCIJA!I410","v":0},{"$f":"EVIDENCIJA!AB410","v":0}]
[{"$f":"EVIDENCIJA!A411","v":""},{"$f":"EVIDENCIJA!B411","v":0},{"$f":"EVIDENCIJA!C411","v":0},{"$f":"EVIDENCIJA!H411","v":0},{"$f":"EVIDENCIJA!E411","v":"00:00:00"},{"$f":"EVIDENCIJA!F411","v":"00:00:00"},{"$f":"EVIDENCIJA!G411","v":"Pominat rok"},{"$f":"EVIDENCIJA!Z411","v":0},{"$f":"EVIDENCIJA!AA411","v":0},{"$f":"EVIDENCIJA!I411","v":0},{"$f":"EVIDENCIJA!AB411","v":0}]
[{"$f":"EVIDENCIJA!A412","v":""},{"$f":"EVIDENCIJA!B412","v":0},{"$f":"EVIDENCIJA!C412","v":0},{"$f":"EVIDENCIJA!H412","v":0},{"$f":"EVIDENCIJA!E412","v":"00:00:00"},{"$f":"EVIDENCIJA!F412","v":"00:00:00"},{"$f":"EVIDENCIJA!G412","v":"Pominat rok"},{"$f":"EVIDENCIJA!Z412","v":0},{"$f":"EVIDENCIJA!AA412","v":0},{"$f":"EVIDENCIJA!I412","v":0},{"$f":"EVIDENCIJA!AB412","v":0}]
[{"$f":"EVIDENCIJA!A413","v":""},{"$f":"EVIDENCIJA!B413","v":0},{"$f":"EVIDENCIJA!C413","v":0},{"$f":"EVIDENCIJA!H413","v":0},{"$f":"EVIDENCIJA!E413","v":"00:00:00"},{"$f":"EVIDENCIJA!F413","v":"00:00:00"},{"$f":"EVIDENCIJA!G413","v":"Pominat rok"},{"$f":"EVIDENCIJA!Z413","v":0},{"$f":"EVIDENCIJA!AA413","v":0},{"$f":"EVIDENCIJA!I413","v":0},{"$f":"EVIDENCIJA!AB413","v":0}]
[{"$f":"EVIDENCIJA!A414","v":""},{"$f":"EVIDENCIJA!B414","v":0},{"$f":"EVIDENCIJA!C414","v":0},{"$f":"EVIDENCIJA!H414","v":0},{"$f":"EVIDENCIJA!E414","v":"00:00:00"},{"$f":"EVIDENCIJA!F414","v":"00:00:00"},{"$f":"EVIDENCIJA!G414","v":"Pominat rok"},{"$f":"EVIDENCIJA!Z414","v":0},{"$f":"EVIDENCIJA!AA414","v":0},{"$f":"EVIDENCIJA!I414","v":0},{"$f":"EVIDENCIJA!AB414","v":0}]
[{"$f":"EVIDENCIJA!A415","v":""},{"$f":"EVIDENCIJA!B415","v":0},{"$f":"EVIDENCIJA!C415","v":0},{"$f":"EVIDENCIJA!H415","v":0},{"$f":"EVIDENCIJA!E415","v":"00:00:00"},{"$f":"EVIDENCIJA!F415","v":"00:00:00"},{"$f":"EVIDENCIJA!G415","v":"Pominat rok"},{"$f":"EVIDENCIJA!Z415","v":0},{"$f":"EVIDENCIJA!AA415","v":0},{"$f":"EVIDENCIJA!I415","v":0},{"$f":"EVIDENCIJA!AB415","v":0}]
[{"$f":"EVIDENCIJA!A416","v":""},{"$f":"EVIDENCIJA!B416","v":0},{"$f":"EVIDENCIJA!C416","v":0},{"$f":"EVIDENCIJA!H416","v":0},{"$f":"EVIDENCIJA!E416","v":"00:00:00"},{"$f":"EVIDENCIJA!F416","v":"00:00:00"},{"$f":"EVIDENCIJA!G416","v":"Pominat rok"},{"$f":"EVIDENCIJA!Z416","v":0},{"$f":"EVIDENCIJA!AA416","v":0},{"$f":"EVIDENCIJA!I416","v":0},{"$f":"EVIDENCIJA!AB416","v":0}]
[{"$f":"EVIDENCIJA!A417","v":""},{"$f":"EVIDENCIJA!B417","v":0},{"$f":"EVIDENCIJA!C417","v":0},{"$f":"EVIDENCIJA!H417","v":0},{"$f":"EVIDENCIJA!E417","v":"00:00:00"},{"$f":"EVIDENCIJA!F417","v":"00:00:00"},{"$f":"EVIDENCIJA!G417","v":"Pominat rok"},{"$f":"EVIDENCIJA!Z417","v":0},{"$f":"EVIDENCIJA!AA417","v":0},{"$f":"EVIDENCIJA!I417","v":0},{"$f":"EVIDENCIJA!AB417","v":0}]
[{"$f":"EVIDENCIJA!A418","v":""},{"$f":"EVIDENCIJA!B418","v":0},{"$f":"EVIDENCIJA!C418","v":0},{"$f":"EVIDENCIJA!H418","v":0},{"$f":"EVIDENCIJA!E418","v":"00:00:00"},{"$f":"EVIDENCIJA!F418","v":"00:00:00"},{"$f":"EVIDENCIJA!G418","v":"Pominat rok"},{"$f":"EVIDENCIJA!Z418","v":0},{"$f":"EVIDENCIJA!AA418","v":0},{"$f":"EVIDENCIJA!I418","v":0},{"$f":"EVIDENCIJA!AB418","v":0}]
[{"$f":"EVIDENCIJA!A419","v":""},{"$f":"EVIDENCIJA!B419","v":0},{"$f":"EVIDENCIJA!C419","v":0},{"$f":"EVIDENCIJA!H419","v":0},{"$f":"EVIDENCIJA!E419","v":"00:00:00"},{"$f":"EVIDENCIJA!F419","v":"00:00:00"},{"$f":"EVIDENCIJA!G419","v":"Pominat rok"},{"$f":"EVIDENCIJA!Z419","v":0},{"$f":"EVIDENCIJA!AA419","v":0},{"$f":"EVIDENCIJA!I419","v":0},{"$f":"EVIDENCIJA!AB419","v":0}]
[{"$f":"EVIDENCIJA!A420","v":""},{"$f":"EVIDENCIJA!B420","v":0},{"$f":"EVIDENCIJA!C420","v":0},{"$f":"EVIDENCIJA!H420","v":0},{"$f":"EVIDENCIJA!E420","v":"00:00:00"},{"$f":"EVIDENCIJA!F420","v":"00:00:00"},{"$f":"EVIDENCIJA!G420","v":"Pominat rok"},{"$f":"EVIDENCIJA!Z420","v":0},{"$f":"EVIDENCIJA!AA420","v":0},{"$f":"EVIDENCIJA!I420","v":0},{"$f":"EVIDENCIJA!AB420","v":0}]
[{"$f":"EVIDENCIJA!A421","v":""},{"$f":"EVIDENCIJA!B421","v":0},{"$f":"EVIDENCIJA!C421","v":0},{"$f":"EVIDENCIJA!H421","v":0},{"$f":"EVIDENCIJA!E421","v":"00:00:00"},{"$f":"EVIDENCIJA!F421","v":"00:00:00"},{"$f":"EVIDENCIJA!G421","v":"Pominat rok"},{"$f":"EVIDENCIJA!Z421","v":0},{"$f":"EVIDENCIJA!AA421","v":0},{"$f":"EVIDENCIJA!I421","v":0},{"$f":"EVIDENCIJA!AB421","v":0}]
[{"$f":"EVIDENCIJA!A422","v":""},{"$f":"EVIDENCIJA!B422","v":0},{"$f":"EVIDENCIJA!C422","v":0},{"$f":"EVIDENCIJA!H422","v":0},{"$f":"EVIDENCIJA!E422","v":"00:00:00"},{"$f":"EVIDENCIJA!F422","v":"00:00:00"},{"$f":"EVIDENCIJA!G422","v":"Pominat rok"},{"$f":"EVIDENCIJA!Z422","v":0},{"$f":"EVIDENCIJA!AA422","v":0},{"$f":"EVIDENCIJA!I422","v":0},{"$f":"EVIDENCIJA!AB422","v":0}]
[{"$f":"EVIDENCIJA!A423","v":""},{"$f":"EVIDENCIJA!B423","v":0},{"$f":"EVIDENCIJA!C423","v":0},{"$f":"EVIDENCIJA!H423","v":0},{"$f":"EVIDENCIJA!E423","v":"00:00:00"},{"$f":"EVIDENCIJA!F423","v":"00:00:00"},{"$f":"EVIDENCIJA!G423","v":"Pominat rok"},{"$f":"EVIDENCIJA!Z423","v":0},{"$f":"EVIDENCIJA!AA423","v":0},{"$f":"EVIDENCIJA!I423","v":0},{"$f":"EVIDENCIJA!AB423","v":0}]
[{"$f":"EVIDENCIJA!A424","v":""},{"$f":"EVIDENCIJA!B424","v":0},{"$f":"EVIDENCIJA!C424","v":0},{"$f":"EVIDENCIJA!H424","v":0},{"$f":"EVIDENCIJA!E424","v":"00:00:00"},{"$f":"EVIDENCIJA!F424","v":"00:00:00"},{"$f":"EVIDENCIJA!G424","v":"Pominat rok"},{"$f":"EVIDENCIJA!Z424","v":0},{"$f":"EVIDENCIJA!AA424","v":0},{"$f":"EVIDENCIJA!I424","v":0},{"$f":"EVIDENCIJA!AB424","v":0}]
[{"$f":"EVIDENCIJA!A425","v":""},{"$f":"EVIDENCIJA!B425","v":0},{"$f":"EVIDENCIJA!C425","v":0},{"$f":"EVIDENCIJA!H425","v":0},{"$f":"EVIDENCIJA!E425","v":"00:00:00"},{"$f":"EVIDENCIJA!F425","v":"00:00:00"},{"$f":"EVIDENCIJA!G425","v":"Pominat rok"},{"$f":"EVIDENCIJA!Z425","v":0},{"$f":"EVIDENCIJA!AA425","v":0},{"$f":"EVIDENCIJA!I425","v":0},{"$f":"EVIDENCIJA!AB425","v":0}]
[{"$f":"EVIDENCIJA!A426","v":""},{"$f":"EVIDENCIJA!B426","v":0},{"$f":"EVIDENCIJA!C426","v":0},{"$f":"EVIDENCIJA!H426","v":0},{"$f":"EVIDENCIJA!E426","v":"00:00:00"},{"$f":"EVIDENCIJA!F426","v":"00:00:00"},{"$f":"EVIDENCIJA!G426","v":"Pominat rok"},{"$f":"EVIDENCIJA!Z426","v":0},{"$f":"EVIDENCIJA!AA426","v":0},{"$f":"EVIDENCIJA!I426","v":0},{"$f":"EVIDENCIJA!AB426","v":0}]
[{"$f":"EVIDENCIJA!A427","v":""},{"$f":"EVIDENCIJA!B427","v":0},{"$f":"EVIDENCIJA!C427","v":0},{"$f":"EVIDENCIJA!H427","v":0},{"$f":"EVIDENCIJA!E427","v":"00:00:00"},{"$f":"EVIDENCIJA!F427","v":"00:00:00"},{"$f":"EVIDENCIJA!G427","v":"Pominat rok"},{"$f":"EVIDENCIJA!Z427","v":0},{"$f":"EVIDENCIJA!AA427","v":0},{"$f":"EVIDENCIJA!I427","v":0},{"$f":"EVIDENCIJA!AB427","v":0}]
[{"$f":"EVIDENCIJA!A428","v":""},{"$f":"EVIDENCIJA!B428","v":0},{"$f":"EVIDENCIJA!C428","v":0},{"$f":"EVIDENCIJA!H428","v":0},{"$f":"EVIDENCIJA!E428","v":"00:00:00"},{"$f":"EVIDENCIJA!F428","v":"00:00:00"},{"$f":"EVIDENCIJA!G428","v":"Pominat rok"},{"$f":"EVIDENCIJA!Z428","v":0},{"$f":"EVIDENCIJA!AA428","v":0},{"$f":"EVIDENCIJA!I428","v":0},{"$f":"EVIDENCIJA!AB428","v":0}]
[{"$f":"EVIDENCIJA!A429","v":""},{"$f":"EVIDENCIJA!B429","v":0},{"$f":"EVIDENCIJA!C429","v":0},{"$f":"EVIDENCIJA!H429","v":0},{"$f":"EVIDENCIJA!E429","v":"00:00:00"},{"$f":"EVIDENCIJA!F429","v":"00:00:00"},{"$f":"EVIDENCIJA!G429","v":"Pominat rok"},{"$f":"EVIDENCIJA!Z429","v":0},{"$f":"EVIDENCIJA!AA429","v":0},{"$f":"EVIDENCIJA!I429","v":0},{"$f":"EVIDENCIJA!AB429","v":0}]
[{"$f":"EVIDENCIJA!A430","v":""},{"$f":"EVIDENCIJA!B430","v":0},{"$f":"EVIDENCIJA!C430","v":0},{"$f":"EVIDENCIJA!H430","v":0},{"$f":"EVIDENCIJA!E430","v":"00:00:00"},{"$f":"EVIDENCIJA!F430","v":"00:00:00"},{"$f":"EVIDENCIJA!G430","v":"Pominat rok"},{"$f":"EVIDENCIJA!Z430","v":0},{"$f":"EVIDENCIJA!AA430","v":0},{"$f":"EVIDENCIJA!I430","v":0},{"$f":"EVIDENCIJA!AB430","v":0}]
[{"$f":"EVIDENCIJA!A431","v":""},{"$f":"EVIDENCIJA!B431","v":0},{"$f":"EVIDENCIJA!C431","v":0},{"$f":"EVIDENCIJA!H431","v":0},{"$f":"EVIDENCIJA!E431","v":"00:00:00"},{"$f":"EVIDENCIJA!F431","v":"00:00:00"},{"$f":"EVIDENCIJA!G431","v":"Pominat rok"},{"$f":"EVIDENCIJA!Z431","v":0},{"$f":"EVIDENCIJA!AA431","v":0},{"$f":"EVIDENCIJA!I431","v":0},{"$f":"EVIDENCIJA!AB431","v":0}]
[{"$f":"EVIDENCIJA!A432","v":""},{"$f":"EVIDENCIJA!B432","v":0},{"$f":"EVIDENCIJA!C432","v":0},{"$f":"EVIDENCIJA!H432","v":0},{"$f":"EVIDENCIJA!E432","v":"00:00:00"},{"$f":"EVIDENCIJA!F432","v":"00:00:00"},{"$f":"EVIDENCIJA!G432","v":"Pominat rok"},{"$f":"EVIDENCIJA!Z432","v":0},{"$f":"EVIDENCIJA!AA432","v":0},{"$f":"EVIDENCIJA!I432","v":0},{"$f":"EVIDENCIJA!AB432","v":0}]
[{"$f":"EVIDENCIJA!A433","v":""},{"$f":"EVIDENCIJA!B433","v":0},{"$f":"EVIDENCIJA!C433","v":0},{"$f":"EVIDENCIJA!H433","v":0},{"$f":"EVIDENCIJA!E433","v":"00:00:00"},{"$f":"EVIDENCIJA!F433","v":"00:00:00"},{"$f":"EVIDENCIJA!G433","v":"Pominat rok"},{"$f":"EVIDENCIJA!Z433","v":0},{"$f":"EVIDENCIJA!AA433","v":0},{"$f":"EVIDENCIJA!I433","v":0},{"$f":"EVIDENCIJA!AB433","v":0}]
[{"$f":"EVIDENCIJA!A434","v":""},{"$f":"EVIDENCIJA!B434","v":0},{"$f":"EVIDENCIJA!C434","v":0},{"$f":"EVIDENCIJA!H434","v":0},{"$f":"EVIDENCIJA!E434","v":"00:00:00"},{"$f":"EVIDENCIJA!F434","v":"00:00:00"},{"$f":"EVIDENCIJA!G434","v":"Pominat rok"},{"$f":"EVIDENCIJA!Z434","v":0},{"$f":"EVIDENCIJA!AA434","v":0},{"$f":"EVIDENCIJA!I434","v":0},{"$f":"EVIDENCIJA!AB434","v":0}]
[{"$f":"EVIDENCIJA!A435","v":""},{"$f":"EVIDENCIJA!B435","v":0},{"$f":"EVIDENCIJA!C435","v":0},{"$f":"EVIDENCIJA!H435","v":0},{"$f":"EVIDENCIJA!E435","v":"00:00:00"},{"$f":"EVIDENCIJA!F435","v":"00:00:00"},{"$f":"EVIDENCIJA!G435","v":"Pominat rok"},{"$f":"EVIDENCIJA!Z435","v":0},{"$f":"EVIDENCIJA!AA435","v":0},{"$f":"EVIDENCIJA!I435","v":0},{"$f":"EVIDENCIJA!AB435","v":0}]
[{"$f":"EVIDENCIJA!A436","v":""},{"$f":"EVIDENCIJA!B436","v":0},{"$f":"EVIDENCIJA!C436","v":0},{"$f":"EVIDENCIJA!H436","v":0},{"$f":"EVIDENCIJA!E436","v":"00:00:00"},{"$f":"EVIDENCIJA!F436","v":"00:00:00"},{"$f":"EVIDENCIJA!G436","v":"Pominat rok"},{"$f":"EVIDENCIJA!Z436","v":0},{"$f":"EVIDENCIJA!AA436","v":0},{"$f":"EVIDENCIJA!I436","v":0},{"$f":"EVIDENCIJA!AB436","v":0}]
[{"$f":"EVIDENCIJA!A437","v":""},{"$f":"EVIDENCIJA!B437","v":0},{"$f":"EVIDENCIJA!C437","v":0},{"$f":"EVIDENCIJA!H437","v":0},{"$f":"EVIDENCIJA!E437","v":"00:00:00"},{"$f":"EVIDENCIJA!F437","v":"00:00:00"},{"$f":"EVIDENCIJA!G437","v":"Pominat rok"},{"$f":"EVIDENCIJA!Z437","v":0},{"$f":"EVIDENCIJA!AA437","v":0},{"$f":"EVIDENCIJA!I437","v":0},{"$f":"EVIDENCIJA!AB437","v":0}]
[{"$f":"EVIDENCIJA!A438","v":""},{"$f":"EVIDENCIJA!B438","v":0},{"$f":"EVIDENCIJA!C438","v":0},{"$f":"EVIDENCIJA!H438","v":0},{"$f":"EVIDENCIJA!E438","v":"00:00:00"},{"$f":"EVIDENCIJA!F438","v":"00:00:00"},{"$f":"EVIDENCIJA!G438","v":"Pominat rok"},{"$f":"EVIDENCIJA!Z438","v":0},{"$f":"EVIDENCIJA!AA438","v":0},{"$f":"EVIDENCIJA!I438","v":0},{"$f":"EVIDENCIJA!AB438","v":0}]
[{"$f":"EVIDENCIJA!A439","v":""},{"$f":"EVIDENCIJA!B439","v":0},{"$f":"EVIDENCIJA!C439","v":0},{"$f":"EVIDENCIJA!H439","v":0},{"$f":"EVIDENCIJA!E439","v":"00:00:00"},{"$f":"EVIDENCIJA!F439","v":"00:00:00"},{"$f":"EVIDENCIJA!G439","v":"Pominat rok"},{"$f":"EVIDENCIJA!Z439","v":0},{"$f":"EVIDENCIJA!AA439","v":0},{"$f":"EVIDENCIJA!I439","v":0},{"$f":"EVIDENCIJA!AB439","v":0}]
[{"$f":"EVIDENCIJA!A440","v":""},{"$f":"EVIDENCIJA!B440","v":0},{"$f":"EVIDENCIJA!C440","v":0},{"$f":"EVIDENCIJA!H440","v":0},{"$f":"EVIDENCIJA!E440","v":"00:00:00"},{"$f":"EVIDENCIJA!F440","v":"00:00:00"},{"$f":"EVIDENCIJA!G440","v":"Pominat rok"},{"$f":"EVIDENCIJA!Z440","v":0},{"$f":"EVIDENCIJA!AA440","v":0},{"$f":"EVIDENCIJA!I440","v":0},{"$f":"EVIDENCIJA!AB440","v":0}]
[{"$f":"EVIDENCIJA!A441","v":""},{"$f":"EVIDENCIJA!B441","v":0},{"$f":"EVIDENCIJA!C441","v":0},{"$f":"EVIDENCIJA!H441","v":0},{"$f":"EVIDENCIJA!E441","v":"00:00:00"},{"$f":"EVIDENCIJA!F441","v":"00:00:00"},{"$f":"EVIDENCIJA!G441","v":"Pominat rok"},{"$f":"EVIDENCIJA!Z441","v":0},{"$f":"EVIDENCIJA!AA441","v":0},{"$f":"EVIDENCIJA!I441","v":0},{"$f":"EVIDENCIJA!AB441","v":0}]
[{"$f":"EVIDENCIJA!A442","v":""},{"$f":"EVIDENCIJA!B442","v":0},{"$f":"EVIDENCIJA!C442","v":0},{"$f":"EVIDENCIJA!H442","v":0},{"$f":"EVIDENCIJA!E442","v":"00:00:00"},{"$f":"EVIDENCIJA!F442","v":"00:00:00"},{"$f":"EVIDENCIJA!G442","v":"Pominat rok"},{"$f":"EVIDENCIJA!Z442","v":0},{"$f":"EVIDENCIJA!AA442","v":0},{"$f":"EVIDENCIJA!I442","v":0},{"$f":"EVIDENCIJA!AB442","v":0}]
[{"$f":"EVIDENCIJA!A443","v":""},{"$f":"EVIDENCIJA!B443","v":0},{"$f":"EVIDENCIJA!C443","v":0},{"$f":"EVIDENCIJA!H443","v":0},{"$f":"EVIDENCIJA!E443","v":"00:00:00"},{"$f":"EVIDENCIJA!F443","v":"00:00:00"},{"$f":"EVIDENCIJA!G443","v":"Pominat rok"},{"$f":"EVIDENCIJA!Z443","v":0},{"$f":"EVIDENCIJA!AA443","v":0},{"$f":"EVIDENCIJA!I443","v":0},{"$f":"EVIDENCIJA!AB443","v":0}]
[{"$f":"EVIDENCIJA!A444","v":""},{"$f":"EVIDENCIJA!B444","v":0},{"$f":"EVIDENCIJA!C444","v":0},{"$f":"EVIDENCIJA!H444","v":0},{"$f":"EVIDENCIJA!E444","v":"00:00:00"},{"$f":"EVIDENCIJA!F444","v":"00:00:00"},{"$f":"EVIDENCIJA!G444","v":"Pominat rok"},{"$f":"EVIDENCIJA!Z444","v":0},{"$f":"EVIDENCIJA!AA444","v":0},{"$f":"EVIDENCIJA!I444","v":0},{"$f":"EVIDENCIJA!AB444","v":0}]
[{"$f":"EVIDENCIJA!A445","v":""},{"$f":"EVIDENCIJA!B445","v":0},{"$f":"EVIDENCIJA!C445","v":0},{"$f":"EVIDENCIJA!H445","v":0},{"$f":"EVIDENCIJA!E445","v":"00:00:00"},{"$f":"EVIDENCIJA!F445","v":"00:00:00"},{"$f":"EVIDENCIJA!G445","v":"Pominat rok"},{"$f":"EVIDENCIJA!Z445","v":0},{"$f":"EVIDENCIJA!AA445","v":0},{"$f":"EVIDENCIJA!I445","v":0},{"$f":"EVIDENCIJA!AB445","v":0}]
[{"$f":"EVIDENCIJA!A446","v":""},{"$f":"EVIDENCIJA!B446","v":0},{"$f":"EVIDENCIJA!C446","v":0},{"$f":"EVIDENCIJA!H446","v":0},{"$f":"EVIDENCIJA!E446","v":"00:00:00"},{"$f":"EVIDENCIJA!F446","v":"00:00:00"},{"$f":"EVIDENCIJA!G446","v":"Pominat rok"},{"$f":"EVIDENCIJA!Z446","v":0},{"$f":"EVIDENCIJA!AA446","v":0},{"$f":"EVIDENCIJA!I446","v":0},{"$f":"EVIDENCIJA!AB446","v":0}]
[{"$f":"EVIDENCIJA!A447","v":""},{"$f":"EVIDENCIJA!B447","v":0},{"$f":"EVIDENCIJA!C447","v":0},{"$f":"EVIDENCIJA!H447","v":0},{"$f":"EVIDENCIJA!E447","v":"00:00:00"},{"$f":"EVIDENCIJA!F447","v":"00:00:00"},{"$f":"EVIDENCIJA!G447","v":"Pominat rok"},{"$f":"EVIDENCIJA!Z447","v":0},{"$f":"EVIDENCIJA!AA447","v":0},{"$f":"EVIDENCIJA!I447","v":0},{"$f":"EVIDENCIJA!AB447","v":0}]
[{"$f":"EVIDENCIJA!A448","v":""},{"$f":"EVIDENCIJA!B448","v":0},{"$f":"EVIDENCIJA!C448","v":0},{"$f":"EVIDENCIJA!H448","v":0},{"$f":"EVIDENCIJA!E448","v":"00:00:00"},{"$f":"EVIDENCIJA!F448","v":"00:00:00"},{"$f":"EVIDENCIJA!G448","v":"Pominat rok"},{"$f":"EVIDENCIJA!Z448","v":0},{"$f":"EVIDENCIJA!AA448","v":0},{"$f":"EVIDENCIJA!I448","v":0},{"$f":"EVIDENCIJA!AB448","v":0}]
[{"$f":"EVIDENCIJA!A449","v":""},{"$f":"EVIDENCIJA!B449","v":0},{"$f":"EVIDENCIJA!C449","v":0},{"$f":"EVIDENCIJA!H449","v":0},{"$f":"EVIDENCIJA!E449","v":"00:00:00"},{"$f":"EVIDENCIJA!F449","v":"00:00:00"},{"$f":"EVIDENCIJA!G449","v":"Pominat rok"},{"$f":"EVIDENCIJA!Z449","v":0},{"$f":"EVIDENCIJA!AA449","v":0},{"$f":"EVIDENCIJA!I449","v":0},{"$f":"EVIDENCIJA!AB449","v":0}]
[{"$f":"EVIDENCIJA!A450","v":""},{"$f":"EVIDENCIJA!B450","v":0},{"$f":"EVIDENCIJA!C450","v":0},{"$f":"EVIDENCIJA!H450","v":0},{"$f":"EVIDENCIJA!E450","v":"00:00:00"},{"$f":"EVIDENCIJA!F450","v":"00:00:00"},{"$f":"EVIDENCIJA!G450","v":"Pominat rok"},{"$f":"EVIDENCIJA!Z450","v":0},{"$f":"EVIDENCIJA!AA450","v":0},{"$f":"EVIDENCIJA!I450","v":0},{"$f":"EVIDENCIJA!AB450","v":0}]
[{"$f":"EVIDENCIJA!A451","v":""},{"$f":"EVIDENCIJA!B451","v":0},{"$f":"EVIDENCIJA!C451","v":0},{"$f":"EVIDENCIJA!H451","v":0},{"$f":"EVIDENCIJA!E451","v":"00:00:00"},{"$f":"EVIDENCIJA!F451","v":"00:00:00"},{"$f":"EVIDENCIJA!G451","v":"Pominat rok"},{"$f":"EVIDENCIJA!Z451","v":0},{"$f":"EVIDENCIJA!AA451","v":0},{"$f":"EVIDENCIJA!I451","v":0},{"$f":"EVIDENCIJA!AB451","v":0}]
[{"$f":"EVIDENCIJA!A452","v":""},{"$f":"EVIDENCIJA!B452","v":0},{"$f":"EVIDENCIJA!C452","v":0},{"$f":"EVIDENCIJA!H452","v":0},{"$f":"EVIDENCIJA!E452","v":"00:00:00"},{"$f":"EVIDENCIJA!F452","v":"00:00:00"},{"$f":"EVIDENCIJA!G452","v":"Pominat rok"},{"$f":"EVIDENCIJA!Z452","v":0},{"$f":"EVIDENCIJA!AA452","v":0},{"$f":"EVIDENCIJA!I452","v":0},{"$f":"EVIDENCIJA!AB452","v":0}]
[{"$f":"EVIDENCIJA!A453","v":""},{"$f":"EVIDENCIJA!B453","v":0},{"$f":"EVIDENCIJA!C453","v":0},{"$f":"EVIDENCIJA!H453","v":0},{"$f":"EVIDENCIJA!E453","v":"00:00:00"},{"$f":"EVIDENCIJA!F453","v":"00:00:00"},{"$f":"EVIDENCIJA!G453","v":"Pominat rok"},{"$f":"EVIDENCIJA!Z453","v":0},{"$f":"EVIDENCIJA!AA453","v":0},{"$f":"EVIDENCIJA!I453","v":0},{"$f":"EVIDENCIJA!AB453","v":0}]
[{"$f":"EVIDENCIJA!A454","v":""},{"$f":"EVIDENCIJA!B454","v":0},{"$f":"EVIDENCIJA!C454","v":0},{"$f":"EVIDENCIJA!H454","v":0},{"$f":"EVIDENCIJA!E454","v":"00:00:00"},{"$f":"EVIDENCIJA!F454","v":"00:00:00"},{"$f":"EVIDENCIJA!G454","v":"Pominat rok"},{"$f":"EVIDENCIJA!Z454","v":0},{"$f":"EVIDENCIJA!AA454","v":0},{"$f":"EVIDENCIJA!I454","v":0},{"$f":"EVIDENCIJA!AB454","v":0}]
[{"$f":"EVIDENCIJA!A455","v":""},{"$f":"EVIDENCIJA!B455","v":0},{"$f":"EVIDENCIJA!C455","v":0},{"$f":"EVIDENCIJA!H455","v":0},{"$f":"EVIDENCIJA!E455","v":"00:00:00"},{"$f":"EVIDENCIJA!F455","v":"00:00:00"},{"$f":"EVIDENCIJA!G455","v":"Pominat rok"},{"$f":"EVIDENCIJA!Z455","v":0},{"$f":"EVIDENCIJA!AA455","v":0},{"$f":"EVIDENCIJA!I455","v":0},{"$f":"EVIDENCIJA!AB455","v":0}]
[{"$f":"EVIDENCIJA!A456","v":""},{"$f":"EVIDENCIJA!B456","v":0},{"$f":"EVIDENCIJA!C456","v":0},{"$f":"EVIDENCIJA!H456","v":0},{"$f":"EVIDENCIJA!E456","v":"00:00:00"},{"$f":"EVIDENCIJA!F456","v":"00:00:00"},{"$f":"EVIDENCIJA!G456","v":"Pominat rok"},{"$f":"EVIDENCIJA!Z456","v":0},{"$f":"EVIDENCIJA!AA456","v":0},{"$f":"EVIDENCIJA!I456","v":0},{"$f":"EVIDENCIJA!AB456","v":0}]
[{"$f":"EVIDENCIJA!A457","v":""},{"$f":"EVIDENCIJA!B457","v":0},{"$f":"EVIDENCIJA!C457","v":0},{"$f":"EVIDENCIJA!H457","v":0},{"$f":"EVIDENCIJA!E457","v":"00:00:00"},{"$f":"EVIDENCIJA!F457","v":"00:00:00"},{"$f":"EVIDENCIJA!G457","v":"Pominat rok"},{"$f":"EVIDENCIJA!Z457","v":0},{"$f":"EVIDENCIJA!AA457","v":0},{"$f":"EVIDENCIJA!I457","v":0},{"$f":"EVIDENCIJA!AB457","v":0}]
[{"$f":"EVIDENCIJA!A458","v":""},{"$f":"EVIDENCIJA!B458","v":0},{"$f":"EVIDENCIJA!C458","v":0},{"$f":"EVIDENCIJA!H458","v":0},{"$f":"EVIDENCIJA!E458","v":"00:00:00"},{"$f":"EVIDENCIJA!F458","v":"00:00:00"},{"$f":"EVIDENCIJA!G458","v":"Pominat rok"},{"$f":"EVIDENCIJA!Z458","v":0},{"$f":"EVIDENCIJA!AA458","v":0},{"$f":"EVIDENCIJA!I458","v":0},{"$f":"EVIDENCIJA!AB458","v":0}]
[{"$f":"EVIDENCIJA!A459","v":""},{"$f":"EVIDENCIJA!B459","v":0},{"$f":"EVIDENCIJA!C459","v":0},{"$f":"EVIDENCIJA!H459","v":0},{"$f":"EVIDENCIJA!E459","v":"00:00:00"},{"$f":"EVIDENCIJA!F459","v":"00:00:00"},{"$f":"EVIDENCIJA!G459","v":"Pominat rok"},{"$f":"EVIDENCIJA!Z459","v":0},{"$f":"EVIDENCIJA!AA459","v":0},{"$f":"EVIDENCIJA!I459","v":0},{"$f":"EVIDENCIJA!AB459","v":0}]
[{"$f":"EVIDENCIJA!A460","v":""},{"$f":"EVIDENCIJA!B460","v":0},{"$f":"EVIDENCIJA!C460","v":0},{"$f":"EVIDENCIJA!H460","v":0},{"$f":"EVIDENCIJA!E460","v":"00:00:00"},{"$f":"EVIDENCIJA!F460","v":"00:00:00"},{"$f":"EVIDENCIJA!G460","v":"Pominat rok"},{"$f":"EVIDENCIJA!Z460","v":0},{"$f":"EVIDENCIJA!AA460","v":0},{"$f":"EVIDENCIJA!I460","v":0},{"$f":"EVIDENCIJA!AB460","v":0}]
[{"$f":"EVIDENCIJA!A461","v":""},{"$f":"EVIDENCIJA!B461","v":0},{"$f":"EVIDENCIJA!C461","v":0},{"$f":"EVIDENCIJA!H461","v":0},{"$f":"EVIDENCIJA!E461","v":"00:00:00"},{"$f":"EVIDENCIJA!F461","v":"00:00:00"},{"$f":"EVIDENCIJA!G461","v":"Pominat rok"},{"$f":"EVIDENCIJA!Z461","v":0},{"$f":"EVIDENCIJA!AA461","v":0},{"$f":"EVIDENCIJA!I461","v":0},{"$f":"EVIDENCIJA!AB461","v":0}]
[{"$f":"EVIDENCIJA!A462","v":""},{"$f":"EVIDENCIJA!B462","v":0},{"$f":"EVIDENCIJA!C462","v":0},{"$f":"EVIDENCIJA!H462","v":0},{"$f":"EVIDENCIJA!E462","v":"00:00:00"},{"$f":"EVIDENCIJA!F462","v":"00:00:00"},{"$f":"EVIDENCIJA!G462","v":"Pominat rok"},{"$f":"EVIDENCIJA!Z462","v":0},{"$f":"EVIDENCIJA!AA462","v":0},{"$f":"EVIDENCIJA!I462","v":0},{"$f":"EVIDENCIJA!AB462","v":0}]
[{"$f":"EVIDENCIJA!A463","v":""},{"$f":"EVIDENCIJA!B463","v":0},{"$f":"EVIDENCIJA!C463","v":0},{"$f":"EVIDENCIJA!H463","v":0},{"$f":"EVIDENCIJA!E463","v":"00:00:00"},{"$f":"EVIDENCIJA!F463","v":"00:00:00"},{"$f":"EVIDENCIJA!G463","v":"Pominat rok"},{"$f":"EVIDENCIJA!Z463","v":0},{"$f":"EVIDENCIJA!AA463","v":0},{"$f":"EVIDENCIJA!I463","v":0},{"$f":"EVIDENCIJA!AB463","v":0}]
[{"$f":"EVIDENCIJA!A464","v":""},{"$f":"EVIDENCIJA!B464","v":0},{"$f":"EVIDENCIJA!C464","v":0},{"$f":"EVIDENCIJA!H464","v":0},{"$f":"EVIDENCIJA!E464","v":"00:00:00"},{"$f":"EVIDENCIJA!F464","v":"00:00:00"},{"$f":"EVIDENCIJA!G464","v":"Pominat rok"},{"$f":"EVIDENCIJA!Z464","v":0},{"$f":"EVIDENCIJA!AA464","v":0},{"$f":"EVIDENCIJA!I464","v":0},{"$f":"EVIDENCIJA!AB464","v":0}]
[{"$f":"EVIDENCIJA!A465","v":""},{"$f":"EVIDENCIJA!B465","v":0},{"$f":"EVIDENCIJA!C465","v":0},{"$f":"EVIDENCIJA!H465","v":0},{"$f":"EVIDENCIJA!E465","v":"00:00:00"},{"$f":"EVIDENCIJA!F465","v":"00:00:00"},{"$f":"EVIDENCIJA!G465","v":"Pominat rok"},{"$f":"EVIDENCIJA!Z465","v":0},{"$f":"EVIDENCIJA!AA465","v":0},{"$f":"EVIDENCIJA!I465","v":0},{"$f":"EVIDENCIJA!AB465","v":0}]
[{"$f":"EVIDENCIJA!A466","v":""},{"$f":"EVIDENCIJA!B466","v":0},{"$f":"EVIDENCIJA!C466","v":0},{"$f":"EVIDENCIJA!H466","v":0},{"$f":"EVIDENCIJA!E466","v":"00:00:00"},{"$f":"EVIDENCIJA!F466","v":"00:00:00"},{"$f":"EVIDENCIJA!G466","v":"Pominat rok"},{"$f":"EVIDENCIJA!Z466","v":0},{"$f":"EVIDENCIJA!AA466","v":0},{"$f":"EVIDENCIJA!I466","v":0},{"$f":"EVIDENCIJA!AB466","v":0}]
[{"$f":"EVIDENCIJA!A467","v":""},{"$f":"EVIDENCIJA!B467","v":0},{"$f":"EVIDENCIJA!C467","v":0},{"$f":"EVIDENCIJA!H467","v":0},{"$f":"EVIDENCIJA!E467","v":"00:00:00"},{"$f":"EVIDENCIJA!F467","v":"00:00:00"},{"$f":"EVIDENCIJA!G467","v":"Pominat rok"},{"$f":"EVIDENCIJA!Z467","v":0},{"$f":"EVIDENCIJA!AA467","v":0},{"$f":"EVIDENCIJA!I467","v":0},{"$f":"EVIDENCIJA!AB467","v":0}]
[{"$f":"EVIDENCIJA!A468","v":""},{"$f":"EVIDENCIJA!B468","v":0},{"$f":"EVIDENCIJA!C468","v":0},{"$f":"EVIDENCIJA!H468","v":0},{"$f":"EVIDENCIJA!E468","v":"00:00:00"},{"$f":"EVIDENCIJA!F468","v":"00:00:00"},{"$f":"EVIDENCIJA!G468","v":"Pominat rok"},{"$f":"EVIDENCIJA!Z468","v":0},{"$f":"EVIDENCIJA!AA468","v":0},{"$f":"EVIDENCIJA!I468","v":0},{"$f":"EVIDENCIJA!AB468","v":0}]
[{"$f":"EVIDENCIJA!A469","v":""},{"$f":"EVIDENCIJA!B469","v":0},{"$f":"EVIDENCIJA!C469","v":0},{"$f":"EVIDENCIJA!H469","v":0},{"$f":"EVIDENCIJA!E469","v":"00:00:00"},{"$f":"EVIDENCIJA!F469","v":"00:00:00"},{"$f":"EVIDENCIJA!G469","v":"Pominat rok"},{"$f":"EVIDENCIJA!Z469","v":0},{"$f":"EVIDENCIJA!AA469","v":0},{"$f":"EVIDENCIJA!I469","v":0},{"$f":"EVIDENCIJA!AB469","v":0}]
[{"$f":"EVIDENCIJA!A470","v":""},{"$f":"EVIDENCIJA!B470","v":0},{"$f":"EVIDENCIJA!C470","v":0},{"$f":"EVIDENCIJA!H470","v":0},{"$f":"EVIDENCIJA!E470","v":"00:00:00"},{"$f":"EVIDENCIJA!F470","v":"00:00:00"},{"$f":"EVIDENCIJA!G470","v":"Pominat rok"},{"$f":"EVIDENCIJA!Z470","v":0},{"$f":"EVIDENCIJA!AA470","v":0},{"$f":"EVIDENCIJA!I470","v":0},{"$f":"EVIDENCIJA!AB470","v":0}]
[{"$f":"EVIDENCIJA!A471","v":""},{"$f":"EVIDENCIJA!B471","v":0},{"$f":"EVIDENCIJA!C471","v":0},{"$f":"EVIDENCIJA!H471","v":0},{"$f":"EVIDENCIJA!E471","v":"00:00:00"},{"$f":"EVIDENCIJA!F471","v":"00:00:00"},{"$f":"EVIDENCIJA!G471","v":"Pominat rok"},{"$f":"EVIDENCIJA!Z471","v":0},{"$f":"EVIDENCIJA!AA471","v":0},{"$f":"EVIDENCIJA!I471","v":0},{"$f":"EVIDENCIJA!AB471","v":0}]
[{"$f":"EVIDENCIJA!A472","v":""},{"$f":"EVIDENCIJA!B472","v":0},{"$f":"EVIDENCIJA!C472","v":0},{"$f":"EVIDENCIJA!H472","v":0},{"$f":"EVIDENCIJA!E472","v":"00:00:00"},{"$f":"EVIDENCIJA!F472","v":"00:00:00"},{"$f":"EVIDENCIJA!G472","v":"Pominat rok"},{"$f":"EVIDENCIJA!Z472","v":0},{"$f":"EVIDENCIJA!AA472","v":0},{"$f":"EVIDENCIJA!I472","v":0},{"$f":"EVIDENCIJA!AB472","v":0}]
[{"$f":"EVIDENCIJA!A473","v":""},{"$f":"EVIDENCIJA!B473","v":0},{"$f":"EVIDENCIJA!C473","v":0},{"$f":"EVIDENCIJA!H473","v":0},{"$f":"EVIDENCIJA!E473","v":"00:00:00"},{"$f":"EVIDENCIJA!F473","v":"00:00:00"},{"$f":"EVIDENCIJA!G473","v":"Pominat rok"},{"$f":"EVIDENCIJA!Z473","v":0},{"$f":"EVIDENCIJA!AA473","v":0},{"$f":"EVIDENCIJA!I473","v":0},{"$f":"EVIDENCIJA!AB473","v":0}]
[{"$f":"EVIDENCIJA!A474","v":""},{"$f":"EVIDENCIJA!B474","v":0},{"$f":"EVIDENCIJA!C474","v":0},{"$f":"EVIDENCIJA!H474","v":0},{"$f":"EVIDENCIJA!E474","v":"00:00:00"},{"$f":"EVIDENCIJA!F474","v":"00:00:00"},{"$f":"EVIDENCIJA!G474","v":"Pominat rok"},{"$f":"EVIDENCIJA!Z474","v":0},{"$f":"EVIDENCIJA!AA474","v":0},{"$f":"EVIDENCIJA!I474","v":0},{"$f":"EVIDENCIJA!AB474","v":0}]
[{"$f":"EVIDENCIJA!A475","v":""},{"$f":"EVIDENCIJA!B475","v":0},{"$f":"EVIDENCIJA!C475","v":0},{"$f":"EVIDENCIJA!H475","v":0},{"$f":"EVIDENCIJA!E475","v":"00:00:00"},{"$f":"EVIDENCIJA!F475","v":"00:00:00"},{"$f":"EVIDENCIJA!G475","v":"Pominat rok"},{"$f":"EVIDENCIJA!Z475","v":0},{"$f":"EVIDENCIJA!AA475","v":0},{"$f":"EVIDENCIJA!I475","v":0},{"$f":"EVIDENCIJA!AB475","v":0}]
[{"$f":"EVIDENCIJA!A476","v":""},{"$f":"EVIDENCIJA!B476","v":0},{"$f":"EVIDENCIJA!C476","v":0},{"$f":"EVIDENCIJA!H476","v":0},{"$f":"EVIDENCIJA!E476","v":"00:00:00"},{"$f":"EVIDENCIJA!F476","v":"00:00:00"},{"$f":"EVIDENCIJA!G476","v":"Pominat rok"},{"$f":"EVIDENCIJA!Z476","v":0},{"$f":"EVIDENCIJA!AA476","v":0},{"$f":"EVIDENCIJA!I476","v":0},{"$f":"EVIDENCIJA!AB476","v":0}]
[{"$f":"EVIDENCIJA!A477","v":""},{"$f":"EVIDENCIJA!B477","v":0},{"$f":"EVIDENCIJA!C477","v":0},{"$f":"EVIDENCIJA!H477","v":0},{"$f":"EVIDENCIJA!E477","v":"00:00:00"},{"$f":"EVIDENCIJA!F477","v":"00:00:00"},{"$f":"EVIDENCIJA!G477","v":"Pominat rok"},{"$f":"EVIDENCIJA!Z477","v":0},{"$f":"EVIDENCIJA!AA477","v":0},{"$f":"EVIDENCIJA!I477","v":0},{"$f":"EVIDENCIJA!AB477","v":0}]
[{"$f":"EVIDENCIJA!A478","v":""},{"$f":"EVIDENCIJA!B478","v":0},{"$f":"EVIDENCIJA!C478","v":0},{"$f":"EVIDENCIJA!H478","v":0},{"$f":"EVIDENCIJA!E478","v":"00:00:00"},{"$f":"EVIDENCIJA!F478","v":"00:00:00"},{"$f":"EVIDENCIJA!G478","v":"Pominat rok"},{"$f":"EVIDENCIJA!Z478","v":0},{"$f":"EVIDENCIJA!AA478","v":0},{"$f":"EVIDENCIJA!I478","v":0},{"$f":"EVIDENCIJA!AB478","v":0}]
[{"$f":"EVIDENCIJA!A479","v":""},{"$f":"EVIDENCIJA!B479","v":0},{"$f":"EVIDENCIJA!C479","v":0},{"$f":"EVIDENCIJA!H479","v":0},{"$f":"EVIDENCIJA!E479","v":"00:00:00"},{"$f":"EVIDENCIJA!F479","v":"00:00:00"},{"$f":"EVIDENCIJA!G479","v":"Pominat rok"},{"$f":"EVIDENCIJA!Z479","v":0},{"$f":"EVIDENCIJA!AA479","v":0},{"$f":"EVIDENCIJA!I479","v":0},{"$f":"EVIDENCIJA!AB479","v":0}]
[{"$f":"EVIDENCIJA!A480","v":""},{"$f":"EVIDENCIJA!B480","v":0},{"$f":"EVIDENCIJA!C480","v":0},{"$f":"EVIDENCIJA!H480","v":0},{"$f":"EVIDENCIJA!E480","v":"00:00:00"},{"$f":"EVIDENCIJA!F480","v":"00:00:00"},{"$f":"EVIDENCIJA!G480","v":"Pominat rok"},{"$f":"EVIDENCIJA!Z480","v":0},{"$f":"EVIDENCIJA!AA480","v":0},{"$f":"EVIDENCIJA!I480","v":0},{"$f":"EVIDENCIJA!AB480","v":0}]
[{"$f":"EVIDENCIJA!A481","v":""},{"$f":"EVIDENCIJA!B481","v":0},{"$f":"EVIDENCIJA!C481","v":0},{"$f":"EVIDENCIJA!H481","v":0},{"$f":"EVIDENCIJA!E481","v":"00:00:00"},{"$f":"EVIDENCIJA!F481","v":"00:00:00"},{"$f":"EVIDENCIJA!G481","v":"Pominat rok"},{"$f":"EVIDENCIJA!Z481","v":0},{"$f":"EVIDENCIJA!AA481","v":0},{"$f":"EVIDENCIJA!I481","v":0},{"$f":"EVIDENCIJA!AB481","v":0}]
[{"$f":"EVIDENCIJA!A482","v":""},{"$f":"EVIDENCIJA!B482","v":0},{"$f":"EVIDENCIJA!C482","v":0},{"$f":"EVIDENCIJA!H482","v":0},{"$f":"EVIDENCIJA!E482","v":"00:00:00"},{"$f":"EVIDENCIJA!F482","v":"00:00:00"},{"$f":"EVIDENCIJA!G482","v":"Pominat rok"},{"$f":"EVIDENCIJA!Z482","v":0},{"$f":"EVIDENCIJA!AA482","v":0},{"$f":"EVIDENCIJA!I482","v":0},{"$f":"EVIDENCIJA!AB482","v":0}]
[{"$f":"EVIDENCIJA!A483","v":""},{"$f":"EVIDENCIJA!B483","v":0},{"$f":"EVIDENCIJA!C483","v":0},{"$f":"EVIDENCIJA!H483","v":0},{"$f":"EVIDENCIJA!E483","v":"00:00:00"},{"$f":"EVIDENCIJA!F483","v":"00:00:00"},{"$f":"EVIDENCIJA!G483","v":"Pominat rok"},{"$f":"EVIDENCIJA!Z483","v":0},{"$f":"EVIDENCIJA!AA483","v":0},{"$f":"EVIDENCIJA!I483","v":0},{"$f":"EVIDENCIJA!AB483","v":0}]
[{"$f":"EVIDENCIJA!A484","v":""},{"$f":"EVIDENCIJA!B484","v":0},{"$f":"EVIDENCIJA!C484","v":0},{"$f":"EVIDENCIJA!H484","v":0},{"$f":"EVIDENCIJA!E484","v":"00:00:00"},{"$f":"EVIDENCIJA!F484","v":"00:00:00"},{"$f":"EVIDENCIJA!G484","v":"Pominat rok"},{"$f":"EVIDENCIJA!Z484","v":0},{"$f":"EVIDENCIJA!AA484","v":0},{"$f":"EVIDENCIJA!I484","v":0},{"$f":"EVIDENCIJA!AB484","v":0}]
[{"$f":"EVIDENCIJA!A485","v":""},{"$f":"EVIDENCIJA!B485","v":0},{"$f":"EVIDENCIJA!C485","v":0},{"$f":"EVIDENCIJA!H485","v":0},{"$f":"EVIDENCIJA!E485","v":"00:00:00"},{"$f":"EVIDENCIJA!F485","v":"00:00:00"},{"$f":"EVIDENCIJA!G485","v":"Pominat rok"},{"$f":"EVIDENCIJA!Z485","v":0},{"$f":"EVIDENCIJA!AA485","v":0},{"$f":"EVIDENCIJA!I485","v":0},{"$f":"EVIDENCIJA!AB485","v":0}]
[{"$f":"EVIDENCIJA!A486","v":""},{"$f":"EVIDENCIJA!B486","v":0},{"$f":"EVIDENCIJA!C486","v":0},{"$f":"EVIDENCIJA!H486","v":0},{"$f":"EVIDENCIJA!E486","v":"00:00:00"},{"$f":"EVIDENCIJA!F486","v":"00:00:00"},{"$f":"EVIDENCIJA!G486","v":"Pominat rok"},{"$f":"EVIDENCIJA!Z486","v":0},{"$f":"EVIDENCIJA!AA486","v":0},{"$f":"EVIDENCIJA!I486","v":0},{"$f":"EVIDENCIJA!AB486","v":0}]
[{"$f":"EVIDENCIJA!A487","v":""},{"$f":"EVIDENCIJA!B487","v":0},{"$f":"EVIDENCIJA!C487","v":0},{"$f":"EVIDENCIJA!H487","v":0},{"$f":"EVIDENCIJA!E487","v":"00:00:00"},{"$f":"EVIDENCIJA!F487","v":"00:00:00"},{"$f":"EVIDENCIJA!G487","v":"Pominat rok"},{"$f":"EVIDENCIJA!Z487","v":0},{"$f":"EVIDENCIJA!AA487","v":0},{"$f":"EVIDENCIJA!I487","v":0},{"$f":"EVIDENCIJA!AB487","v":0}]
[{"$f":"EVIDENCIJA!A488","v":""},{"$f":"EVIDENCIJA!B488","v":0},{"$f":"EVIDENCIJA!C488","v":0},{"$f":"EVIDENCIJA!H488","v":0},{"$f":"EVIDENCIJA!E488","v":"00:00:00"},{"$f":"EVIDENCIJA!F488","v":"00:00:00"},{"$f":"EVIDENCIJA!G488","v":"Pominat rok"},{"$f":"EVIDENCIJA!Z488","v":0},{"$f":"EVIDENCIJA!AA488","v":0},{"$f":"EVIDENCIJA!I488","v":0},{"$f":"EVIDENCIJA!AB488","v":0}]
[{"$f":"EVIDENCIJA!A489","v":""},{"$f":"EVIDENCIJA!B489","v":0},{"$f":"EVIDENCIJA!C489","v":0},{"$f":"EVIDENCIJA!H489","v":0},{"$f":"EVIDENCIJA!E489","v":"00:00:00"},{"$f":"EVIDENCIJA!F489","v":"00:00:00"},{"$f":"EVIDENCIJA!G489","v":"Pominat rok"},{"$f":"EVIDENCIJA!Z489","v":0},{"$f":"EVIDENCIJA!AA489","v":0},{"$f":"EVIDENCIJA!I489","v":0},{"$f":"EVIDENCIJA!AB489","v":0}]
[{"$f":"EVIDENCIJA!A490","v":""},{"$f":"EVIDENCIJA!B490","v":0},{"$f":"EVIDENCIJA!C490","v":0},{"$f":"EVIDENCIJA!H490","v":0},{"$f":"EVIDENCIJA!E490","v":"00:00:00"},{"$f":"EVIDENCIJA!F490","v":"00:00:00"},{"$f":"EVIDENCIJA!G490","v":"Pominat rok"},{"$f":"EVIDENCIJA!Z490","v":0},{"$f":"EVIDENCIJA!AA490","v":0},{"$f":"EVIDENCIJA!I490","v":0},{"$f":"EVIDENCIJA!AB490","v":0}]
[{"$f":"EVIDENCIJA!A491","v":""},{"$f":"EVIDENCIJA!B491","v":0},{"$f":"EVIDENCIJA!C491","v":0},{"$f":"EVIDENCIJA!H491","v":0},{"$f":"EVIDENCIJA!E491","v":"00:00:00"},{"$f":"EVIDENCIJA!F491","v":"00:00:00"},{"$f":"EVIDENCIJA!G491","v":"Pominat rok"},{"$f":"EVIDENCIJA!Z491","v":0},{"$f":"EVIDENCIJA!AA491","v":0},{"$f":"EVIDENCIJA!I491","v":0},{"$f":"EVIDENCIJA!AB491","v":0}]
[{"$f":"EVIDENCIJA!A492","v":""},{"$f":"EVIDENCIJA!B492","v":0},{"$f":"EVIDENCIJA!C492","v":0},{"$f":"EVIDENCIJA!H492","v":0},{"$f":"EVIDENCIJA!E492","v":"00:00:00"},{"$f":"EVIDENCIJA!F492","v":"00:00:00"},{"$f":"EVIDENCIJA!G492","v":"Pominat rok"},{"$f":"EVIDENCIJA!Z492","v":0},{"$f":"EVIDENCIJA!AA492","v":0},{"$f":"EVIDENCIJA!I492","v":0},{"$f":"EVIDENCIJA!AB492","v":0}]
[{"$f":"EVIDENCIJA!A493","v":""},{"$f":"EVIDENCIJA!B493","v":0},{"$f":"EVIDENCIJA!C493","v":0},{"$f":"EVIDENCIJA!H493","v":0},{"$f":"EVIDENCIJA!E493","v":"00:00:00"},{"$f":"EVIDENCIJA!F493","v":"00:00:00"},{"$f":"EVIDENCIJA!G493","v":"Pominat rok"},{"$f":"EVIDENCIJA!Z493","v":0},{"$f":"EVIDENCIJA!AA493","v":0},{"$f":"EVIDENCIJA!I493","v":0},{"$f":"EVIDENCIJA!AB493","v":0}]
[{"$f":"EVIDENCIJA!A494","v":""},{"$f":"EVIDENCIJA!B494","v":0},{"$f":"EVIDENCIJA!C494","v":0},{"$f":"EVIDENCIJA!H494","v":0},{"$f":"EVIDENCIJA!E494","v":"00:00:00"},{"$f":"EVIDENCIJA!F494","v":"00:00:00"},{"$f":"EVIDENCIJA!G494","v":"Pominat rok"},{"$f":"EVIDENCIJA!Z494","v":0},{"$f":"EVIDENCIJA!AA494","v":0},{"$f":"EVIDENCIJA!I494","v":0},{"$f":"EVIDENCIJA!AB494","v":0}]
[{"$f":"EVIDENCIJA!A495","v":""},{"$f":"EVIDENCIJA!B495","v":0},{"$f":"EVIDENCIJA!C495","v":0},{"$f":"EVIDENCIJA!H495","v":0},{"$f":"EVIDENCIJA!E495","v":"00:00:00"},{"$f":"EVIDENCIJA!F495","v":"00:00:00"},{"$f":"EVIDENCIJA!G495","v":"Pominat rok"},{"$f":"EVIDENCIJA!Z495","v":0},{"$f":"EVIDENCIJA!AA495","v":0},{"$f":"EVIDENCIJA!I495","v":0},{"$f":"EVIDENCIJA!AB495","v":0}]
[{"$f":"EVIDENCIJA!A496","v":""},{"$f":"EVIDENCIJA!B496","v":0},{"$f":"EVIDENCIJA!C496","v":0},{"$f":"EVIDENCIJA!H496","v":0},{"$f":"EVIDENCIJA!E496","v":"00:00:00"},{"$f":"EVIDENCIJA!F496","v":"00:00:00"},{"$f":"EVIDENCIJA!G496","v":"Pominat rok"},{"$f":"EVIDENCIJA!Z496","v":0},{"$f":"EVIDENCIJA!AA496","v":0},{"$f":"EVIDENCIJA!I496","v":0},{"$f":"EVIDENCIJA!AB496","v":0}]
[{"$f":"EVIDENCIJA!A497","v":""},{"$f":"EVIDENCIJA!B497","v":0},{"$f":"EVIDENCIJA!C497","v":0},{"$f":"EVIDENCIJA!H497","v":0},{"$f":"EVIDENCIJA!E497","v":"00:00:00"},{"$f":"EVIDENCIJA!F497","v":"00:00:00"},{"$f":"EVIDENCIJA!G497","v":"Pominat rok"},{"$f":"EVIDENCIJA!Z497","v":0},{"$f":"EVIDENCIJA!AA497","v":0},{"$f":"EVIDENCIJA!I497","v":0},{"$f":"EVIDENCIJA!AB497","v":0}]
[{"$f":"EVIDENCIJA!A498","v":""},{"$f":"EVIDENCIJA!B498","v":0},{"$f":"EVIDENCIJA!C498","v":0},{"$f":"EVIDENCIJA!H498","v":0},{"$f":"EVIDENCIJA!E498","v":"00:00:00"},{"$f":"EVIDENCIJA!F498","v":"00:00:00"},{"$f":"EVIDENCIJA!G498","v":"Pominat rok"},{"$f":"EVIDENCIJA!Z498","v":0},{"$f":"EVIDENCIJA!AA498","v":0},{"$f":"EVIDENCIJA!I498","v":0},{"$f":"EVIDENCIJA!AB498","v":0}]
[{"$f":"EVIDENCIJA!A499","v":""},{"$f":"EVIDENCIJA!B499","v":0},{"$f":"EVIDENCIJA!C499","v":0},{"$f":"EVIDENCIJA!H499","v":0},{"$f":"EVIDENCIJA!E499","v":"00:00:00"},{"$f":"EVIDENCIJA!F499","v":"00:00:00"},{"$f":"EVIDENCIJA!G499","v":"Pominat rok"},{"$f":"EVIDENCIJA!Z499","v":0},{"$f":"EVIDENCIJA!AA499","v":0},{"$f":"EVIDENCIJA!I499","v":0},{"$f":"EVIDENCIJA!AB499","v":0}]
[{"$f":"EVIDENCIJA!A500","v":""},{"$f":"EVIDENCIJA!B500","v":0},{"$f":"EVIDENCIJA!C500","v":0},{"$f":"EVIDENCIJA!H500","v":0},{"$f":"EVIDENCIJA!E500","v":"00:00:00"},{"$f":"EVIDENCIJA!F500","v":"00:00:00"},{"$f":"EVIDENCIJA!G500","v":"Pominat rok"},{"$f":"EVIDENCIJA!Z500","v":0},{"$f":"EVIDENCIJA!AA500","v":0},{"$f":"EVIDENCIJA!I500","v":0},{"$f":"EVIDENCIJA!AB500","v":0}]
[{"$f":"EVIDENCIJA!A501","v":""},{"$f":"EVIDENCIJA!B501","v":0},{"$f":"EVIDENCIJA!C501","v":0},{"$f":"EVIDENCIJA!H501","v":0},{"$f":"EVIDENCIJA!E501","v":"00:00:00"},{"$f":"EVIDENCIJA!F501","v":"00:00:00"},{"$f":"EVIDENCIJA!G501","v":"Pominat rok"},{"$f":"EVIDENCIJA!Z501","v":0},{"$f":"EVIDENCIJA!AA501","v":0},{"$f":"EVIDENCIJA!I501","v":0},{"$f":"EVIDENCIJA!AB501","v":0}]
[{"$f":"EVIDENCIJA!A502","v":""},{"$f":"EVIDENCIJA!B502","v":0},{"$f":"EVIDENCIJA!C502","v":0},{"$f":"EVIDENCIJA!H502","v":0},{"$f":"EVIDENCIJA!E502","v":"00:00:00"},{"$f":"EVIDENCIJA!F502","v":"00:00:00"},{"$f":"EVIDENCIJA!G502","v":"Pominat rok"},{"$f":"EVIDENCIJA!Z502","v":0},{"$f":"EVIDENCIJA!AA502","v":0},{"$f":"EVIDENCIJA!I502","v":0},{"$f":"EVIDENCIJA!AB502","v":0}]
[{"$f":"EVIDENCIJA!A503","v":""},{"$f":"EVIDENCIJA!B503","v":0},{"$f":"EVIDENCIJA!C503","v":0},{"$f":"EVIDENCIJA!H503","v":0},{"$f":"EVIDENCIJA!E503","v":"00:00:00"},{"$f":"EVIDENCIJA!F503","v":"00:00:00"},{"$f":"EVIDENCIJA!G503","v":"Pominat rok"},{"$f":"EVIDENCIJA!Z503","v":0},{"$f":"EVIDENCIJA!AA503","v":0},{"$f":"EVIDENCIJA!I503","v":0},{"$f":"EVIDENCIJA!AB503","v":0}]
[{"$f":"EVIDENCIJA!A504","v":""},{"$f":"EVIDENCIJA!B504","v":0},{"$f":"EVIDENCIJA!C504","v":0},{"$f":"EVIDENCIJA!H504","v":0},{"$f":"EVIDENCIJA!E504","v":"00:00:00"},{"$f":"EVIDENCIJA!F504","v":"00:00:00"},{"$f":"EVIDENCIJA!G504","v":"Pominat rok"},{"$f":"EVIDENCIJA!Z504","v":0},{"$f":"EVIDENCIJA!AA504","v":0},{"$f":"EVIDENCIJA!I504","v":0},{"$f":"EVIDENCIJA!AB504","v":0}]